Workbook

Sheet Sample Report (hidden)
A2: Date
A3: Hen
A4: Program
A5: Start at 999999
A6: Sequence component 1 | B6: Time 1 | C6: Seqeunce Component 2 | D6: Time 2 | E6: Seqeunce Component 3 | F6: Time 3 | G6: Correct 0 = No 1=Yes | J6: Seqeunce | K6: Time
A7: 12 | B7: 7 | C7: 12 | D7: 42 | E7: 13 | F7: 18 | G7: if 77 new line, if 31 or 41 = yes new line on 77, | J7: =string of Seqeunce compponent 1, 2 & 3 | K7: =time 3
A8: This continues until ther is a 1 on its own to indicate start of summary data
J9: 10-19 =1
A10: Summary Data | J10: 20-29 =2
A11: Correct | B11: Incorrect | C11: Rft | D11: total | E11: Av Correct | F11: Av Incorrect | G11: Percent correct | H11: Time | J11: in this example the seqeunce would be 111
A12: 40 | B12: 33 | C12: 40 | D12: 73 | E12: 23.95 | F12: 15 | G12: 54 | H12: 806

Sheet Summary
A2: Day | B2: Date | C2: Average Response Rate | D2: Target % | E2: RF for non correct sequence | F2: U Value | K2: Block 1 | L2: Block 2 | M2: Block 3 | N2: Block 4 | O2: Block 5 | P2: Block 6
A3: 1 | B3: ='!M310A2I.sha'!B2:C2 -> <date> | C3: =('!M310A2I.sha'!F69/60)/'!M310A2I.sha'!Q3 -> 2.29047619 | D3: ='!M310A2I.sha'!N20/'!M310A2I.sha'!Q3 -> 0.6349206349 | E3: =SUM('!M310A2I.sha'!L20:Q20)/'!M310A2I.sha'!Q3 -> 4.476190476 | F3: ='!M310A2I.sha'!Q16 -> 0.3085959824 | J3: Average Response Rate | K3: =AVERAGE(C3:C7) -> 3.481347271 | L3: =AVERAGE(C8:C12) -> 2.487371274 | M3: =AVERAGE(C13:C17) -> 2.844864886 | N3: =AVERAGE(C18:C22) -> 2.541410569 | O3: =AVERAGE(C23:C27) -> 2.505166667 | P3: =AVERAGE(C28:C32) -> 2.377828107
A4: 2 | B4: ='!M311B3I.sha'!B2:C2 -> <date> | C4: =('!M311B3I.sha'!F47/60)/'!M311B3I.sha'!Q3 -> 7.710569106 | D4: ='!M311B3I.sha'!N20/'!M311B3I.sha'!Q3 -> 0.9756097561 | E4: =SUM('!M311B3I.sha'!L20:Q20)/'!M311B3I.sha'!Q3 -> 6.731707317 | F4: ='!M311B3I.sha'!Q16 -> 0.03087735478 | J4: Target % | K4: =AVERAGE(D3:D7) -> 0.8862630241 | L4: =AVERAGE(D8:D12) -> 0.9709639954 | M4: =AVERAGE(D13:D17) -> 0.9758420441 | N4: =AVERAGE(D18:D22) -> 0.9853658537 | O4: =AVERAGE(D23:D27) -> 1 | P4: =AVERAGE(D28:D32) -> 0.9855981417
A5: 3 | B5: ='!M312A3I.sha'!B2:C2 -> <date> | C5: =('!M312A3I.sha'!F52/60)/'!M312A3I.sha'!Q3 -> 2.266666667 | D5: ='!M312A3I.sha'!N20/'!M312A3I.sha'!Q3 -> 0.8695652174 | E5: =SUM('!M312A3I.sha'!L20:Q20)/'!M312A3I.sha'!Q3 -> 6.02173913 | F5: ='!M312A3I.sha'!Q16 -> 0.1355923987 | J5: CCRF | K5: =AVERAGE(E3:E7) -> 6.138610312 | L5: =AVERAGE(E8:E12) -> 6.699651568 | M5: =AVERAGE(E13:E17) -> 6.728310105 | N5: =AVERAGE(E18:E22) -> 6.78902439 | O5: =AVERAGE(E23:E27) -> 6.875 | P5: =AVERAGE(E28:E32) -> 6.785627178
A6: 4 | B6: ='!M313A5I.sha'!B2:C2 -> <date> | C6: =('!M313A5I.sha'!F47/60)/'!M313A5I.sha'!Q3 -> 2.624796748 | D6: ='!M313A5I.sha'!N20/'!M313A5I.sha'!Q3 -> 0.9756097561 | E6: =SUM('!M313A5I.sha'!L20:Q20)/'!M313A5I.sha'!Q3 -> 6.731707317 | F6: ='!M313A5I.sha'!Q16 -> 0.03087735478 | J6: U Value | K6: =AVERAGE(F3:F7) -> 0.1073640891 | L6: =AVERAGE(F8:F12) -> 0.03671209946 | M6: =AVERAGE(F13:F17) -> 0.03053662851 | N6: =AVERAGE(F18:F22) -> 0.01852641287 | O6: =AVERAGE(F23:F27) -> 0 | P6: =AVERAGE(F28:F32) -> 0.0181856866
A7: 5 | B7: ='!M314B4I.sha'!B2:C2 -> <date> | C7: =('!M314B4I.sha'!F47/60)/'!M314B4I.sha'!Q3 -> 2.514227642 | D7: ='!M314B4I.sha'!N20/'!M314B4I.sha'!Q3 -> 0.9756097561 | E7: =SUM('!M314B4I.sha'!L20:Q20)/'!M314B4I.sha'!Q3 -> 6.731707317 | F7: ='!M314B4I.sha'!Q16 -> 0.03087735478
A8: 6 | B8: ='!M315A4I.sha'!B2:C2 -> <date> | C8: =('!M315A4I.sha'!F47/60)/'!M315A4I.sha'!Q3 -> 2.480081301 | D8: ='!M315A4I.sha'!N20/'!M315A4I.sha'!Q3 -> 0.9756097561 | E8: =SUM('!M315A4I.sha'!L20:Q20)/'!M315A4I.sha'!Q3 -> 6.731707317 | F8: ='!M315A4I.sha'!Q16 -> 0.03087735478
A9: 7 | B9: ='!M316A5I.sha'!B2:C2 -> <date> | C9: =('!M316A5I.sha'!F47/60)/'!M316A5I.sha'!Q3 -> 2.419512195 | D9: ='!M316A5I.sha'!N20/'!M316A5I.sha'!Q3 -> 0.9756097561 | E9: =SUM('!M316A5I.sha'!L20:Q20)/'!M316A5I.sha'!Q3 -> 6.731707317 | F9: ='!M316A5I.sha'!Q16 -> 0.03087735478 | G9: =K3 -> 3.481347271 | H9: =L3 -> 2.487371274 | I9: 2.844864886 | J9: 2.541410569 | K9: 2.505166667 | L9: 2.377828107 | M9: =K4 -> 0.8862630241 | N9: =L4 -> 0.9709639954 | O9: 0.9758420441 | P9: 0.9853658537 | Q9: 1 | R9: 0.9855981417 | S9: =K6 -> 0.1073640891 | T9: =L6 -> 0.03671209946 | U9: 0.03053662851 | V9: 0.01852641287 | W9: 0 | X9: 0.0181856866
A10: 8 | B10: ='!M317B2I.sha'!B2:C2 -> <date> | C10: =('!M317B2I.sha'!F48/60)/'!M317B2I.sha'!Q3 -> 2.472222222 | D10: ='!M317B2I.sha'!N20/'!M317B2I.sha'!Q3 -> 0.9523809524 | E10: =SUM('!M317B2I.sha'!L20:Q20)/'!M317B2I.sha'!Q3 -> 6.571428571 | F10: ='!M317B2I.sha'!Q16 -> 0.06005107821
A11: 9 | B11: ='!M318B0I.sha'!B2:C2 -> <date> | C11: =('!M318B0I.sha'!F47/60)/'!M318B0I.sha'!Q3 -> 2.468699187 | D11: ='!M318B0I.sha'!N20/'!M318B0I.sha'!Q3 -> 0.9756097561 | E11: =SUM('!M318B0I.sha'!L20:Q20)/'!M318B0I.sha'!Q3 -> 6.731707317 | F11: ='!M318B0I.sha'!Q16 -> 0.03087735478
A12: 10 | B12: ='!M319B0I.sha'!B2:C2 -> <date> | C12: =('!M319B0I.sha'!F47/60)/'!M319B0I.sha'!Q3 -> 2.596341463 | D12: ='!M319B0I.sha'!N20/'!M319B0I.sha'!Q3 -> 0.9756097561 | E12: =SUM('!M319B0I.sha'!L20:Q20)/'!M319B0I.sha'!Q3 -> 6.731707317 | F12: ='!M319B0I.sha'!Q16 -> 0.03087735478
A13: 11 | B13: ='!M320B0I.sha'!B2:C2 -> <date> | C13: =('!M320B0I.sha'!F46/60)/'!M320B0I.sha'!Q3 -> 2.468333333 | D13: ='!M320B0I.sha'!N20/'!M320B0I.sha'!Q3 -> 1 | E13: =SUM('!M320B0I.sha'!L20:Q20)/'!M320B0I.sha'!Q3 -> 6.875 | F13: ='!M320B0I.sha'!Q16 -> 0
A14: 12 | B14: ='!M321A3I.sha'!B2:C2 -> <date> | C14: =('!M321A3I.sha'!F47/60)/'!M321A3I.sha'!Q3 -> 2.73495935 | D14: ='!M321A3I.sha'!N20/'!M321A3I.sha'!Q3 -> 0.9756097561 | E14: =SUM('!M321A3I.sha'!L20:Q20)/'!M321A3I.sha'!Q3 -> 6.731707317 | F14: ='!M321A3I.sha'!Q16 -> 0.03087735478
A15: 13 | B15: ='!M322B2I.sha'!B2:C2 -> <date> | C15: =('!M322B2I.sha'!F47/60)/'!M322B2I.sha'!Q3 -> 2.472764228 | D15: ='!M322B2I.sha'!N20/'!M322B2I.sha'!Q3 -> 0.9756097561 | E15: =SUM('!M322B2I.sha'!L20:Q20)/'!M322B2I.sha'!Q3 -> 6.731707317 | F15: ='!M322B2I.sha'!Q16 -> 0.03087735478
A16: 14 | B16: ='!M323A0I.sha'!B2:C2 -> <date> | C16: =('!M323A0I.sha'!F47/60)/'!M323A0I.sha'!Q3 -> 2.243902439 | D16: ='!M323A0I.sha'!N20/'!M323A0I.sha'!Q3 -> 0.9756097561 | E16: =SUM('!M323A0I.sha'!L20:Q20)/'!M323A0I.sha'!Q3 -> 6.731707317 | F16: ='!M323A0I.sha'!Q16 -> 0.03087735478
A17: 15 | B17: ='!M324B5I.sha'!B2:C2 -> <date> | C17: =('!M324B5I.sha'!F48/60)/'!M324B5I.sha'!Q3 -> 4.304365079 | D17: ='!M324B5I.sha'!N20/'!M324B5I.sha'!Q3 -> 0.9523809524 | E17: =SUM('!M324B5I.sha'!L20:Q20)/'!M324B5I.sha'!Q3 -> 6.571428571 | F17: ='!M324B5I.sha'!Q16 -> 0.06005107821
A18: 16 | B18: ='!M325B1I.sha'!B2:C2 -> <date> | C18: =('!M325B1I.sha'!F47/60)/'!M325B1I.sha'!Q3 -> 2.446747967 | D18: ='!M325B1I.sha'!N20/'!M325B1I.sha'!Q3 -> 0.9756097561 | E18: =SUM('!M325B1I.sha'!L20:Q20)/'!M325B1I.sha'!Q3 -> 6.731707317 | F18: ='!M325B1I.sha'!Q16 -> 0.03087735478
A19: 17 | B19: ='!M326B4I.sha'!B2:C2 -> <date> | C19: =('!M326B4I.sha'!F46/60)/'!M326B4I.sha'!Q3 -> 2.72 | D19: ='!M326B4I.sha'!N20/'!M326B4I.sha'!Q3 -> 1 | E19: =SUM('!M326B4I.sha'!L20:Q20)/'!M326B4I.sha'!Q3 -> 6.875 | F19: ='!M326B4I.sha'!Q16 -> 0
A20: 18 | B20: ='!M327A5I.sha'!B2:C2 -> <date> | C20: =('!M327A5I.sha'!F47/60)/'!M327A5I.sha'!Q3 -> 2.484552846 | D20: ='!M327A5I.sha'!N20/'!M327A5I.sha'!Q3 -> 0.9756097561 | E20: =SUM('!M327A5I.sha'!L20:Q20)/'!M327A5I.sha'!Q3 -> 6.731707317 | F20: ='!M327A5I.sha'!Q16 -> 0.03087735478
A21: 19 | B21: ='!M328A5I.sha'!B2:C2 -> <date> | C21: =('!M328A5I.sha'!F46/60)/'!M328A5I.sha'!Q3 -> 2.569166667 | D21: ='!M328A5I.sha'!N20/'!M328A5I.sha'!Q3 -> 1 | E21: =SUM('!M328A5I.sha'!L20:Q20)/'!M328A5I.sha'!Q3 -> 6.875 | F21: ='!M328A5I.sha'!Q16 -> 0
A22: 20 | B22: ='!M32995I.sha'!B2:C2 -> <date> | C22: =('!M32995I.sha'!F47/60)/'!M32995I.sha'!Q3 -> 2.486585366 | D22: ='!M32995I.sha'!N20/'!M32995I.sha'!Q3 -> 0.9756097561 | E22: =SUM('!M32995I.sha'!L20:Q20)/'!M32995I.sha'!Q3 -> 6.731707317 | F22: ='!M32995I.sha'!Q16 -> 0.03087735478
A23: 21 | B23: ='!M330A2I.sha'!B2:C2 -> <date> | C23: =('!M330A2I.sha'!F46/60)/'!M330A2I.sha'!Q3 -> 2.472916667 | D23: ='!M330A2I.sha'!N20/'!M330A2I.sha'!Q3 -> 1 | E23: =SUM('!M330A2I.sha'!L20:Q20)/'!M330A2I.sha'!Q3 -> 6.875 | F23: ='!M330A2I.sha'!Q16 -> 0
A24: 22 | B24: ='!M331A4I.sha'!B2:C2 -> <date> | C24: =('!M331A4I.sha'!F46/60)/'!M331A4I.sha'!Q3 -> 2.649166667 | D24: ='!M331A4I.sha'!N20/'!M331A4I.sha'!Q3 -> 1 | E24: =SUM('!M331A4I.sha'!L20:Q20)/'!M331A4I.sha'!Q3 -> 6.875 | F24: ='!M331A4I.sha'!Q16 -> 0
A25: 23 | B25: ='!M40195I.sha'!B2:C2 -> <date> | C25: =('!M40195I.sha'!F46/60)/'!M40195I.sha'!Q3 -> 2.58 | D25: ='!M40195I.sha'!N20/'!M40195I.sha'!Q3 -> 1 | E25: =SUM('!M40195I.sha'!L20:Q20)/'!M40195I.sha'!Q3 -> 6.875 | F25: ='!M40195I.sha'!Q16 -> 0
A26: 24 | B26: ='!M402B3I.sha'!B2:C2 -> <date> | C26: =('!M402B3I.sha'!F46/60)/'!M402B3I.sha'!Q3 -> 2.467083333 | D26: ='!M402B3I.sha'!N20/'!M402B3I.sha'!Q3 -> 1 | E26: =SUM('!M402B3I.sha'!L20:Q20)/'!M402B3I.sha'!Q3 -> 6.875 | F26: ='!M402B3I.sha'!Q16 -> 0
A27: 25 | B27: ='!M40394I.sha'!B2:C2 -> <date> | C27: =('!M40394I.sha'!F46/60)/'!M40394I.sha'!Q3 -> 2.356666667 | D27: ='!M40394I.sha'!N20/'!M40394I.sha'!Q3 -> 1 | E27: =SUM('!M40394I.sha'!L20:Q20)/'!M40394I.sha'!Q3 -> 6.875 | F27: ='!M40394I.sha'!Q16 -> 0
A28: 26 | B28: ='!M404A0I.sha'!B2:C2 -> <date> | C28: =('!M404A0I.sha'!F48/60)/'!M404A0I.sha'!Q3 -> 2.428571429 | D28: ='!M404A0I.sha'!N20/'!M404A0I.sha'!Q3 -> 0.9523809524 | E28: =SUM('!M404A0I.sha'!L20:Q20)/'!M404A0I.sha'!Q3 -> 6.571428571 | F28: ='!M404A0I.sha'!Q16 -> 0.06005107821
A29: 27 | B29: ='!M40592I.sha'!B2:C2 -> <date> | C29: =('!M40592I.sha'!F47/60)/'!M40592I.sha'!Q3 -> 2.443902439 | D29: ='!M40592I.sha'!N20/'!M40592I.sha'!Q3 -> 0.9756097561 | E29: =SUM('!M40592I.sha'!L20:Q20)/'!M40592I.sha'!Q3 -> 6.731707317 | F29: ='!M40592I.sha'!Q16 -> 0.03087735478
A30: 28 | B30: ='!M410A3I.sha'!B2:C2 -> <date> | C30: =('!M410A3I.sha'!F46/60)/'!M410A3I.sha'!Q3 -> 2.365416667 | D30: ='!M410A3I.sha'!N20/'!M410A3I.sha'!Q3 -> 1 | E30: =SUM('!M410A3I.sha'!L20:Q20)/'!M410A3I.sha'!Q3 -> 6.875 | F30: ='!M410A3I.sha'!Q16 -> 0
A31: 29 | B31: ='!M411B2I.sha'!B2:C2 -> <date> | C31: =('!M411B2I.sha'!F46/60)/'!M411B2I.sha'!Q3 -> 2.56375 | D31: ='!M411B2I.sha'!N20/'!M411B2I.sha'!Q3 -> 1 | E31: =SUM('!M411B2I.sha'!L20:Q20)/'!M411B2I.sha'!Q3 -> 6.875 | F31: ='!M411B2I.sha'!Q16 -> 0
A32: 30 | B32: ='!M412A4I.sha'!B2:C2 -> <date> | C32: =('!M412A4I.sha'!F46/60)/'!M412A4I.sha'!Q3 -> 2.0875 | D32: ='!M412A4I.sha'!N20/'!M412A4I.sha'!Q3 -> 1 | E32: =SUM('!M412A4I.sha'!L20:Q20)/'!M412A4I.sha'!Q3 -> 6.875 | F32: ='!M412A4I.sha'!Q16 -> 0

Sheet Start
F1: Use Folder 51 | H1: Auto Clean Up | J1: Correct sequence
F2: FALSE | H2: TRUE | J2: 222
A4: Working with Folder | G4: Process All/Or Pick A number: ALL or an integer
A5: F:\Possum Chapter\Raw Data\Ishan\new phase RRR\ | G5: ALL
A6: Filenames:
A7: !M412A4I.sha | G7: Paint Cells
A8: !M310A2I.sha | G8: FALSE
A9: !M311B3I.sha
A10: !M312A3I.sha
A11: !M313A5I.sha
A12: !M314B4I.sha
A13: !M315A4I.sha
A14: !M316A5I.sha
A15: !M317B2I.sha
A16: !M318B0I.sha
A17: !M319B0I.sha
A18: !M320B0I.sha
A19: !M321A3I.sha
A20: !M322B2I.sha
A21: !M323A0I.sha
A22: !M324B5I.sha
A23: !M325B1I.sha
A24: !M326B4I.sha
A25: !M327A5I.sha
A26: !M328A5I.sha
A27: !M32995I.sha
A28: !M330A2I.sha
A29: !M331A4I.sha
A30: !M40195I.sha
A31: !M402B3I.sha
A32: !M40394I.sha
A33: !M404A0I.sha
A34: !M40592I.sha
A35: !M410A3I.sha
A36: !M411B2I.sha

Sheet !M310A2I.sha
A1: Report for:!M310A2I.sha
A2: Date: | B2: <date>
A3: Hen: | B3: <hen> | F3: Correct Sequence | G3: =Start!J2 -> 222 | P3: Total Sequences in Data | Q3: =4994-COUNTBLANK(L7:L5000) -> 63 | V3: Total Sequences in Block Data | W3: =COUNTA(L7:L17) -> 11 | AA3: Total Sequences in Block Data | AB3: =COUNTA(L18:L27) -> 10 | AF3: Total Sequences in Block Data | AG3: =COUNTA(L28:L38) -> 11 | AK3: Total Sequences in Block Data | AL3: =COUNTA(L39:L48) -> 10 | AP3: Total Sequences in Block Data | AQ3: =COUNTA(L49:L59) -> 11 | AU3: Total Sequences in Block Data | AV3: =COUNTA(L60:L69) -> 10
P4: Total Sequences in Summary | Q4: =SUM(O7:O14) -> 63 | V4: Total Sequences in Block Summary | W4: =SUM(U7:U14) -> 11 | AA4: Total Sequences in Block Summary | AB4: =SUM(Z7:Z14) -> 10 | AF4: Total Sequences in Block Summary | AG4: =SUM(AE7:AE14) -> 11 | AK4: Total Sequences in Block Summary | AL4: =SUM(AJ7:AJ14) -> 10 | AP4: Total Sequences in Block Summary | AQ4: =SUM(AO7:AO14) -> 11 | AU4: Total Sequences in Block Summary | AV4: =SUM(AT7:AT14) -> 10
T5: Block 1 | Y5: Block 2 | AD5: Block 3 | AI5: Block 4 | AN5: Block 5 | AS5: Block 6
A6: Sequence Component 1 | B6: Time 1 | C6: Sequence Component 2 | D6: Time 2 | E6: Sequence Component 3 | F6: Time 3 | G6: Sequence Component 4 | H6: Time 4 | I6: Sequence Component 5 | J6: Time 5 | K6: Correct? 0=No 1=Yes | L6: Sequence | N6: Frequency | P6: Relative Frequency | Q6: Variability | T6: Frequency | V6: Relative Frequency | W6: Variability | Y6: Frequency | AA6: Relative Frequency | AB6: Variability | AD6: Frequency | AF6: Relative Frequency | AG6: Variability | AI6: Frequency | AK6: Relative Frequency | AL6: Variability | AN6: Frequency | AP6: Relative Frequency | AQ6: Variability | AS6: Frequency | AU6: Relative Frequency | AV6: Variability
A7: 12 | B7: 13 | C7: 14 | D7: 18 | E7: 14 | F7: 27 | K7: 0 | L7: 111 | N7: 111 | O7: =COUNTIF($L$7:$L$500,N7) -> 5 | P7: =O7/$Q$4 -> 0.07936507937 | Q7: =IF(P7=0,0,(P7*((LOG(P7))/LOG(2)))) -> -0.290107288 | T7: =N7 -> 111 | U7: =COUNTIF(L7:L17,T7) -> 4 | V7: =U7/(W4-U14) -> 0.4444444444 | W7: =IF(V7=0,0,(V7*((LOG(V7))/LOG(2)))) -> -0.5199666673 | Y7: =N7 -> 111 | Z7: =COUNTIF(L18:L27,Y7) -> 0 | AA7: =Z7/(AB4-Z14) -> 0 | AB7: =IF(AA7=0,0,(AA7*((LOG(AA7))/LOG(2)))) -> 0 | AD7: =N7 -> 111 | AE7: =COUNTIF(L28:L38,AD7) -> 0 | AF7: =AE7/(AG4-AE14) -> 0 | AG7: =IF(AF7=0,0,(AF7*((LOG(AF7))/LOG(2)))) -> 0 | AI7: =N7 -> 111 | AJ7: =COUNTIF(L39:L48,AI7) -> 1 | AK7: =AJ7/(AL4-AJ14) -> 0.5 | AL7: =IF(AK7=0,0,(AK7*((LOG(AK7))/LOG(2)))) -> -0.5 | AN7: =N7 -> 111 | AO7: =COUNTIF(L49:L59,AN7) -> 0 | AP7: =AO7/(AQ4-AO14) ->  | AQ7: =IF(AP7=0,0,(AP7*((LOG(AP7))/LOG(2)))) ->  | AS7: =N7 -> 111 | AT7: =COUNTIF(L60:L69,AS7) -> 0 | AU7: =AT7/(AV4-AT14) -> 0 | AV7: =IF(AU7=0,0,(AU7*((LOG(AU7))/LOG(2)))) -> 0
A8: 12 | B8: 125 | C8: 23 | D8: 137 | E8: 23 | F8: 142 | K8: 0 | L8: 122 | N8: 112 | O8: =COUNTIF($L$7:$L$500,N8) -> 2 | P8: =O8/$Q$4 -> 0.03174603175 | Q8: =IF(P8=0,0,(P8*((LOG(P8))/LOG(2)))) -> -0.1580088865 | T8: =N8 -> 112 | U8: =COUNTIF(L7:L17,T8) -> 1 | V8: =U8/(W4-U14) -> 0.1111111111 | W8: =IF(V8=0,0,(V8*((LOG(V8))/LOG(2)))) -> -0.352213889 | Y8: =N8 -> 112 | Z8: =COUNTIF(L18:L27,Y8) -> 1 | AA8: =Z8/(AB4-Z14) -> 0.2 | AB8: =IF(AA8=0,0,(AA8*((LOG(AA8))/LOG(2)))) -> -0.464385619 | AD8: =N8 -> 112 | AE8: =COUNTIF(L28:L38,AD8) -> 0 | AF8: =AE8/(AG4-AE14) -> 0 | AG8: =IF(AF8=0,0,(AF8*((LOG(AF8))/LOG(2)))) -> 0 | AI8: =N8 -> 112 | AJ8: =COUNTIF(L39:L48,AI8) -> 0 | AK8: =AJ8/(AL4-AJ14) -> 0 | AL8: =IF(AK8=0,0,(AK8*((LOG(AK8))/LOG(2)))) -> 0 | AN8: =N8 -> 112 | AO8: =COUNTIF(L49:L59,AN8) -> 0 | AP8: =AO8/(AQ4-AO14) ->  | AQ8: =IF(AP8=0,0,(AP8*((LOG(AP8))/LOG(2)))) ->  | AS8: =N8 -> 112 | AT8: =COUNTIF(L60:L69,AS8) -> 0 | AU8: =AT8/(AV4-AT14) -> 0 | AV8: =IF(AU8=0,0,(AU8*((LOG(AU8))/LOG(2)))) -> 0
A9: 12 | B9: 240 | C9: 14 | D9: 244 | E9: 14 | F9: 251 | K9: 0 | L9: 111 | N9: 121 | O9: =COUNTIF($L$7:$L$500,N9) -> 0 | P9: =O9/$Q$4 -> 0 | Q9: =IF(P9=0,0,(P9*((LOG(P9))/LOG(2)))) -> 0 | T9: =N9 -> 121 | U9: =COUNTIF(L7:L17,T9) -> 0 | V9: =U9/(W4-U14) -> 0 | W9: =IF(V9=0,0,(V9*((LOG(V9))/LOG(2)))) -> 0 | Y9: =N9 -> 121 | Z9: =COUNTIF(L18:L27,Y9) -> 0 | AA9: =Z9/(AB4-Z14) -> 0 | AB9: =IF(AA9=0,0,(AA9*((LOG(AA9))/LOG(2)))) -> 0 | AD9: =N9 -> 121 | AE9: =COUNTIF(L28:L38,AD9) -> 0 | AF9: =AE9/(AG4-AE14) -> 0 | AG9: =IF(AF9=0,0,(AF9*((LOG(AF9))/LOG(2)))) -> 0 | AI9: =N9 -> 121 | AJ9: =COUNTIF(L39:L48,AI9) -> 0 | AK9: =AJ9/(AL4-AJ14) -> 0 | AL9: =IF(AK9=0,0,(AK9*((LOG(AK9))/LOG(2)))) -> 0 | AN9: =N9 -> 121 | AO9: =COUNTIF(L49:L59,AN9) -> 0 | AP9: =AO9/(AQ4-AO14) ->  | AQ9: =IF(AP9=0,0,(AP9*((LOG(AP9))/LOG(2)))) ->  | AS9: =N9 -> 121 | AT9: =COUNTIF(L60:L69,AS9) -> 0 | AU9: =AT9/(AV4-AT14) -> 0 | AV9: =IF(AU9=0,0,(AU9*((LOG(AU9))/LOG(2)))) -> 0
A10: 12 | B10: 346 | C10: 23 | D10: 365 | E10: 23 | F10: 375 | K10: 0 | L10: 122 | N10: 122 | O10: =COUNTIF($L$7:$L$500,N10) -> 3 | P10: =O10/$Q$4 -> 0.04761904762 | Q10: =IF(P10=0,0,(P10*((LOG(P10))/LOG(2)))) -> -0.2091579725 | T10: =N10 -> 122 | U10: =COUNTIF(L7:L17,T10) -> 2 | V10: =U10/(W4-U14) -> 0.2222222222 | W10: =IF(V10=0,0,(V10*((LOG(V10))/LOG(2)))) -> -0.4822055559 | Y10: =N10 -> 122 | Z10: =COUNTIF(L18:L27,Y10) -> 0 | AA10: =Z10/(AB4-Z14) -> 0 | AB10: =IF(AA10=0,0,(AA10*((LOG(AA10))/LOG(2)))) -> 0 | AD10: =N10 -> 122 | AE10: =COUNTIF(L28:L38,AD10) -> 1 | AF10: =AE10/(AG4-AE14) -> 0.1666666667 | AG10: =IF(AF10=0,0,(AF10*((LOG(AF10))/LOG(2)))) -> -0.4308270835 | AI10: =N10 -> 122 | AJ10: =COUNTIF(L39:L48,AI10) -> 0 | AK10: =AJ10/(AL4-AJ14) -> 0 | AL10: =IF(AK10=0,0,(AK10*((LOG(AK10))/LOG(2)))) -> 0 | AN10: =N10 -> 122 | AO10: =COUNTIF(L49:L59,AN10) -> 0 | AP10: =AO10/(AQ4-AO14) ->  | AQ10: =IF(AP10=0,0,(AP10*((LOG(AP10))/LOG(2)))) ->  | AS10: =N10 -> 122 | AT10: =COUNTIF(L60:L69,AS10) -> 0 | AU10: =AT10/(AV4-AT14) -> 0 | AV10: =IF(AU10=0,0,(AU10*((LOG(AU10))/LOG(2)))) -> 0
A11: 12 | B11: 471 | C11: 14 | D11: 477 | E11: 14 | F11: 485 | K11: 0 | L11: 111 | N11: 211 | O11: =COUNTIF($L$7:$L$500,N11) -> 6 | P11: =O11/$Q$4 -> 0.09523809524 | Q11: =IF(P11=0,0,(P11*((LOG(P11))/LOG(2)))) -> -0.3230778498 | T11: =N11 -> 211 | U11: =COUNTIF(L7:L17,T11) -> 2 | V11: =U11/(W4-U14) -> 0.2222222222 | W11: =IF(V11=0,0,(V11*((LOG(V11))/LOG(2)))) -> -0.4822055559 | Y11: =N11 -> 211 | Z11: =COUNTIF(L18:L27,Y11) -> 2 | AA11: =Z11/(AB4-Z14) -> 0.4 | AB11: =IF(AA11=0,0,(AA11*((LOG(AA11))/LOG(2)))) -> -0.528771238 | AD11: =N11 -> 211 | AE11: =COUNTIF(L28:L38,AD11) -> 2 | AF11: =AE11/(AG4-AE14) -> 0.3333333333 | AG11: =IF(AF11=0,0,(AF11*((LOG(AF11))/LOG(2)))) -> -0.5283208336 | AI11: =N11 -> 211 | AJ11: =COUNTIF(L39:L48,AI11) -> 0 | AK11: =AJ11/(AL4-AJ14) -> 0 | AL11: =IF(AK11=0,0,(AK11*((LOG(AK11))/LOG(2)))) -> 0 | AN11: =N11 -> 211 | AO11: =COUNTIF(L49:L59,AN11) -> 0 | AP11: =AO11/(AQ4-AO14) ->  | AQ11: =IF(AP11=0,0,(AP11*((LOG(AP11))/LOG(2)))) ->  | AS11: =N11 -> 211 | AT11: =COUNTIF(L60:L69,AS11) -> 0 | AU11: =AT11/(AV4-AT14) -> 0 | AV11: =IF(AU11=0,0,(AU11*((LOG(AU11))/LOG(2)))) -> 0
A12: 12 | B12: 597 | C12: 14 | D12: 606 | E12: 14 | F12: 613 | K12: 0 | L12: 111 | N12: 212 | O12: =COUNTIF($L$7:$L$500,N12) -> 2 | P12: =O12/$Q$4 -> 0.03174603175 | Q12: =IF(P12=0,0,(P12*((LOG(P12))/LOG(2)))) -> -0.1580088865 | T12: =N12 -> 212 | U12: =COUNTIF(L7:L17,T12) -> 0 | V12: =U12/(W4-U14) -> 0 | W12: =IF(V12=0,0,(V12*((LOG(V12))/LOG(2)))) -> 0 | Y12: =N12 -> 212 | Z12: =COUNTIF(L18:L27,Y12) -> 1 | AA12: =Z12/(AB4-Z14) -> 0.2 | AB12: =IF(AA12=0,0,(AA12*((LOG(AA12))/LOG(2)))) -> -0.464385619 | AD12: =N12 -> 212 | AE12: =COUNTIF(L28:L38,AD12) -> 1 | AF12: =AE12/(AG4-AE14) -> 0.1666666667 | AG12: =IF(AF12=0,0,(AF12*((LOG(AF12))/LOG(2)))) -> -0.4308270835 | AI12: =N12 -> 212 | AJ12: =COUNTIF(L39:L48,AI12) -> 0 | AK12: =AJ12/(AL4-AJ14) -> 0 | AL12: =IF(AK12=0,0,(AK12*((LOG(AK12))/LOG(2)))) -> 0 | AN12: =N12 -> 212 | AO12: =COUNTIF(L49:L59,AN12) -> 0 | AP12: =AO12/(AQ4-AO14) ->  | AQ12: =IF(AP12=0,0,(AP12*((LOG(AP12))/LOG(2)))) ->  | AS12: =N12 -> 212 | AT12: =COUNTIF(L60:L69,AS12) -> 0 | AU12: =AT12/(AV4-AT14) -> 0 | AV12: =IF(AU12=0,0,(AU12*((LOG(AU12))/LOG(2)))) -> 0
A13: 12 | B13: 707 | C13: 14 | D13: 720 | E13: 23 | F13: 733 | K13: 0 | L13: 112 | N13: 221 | O13: =COUNTIF($L$7:$L$500,N13) -> 5 | P13: =O13/$Q$4 -> 0.07936507937 | Q13: =IF(P13=0,0,(P13*((LOG(P13))/LOG(2)))) -> -0.290107288 | T13: =N13 -> 221 | U13: =COUNTIF(L7:L17,T13) -> 0 | V13: =U13/(W4-U14) -> 0 | W13: =IF(V13=0,0,(V13*((LOG(V13))/LOG(2)))) -> 0 | Y13: =N13 -> 221 | Z13: =COUNTIF(L18:L27,Y13) -> 1 | AA13: =Z13/(AB4-Z14) -> 0.2 | AB13: =IF(AA13=0,0,(AA13*((LOG(AA13))/LOG(2)))) -> -0.464385619 | AD13: =N13 -> 221 | AE13: =COUNTIF(L28:L38,AD13) -> 2 | AF13: =AE13/(AG4-AE14) -> 0.3333333333 | AG13: =IF(AF13=0,0,(AF13*((LOG(AF13))/LOG(2)))) -> -0.5283208336 | AI13: =N13 -> 221 | AJ13: =COUNTIF(L39:L48,AI13) -> 1 | AK13: =AJ13/(AL4-AJ14) -> 0.5 | AL13: =IF(AK13=0,0,(AK13*((LOG(AK13))/LOG(2)))) -> -0.5 | AN13: =N13 -> 221 | AO13: =COUNTIF(L49:L59,AN13) -> 0 | AP13: =AO13/(AQ4-AO14) ->  | AQ13: =IF(AP13=0,0,(AP13*((LOG(AP13))/LOG(2)))) ->  | AS13: =N13 -> 221 | AT13: =COUNTIF(L60:L69,AS13) -> 1 | AU13: =AT13/(AV4-AT14) -> 1 | AV13: =IF(AU13=0,0,(AU13*((LOG(AU13))/LOG(2)))) -> 0
A14: 21 | B14: 833 | C14: 21 | D14: 838 | E14: 21 | F14: 843 | K14: 0 | L14: 222 | N14: 222 | O14: =COUNTIF($L$7:$L$500,N14) -> 40 | P14: =O14/$Q$4 -> 0.6349206349 | Q14: =IF(P14=0,0,(P14*((LOG(P14))/LOG(2)))) -> -0.4160963991 | T14: =N14 -> 222 | U14: =COUNTIF(L7:L17,T14) -> 2 | Y14: =N14 -> 222 | Z14: =COUNTIF(L18:L27,Y14) -> 5 | AD14: =N14 -> 222 | AE14: =COUNTIF(L28:L38,AD14) -> 5 | AI14: =N14 -> 222 | AJ14: =COUNTIF(L39:L48,AI14) -> 8 | AN14: =N14 -> 222 | AO14: =COUNTIF(L49:L59,AN14) -> 11 | AS14: =N14 -> 222 | AT14: =COUNTIF(L60:L69,AS14) -> 9
A15: 21 | B15: 1153 | C15: 12 | D15: 1161 | E15: 14 | F15: 1165 | K15: 0 | L15: 211 | P15: =SUM(P7:P14) -> 1 | Q15: =-SUM(Q7:Q14) -> 1.84456457 | V15: =SUM(V7:V14) -> 1 | W15: =-SUM(W7:W14) -> 1.836591668 | AA15: =SUM(AA7:AA14) -> 1 | AB15: =-SUM(AB7:AB14) -> 1.921928095 | AF15: =SUM(AF7:AF14) -> 1 | AG15: =-SUM(AG7:AG14) -> 1.918295834 | AK15: =SUM(AK7:AK14) -> 1 | AL15: =-SUM(AL7:AL14) -> 1 | AP15: =SUM(AP7:AP14) ->  | AQ15: =-SUM(AQ7:AQ14) ->  | AU15: =SUM(AU7:AU14) -> 1 | AV15: =-SUM(AV7:AV14) -> 0
A16: 21 | B16: 1264 | C16: 21 | D16: 1269 | E16: 21 | F16: 1274 | K16: 0 | L16: 222 | P16: U= | Q16: =Q15/(LOG(Q4)/LOG(2)) -> 0.3085959824 | V16: U1= | W16: =W15/(LOG(W4)/LOG(2)) -> 0.5308940516 | AA16: U2= | AB16: =AB15/(LOG(AB4)/LOG(2)) -> 0.5785580061 | AF16: U3= | AG16: =AG15/(LOG(AG4)/LOG(2)) -> 0.5545118521 | AK16: U4= | AL16: =AL15/(LOG(AL4)/LOG(2)) -> 0.3010299957 | AP16: U5= | AQ16: =AQ15/(LOG(AQ4)/LOG(2)) ->  | AU16: U6= | AV16: =AV15/(LOG(AV4)/LOG(2)) -> 0
A17: 21 | B17: 1452 | C17: 12 | D17: 1462 | E17: 14 | F17: 1467 | K17: 0 | L17: 211
A18: 21 | B18: 1575 | C18: 12 | D18: 1584 | E18: 14 | F18: 1588 | K18: 0 | L18: 211
A19: 21 | B19: 1685 | C19: 21 | D19: 1694 | E19: 21 | F19: 1700 | K19: 0 | L19: 222 | N19: Total Target Seq
A20: 21 | B20: 1866 | C20: 21 | D20: 1880 | E20: 12 | F20: 1899 | K20: 0 | L20: 221 | N20: =COUNTIF(L7:L69,G3) -> 40 | P20: 11 | Q20: 10 | R20: 11 | S20: 10 | T20: 11 | U20: 10
A21: 12 | B21: 2015 | C21: 14 | D21: 2019 | E21: 23 | F21: 2036 | K21: 0 | L21: 112 | P21: % of reinforcement given in 6 equal intervals based on number of trials
A22: 21 | B22: 2138 | C22: 21 | D22: 2141 | E22: 21 | F22: 2146 | K22: 0 | L22: 222 | P22: %_1 | Q22: %_2 | R22: %_3 | S22: %_4 | T22: %_5 | U22: %_6
A23: 21 | B23: 2298 | C23: 21 | D23: 2307 | E23: 21 | F23: 2318 | K23: 0 | L23: 222 | O23: target sequence | P23: =$G$3 -> 222 | Q23: =$G$3 -> 222 | R23: =$G$3 -> 222 | S23: =$G$3 -> 222 | T23: =$G$3 -> 222 | U23: =$G$3 -> 222
A24: 21 | B24: 2472 | C24: 21 | D24: 2481 | E24: 21 | F24: 2491 | K24: 0 | L24: 222 | O24: total reinforcement | P24: =U14 -> 2 | Q24: =Z14 -> 5 | R24: =AE14 -> 5 | S24: =AJ14 -> 8 | T24: =AO14 -> 11 | U24: =AT14 -> 9
A25: 21 | B25: 2636 | C25: 12 | D25: 2663 | E25: 23 | F25: 2737 | K25: 0 | L25: 212 | O25: % target
A26: 21 | B26: 2837 | C26: 21 | D26: 2839 | E26: 21 | F26: 2845 | K26: 0 | L26: 222 | O26: CCRF
A27: 21 | B27: 2961 | C27: 12 | D27: 2976 | E27: 14 | F27: 2982 | K27: 0 | L27: 211 | O27: % CCRf
A28: 21 | B28: 3081 | C28: 12 | D28: 3092 | E28: 23 | F28: 3103 | K28: 0 | L28: 212 | O28: average response rate | P28: =F17/P20 -> 133.3636364 | Q28: =(F27-F17)/Q20 -> 151.5 | R28: =(F38-F27)/R20 -> 134.4545455 | S28: =(F48-F38)/S20 -> 138.4 | T28: =(F59-F48)/T20 -> 135.1818182 | U28: =(F69-F59)/U20 -> 132.6
A29: 21 | B29: 3198 | C29: 21 | D29: 3207 | E29: 21 | F29: 3213 | K29: 0 | L29: 222
A30: 21 | B30: 3325 | C30: 12 | D30: 3340 | E30: 14 | F30: 3349 | K30: 0 | L30: 211
A31: 21 | B31: 3445 | C31: 21 | D31: 3448 | E31: 12 | F31: 3460 | K31: 0 | L31: 221
A32: 21 | B32: 3556 | C32: 21 | D32: 3561 | E32: 12 | F32: 3572 | K32: 0 | L32: 221
A33: 12 | B33: 3669 | C33: 23 | D33: 3683 | E33: 23 | F33: 3700 | K33: 0 | L33: 122
A34: 21 | B34: 3797 | C34: 21 | D34: 3808 | E34: 21 | F34: 3816 | K34: 0 | L34: 222
A35: 21 | B35: 3911 | C35: 21 | D35: 3922 | E35: 21 | F35: 3930 | K35: 0 | L35: 222
A36: 21 | B36: 4095 | C36: 21 | D36: 4106 | E36: 21 | F36: 4124 | K36: 0 | L36: 222
A37: 21 | B37: 4287 | C37: 12 | D37: 4323 | E37: 14 | F37: 4344 | K37: 0 | L37: 211
A38: 21 | B38: 4451 | C38: 21 | D38: 4454 | E38: 21 | F38: 4461 | K38: 0 | L38: 222
A39: 21 | B39: 4587 | C39: 21 | D39: 4594 | E39: 12 | F39: 4616 | K39: 0 | L39: 221
A40: 21 | B40: 4713 | C40: 21 | D40: 4720 | E40: 21 | F40: 4728 | K40: 0 | L40: 222
A41: 21 | B41: 4861 | C41: 21 | D41: 4870 | E41: 21 | F41: 4879 | K41: 0 | L41: 222
A42: 21 | B42: 4993 | C42: 21 | D42: 4998 | E42: 21 | F42: 5004 | K42: 0 | L42: 222
A43: 21 | B43: 5124 | C43: 21 | D43: 5130 | E43: 21 | F43: 5147 | K43: 0 | L43: 222
A44: 21 | B44: 5274 | C44: 21 | D44: 5287 | E44: 21 | F44: 5302 | K44: 0 | L44: 222
A45: 21 | B45: 5400 | C45: 21 | D45: 5416 | E45: 21 | F45: 5425 | K45: 0 | L45: 222
A46: 21 | B46: 5575 | C46: 21 | D46: 5582 | E46: 21 | F46: 5589 | K46: 0 | L46: 222
A47: 21 | B47: 5696 | C47: 21 | D47: 5714 | E47: 21 | F47: 5725 | K47: 0 | L47: 222
A48: 12 | B48: 5833 | C48: 14 | D48: 5839 | E48: 14 | F48: 5845 | K48: 0 | L48: 111
A49: 21 | B49: 5942 | C49: 21 | D49: 5945 | E49: 21 | F49: 5950 | K49: 0 | L49: 222
A50: 21 | B50: 6053 | C50: 21 | D50: 6066 | E50: 21 | F50: 6080 | K50: 0 | L50: 222
A51: 21 | B51: 6210 | C51: 21 | D51: 6217 | E51: 21 | F51: 6225 | K51: 0 | L51: 222
A52: 21 | B52: 6336 | C52: 21 | D52: 6343 | E52: 21 | F52: 6355 | K52: 0 | L52: 222
A53: 21 | B53: 6480 | C53: 21 | D53: 6486 | E53: 21 | F53: 6493 | K53: 0 | L53: 222
A54: 21 | B54: 6646 | C54: 21 | D54: 6658 | E54: 21 | F54: 6667 | K54: 0 | L54: 222
A55: 21 | B55: 6795 | C55: 21 | D55: 6806 | E55: 21 | F55: 6814 | K55: 0 | L55: 222
A56: 21 | B56: 6906 | C56: 21 | D56: 6916 | E56: 21 | F56: 6923 | K56: 0 | L56: 222
A57: 21 | B57: 7083 | C57: 21 | D57: 7088 | E57: 21 | F57: 7094 | K57: 0 | L57: 222
A58: 21 | B58: 7204 | C58: 21 | D58: 7208 | E58: 21 | F58: 7220 | K58: 0 | L58: 222
A59: 21 | B59: 7313 | C59: 21 | D59: 7320 | E59: 21 | F59: 7332 | K59: 0 | L59: 222
A60: 21 | B60: 7419 | C60: 21 | D60: 7422 | E60: 21 | F60: 7432 | K60: 0 | L60: 222
A61: 21 | B61: 7542 | C61: 21 | D61: 7548 | E61: 21 | F61: 7554 | K61: 0 | L61: 222
A62: 21 | B62: 7681 | C62: 21 | D62: 7712 | E62: 21 | F62: 7724 | K62: 0 | L62: 222
A63: 21 | B63: 7819 | C63: 21 | D63: 7831 | E63: 21 | F63: 7845 | K63: 0 | L63: 222
A64: 21 | B64: 7956 | C64: 21 | D64: 7968 | E64: 21 | F64: 7977 | K64: 0 | L64: 222
A65: 21 | B65: 8070 | C65: 21 | D65: 8076 | E65: 21 | F65: 8080 | K65: 0 | L65: 222
A66: 21 | B66: 8186 | C66: 21 | D66: 8230 | E66: 21 | F66: 8256 | K66: 0 | L66: 222
A67: 21 | B67: 8347 | C67: 21 | D67: 8354 | E67: 12 | F67: 8371 | K67: 0 | L67: 221
A68: 21 | B68: 8471 | C68: 21 | D68: 8479 | E68: 21 | F68: 8484 | K68: 0 | L68: 222
A69: 21 | B69: 8628 | C69: 21 | D69: 8647 | E69: 21 | F69: 8658 | K69: 1 | L69: 222

Sheet !M311B3I.sha
A1: Report for:!M311B3I.sha
A2: Date: | B2: <date>
A3: Hen: | B3: <hen> | F3: Correct Sequence | G3: =Start!J2 -> 222 | P3: Total Sequences in Data | Q3: =4994-COUNTBLANK(L7:L5000) -> 41 | V3: Total Sequences in Block Data | W3: =COUNTA(L7:L13) -> 7 | AA3: Total Sequences in Block Data | AB3: =COUNTA(L14:L20) -> 7 | AF3: Total Sequences in Block Data | AG3: =COUNTA(L21:L26) -> 6 | AK3: Total Sequences in Block Data | AL3: =COUNTA(L27:L33) -> 7 | AP3: Total Sequences in Block Data | AQ3: =COUNTA(L34:L40) -> 7 | AU3: Total Sequences in Block Data | AV3: =COUNTA(L41:L47) -> 7
P4: Total Sequences in Summary | Q4: =SUM(O7:O14) -> 41 | V4: Total Sequences in Block Summary | W4: =SUM(U7:U14) -> 7 | AA4: Total Sequences in Block Summary | AB4: =SUM(Z7:Z14) -> 7 | AF4: Total Sequences in Block Summary | AG4: =SUM(AE7:AE14) -> 6 | AK4: Total Sequences in Block Summary | AL4: =SUM(AJ7:AJ14) -> 7 | AP4: Total Sequences in Block Summary | AQ4: =SUM(AO7:AO14) -> 7 | AU4: Total Sequences in Block Summary | AV4: =SUM(AT7:AT14) -> 7
T5: Block 1 | Y5: Block 2 | AD5: Block 3 | AI5: Block 4 | AN5: Block 5 | AS5: Block 6
A6: Sequence Component 1 | B6: Time 1 | C6: Sequence Component 2 | D6: Time 2 | E6: Sequence Component 3 | F6: Time 3 | G6: Sequence Component 4 | H6: Time 4 | I6: Sequence Component 5 | J6: Time 5 | K6: Correct? 0=No 1=Yes | L6: Sequence | N6: Frequency | P6: Relative Frequency | Q6: Variability | T6: Frequency | V6: Relative Frequency | W6: Variability | Y6: Frequency | AA6: Relative Frequency | AB6: Variability | AD6: Frequency | AF6: Relative Frequency | AG6: Variability | AI6: Frequency | AK6: Relative Frequency | AL6: Variability | AN6: Frequency | AP6: Relative Frequency | AQ6: Variability | AS6: Frequency | AU6: Relative Frequency | AV6: Variability
A7: 12 | B7: 13414 | C7: 14 | D7: 13416 | E7: 14 | F7: 13420 | K7: 0 | L7: 111 | N7: 111 | O7: =COUNTIF($L$7:$L$500,N7) -> 1 | P7: =O7/$Q$4 -> 0.0243902439 | Q7: =IF(P7=0,0,(P7*((LOG(P7))/LOG(2)))) -> -0.1306720001 | T7: =N7 -> 111 | U7: =COUNTIF(L7:L13,T7) -> 1 | V7: =U7/(W4-U14) -> 1 | W7: =IF(V7=0,0,(V7*((LOG(V7))/LOG(2)))) -> 0 | Y7: =N7 -> 111 | Z7: =COUNTIF(L14:L20,Y7) -> 0 | AA7: =Z7/(AB4-Z14) ->  | AB7: =IF(AA7=0,0,(AA7*((LOG(AA7))/LOG(2)))) ->  | AD7: =N7 -> 111 | AE7: =COUNTIF(L21:L26,AD7) -> 0 | AF7: =AE7/(AG4-AE14) ->  | AG7: =IF(AF7=0,0,(AF7*((LOG(AF7))/LOG(2)))) ->  | AI7: =N7 -> 111 | AJ7: =COUNTIF(L27:L33,AI7) -> 0 | AK7: =AJ7/(AL4-AJ14) ->  | AL7: =IF(AK7=0,0,(AK7*((LOG(AK7))/LOG(2)))) ->  | AN7: =N7 -> 111 | AO7: =COUNTIF(L34:L40,AN7) -> 0 | AP7: =AO7/(AQ4-AO14) ->  | AQ7: =IF(AP7=0,0,(AP7*((LOG(AP7))/LOG(2)))) ->  | AS7: =N7 -> 111 | AT7: =COUNTIF(L41:L47,AS7) -> 0 | AU7: =AT7/(AV4-AT14) ->  | AV7: =IF(AU7=0,0,(AU7*((LOG(AU7))/LOG(2)))) -> 
A8: 21 | B8: 13665 | C8: 21 | D8: 13670 | E8: 21 | F8: 13675 | K8: 0 | L8: 222 | N8: 112 | O8: =COUNTIF($L$7:$L$500,N8) -> 0 | P8: =O8/$Q$4 -> 0 | Q8: =IF(P8=0,0,(P8*((LOG(P8))/LOG(2)))) -> 0 | T8: =N8 -> 112 | U8: =COUNTIF(L7:L13,T8) -> 0 | V8: =U8/(W4-U14) -> 0 | W8: =IF(V8=0,0,(V8*((LOG(V8))/LOG(2)))) -> 0 | Y8: =N8 -> 112 | Z8: =COUNTIF(L14:L20,Y8) -> 0 | AA8: =Z8/(AB4-Z14) ->  | AB8: =IF(AA8=0,0,(AA8*((LOG(AA8))/LOG(2)))) ->  | AD8: =N8 -> 112 | AE8: =COUNTIF(L21:L26,AD8) -> 0 | AF8: =AE8/(AG4-AE14) ->  | AG8: =IF(AF8=0,0,(AF8*((LOG(AF8))/LOG(2)))) ->  | AI8: =N8 -> 112 | AJ8: =COUNTIF(L27:L33,AI8) -> 0 | AK8: =AJ8/(AL4-AJ14) ->  | AL8: =IF(AK8=0,0,(AK8*((LOG(AK8))/LOG(2)))) ->  | AN8: =N8 -> 112 | AO8: =COUNTIF(L34:L40,AN8) -> 0 | AP8: =AO8/(AQ4-AO14) ->  | AQ8: =IF(AP8=0,0,(AP8*((LOG(AP8))/LOG(2)))) ->  | AS8: =N8 -> 112 | AT8: =COUNTIF(L41:L47,AS8) -> 0 | AU8: =AT8/(AV4-AT14) ->  | AV8: =IF(AU8=0,0,(AU8*((LOG(AU8))/LOG(2)))) -> 
A9: 21 | B9: 13798 | C9: 21 | D9: 13802 | E9: 21 | F9: 13808 | K9: 0 | L9: 222 | N9: 121 | O9: =COUNTIF($L$7:$L$500,N9) -> 0 | P9: =O9/$Q$4 -> 0 | Q9: =IF(P9=0,0,(P9*((LOG(P9))/LOG(2)))) -> 0 | T9: =N9 -> 121 | U9: =COUNTIF(L7:L13,T9) -> 0 | V9: =U9/(W4-U14) -> 0 | W9: =IF(V9=0,0,(V9*((LOG(V9))/LOG(2)))) -> 0 | Y9: =N9 -> 121 | Z9: =COUNTIF(L14:L20,Y9) -> 0 | AA9: =Z9/(AB4-Z14) ->  | AB9: =IF(AA9=0,0,(AA9*((LOG(AA9))/LOG(2)))) ->  | AD9: =N9 -> 121 | AE9: =COUNTIF(L21:L26,AD9) -> 0 | AF9: =AE9/(AG4-AE14) ->  | AG9: =IF(AF9=0,0,(AF9*((LOG(AF9))/LOG(2)))) ->  | AI9: =N9 -> 121 | AJ9: =COUNTIF(L27:L33,AI9) -> 0 | AK9: =AJ9/(AL4-AJ14) ->  | AL9: =IF(AK9=0,0,(AK9*((LOG(AK9))/LOG(2)))) ->  | AN9: =N9 -> 121 | AO9: =COUNTIF(L34:L40,AN9) -> 0 | AP9: =AO9/(AQ4-AO14) ->  | AQ9: =IF(AP9=0,0,(AP9*((LOG(AP9))/LOG(2)))) ->  | AS9: =N9 -> 121 | AT9: =COUNTIF(L41:L47,AS9) -> 0 | AU9: =AT9/(AV4-AT14) ->  | AV9: =IF(AU9=0,0,(AU9*((LOG(AU9))/LOG(2)))) -> 
A10: 21 | B10: 13929 | C10: 21 | D10: 13938 | E10: 21 | F10: 13945 | K10: 0 | L10: 222 | N10: 122 | O10: =COUNTIF($L$7:$L$500,N10) -> 0 | P10: =O10/$Q$4 -> 0 | Q10: =IF(P10=0,0,(P10*((LOG(P10))/LOG(2)))) -> 0 | T10: =N10 -> 122 | U10: =COUNTIF(L7:L13,T10) -> 0 | V10: =U10/(W4-U14) -> 0 | W10: =IF(V10=0,0,(V10*((LOG(V10))/LOG(2)))) -> 0 | Y10: =N10 -> 122 | Z10: =COUNTIF(L14:L20,Y10) -> 0 | AA10: =Z10/(AB4-Z14) ->  | AB10: =IF(AA10=0,0,(AA10*((LOG(AA10))/LOG(2)))) ->  | AD10: =N10 -> 122 | AE10: =COUNTIF(L21:L26,AD10) -> 0 | AF10: =AE10/(AG4-AE14) ->  | AG10: =IF(AF10=0,0,(AF10*((LOG(AF10))/LOG(2)))) ->  | AI10: =N10 -> 122 | AJ10: =COUNTIF(L27:L33,AI10) -> 0 | AK10: =AJ10/(AL4-AJ14) ->  | AL10: =IF(AK10=0,0,(AK10*((LOG(AK10))/LOG(2)))) ->  | AN10: =N10 -> 122 | AO10: =COUNTIF(L34:L40,AN10) -> 0 | AP10: =AO10/(AQ4-AO14) ->  | AQ10: =IF(AP10=0,0,(AP10*((LOG(AP10))/LOG(2)))) ->  | AS10: =N10 -> 122 | AT10: =COUNTIF(L41:L47,AS10) -> 0 | AU10: =AT10/(AV4-AT14) ->  | AV10: =IF(AU10=0,0,(AU10*((LOG(AU10))/LOG(2)))) -> 
A11: 21 | B11: 14081 | C11: 21 | D11: 14086 | E11: 21 | F11: 14092 | K11: 0 | L11: 222 | N11: 211 | O11: =COUNTIF($L$7:$L$500,N11) -> 0 | P11: =O11/$Q$4 -> 0 | Q11: =IF(P11=0,0,(P11*((LOG(P11))/LOG(2)))) -> 0 | T11: =N11 -> 211 | U11: =COUNTIF(L7:L13,T11) -> 0 | V11: =U11/(W4-U14) -> 0 | W11: =IF(V11=0,0,(V11*((LOG(V11))/LOG(2)))) -> 0 | Y11: =N11 -> 211 | Z11: =COUNTIF(L14:L20,Y11) -> 0 | AA11: =Z11/(AB4-Z14) ->  | AB11: =IF(AA11=0,0,(AA11*((LOG(AA11))/LOG(2)))) ->  | AD11: =N11 -> 211 | AE11: =COUNTIF(L21:L26,AD11) -> 0 | AF11: =AE11/(AG4-AE14) ->  | AG11: =IF(AF11=0,0,(AF11*((LOG(AF11))/LOG(2)))) ->  | AI11: =N11 -> 211 | AJ11: =COUNTIF(L27:L33,AI11) -> 0 | AK11: =AJ11/(AL4-AJ14) ->  | AL11: =IF(AK11=0,0,(AK11*((LOG(AK11))/LOG(2)))) ->  | AN11: =N11 -> 211 | AO11: =COUNTIF(L34:L40,AN11) -> 0 | AP11: =AO11/(AQ4-AO14) ->  | AQ11: =IF(AP11=0,0,(AP11*((LOG(AP11))/LOG(2)))) ->  | AS11: =N11 -> 211 | AT11: =COUNTIF(L41:L47,AS11) -> 0 | AU11: =AT11/(AV4-AT14) ->  | AV11: =IF(AU11=0,0,(AU11*((LOG(AU11))/LOG(2)))) -> 
A12: 21 | B12: 14200 | C12: 21 | D12: 14210 | E12: 21 | F12: 14221 | K12: 0 | L12: 222 | N12: 212 | O12: =COUNTIF($L$7:$L$500,N12) -> 0 | P12: =O12/$Q$4 -> 0 | Q12: =IF(P12=0,0,(P12*((LOG(P12))/LOG(2)))) -> 0 | T12: =N12 -> 212 | U12: =COUNTIF(L7:L13,T12) -> 0 | V12: =U12/(W4-U14) -> 0 | W12: =IF(V12=0,0,(V12*((LOG(V12))/LOG(2)))) -> 0 | Y12: =N12 -> 212 | Z12: =COUNTIF(L14:L20,Y12) -> 0 | AA12: =Z12/(AB4-Z14) ->  | AB12: =IF(AA12=0,0,(AA12*((LOG(AA12))/LOG(2)))) ->  | AD12: =N12 -> 212 | AE12: =COUNTIF(L21:L26,AD12) -> 0 | AF12: =AE12/(AG4-AE14) ->  | AG12: =IF(AF12=0,0,(AF12*((LOG(AF12))/LOG(2)))) ->  | AI12: =N12 -> 212 | AJ12: =COUNTIF(L27:L33,AI12) -> 0 | AK12: =AJ12/(AL4-AJ14) ->  | AL12: =IF(AK12=0,0,(AK12*((LOG(AK12))/LOG(2)))) ->  | AN12: =N12 -> 212 | AO12: =COUNTIF(L34:L40,AN12) -> 0 | AP12: =AO12/(AQ4-AO14) ->  | AQ12: =IF(AP12=0,0,(AP12*((LOG(AP12))/LOG(2)))) ->  | AS12: =N12 -> 212 | AT12: =COUNTIF(L41:L47,AS12) -> 0 | AU12: =AT12/(AV4-AT14) ->  | AV12: =IF(AU12=0,0,(AU12*((LOG(AU12))/LOG(2)))) -> 
A13: 21 | B13: 14360 | C13: 21 | D13: 14367 | E13: 21 | F13: 14375 | K13: 0 | L13: 222 | N13: 221 | O13: =COUNTIF($L$7:$L$500,N13) -> 0 | P13: =O13/$Q$4 -> 0 | Q13: =IF(P13=0,0,(P13*((LOG(P13))/LOG(2)))) -> 0 | T13: =N13 -> 221 | U13: =COUNTIF(L7:L13,T13) -> 0 | V13: =U13/(W4-U14) -> 0 | W13: =IF(V13=0,0,(V13*((LOG(V13))/LOG(2)))) -> 0 | Y13: =N13 -> 221 | Z13: =COUNTIF(L14:L20,Y13) -> 0 | AA13: =Z13/(AB4-Z14) ->  | AB13: =IF(AA13=0,0,(AA13*((LOG(AA13))/LOG(2)))) ->  | AD13: =N13 -> 221 | AE13: =COUNTIF(L21:L26,AD13) -> 0 | AF13: =AE13/(AG4-AE14) ->  | AG13: =IF(AF13=0,0,(AF13*((LOG(AF13))/LOG(2)))) ->  | AI13: =N13 -> 221 | AJ13: =COUNTIF(L27:L33,AI13) -> 0 | AK13: =AJ13/(AL4-AJ14) ->  | AL13: =IF(AK13=0,0,(AK13*((LOG(AK13))/LOG(2)))) ->  | AN13: =N13 -> 221 | AO13: =COUNTIF(L34:L40,AN13) -> 0 | AP13: =AO13/(AQ4-AO14) ->  | AQ13: =IF(AP13=0,0,(AP13*((LOG(AP13))/LOG(2)))) ->  | AS13: =N13 -> 221 | AT13: =COUNTIF(L41:L47,AS13) -> 0 | AU13: =AT13/(AV4-AT14) ->  | AV13: =IF(AU13=0,0,(AU13*((LOG(AU13))/LOG(2)))) -> 
A14: 21 | B14: 14518 | C14: 21 | D14: 14529 | E14: 21 | F14: 14549 | K14: 0 | L14: 222 | N14: 222 | O14: =COUNTIF($L$7:$L$500,N14) -> 40 | P14: =O14/$Q$4 -> 0.9756097561 | Q14: =IF(P14=0,0,(P14*((LOG(P14))/LOG(2)))) -> -0.03475503388 | T14: =N14 -> 222 | U14: =COUNTIF(L7:L13,T14) -> 6 | Y14: =N14 -> 222 | Z14: =COUNTIF(L14:L20,Y14) -> 7 | AD14: =N14 -> 222 | AE14: =COUNTIF(L21:L26,AD14) -> 6 | AI14: =N14 -> 222 | AJ14: =COUNTIF(L27:L33,AI14) -> 7 | AN14: =N14 -> 222 | AO14: =COUNTIF(L34:L40,AN14) -> 7 | AS14: =N14 -> 222 | AT14: =COUNTIF(L41:L47,AS14) -> 7
A15: 21 | B15: 14640 | C15: 21 | D15: 14649 | E15: 21 | F15: 14656 | K15: 0 | L15: 222 | P15: =SUM(P7:P14) -> 1 | Q15: =-SUM(Q7:Q14) -> 0.165427034 | V15: =SUM(V7:V14) -> 1 | W15: =-SUM(W7:W14) -> 0 | AA15: =SUM(AA7:AA14) ->  | AB15: =-SUM(AB7:AB14) ->  | AF15: =SUM(AF7:AF14) ->  | AG15: =-SUM(AG7:AG14) ->  | AK15: =SUM(AK7:AK14) ->  | AL15: =-SUM(AL7:AL14) ->  | AP15: =SUM(AP7:AP14) ->  | AQ15: =-SUM(AQ7:AQ14) ->  | AU15: =SUM(AU7:AU14) ->  | AV15: =-SUM(AV7:AV14) -> 
A16: 21 | B16: 14755 | C16: 21 | D16: 14765 | E16: 21 | F16: 14776 | K16: 0 | L16: 222 | P16: U= | Q16: =Q15/(LOG(Q4)/LOG(2)) -> 0.03087735478 | V16: U1= | W16: =W15/(LOG(W4)/LOG(2)) -> 0 | AA16: U2= | AB16: =AB15/(LOG(AB4)/LOG(2)) ->  | AF16: U3= | AG16: =AG15/(LOG(AG4)/LOG(2)) ->  | AK16: U4= | AL16: =AL15/(LOG(AL4)/LOG(2)) ->  | AP16: U5= | AQ16: =AQ15/(LOG(AQ4)/LOG(2)) ->  | AU16: U6= | AV16: =AV15/(LOG(AV4)/LOG(2)) -> 
A17: 21 | B17: 14922 | C17: 21 | D17: 14928 | E17: 21 | F17: 14941 | K17: 0 | L17: 222
A18: 21 | B18: 15037 | C18: 21 | D18: 15053 | E18: 21 | F18: 15063 | K18: 0 | L18: 222
A19: 21 | B19: 15169 | C19: 21 | D19: 15176 | E19: 21 | F19: 15183 | K19: 0 | L19: 222 | N19: Total Target Seq
A20: 21 | B20: 15297 | C20: 21 | D20: 15312 | E20: 21 | F20: 15347 | K20: 0 | L20: 222 | N20: =COUNTIF(L7:L47,G3) -> 40 | P20: 7 | Q20: 7 | R20: 6 | S20: 7 | T20: 7 | U20: 7
A21: 21 | B21: 15464 | C21: 21 | D21: 15479 | E21: 21 | F21: 15488 | K21: 0 | L21: 222 | P21: % of reinforcement given in 6 equal intervals based on number of trials
A22: 21 | B22: 15578 | C22: 21 | D22: 15582 | E22: 21 | F22: 15586 | K22: 0 | L22: 222 | P22: %_1 | Q22: %_2 | R22: %_3 | S22: %_4 | T22: %_5 | U22: %_6
A23: 21 | B23: 15676 | C23: 21 | D23: 15684 | E23: 21 | F23: 15694 | K23: 0 | L23: 222 | O23: target sequence | P23: =$G$3 -> 222 | Q23: =$G$3 -> 222 | R23: =$G$3 -> 222 | S23: =$G$3 -> 222 | T23: =$G$3 -> 222 | U23: =$G$3 -> 222
A24: 21 | B24: 15785 | C24: 21 | D24: 15835 | E24: 21 | F24: 15855 | K24: 0 | L24: 222 | O24: total reinforcement | P24: =U14 -> 6 | Q24: =Z14 -> 7 | R24: =AE14 -> 6 | S24: =AJ14 -> 7 | T24: =AO14 -> 7 | U24: =AT14 -> 7
A25: 21 | B25: 15948 | C25: 21 | D25: 15964 | E25: 21 | F25: 15972 | K25: 0 | L25: 222 | O25: % target
A26: 21 | B26: 16084 | C26: 21 | D26: 16118 | E26: 21 | F26: 16128 | K26: 0 | L26: 222 | O26: CCRF
A27: 21 | B27: 16222 | C27: 21 | D27: 16227 | E27: 21 | F27: 16235 | K27: 0 | L27: 222 | O27: % CCRf
A28: 21 | B28: 16330 | C28: 21 | D28: 16342 | E28: 21 | F28: 16354 | K28: 0 | L28: 222 | O28: average response rate | P28: =F13/P20 -> 2053.571429 | Q28: =(F20-F13)/Q20 -> 138.8571429 | R28: =(F26-F20)/R20 -> 130.1666667 | S28: =(F33-F26)/S20 -> 122 | T28: =(F40-F33)/T20 -> 150 | U28: =(F47-F40)/U20 -> 133.7142857
A29: 21 | B29: 16474 | C29: 21 | D29: 16483 | E29: 21 | F29: 16501 | K29: 0 | L29: 222
A30: 21 | B30: 16603 | C30: 21 | D30: 16610 | E30: 21 | F30: 16626 | K30: 0 | L30: 222
A31: 21 | B31: 16718 | C31: 21 | D31: 16728 | E31: 21 | F31: 16744 | K31: 0 | L31: 222
A32: 21 | B32: 16835 | C32: 21 | D32: 16838 | E32: 21 | F32: 16843 | K32: 0 | L32: 222
A33: 21 | B33: 16961 | C33: 21 | D33: 16975 | E33: 21 | F33: 16982 | K33: 0 | L33: 222
A34: 21 | B34: 17075 | C34: 21 | D34: 17090 | E34: 21 | F34: 17099 | K34: 0 | L34: 222
A35: 21 | B35: 17203 | C35: 21 | D35: 17209 | E35: 21 | F35: 17219 | K35: 0 | L35: 222
A36: 21 | B36: 17364 | C36: 21 | D36: 17372 | E36: 21 | F36: 17378 | K36: 0 | L36: 222
A37: 21 | B37: 17567 | C37: 21 | D37: 17581 | E37: 21 | F37: 17604 | K37: 0 | L37: 222
A38: 21 | B38: 17692 | C38: 21 | D38: 17699 | E38: 21 | F38: 17721 | K38: 0 | L38: 222
A39: 21 | B39: 17845 | C39: 21 | D39: 17853 | E39: 21 | F39: 17870 | K39: 0 | L39: 222
A40: 21 | B40: 18004 | C40: 21 | D40: 18011 | E40: 21 | F40: 18032 | K40: 0 | L40: 222
A41: 21 | B41: 18137 | C41: 21 | D41: 18143 | E41: 21 | F41: 18151 | K41: 0 | L41: 222
A42: 21 | B42: 18272 | C42: 21 | D42: 18281 | E42: 21 | F42: 18300 | K42: 0 | L42: 222
A43: 21 | B43: 18392 | C43: 21 | D43: 18400 | E43: 21 | F43: 18406 | K43: 0 | L43: 222
A44: 21 | B44: 18498 | C44: 21 | D44: 18505 | E44: 21 | F44: 18540 | K44: 0 | L44: 222
A45: 21 | B45: 18632 | C45: 21 | D45: 18639 | E45: 21 | F45: 18646 | K45: 0 | L45: 222
A46: 21 | B46: 18755 | C46: 21 | D46: 18797 | E46: 21 | F46: 18816 | K46: 0 | L46: 222
A47: 21 | B47: 18940 | C47: 21 | D47: 18956 | E47: 21 | F47: 18968 | K47: 1 | L47: 222

Sheet !M312A3I.sha
A1: Report for:!M312A3I.sha
A2: Date: | B2: <date>
A3: Hen: | B3: <hen> | F3: Correct Sequence | G3: =Start!J2 -> 222 | P3: Total Sequences in Data | Q3: =4994-COUNTBLANK(L7:L5000) -> 46 | V3: Total Sequences in Block Data | W3: =COUNTA(L7:L14) -> 8 | AA3: Total Sequences in Block Data | AB3: =COUNTA(L15:L21) -> 7 | AF3: Total Sequences in Block Data | AG3: =COUNTA(L22:L29) -> 8 | AK3: Total Sequences in Block Data | AL3: =COUNTA(L30:L37) -> 8 | AP3: Total Sequences in Block Data | AQ3: =COUNTA(L38:L44) -> 7 | AU3: Total Sequences in Block Data | AV3: =COUNTA(L45:L52) -> 8
P4: Total Sequences in Summary | Q4: =SUM(O7:O14) -> 46 | V4: Total Sequences in Block Summary | W4: =SUM(U7:U14) -> 8 | AA4: Total Sequences in Block Summary | AB4: =SUM(Z7:Z14) -> 7 | AF4: Total Sequences in Block Summary | AG4: =SUM(AE7:AE14) -> 8 | AK4: Total Sequences in Block Summary | AL4: =SUM(AJ7:AJ14) -> 8 | AP4: Total Sequences in Block Summary | AQ4: =SUM(AO7:AO14) -> 7 | AU4: Total Sequences in Block Summary | AV4: =SUM(AT7:AT14) -> 8
T5: Block 1 | Y5: Block 2 | AD5: Block 3 | AI5: Block 4 | AN5: Block 5 | AS5: Block 6
A6: Sequence Component 1 | B6: Time 1 | C6: Sequence Component 2 | D6: Time 2 | E6: Sequence Component 3 | F6: Time 3 | G6: Sequence Component 4 | H6: Time 4 | I6: Sequence Component 5 | J6: Time 5 | K6: Correct? 0=No 1=Yes | L6: Sequence | N6: Frequency | P6: Relative Frequency | Q6: Variability | T6: Frequency | V6: Relative Frequency | W6: Variability | Y6: Frequency | AA6: Relative Frequency | AB6: Variability | AD6: Frequency | AF6: Relative Frequency | AG6: Variability | AI6: Frequency | AK6: Relative Frequency | AL6: Variability | AN6: Frequency | AP6: Relative Frequency | AQ6: Variability | AS6: Frequency | AU6: Relative Frequency | AV6: Variability
A7: 21 | B7: 8 | C7: 12 | D7: 16 | E7: 23 | F7: 33 | K7: 0 | L7: 212 | N7: 111 | O7: =COUNTIF($L$7:$L$500,N7) -> 0 | P7: =O7/$Q$4 -> 0 | Q7: =IF(P7=0,0,(P7*((LOG(P7))/LOG(2)))) -> 0 | T7: =N7 -> 111 | U7: =COUNTIF(L7:L14,T7) -> 0 | V7: =U7/(W4-U14) -> 0 | W7: =IF(V7=0,0,(V7*((LOG(V7))/LOG(2)))) -> 0 | Y7: =N7 -> 111 | Z7: =COUNTIF(L15:L21,Y7) -> 0 | AA7: =Z7/(AB4-Z14) ->  | AB7: =IF(AA7=0,0,(AA7*((LOG(AA7))/LOG(2)))) ->  | AD7: =N7 -> 111 | AE7: =COUNTIF(L22:L29,AD7) -> 0 | AF7: =AE7/(AG4-AE14) ->  | AG7: =IF(AF7=0,0,(AF7*((LOG(AF7))/LOG(2)))) ->  | AI7: =N7 -> 111 | AJ7: =COUNTIF(L30:L37,AI7) -> 0 | AK7: =AJ7/(AL4-AJ14) ->  | AL7: =IF(AK7=0,0,(AK7*((LOG(AK7))/LOG(2)))) ->  | AN7: =N7 -> 111 | AO7: =COUNTIF(L38:L44,AN7) -> 0 | AP7: =AO7/(AQ4-AO14) ->  | AQ7: =IF(AP7=0,0,(AP7*((LOG(AP7))/LOG(2)))) ->  | AS7: =N7 -> 111 | AT7: =COUNTIF(L45:L52,AS7) -> 0 | AU7: =AT7/(AV4-AT14) ->  | AV7: =IF(AU7=0,0,(AU7*((LOG(AU7))/LOG(2)))) -> 
A8: 12 | B8: 134 | C8: 23 | D8: 149 | E8: 23 | F8: 157 | K8: 0 | L8: 122 | N8: 112 | O8: =COUNTIF($L$7:$L$500,N8) -> 0 | P8: =O8/$Q$4 -> 0 | Q8: =IF(P8=0,0,(P8*((LOG(P8))/LOG(2)))) -> 0 | T8: =N8 -> 112 | U8: =COUNTIF(L7:L14,T8) -> 0 | V8: =U8/(W4-U14) -> 0 | W8: =IF(V8=0,0,(V8*((LOG(V8))/LOG(2)))) -> 0 | Y8: =N8 -> 112 | Z8: =COUNTIF(L15:L21,Y8) -> 0 | AA8: =Z8/(AB4-Z14) ->  | AB8: =IF(AA8=0,0,(AA8*((LOG(AA8))/LOG(2)))) ->  | AD8: =N8 -> 112 | AE8: =COUNTIF(L22:L29,AD8) -> 0 | AF8: =AE8/(AG4-AE14) ->  | AG8: =IF(AF8=0,0,(AF8*((LOG(AF8))/LOG(2)))) ->  | AI8: =N8 -> 112 | AJ8: =COUNTIF(L30:L37,AI8) -> 0 | AK8: =AJ8/(AL4-AJ14) ->  | AL8: =IF(AK8=0,0,(AK8*((LOG(AK8))/LOG(2)))) ->  | AN8: =N8 -> 112 | AO8: =COUNTIF(L38:L44,AN8) -> 0 | AP8: =AO8/(AQ4-AO14) ->  | AQ8: =IF(AP8=0,0,(AP8*((LOG(AP8))/LOG(2)))) ->  | AS8: =N8 -> 112 | AT8: =COUNTIF(L45:L52,AS8) -> 0 | AU8: =AT8/(AV4-AT14) ->  | AV8: =IF(AU8=0,0,(AU8*((LOG(AU8))/LOG(2)))) -> 
A9: 21 | B9: 253 | C9: 21 | D9: 257 | E9: 12 | F9: 272 | K9: 0 | L9: 221 | N9: 121 | O9: =COUNTIF($L$7:$L$500,N9) -> 0 | P9: =O9/$Q$4 -> 0 | Q9: =IF(P9=0,0,(P9*((LOG(P9))/LOG(2)))) -> 0 | T9: =N9 -> 121 | U9: =COUNTIF(L7:L14,T9) -> 0 | V9: =U9/(W4-U14) -> 0 | W9: =IF(V9=0,0,(V9*((LOG(V9))/LOG(2)))) -> 0 | Y9: =N9 -> 121 | Z9: =COUNTIF(L15:L21,Y9) -> 0 | AA9: =Z9/(AB4-Z14) ->  | AB9: =IF(AA9=0,0,(AA9*((LOG(AA9))/LOG(2)))) ->  | AD9: =N9 -> 121 | AE9: =COUNTIF(L22:L29,AD9) -> 0 | AF9: =AE9/(AG4-AE14) ->  | AG9: =IF(AF9=0,0,(AF9*((LOG(AF9))/LOG(2)))) ->  | AI9: =N9 -> 121 | AJ9: =COUNTIF(L30:L37,AI9) -> 0 | AK9: =AJ9/(AL4-AJ14) ->  | AL9: =IF(AK9=0,0,(AK9*((LOG(AK9))/LOG(2)))) ->  | AN9: =N9 -> 121 | AO9: =COUNTIF(L38:L44,AN9) -> 0 | AP9: =AO9/(AQ4-AO14) ->  | AQ9: =IF(AP9=0,0,(AP9*((LOG(AP9))/LOG(2)))) ->  | AS9: =N9 -> 121 | AT9: =COUNTIF(L45:L52,AS9) -> 0 | AU9: =AT9/(AV4-AT14) ->  | AV9: =IF(AU9=0,0,(AU9*((LOG(AU9))/LOG(2)))) -> 
A10: 12 | B10: 371 | C10: 23 | D10: 383 | E10: 23 | F10: 387 | K10: 0 | L10: 122 | N10: 122 | O10: =COUNTIF($L$7:$L$500,N10) -> 2 | P10: =O10/$Q$4 -> 0.04347826087 | Q10: =IF(P10=0,0,(P10*((LOG(P10))/LOG(2)))) -> -0.1966766068 | T10: =N10 -> 122 | U10: =COUNTIF(L7:L14,T10) -> 2 | V10: =U10/(W4-U14) -> 0.3333333333 | W10: =IF(V10=0,0,(V10*((LOG(V10))/LOG(2)))) -> -0.5283208336 | Y10: =N10 -> 122 | Z10: =COUNTIF(L15:L21,Y10) -> 0 | AA10: =Z10/(AB4-Z14) ->  | AB10: =IF(AA10=0,0,(AA10*((LOG(AA10))/LOG(2)))) ->  | AD10: =N10 -> 122 | AE10: =COUNTIF(L22:L29,AD10) -> 0 | AF10: =AE10/(AG4-AE14) ->  | AG10: =IF(AF10=0,0,(AF10*((LOG(AF10))/LOG(2)))) ->  | AI10: =N10 -> 122 | AJ10: =COUNTIF(L30:L37,AI10) -> 0 | AK10: =AJ10/(AL4-AJ14) ->  | AL10: =IF(AK10=0,0,(AK10*((LOG(AK10))/LOG(2)))) ->  | AN10: =N10 -> 122 | AO10: =COUNTIF(L38:L44,AN10) -> 0 | AP10: =AO10/(AQ4-AO14) ->  | AQ10: =IF(AP10=0,0,(AP10*((LOG(AP10))/LOG(2)))) ->  | AS10: =N10 -> 122 | AT10: =COUNTIF(L45:L52,AS10) -> 0 | AU10: =AT10/(AV4-AT14) ->  | AV10: =IF(AU10=0,0,(AU10*((LOG(AU10))/LOG(2)))) -> 
A11: 21 | B11: 486 | C11: 21 | D11: 495 | E11: 12 | F11: 505 | K11: 0 | L11: 221 | N11: 211 | O11: =COUNTIF($L$7:$L$500,N11) -> 0 | P11: =O11/$Q$4 -> 0 | Q11: =IF(P11=0,0,(P11*((LOG(P11))/LOG(2)))) -> 0 | T11: =N11 -> 211 | U11: =COUNTIF(L7:L14,T11) -> 0 | V11: =U11/(W4-U14) -> 0 | W11: =IF(V11=0,0,(V11*((LOG(V11))/LOG(2)))) -> 0 | Y11: =N11 -> 211 | Z11: =COUNTIF(L15:L21,Y11) -> 0 | AA11: =Z11/(AB4-Z14) ->  | AB11: =IF(AA11=0,0,(AA11*((LOG(AA11))/LOG(2)))) ->  | AD11: =N11 -> 211 | AE11: =COUNTIF(L22:L29,AD11) -> 0 | AF11: =AE11/(AG4-AE14) ->  | AG11: =IF(AF11=0,0,(AF11*((LOG(AF11))/LOG(2)))) ->  | AI11: =N11 -> 211 | AJ11: =COUNTIF(L30:L37,AI11) -> 0 | AK11: =AJ11/(AL4-AJ14) ->  | AL11: =IF(AK11=0,0,(AK11*((LOG(AK11))/LOG(2)))) ->  | AN11: =N11 -> 211 | AO11: =COUNTIF(L38:L44,AN11) -> 0 | AP11: =AO11/(AQ4-AO14) ->  | AQ11: =IF(AP11=0,0,(AP11*((LOG(AP11))/LOG(2)))) ->  | AS11: =N11 -> 211 | AT11: =COUNTIF(L45:L52,AS11) -> 0 | AU11: =AT11/(AV4-AT14) ->  | AV11: =IF(AU11=0,0,(AU11*((LOG(AU11))/LOG(2)))) -> 
A12: 21 | B12: 601 | C12: 21 | D12: 606 | E12: 21 | F12: 613 | K12: 0 | L12: 222 | N12: 212 | O12: =COUNTIF($L$7:$L$500,N12) -> 1 | P12: =O12/$Q$4 -> 0.02173913043 | Q12: =IF(P12=0,0,(P12*((LOG(P12))/LOG(2)))) -> -0.1200774338 | T12: =N12 -> 212 | U12: =COUNTIF(L7:L14,T12) -> 1 | V12: =U12/(W4-U14) -> 0.1666666667 | W12: =IF(V12=0,0,(V12*((LOG(V12))/LOG(2)))) -> -0.4308270835 | Y12: =N12 -> 212 | Z12: =COUNTIF(L15:L21,Y12) -> 0 | AA12: =Z12/(AB4-Z14) ->  | AB12: =IF(AA12=0,0,(AA12*((LOG(AA12))/LOG(2)))) ->  | AD12: =N12 -> 212 | AE12: =COUNTIF(L22:L29,AD12) -> 0 | AF12: =AE12/(AG4-AE14) ->  | AG12: =IF(AF12=0,0,(AF12*((LOG(AF12))/LOG(2)))) ->  | AI12: =N12 -> 212 | AJ12: =COUNTIF(L30:L37,AI12) -> 0 | AK12: =AJ12/(AL4-AJ14) ->  | AL12: =IF(AK12=0,0,(AK12*((LOG(AK12))/LOG(2)))) ->  | AN12: =N12 -> 212 | AO12: =COUNTIF(L38:L44,AN12) -> 0 | AP12: =AO12/(AQ4-AO14) ->  | AQ12: =IF(AP12=0,0,(AP12*((LOG(AP12))/LOG(2)))) ->  | AS12: =N12 -> 212 | AT12: =COUNTIF(L45:L52,AS12) -> 0 | AU12: =AT12/(AV4-AT14) ->  | AV12: =IF(AU12=0,0,(AU12*((LOG(AU12))/LOG(2)))) -> 
A13: 21 | B13: 769 | C13: 21 | D13: 775 | E13: 21 | F13: 785 | K13: 0 | L13: 222 | N13: 221 | O13: =COUNTIF($L$7:$L$500,N13) -> 3 | P13: =O13/$Q$4 -> 0.0652173913 | Q13: =IF(P13=0,0,(P13*((LOG(P13))/LOG(2)))) -> -0.2568651819 | T13: =N13 -> 221 | U13: =COUNTIF(L7:L14,T13) -> 3 | V13: =U13/(W4-U14) -> 0.5 | W13: =IF(V13=0,0,(V13*((LOG(V13))/LOG(2)))) -> -0.5 | Y13: =N13 -> 221 | Z13: =COUNTIF(L15:L21,Y13) -> 0 | AA13: =Z13/(AB4-Z14) ->  | AB13: =IF(AA13=0,0,(AA13*((LOG(AA13))/LOG(2)))) ->  | AD13: =N13 -> 221 | AE13: =COUNTIF(L22:L29,AD13) -> 0 | AF13: =AE13/(AG4-AE14) ->  | AG13: =IF(AF13=0,0,(AF13*((LOG(AF13))/LOG(2)))) ->  | AI13: =N13 -> 221 | AJ13: =COUNTIF(L30:L37,AI13) -> 0 | AK13: =AJ13/(AL4-AJ14) ->  | AL13: =IF(AK13=0,0,(AK13*((LOG(AK13))/LOG(2)))) ->  | AN13: =N13 -> 221 | AO13: =COUNTIF(L38:L44,AN13) -> 0 | AP13: =AO13/(AQ4-AO14) ->  | AQ13: =IF(AP13=0,0,(AP13*((LOG(AP13))/LOG(2)))) ->  | AS13: =N13 -> 221 | AT13: =COUNTIF(L45:L52,AS13) -> 0 | AU13: =AT13/(AV4-AT14) ->  | AV13: =IF(AU13=0,0,(AU13*((LOG(AU13))/LOG(2)))) -> 
A14: 21 | B14: 922 | C14: 21 | D14: 935 | E14: 12 | F14: 1012 | K14: 0 | L14: 221 | N14: 222 | O14: =COUNTIF($L$7:$L$500,N14) -> 40 | P14: =O14/$Q$4 -> 0.8695652174 | Q14: =IF(P14=0,0,(P14*((LOG(P14))/LOG(2)))) -> -0.1753337923 | T14: =N14 -> 222 | U14: =COUNTIF(L7:L14,T14) -> 2 | Y14: =N14 -> 222 | Z14: =COUNTIF(L15:L21,Y14) -> 7 | AD14: =N14 -> 222 | AE14: =COUNTIF(L22:L29,AD14) -> 8 | AI14: =N14 -> 222 | AJ14: =COUNTIF(L30:L37,AI14) -> 8 | AN14: =N14 -> 222 | AO14: =COUNTIF(L38:L44,AN14) -> 7 | AS14: =N14 -> 222 | AT14: =COUNTIF(L45:L52,AS14) -> 8
A15: 21 | B15: 1108 | C15: 21 | D15: 1112 | E15: 21 | F15: 1118 | K15: 0 | L15: 222 | P15: =SUM(P7:P14) -> 1 | Q15: =-SUM(Q7:Q14) -> 0.7489530148 | V15: =SUM(V7:V14) -> 1 | W15: =-SUM(W7:W14) -> 1.459147917 | AA15: =SUM(AA7:AA14) ->  | AB15: =-SUM(AB7:AB14) ->  | AF15: =SUM(AF7:AF14) ->  | AG15: =-SUM(AG7:AG14) ->  | AK15: =SUM(AK7:AK14) ->  | AL15: =-SUM(AL7:AL14) ->  | AP15: =SUM(AP7:AP14) ->  | AQ15: =-SUM(AQ7:AQ14) ->  | AU15: =SUM(AU7:AU14) ->  | AV15: =-SUM(AV7:AV14) -> 
A16: 21 | B16: 1212 | C16: 21 | D16: 1218 | E16: 21 | F16: 1225 | K16: 0 | L16: 222 | P16: U= | Q16: =Q15/(LOG(Q4)/LOG(2)) -> 0.1355923987 | V16: U1= | W16: =W15/(LOG(W4)/LOG(2)) -> 0.486382639 | AA16: U2= | AB16: =AB15/(LOG(AB4)/LOG(2)) ->  | AF16: U3= | AG16: =AG15/(LOG(AG4)/LOG(2)) ->  | AK16: U4= | AL16: =AL15/(LOG(AL4)/LOG(2)) ->  | AP16: U5= | AQ16: =AQ15/(LOG(AQ4)/LOG(2)) ->  | AU16: U6= | AV16: =AV15/(LOG(AV4)/LOG(2)) -> 
A17: 21 | B17: 1333 | C17: 21 | D17: 1339 | E17: 21 | F17: 1345 | K17: 0 | L17: 222
A18: 21 | B18: 1443 | C18: 21 | D18: 1454 | E18: 21 | F18: 1465 | K18: 0 | L18: 222
A19: 21 | B19: 1564 | C19: 21 | D19: 1573 | E19: 21 | F19: 1586 | K19: 0 | L19: 222 | N19: Total Target Seq
A20: 21 | B20: 1679 | C20: 21 | D20: 1724 | E20: 21 | F20: 1736 | K20: 0 | L20: 222 | N20: =COUNTIF(L7:L52,G3) -> 40 | P20: 8 | Q20: 7 | R20: 8 | S20: 8 | T20: 7 | U20: 8
A21: 21 | B21: 1849 | C21: 21 | D21: 1859 | E21: 21 | F21: 1878 | K21: 0 | L21: 222 | P21: % of reinforcement given in 6 equal intervals based on number of trials
A22: 21 | B22: 1979 | C22: 21 | D22: 1997 | E22: 21 | F22: 2005 | K22: 0 | L22: 222 | P22: %_1 | Q22: %_2 | R22: %_3 | S22: %_4 | T22: %_5 | U22: %_6
A23: 21 | B23: 2099 | C23: 21 | D23: 2115 | E23: 21 | F23: 2125 | K23: 0 | L23: 222 | O23: target sequence | P23: =$G$3 -> 222 | Q23: =$G$3 -> 222 | R23: =$G$3 -> 222 | S23: =$G$3 -> 222 | T23: =$G$3 -> 222 | U23: =$G$3 -> 222
A24: 21 | B24: 2230 | C24: 21 | D24: 2235 | E24: 21 | F24: 2250 | K24: 0 | L24: 222 | O24: total reinforcement | P24: =U14 -> 2 | Q24: =Z14 -> 7 | R24: =AE14 -> 8 | S24: =AJ14 -> 8 | T24: =AO14 -> 7 | U24: =AT14 -> 8
A25: 21 | B25: 2343 | C25: 21 | D25: 2356 | E25: 21 | F25: 2363 | K25: 0 | L25: 222 | O25: % target
A26: 21 | B26: 2455 | C26: 21 | D26: 2468 | E26: 21 | F26: 2481 | K26: 0 | L26: 222 | O26: CCRF
A27: 21 | B27: 2596 | C27: 21 | D27: 2607 | E27: 21 | F27: 2622 | K27: 0 | L27: 222 | O27: % CCRf
A28: 21 | B28: 2728 | C28: 21 | D28: 2733 | E28: 21 | F28: 2783 | K28: 0 | L28: 222 | O28: average response rate | P28: =F14/P20 -> 126.5 | Q28: =(F21-F14)/Q20 -> 123.7142857 | R28: =(F29-F21)/R20 -> 128.75 | S28: =(F37-F29)/S20 -> 143.875 | T28: =(F44-F37)/T20 -> 141.2857143 | U28: =(F52-F44)/U20 -> 151
A29: 21 | B29: 2893 | C29: 21 | D29: 2900 | E29: 21 | F29: 2908 | K29: 0 | L29: 222
A30: 21 | B30: 3005 | C30: 21 | D30: 3015 | E30: 21 | F30: 3046 | K30: 0 | L30: 222
A31: 21 | B31: 3145 | C31: 21 | D31: 3152 | E31: 21 | F31: 3161 | K31: 0 | L31: 222
A32: 21 | B32: 3319 | C32: 21 | D32: 3326 | E32: 21 | F32: 3332 | K32: 0 | L32: 222
A33: 21 | B33: 3477 | C33: 21 | D33: 3486 | E33: 21 | F33: 3500 | K33: 0 | L33: 222
A34: 21 | B34: 3602 | C34: 21 | D34: 3610 | E34: 21 | F34: 3638 | K34: 0 | L34: 222
A35: 21 | B35: 3773 | C35: 21 | D35: 3784 | E35: 21 | F35: 3793 | K35: 0 | L35: 222
A36: 21 | B36: 3908 | C36: 21 | D36: 3915 | E36: 21 | F36: 3921 | K36: 0 | L36: 222
A37: 21 | B37: 4015 | C37: 21 | D37: 4027 | E37: 21 | F37: 4059 | K37: 0 | L37: 222
A38: 21 | B38: 4189 | C38: 21 | D38: 4198 | E38: 21 | F38: 4205 | K38: 0 | L38: 222
A39: 21 | B39: 4297 | C39: 21 | D39: 4304 | E39: 21 | F39: 4310 | K39: 0 | L39: 222
A40: 21 | B40: 4445 | C40: 21 | D40: 4451 | E40: 21 | F40: 4458 | K40: 0 | L40: 222
A41: 21 | B41: 4584 | C41: 21 | D41: 4604 | E41: 21 | F41: 4619 | K41: 0 | L41: 222
A42: 21 | B42: 4757 | C42: 21 | D42: 4782 | E42: 21 | F42: 4799 | K42: 0 | L42: 222
A43: 21 | B43: 4898 | C43: 21 | D43: 4904 | E43: 21 | F43: 4913 | K43: 0 | L43: 222
A44: 21 | B44: 5009 | C44: 21 | D44: 5014 | E44: 21 | F44: 5048 | K44: 0 | L44: 222
A45: 21 | B45: 5221 | C45: 21 | D45: 5229 | E45: 21 | F45: 5242 | K45: 0 | L45: 222
A46: 21 | B46: 5360 | C46: 21 | D46: 5364 | E46: 21 | F46: 5374 | K46: 0 | L46: 222
A47: 21 | B47: 5531 | C47: 21 | D47: 5533 | E47: 21 | F47: 5539 | K47: 0 | L47: 222
A48: 21 | B48: 5678 | C48: 21 | D48: 5684 | E48: 21 | F48: 5702 | K48: 0 | L48: 222
A49: 21 | B49: 5796 | C49: 21 | D49: 5806 | E49: 21 | F49: 5835 | K49: 0 | L49: 222
A50: 21 | B50: 5963 | C50: 21 | D50: 5970 | E50: 21 | F50: 5996 | K50: 0 | L50: 222
A51: 21 | B51: 6100 | C51: 21 | D51: 6110 | E51: 21 | F51: 6115 | K51: 0 | L51: 222
A52: 21 | B52: 6238 | C52: 21 | D52: 6244 | E52: 21 | F52: 6256 | K52: 1 | L52: 222

Sheet !M313A5I.sha
A1: Report for:!M313A5I.sha
A2: Date: | B2: <date>
A3: Hen: | B3: <hen> | F3: Correct Sequence | G3: =Start!J2 -> 222 | P3: Total Sequences in Data | Q3: =4994-COUNTBLANK(L7:L5000) -> 41 | V3: Total Sequences in Block Data | W3: =COUNTA(L7:L13) -> 7 | AA3: Total Sequences in Block Data | AB3: =COUNTA(L14:L20) -> 7 | AF3: Total Sequences in Block Data | AG3: =COUNTA(L21:L26) -> 6 | AK3: Total Sequences in Block Data | AL3: =COUNTA(L27:L33) -> 7 | AP3: Total Sequences in Block Data | AQ3: =COUNTA(L34:L40) -> 7 | AU3: Total Sequences in Block Data | AV3: =COUNTA(L41:L47) -> 7
P4: Total Sequences in Summary | Q4: =SUM(O7:O14) -> 41 | V4: Total Sequences in Block Summary | W4: =SUM(U7:U14) -> 7 | AA4: Total Sequences in Block Summary | AB4: =SUM(Z7:Z14) -> 7 | AF4: Total Sequences in Block Summary | AG4: =SUM(AE7:AE14) -> 6 | AK4: Total Sequences in Block Summary | AL4: =SUM(AJ7:AJ14) -> 7 | AP4: Total Sequences in Block Summary | AQ4: =SUM(AO7:AO14) -> 7 | AU4: Total Sequences in Block Summary | AV4: =SUM(AT7:AT14) -> 7
T5: Block 1 | Y5: Block 2 | AD5: Block 3 | AI5: Block 4 | AN5: Block 5 | AS5: Block 6
A6: Sequence Component 1 | B6: Time 1 | C6: Sequence Component 2 | D6: Time 2 | E6: Sequence Component 3 | F6: Time 3 | G6: Sequence Component 4 | H6: Time 4 | I6: Sequence Component 5 | J6: Time 5 | K6: Correct? 0=No 1=Yes | L6: Sequence | N6: Frequency | P6: Relative Frequency | Q6: Variability | T6: Frequency | V6: Relative Frequency | W6: Variability | Y6: Frequency | AA6: Relative Frequency | AB6: Variability | AD6: Frequency | AF6: Relative Frequency | AG6: Variability | AI6: Frequency | AK6: Relative Frequency | AL6: Variability | AN6: Frequency | AP6: Relative Frequency | AQ6: Variability | AS6: Frequency | AU6: Relative Frequency | AV6: Variability
A7: 21 | B7: 25 | C7: 21 | D7: 30 | E7: 21 | F7: 34 | K7: 0 | L7: 222 | N7: 111 | O7: =COUNTIF($L$7:$L$500,N7) -> 0 | P7: =O7/$Q$4 -> 0 | Q7: =IF(P7=0,0,(P7*((LOG(P7))/LOG(2)))) -> 0 | T7: =N7 -> 111 | U7: =COUNTIF(L7:L13,T7) -> 0 | V7: =U7/(W4-U14) ->  | W7: =IF(V7=0,0,(V7*((LOG(V7))/LOG(2)))) ->  | Y7: =N7 -> 111 | Z7: =COUNTIF(L14:L20,Y7) -> 0 | AA7: =Z7/(AB4-Z14) ->  | AB7: =IF(AA7=0,0,(AA7*((LOG(AA7))/LOG(2)))) ->  | AD7: =N7 -> 111 | AE7: =COUNTIF(L21:L26,AD7) -> 0 | AF7: =AE7/(AG4-AE14) -> 0 | AG7: =IF(AF7=0,0,(AF7*((LOG(AF7))/LOG(2)))) -> 0 | AI7: =N7 -> 111 | AJ7: =COUNTIF(L27:L33,AI7) -> 0 | AK7: =AJ7/(AL4-AJ14) ->  | AL7: =IF(AK7=0,0,(AK7*((LOG(AK7))/LOG(2)))) ->  | AN7: =N7 -> 111 | AO7: =COUNTIF(L34:L40,AN7) -> 0 | AP7: =AO7/(AQ4-AO14) ->  | AQ7: =IF(AP7=0,0,(AP7*((LOG(AP7))/LOG(2)))) ->  | AS7: =N7 -> 111 | AT7: =COUNTIF(L41:L47,AS7) -> 0 | AU7: =AT7/(AV4-AT14) ->  | AV7: =IF(AU7=0,0,(AU7*((LOG(AU7))/LOG(2)))) -> 
A8: 21 | B8: 187 | C8: 21 | D8: 211 | E8: 21 | F8: 234 | K8: 0 | L8: 222 | N8: 112 | O8: =COUNTIF($L$7:$L$500,N8) -> 0 | P8: =O8/$Q$4 -> 0 | Q8: =IF(P8=0,0,(P8*((LOG(P8))/LOG(2)))) -> 0 | T8: =N8 -> 112 | U8: =COUNTIF(L7:L13,T8) -> 0 | V8: =U8/(W4-U14) ->  | W8: =IF(V8=0,0,(V8*((LOG(V8))/LOG(2)))) ->  | Y8: =N8 -> 112 | Z8: =COUNTIF(L14:L20,Y8) -> 0 | AA8: =Z8/(AB4-Z14) ->  | AB8: =IF(AA8=0,0,(AA8*((LOG(AA8))/LOG(2)))) ->  | AD8: =N8 -> 112 | AE8: =COUNTIF(L21:L26,AD8) -> 0 | AF8: =AE8/(AG4-AE14) -> 0 | AG8: =IF(AF8=0,0,(AF8*((LOG(AF8))/LOG(2)))) -> 0 | AI8: =N8 -> 112 | AJ8: =COUNTIF(L27:L33,AI8) -> 0 | AK8: =AJ8/(AL4-AJ14) ->  | AL8: =IF(AK8=0,0,(AK8*((LOG(AK8))/LOG(2)))) ->  | AN8: =N8 -> 112 | AO8: =COUNTIF(L34:L40,AN8) -> 0 | AP8: =AO8/(AQ4-AO14) ->  | AQ8: =IF(AP8=0,0,(AP8*((LOG(AP8))/LOG(2)))) ->  | AS8: =N8 -> 112 | AT8: =COUNTIF(L41:L47,AS8) -> 0 | AU8: =AT8/(AV4-AT14) ->  | AV8: =IF(AU8=0,0,(AU8*((LOG(AU8))/LOG(2)))) -> 
A9: 21 | B9: 369 | C9: 21 | D9: 378 | E9: 21 | F9: 387 | K9: 0 | L9: 222 | N9: 121 | O9: =COUNTIF($L$7:$L$500,N9) -> 0 | P9: =O9/$Q$4 -> 0 | Q9: =IF(P9=0,0,(P9*((LOG(P9))/LOG(2)))) -> 0 | T9: =N9 -> 121 | U9: =COUNTIF(L7:L13,T9) -> 0 | V9: =U9/(W4-U14) ->  | W9: =IF(V9=0,0,(V9*((LOG(V9))/LOG(2)))) ->  | Y9: =N9 -> 121 | Z9: =COUNTIF(L14:L20,Y9) -> 0 | AA9: =Z9/(AB4-Z14) ->  | AB9: =IF(AA9=0,0,(AA9*((LOG(AA9))/LOG(2)))) ->  | AD9: =N9 -> 121 | AE9: =COUNTIF(L21:L26,AD9) -> 0 | AF9: =AE9/(AG4-AE14) -> 0 | AG9: =IF(AF9=0,0,(AF9*((LOG(AF9))/LOG(2)))) -> 0 | AI9: =N9 -> 121 | AJ9: =COUNTIF(L27:L33,AI9) -> 0 | AK9: =AJ9/(AL4-AJ14) ->  | AL9: =IF(AK9=0,0,(AK9*((LOG(AK9))/LOG(2)))) ->  | AN9: =N9 -> 121 | AO9: =COUNTIF(L34:L40,AN9) -> 0 | AP9: =AO9/(AQ4-AO14) ->  | AQ9: =IF(AP9=0,0,(AP9*((LOG(AP9))/LOG(2)))) ->  | AS9: =N9 -> 121 | AT9: =COUNTIF(L41:L47,AS9) -> 0 | AU9: =AT9/(AV4-AT14) ->  | AV9: =IF(AU9=0,0,(AU9*((LOG(AU9))/LOG(2)))) -> 
A10: 21 | B10: 538 | C10: 21 | D10: 600 | E10: 21 | F10: 619 | K10: 0 | L10: 222 | N10: 122 | O10: =COUNTIF($L$7:$L$500,N10) -> 0 | P10: =O10/$Q$4 -> 0 | Q10: =IF(P10=0,0,(P10*((LOG(P10))/LOG(2)))) -> 0 | T10: =N10 -> 122 | U10: =COUNTIF(L7:L13,T10) -> 0 | V10: =U10/(W4-U14) ->  | W10: =IF(V10=0,0,(V10*((LOG(V10))/LOG(2)))) ->  | Y10: =N10 -> 122 | Z10: =COUNTIF(L14:L20,Y10) -> 0 | AA10: =Z10/(AB4-Z14) ->  | AB10: =IF(AA10=0,0,(AA10*((LOG(AA10))/LOG(2)))) ->  | AD10: =N10 -> 122 | AE10: =COUNTIF(L21:L26,AD10) -> 0 | AF10: =AE10/(AG4-AE14) -> 0 | AG10: =IF(AF10=0,0,(AF10*((LOG(AF10))/LOG(2)))) -> 0 | AI10: =N10 -> 122 | AJ10: =COUNTIF(L27:L33,AI10) -> 0 | AK10: =AJ10/(AL4-AJ14) ->  | AL10: =IF(AK10=0,0,(AK10*((LOG(AK10))/LOG(2)))) ->  | AN10: =N10 -> 122 | AO10: =COUNTIF(L34:L40,AN10) -> 0 | AP10: =AO10/(AQ4-AO14) ->  | AQ10: =IF(AP10=0,0,(AP10*((LOG(AP10))/LOG(2)))) ->  | AS10: =N10 -> 122 | AT10: =COUNTIF(L41:L47,AS10) -> 0 | AU10: =AT10/(AV4-AT14) ->  | AV10: =IF(AU10=0,0,(AU10*((LOG(AU10))/LOG(2)))) -> 
A11: 21 | B11: 727 | C11: 21 | D11: 734 | E11: 21 | F11: 768 | K11: 0 | L11: 222 | N11: 211 | O11: =COUNTIF($L$7:$L$500,N11) -> 0 | P11: =O11/$Q$4 -> 0 | Q11: =IF(P11=0,0,(P11*((LOG(P11))/LOG(2)))) -> 0 | T11: =N11 -> 211 | U11: =COUNTIF(L7:L13,T11) -> 0 | V11: =U11/(W4-U14) ->  | W11: =IF(V11=0,0,(V11*((LOG(V11))/LOG(2)))) ->  | Y11: =N11 -> 211 | Z11: =COUNTIF(L14:L20,Y11) -> 0 | AA11: =Z11/(AB4-Z14) ->  | AB11: =IF(AA11=0,0,(AA11*((LOG(AA11))/LOG(2)))) ->  | AD11: =N11 -> 211 | AE11: =COUNTIF(L21:L26,AD11) -> 0 | AF11: =AE11/(AG4-AE14) -> 0 | AG11: =IF(AF11=0,0,(AF11*((LOG(AF11))/LOG(2)))) -> 0 | AI11: =N11 -> 211 | AJ11: =COUNTIF(L27:L33,AI11) -> 0 | AK11: =AJ11/(AL4-AJ14) ->  | AL11: =IF(AK11=0,0,(AK11*((LOG(AK11))/LOG(2)))) ->  | AN11: =N11 -> 211 | AO11: =COUNTIF(L34:L40,AN11) -> 0 | AP11: =AO11/(AQ4-AO14) ->  | AQ11: =IF(AP11=0,0,(AP11*((LOG(AP11))/LOG(2)))) ->  | AS11: =N11 -> 211 | AT11: =COUNTIF(L41:L47,AS11) -> 0 | AU11: =AT11/(AV4-AT14) ->  | AV11: =IF(AU11=0,0,(AU11*((LOG(AU11))/LOG(2)))) -> 
A12: 21 | B12: 867 | C12: 21 | D12: 873 | E12: 21 | F12: 889 | K12: 0 | L12: 222 | N12: 212 | O12: =COUNTIF($L$7:$L$500,N12) -> 0 | P12: =O12/$Q$4 -> 0 | Q12: =IF(P12=0,0,(P12*((LOG(P12))/LOG(2)))) -> 0 | T12: =N12 -> 212 | U12: =COUNTIF(L7:L13,T12) -> 0 | V12: =U12/(W4-U14) ->  | W12: =IF(V12=0,0,(V12*((LOG(V12))/LOG(2)))) ->  | Y12: =N12 -> 212 | Z12: =COUNTIF(L14:L20,Y12) -> 0 | AA12: =Z12/(AB4-Z14) ->  | AB12: =IF(AA12=0,0,(AA12*((LOG(AA12))/LOG(2)))) ->  | AD12: =N12 -> 212 | AE12: =COUNTIF(L21:L26,AD12) -> 0 | AF12: =AE12/(AG4-AE14) -> 0 | AG12: =IF(AF12=0,0,(AF12*((LOG(AF12))/LOG(2)))) -> 0 | AI12: =N12 -> 212 | AJ12: =COUNTIF(L27:L33,AI12) -> 0 | AK12: =AJ12/(AL4-AJ14) ->  | AL12: =IF(AK12=0,0,(AK12*((LOG(AK12))/LOG(2)))) ->  | AN12: =N12 -> 212 | AO12: =COUNTIF(L34:L40,AN12) -> 0 | AP12: =AO12/(AQ4-AO14) ->  | AQ12: =IF(AP12=0,0,(AP12*((LOG(AP12))/LOG(2)))) ->  | AS12: =N12 -> 212 | AT12: =COUNTIF(L41:L47,AS12) -> 0 | AU12: =AT12/(AV4-AT14) ->  | AV12: =IF(AU12=0,0,(AU12*((LOG(AU12))/LOG(2)))) -> 
A13: 21 | B13: 1029 | C13: 21 | D13: 1035 | E13: 21 | F13: 1041 | K13: 0 | L13: 222 | N13: 221 | O13: =COUNTIF($L$7:$L$500,N13) -> 1 | P13: =O13/$Q$4 -> 0.0243902439 | Q13: =IF(P13=0,0,(P13*((LOG(P13))/LOG(2)))) -> -0.1306720001 | T13: =N13 -> 221 | U13: =COUNTIF(L7:L13,T13) -> 0 | V13: =U13/(W4-U14) ->  | W13: =IF(V13=0,0,(V13*((LOG(V13))/LOG(2)))) ->  | Y13: =N13 -> 221 | Z13: =COUNTIF(L14:L20,Y13) -> 0 | AA13: =Z13/(AB4-Z14) ->  | AB13: =IF(AA13=0,0,(AA13*((LOG(AA13))/LOG(2)))) ->  | AD13: =N13 -> 221 | AE13: =COUNTIF(L21:L26,AD13) -> 1 | AF13: =AE13/(AG4-AE14) -> 1 | AG13: =IF(AF13=0,0,(AF13*((LOG(AF13))/LOG(2)))) -> 0 | AI13: =N13 -> 221 | AJ13: =COUNTIF(L27:L33,AI13) -> 0 | AK13: =AJ13/(AL4-AJ14) ->  | AL13: =IF(AK13=0,0,(AK13*((LOG(AK13))/LOG(2)))) ->  | AN13: =N13 -> 221 | AO13: =COUNTIF(L34:L40,AN13) -> 0 | AP13: =AO13/(AQ4-AO14) ->  | AQ13: =IF(AP13=0,0,(AP13*((LOG(AP13))/LOG(2)))) ->  | AS13: =N13 -> 221 | AT13: =COUNTIF(L41:L47,AS13) -> 0 | AU13: =AT13/(AV4-AT14) ->  | AV13: =IF(AU13=0,0,(AU13*((LOG(AU13))/LOG(2)))) -> 
A14: 21 | B14: 1264 | C14: 21 | D14: 1279 | E14: 21 | F14: 1290 | K14: 0 | L14: 222 | N14: 222 | O14: =COUNTIF($L$7:$L$500,N14) -> 40 | P14: =O14/$Q$4 -> 0.9756097561 | Q14: =IF(P14=0,0,(P14*((LOG(P14))/LOG(2)))) -> -0.03475503388 | T14: =N14 -> 222 | U14: =COUNTIF(L7:L13,T14) -> 7 | Y14: =N14 -> 222 | Z14: =COUNTIF(L14:L20,Y14) -> 7 | AD14: =N14 -> 222 | AE14: =COUNTIF(L21:L26,AD14) -> 5 | AI14: =N14 -> 222 | AJ14: =COUNTIF(L27:L33,AI14) -> 7 | AN14: =N14 -> 222 | AO14: =COUNTIF(L34:L40,AN14) -> 7 | AS14: =N14 -> 222 | AT14: =COUNTIF(L41:L47,AS14) -> 7
A15: 21 | B15: 1499 | C15: 21 | D15: 1507 | E15: 21 | F15: 1513 | K15: 0 | L15: 222 | P15: =SUM(P7:P14) -> 1 | Q15: =-SUM(Q7:Q14) -> 0.165427034 | V15: =SUM(V7:V14) ->  | W15: =-SUM(W7:W14) ->  | AA15: =SUM(AA7:AA14) ->  | AB15: =-SUM(AB7:AB14) ->  | AF15: =SUM(AF7:AF14) -> 1 | AG15: =-SUM(AG7:AG14) -> 0 | AK15: =SUM(AK7:AK14) ->  | AL15: =-SUM(AL7:AL14) ->  | AP15: =SUM(AP7:AP14) ->  | AQ15: =-SUM(AQ7:AQ14) ->  | AU15: =SUM(AU7:AU14) ->  | AV15: =-SUM(AV7:AV14) -> 
A16: 21 | B16: 1604 | C16: 21 | D16: 1676 | E16: 21 | F16: 1686 | K16: 0 | L16: 222 | P16: U= | Q16: =Q15/(LOG(Q4)/LOG(2)) -> 0.03087735478 | V16: U1= | W16: =W15/(LOG(W4)/LOG(2)) ->  | AA16: U2= | AB16: =AB15/(LOG(AB4)/LOG(2)) ->  | AF16: U3= | AG16: =AG15/(LOG(AG4)/LOG(2)) -> 0 | AK16: U4= | AL16: =AL15/(LOG(AL4)/LOG(2)) ->  | AP16: U5= | AQ16: =AQ15/(LOG(AQ4)/LOG(2)) ->  | AU16: U6= | AV16: =AV15/(LOG(AV4)/LOG(2)) -> 
A17: 21 | B17: 1787 | C17: 21 | D17: 1824 | E17: 21 | F17: 1850 | K17: 0 | L17: 222
A18: 21 | B18: 1957 | C18: 21 | D18: 1964 | E18: 21 | F18: 1984 | K18: 0 | L18: 222
A19: 21 | B19: 2095 | C19: 21 | D19: 2121 | E19: 21 | F19: 2131 | K19: 0 | L19: 222 | N19: Total Target Seq
A20: 21 | B20: 2223 | C20: 21 | D20: 2228 | E20: 21 | F20: 2239 | K20: 0 | L20: 222 | N20: =COUNTIF(L7:L47,G3) -> 40 | P20: 7 | Q20: 7 | R20: 6 | S20: 7 | T20: 7 | U20: 7
A21: 21 | B21: 2345 | C21: 21 | D21: 2355 | E21: 21 | F21: 2410 | K21: 0 | L21: 222 | P21: % of reinforcement given in 6 equal intervals based on number of trials
A22: 21 | B22: 2506 | C22: 21 | D22: 2520 | E22: 21 | F22: 2558 | K22: 0 | L22: 222 | P22: %_1 | Q22: %_2 | R22: %_3 | S22: %_4 | T22: %_5 | U22: %_6
A23: 21 | B23: 2652 | C23: 21 | D23: 2665 | E23: 12 | F23: 2726 | K23: 0 | L23: 221 | O23: target sequence | P23: =$G$3 -> 222 | Q23: =$G$3 -> 222 | R23: =$G$3 -> 222 | S23: =$G$3 -> 222 | T23: =$G$3 -> 222 | U23: =$G$3 -> 222
A24: 21 | B24: 2825 | C24: 21 | D24: 2829 | E24: 21 | F24: 2835 | K24: 0 | L24: 222 | O24: total reinforcement | P24: =U14 -> 7 | Q24: =Z14 -> 7 | R24: =AE14 -> 5 | S24: =AJ14 -> 7 | T24: =AO14 -> 7 | U24: =AT14 -> 7
A25: 21 | B25: 2967 | C25: 21 | D25: 2978 | E25: 21 | F25: 3020 | K25: 0 | L25: 222 | O25: % target
A26: 21 | B26: 3117 | C26: 21 | D26: 3143 | E26: 21 | F26: 3159 | K26: 0 | L26: 222 | O26: CCRF
A27: 21 | B27: 3252 | C27: 21 | D27: 3259 | E27: 21 | F27: 3273 | K27: 0 | L27: 222 | O27: % CCRf
A28: 21 | B28: 3388 | C28: 21 | D28: 3420 | E28: 21 | F28: 3436 | K28: 0 | L28: 222 | O28: average response rate | P28: =F13/P20 -> 148.7142857 | Q28: =(F20-F13)/Q20 -> 171.1428571 | R28: =(F26-F20)/R20 -> 153.3333333 | S28: =(F33-F26)/S20 -> 144.1428571 | T28: =(F40-F33)/T20 -> 151.7142857 | U28: =(F47-F40)/U20 -> 175.2857143
A29: 21 | B29: 3555 | C29: 21 | D29: 3563 | E29: 21 | F29: 3584 | K29: 0 | L29: 222
A30: 21 | B30: 3682 | C30: 21 | D30: 3694 | E30: 21 | F30: 3724 | K30: 0 | L30: 222
A31: 21 | B31: 3872 | C31: 21 | D31: 3883 | E31: 21 | F31: 3898 | K31: 0 | L31: 222
A32: 21 | B32: 4031 | C32: 21 | D32: 4047 | E32: 21 | F32: 4053 | K32: 0 | L32: 222
A33: 21 | B33: 4152 | C33: 21 | D33: 4158 | E33: 21 | F33: 4168 | K33: 0 | L33: 222
A34: 21 | B34: 4275 | C34: 21 | D34: 4303 | E34: 21 | F34: 4326 | K34: 0 | L34: 222
A35: 21 | B35: 4432 | C35: 21 | D35: 4438 | E35: 21 | F35: 4448 | K35: 0 | L35: 222
A36: 21 | B36: 4578 | C36: 21 | D36: 4584 | E36: 21 | F36: 4593 | K36: 0 | L36: 222
A37: 21 | B37: 4736 | C37: 21 | D37: 4775 | E37: 21 | F37: 4798 | K37: 0 | L37: 222
A38: 21 | B38: 4892 | C38: 21 | D38: 4900 | E38: 21 | F38: 4906 | K38: 0 | L38: 222
A39: 21 | B39: 5044 | C39: 21 | D39: 5056 | E39: 21 | F39: 5069 | K39: 0 | L39: 222
A40: 21 | B40: 5210 | C40: 21 | D40: 5216 | E40: 21 | F40: 5230 | K40: 0 | L40: 222
A41: 21 | B41: 5367 | C41: 21 | D41: 5374 | E41: 21 | F41: 5380 | K41: 0 | L41: 222
A42: 21 | B42: 5521 | C42: 21 | D42: 5536 | E42: 21 | F42: 5584 | K42: 0 | L42: 222
A43: 21 | B43: 5711 | C43: 21 | D43: 5737 | E43: 21 | F43: 5762 | K43: 0 | L43: 222
A44: 21 | B44: 5868 | C44: 21 | D44: 5873 | E44: 21 | F44: 5883 | K44: 0 | L44: 222
A45: 21 | B45: 6028 | C45: 21 | D45: 6068 | E45: 21 | F45: 6085 | K45: 0 | L45: 222
A46: 21 | B46: 6197 | C46: 21 | D46: 6202 | E46: 21 | F46: 6232 | K46: 0 | L46: 222
A47: 21 | B47: 6409 | C47: 21 | D47: 6415 | E47: 21 | F47: 6457 | K47: 1 | L47: 222

Sheet !M314B4I.sha
A1: Report for:!M314B4I.sha
A2: Date: | B2: <date>
A3: Hen: | B3: <hen> | F3: Correct Sequence | G3: =Start!J2 -> 222 | P3: Total Sequences in Data | Q3: =4994-COUNTBLANK(L7:L5000) -> 41 | V3: Total Sequences in Block Data | W3: =COUNTA(L7:L13) -> 7 | AA3: Total Sequences in Block Data | AB3: =COUNTA(L14:L20) -> 7 | AF3: Total Sequences in Block Data | AG3: =COUNTA(L21:L26) -> 6 | AK3: Total Sequences in Block Data | AL3: =COUNTA(L27:L33) -> 7 | AP3: Total Sequences in Block Data | AQ3: =COUNTA(L34:L40) -> 7 | AU3: Total Sequences in Block Data | AV3: =COUNTA(L41:L47) -> 7
P4: Total Sequences in Summary | Q4: =SUM(O7:O14) -> 41 | V4: Total Sequences in Block Summary | W4: =SUM(U7:U14) -> 7 | AA4: Total Sequences in Block Summary | AB4: =SUM(Z7:Z14) -> 7 | AF4: Total Sequences in Block Summary | AG4: =SUM(AE7:AE14) -> 6 | AK4: Total Sequences in Block Summary | AL4: =SUM(AJ7:AJ14) -> 7 | AP4: Total Sequences in Block Summary | AQ4: =SUM(AO7:AO14) -> 7 | AU4: Total Sequences in Block Summary | AV4: =SUM(AT7:AT14) -> 7
T5: Block 1 | Y5: Block 2 | AD5: Block 3 | AI5: Block 4 | AN5: Block 5 | AS5: Block 6
A6: Sequence Component 1 | B6: Time 1 | C6: Sequence Component 2 | D6: Time 2 | E6: Sequence Component 3 | F6: Time 3 | G6: Sequence Component 4 | H6: Time 4 | I6: Sequence Component 5 | J6: Time 5 | K6: Correct? 0=No 1=Yes | L6: Sequence | N6: Frequency | P6: Relative Frequency | Q6: Variability | T6: Frequency | V6: Relative Frequency | W6: Variability | Y6: Frequency | AA6: Relative Frequency | AB6: Variability | AD6: Frequency | AF6: Relative Frequency | AG6: Variability | AI6: Frequency | AK6: Relative Frequency | AL6: Variability | AN6: Frequency | AP6: Relative Frequency | AQ6: Variability | AS6: Frequency | AU6: Relative Frequency | AV6: Variability
A7: 12 | B7: 27 | C7: 23 | D7: 39 | E7: 23 | F7: 41 | K7: 0 | L7: 122 | N7: 111 | O7: =COUNTIF($L$7:$L$500,N7) -> 0 | P7: =O7/$Q$4 -> 0 | Q7: =IF(P7=0,0,(P7*((LOG(P7))/LOG(2)))) -> 0 | T7: =N7 -> 111 | U7: =COUNTIF(L7:L13,T7) -> 0 | V7: =U7/(W4-U14) -> 0 | W7: =IF(V7=0,0,(V7*((LOG(V7))/LOG(2)))) -> 0 | Y7: =N7 -> 111 | Z7: =COUNTIF(L14:L20,Y7) -> 0 | AA7: =Z7/(AB4-Z14) ->  | AB7: =IF(AA7=0,0,(AA7*((LOG(AA7))/LOG(2)))) ->  | AD7: =N7 -> 111 | AE7: =COUNTIF(L21:L26,AD7) -> 0 | AF7: =AE7/(AG4-AE14) ->  | AG7: =IF(AF7=0,0,(AF7*((LOG(AF7))/LOG(2)))) ->  | AI7: =N7 -> 111 | AJ7: =COUNTIF(L27:L33,AI7) -> 0 | AK7: =AJ7/(AL4-AJ14) ->  | AL7: =IF(AK7=0,0,(AK7*((LOG(AK7))/LOG(2)))) ->  | AN7: =N7 -> 111 | AO7: =COUNTIF(L34:L40,AN7) -> 0 | AP7: =AO7/(AQ4-AO14) ->  | AQ7: =IF(AP7=0,0,(AP7*((LOG(AP7))/LOG(2)))) ->  | AS7: =N7 -> 111 | AT7: =COUNTIF(L41:L47,AS7) -> 0 | AU7: =AT7/(AV4-AT14) ->  | AV7: =IF(AU7=0,0,(AU7*((LOG(AU7))/LOG(2)))) -> 
A8: 21 | B8: 153 | C8: 21 | D8: 163 | E8: 21 | F8: 170 | K8: 0 | L8: 222 | N8: 112 | O8: =COUNTIF($L$7:$L$500,N8) -> 0 | P8: =O8/$Q$4 -> 0 | Q8: =IF(P8=0,0,(P8*((LOG(P8))/LOG(2)))) -> 0 | T8: =N8 -> 112 | U8: =COUNTIF(L7:L13,T8) -> 0 | V8: =U8/(W4-U14) -> 0 | W8: =IF(V8=0,0,(V8*((LOG(V8))/LOG(2)))) -> 0 | Y8: =N8 -> 112 | Z8: =COUNTIF(L14:L20,Y8) -> 0 | AA8: =Z8/(AB4-Z14) ->  | AB8: =IF(AA8=0,0,(AA8*((LOG(AA8))/LOG(2)))) ->  | AD8: =N8 -> 112 | AE8: =COUNTIF(L21:L26,AD8) -> 0 | AF8: =AE8/(AG4-AE14) ->  | AG8: =IF(AF8=0,0,(AF8*((LOG(AF8))/LOG(2)))) ->  | AI8: =N8 -> 112 | AJ8: =COUNTIF(L27:L33,AI8) -> 0 | AK8: =AJ8/(AL4-AJ14) ->  | AL8: =IF(AK8=0,0,(AK8*((LOG(AK8))/LOG(2)))) ->  | AN8: =N8 -> 112 | AO8: =COUNTIF(L34:L40,AN8) -> 0 | AP8: =AO8/(AQ4-AO14) ->  | AQ8: =IF(AP8=0,0,(AP8*((LOG(AP8))/LOG(2)))) ->  | AS8: =N8 -> 112 | AT8: =COUNTIF(L41:L47,AS8) -> 0 | AU8: =AT8/(AV4-AT14) ->  | AV8: =IF(AU8=0,0,(AU8*((LOG(AU8))/LOG(2)))) -> 
A9: 21 | B9: 358 | C9: 21 | D9: 373 | E9: 21 | F9: 420 | K9: 0 | L9: 222 | N9: 121 | O9: =COUNTIF($L$7:$L$500,N9) -> 0 | P9: =O9/$Q$4 -> 0 | Q9: =IF(P9=0,0,(P9*((LOG(P9))/LOG(2)))) -> 0 | T9: =N9 -> 121 | U9: =COUNTIF(L7:L13,T9) -> 0 | V9: =U9/(W4-U14) -> 0 | W9: =IF(V9=0,0,(V9*((LOG(V9))/LOG(2)))) -> 0 | Y9: =N9 -> 121 | Z9: =COUNTIF(L14:L20,Y9) -> 0 | AA9: =Z9/(AB4-Z14) ->  | AB9: =IF(AA9=0,0,(AA9*((LOG(AA9))/LOG(2)))) ->  | AD9: =N9 -> 121 | AE9: =COUNTIF(L21:L26,AD9) -> 0 | AF9: =AE9/(AG4-AE14) ->  | AG9: =IF(AF9=0,0,(AF9*((LOG(AF9))/LOG(2)))) ->  | AI9: =N9 -> 121 | AJ9: =COUNTIF(L27:L33,AI9) -> 0 | AK9: =AJ9/(AL4-AJ14) ->  | AL9: =IF(AK9=0,0,(AK9*((LOG(AK9))/LOG(2)))) ->  | AN9: =N9 -> 121 | AO9: =COUNTIF(L34:L40,AN9) -> 0 | AP9: =AO9/(AQ4-AO14) ->  | AQ9: =IF(AP9=0,0,(AP9*((LOG(AP9))/LOG(2)))) ->  | AS9: =N9 -> 121 | AT9: =COUNTIF(L41:L47,AS9) -> 0 | AU9: =AT9/(AV4-AT14) ->  | AV9: =IF(AU9=0,0,(AU9*((LOG(AU9))/LOG(2)))) -> 
A10: 21 | B10: 567 | C10: 21 | D10: 616 | E10: 21 | F10: 640 | K10: 0 | L10: 222 | N10: 122 | O10: =COUNTIF($L$7:$L$500,N10) -> 1 | P10: =O10/$Q$4 -> 0.0243902439 | Q10: =IF(P10=0,0,(P10*((LOG(P10))/LOG(2)))) -> -0.1306720001 | T10: =N10 -> 122 | U10: =COUNTIF(L7:L13,T10) -> 1 | V10: =U10/(W4-U14) -> 1 | W10: =IF(V10=0,0,(V10*((LOG(V10))/LOG(2)))) -> 0 | Y10: =N10 -> 122 | Z10: =COUNTIF(L14:L20,Y10) -> 0 | AA10: =Z10/(AB4-Z14) ->  | AB10: =IF(AA10=0,0,(AA10*((LOG(AA10))/LOG(2)))) ->  | AD10: =N10 -> 122 | AE10: =COUNTIF(L21:L26,AD10) -> 0 | AF10: =AE10/(AG4-AE14) ->  | AG10: =IF(AF10=0,0,(AF10*((LOG(AF10))/LOG(2)))) ->  | AI10: =N10 -> 122 | AJ10: =COUNTIF(L27:L33,AI10) -> 0 | AK10: =AJ10/(AL4-AJ14) ->  | AL10: =IF(AK10=0,0,(AK10*((LOG(AK10))/LOG(2)))) ->  | AN10: =N10 -> 122 | AO10: =COUNTIF(L34:L40,AN10) -> 0 | AP10: =AO10/(AQ4-AO14) ->  | AQ10: =IF(AP10=0,0,(AP10*((LOG(AP10))/LOG(2)))) ->  | AS10: =N10 -> 122 | AT10: =COUNTIF(L41:L47,AS10) -> 0 | AU10: =AT10/(AV4-AT14) ->  | AV10: =IF(AU10=0,0,(AU10*((LOG(AU10))/LOG(2)))) -> 
A11: 21 | B11: 773 | C11: 21 | D11: 778 | E11: 21 | F11: 813 | K11: 0 | L11: 222 | N11: 211 | O11: =COUNTIF($L$7:$L$500,N11) -> 0 | P11: =O11/$Q$4 -> 0 | Q11: =IF(P11=0,0,(P11*((LOG(P11))/LOG(2)))) -> 0 | T11: =N11 -> 211 | U11: =COUNTIF(L7:L13,T11) -> 0 | V11: =U11/(W4-U14) -> 0 | W11: =IF(V11=0,0,(V11*((LOG(V11))/LOG(2)))) -> 0 | Y11: =N11 -> 211 | Z11: =COUNTIF(L14:L20,Y11) -> 0 | AA11: =Z11/(AB4-Z14) ->  | AB11: =IF(AA11=0,0,(AA11*((LOG(AA11))/LOG(2)))) ->  | AD11: =N11 -> 211 | AE11: =COUNTIF(L21:L26,AD11) -> 0 | AF11: =AE11/(AG4-AE14) ->  | AG11: =IF(AF11=0,0,(AF11*((LOG(AF11))/LOG(2)))) ->  | AI11: =N11 -> 211 | AJ11: =COUNTIF(L27:L33,AI11) -> 0 | AK11: =AJ11/(AL4-AJ14) ->  | AL11: =IF(AK11=0,0,(AK11*((LOG(AK11))/LOG(2)))) ->  | AN11: =N11 -> 211 | AO11: =COUNTIF(L34:L40,AN11) -> 0 | AP11: =AO11/(AQ4-AO14) ->  | AQ11: =IF(AP11=0,0,(AP11*((LOG(AP11))/LOG(2)))) ->  | AS11: =N11 -> 211 | AT11: =COUNTIF(L41:L47,AS11) -> 0 | AU11: =AT11/(AV4-AT14) ->  | AV11: =IF(AU11=0,0,(AU11*((LOG(AU11))/LOG(2)))) -> 
A12: 21 | B12: 929 | C12: 21 | D12: 935 | E12: 21 | F12: 985 | K12: 0 | L12: 222 | N12: 212 | O12: =COUNTIF($L$7:$L$500,N12) -> 0 | P12: =O12/$Q$4 -> 0 | Q12: =IF(P12=0,0,(P12*((LOG(P12))/LOG(2)))) -> 0 | T12: =N12 -> 212 | U12: =COUNTIF(L7:L13,T12) -> 0 | V12: =U12/(W4-U14) -> 0 | W12: =IF(V12=0,0,(V12*((LOG(V12))/LOG(2)))) -> 0 | Y12: =N12 -> 212 | Z12: =COUNTIF(L14:L20,Y12) -> 0 | AA12: =Z12/(AB4-Z14) ->  | AB12: =IF(AA12=0,0,(AA12*((LOG(AA12))/LOG(2)))) ->  | AD12: =N12 -> 212 | AE12: =COUNTIF(L21:L26,AD12) -> 0 | AF12: =AE12/(AG4-AE14) ->  | AG12: =IF(AF12=0,0,(AF12*((LOG(AF12))/LOG(2)))) ->  | AI12: =N12 -> 212 | AJ12: =COUNTIF(L27:L33,AI12) -> 0 | AK12: =AJ12/(AL4-AJ14) ->  | AL12: =IF(AK12=0,0,(AK12*((LOG(AK12))/LOG(2)))) ->  | AN12: =N12 -> 212 | AO12: =COUNTIF(L34:L40,AN12) -> 0 | AP12: =AO12/(AQ4-AO14) ->  | AQ12: =IF(AP12=0,0,(AP12*((LOG(AP12))/LOG(2)))) ->  | AS12: =N12 -> 212 | AT12: =COUNTIF(L41:L47,AS12) -> 0 | AU12: =AT12/(AV4-AT14) ->  | AV12: =IF(AU12=0,0,(AU12*((LOG(AU12))/LOG(2)))) -> 
A13: 21 | B13: 1102 | C13: 21 | D13: 1125 | E13: 21 | F13: 1138 | K13: 0 | L13: 222 | N13: 221 | O13: =COUNTIF($L$7:$L$500,N13) -> 0 | P13: =O13/$Q$4 -> 0 | Q13: =IF(P13=0,0,(P13*((LOG(P13))/LOG(2)))) -> 0 | T13: =N13 -> 221 | U13: =COUNTIF(L7:L13,T13) -> 0 | V13: =U13/(W4-U14) -> 0 | W13: =IF(V13=0,0,(V13*((LOG(V13))/LOG(2)))) -> 0 | Y13: =N13 -> 221 | Z13: =COUNTIF(L14:L20,Y13) -> 0 | AA13: =Z13/(AB4-Z14) ->  | AB13: =IF(AA13=0,0,(AA13*((LOG(AA13))/LOG(2)))) ->  | AD13: =N13 -> 221 | AE13: =COUNTIF(L21:L26,AD13) -> 0 | AF13: =AE13/(AG4-AE14) ->  | AG13: =IF(AF13=0,0,(AF13*((LOG(AF13))/LOG(2)))) ->  | AI13: =N13 -> 221 | AJ13: =COUNTIF(L27:L33,AI13) -> 0 | AK13: =AJ13/(AL4-AJ14) ->  | AL13: =IF(AK13=0,0,(AK13*((LOG(AK13))/LOG(2)))) ->  | AN13: =N13 -> 221 | AO13: =COUNTIF(L34:L40,AN13) -> 0 | AP13: =AO13/(AQ4-AO14) ->  | AQ13: =IF(AP13=0,0,(AP13*((LOG(AP13))/LOG(2)))) ->  | AS13: =N13 -> 221 | AT13: =COUNTIF(L41:L47,AS13) -> 0 | AU13: =AT13/(AV4-AT14) ->  | AV13: =IF(AU13=0,0,(AU13*((LOG(AU13))/LOG(2)))) -> 
A14: 21 | B14: 1287 | C14: 21 | D14: 1298 | E14: 21 | F14: 1331 | K14: 0 | L14: 222 | N14: 222 | O14: =COUNTIF($L$7:$L$500,N14) -> 40 | P14: =O14/$Q$4 -> 0.9756097561 | Q14: =IF(P14=0,0,(P14*((LOG(P14))/LOG(2)))) -> -0.03475503388 | T14: =N14 -> 222 | U14: =COUNTIF(L7:L13,T14) -> 6 | Y14: =N14 -> 222 | Z14: =COUNTIF(L14:L20,Y14) -> 7 | AD14: =N14 -> 222 | AE14: =COUNTIF(L21:L26,AD14) -> 6 | AI14: =N14 -> 222 | AJ14: =COUNTIF(L27:L33,AI14) -> 7 | AN14: =N14 -> 222 | AO14: =COUNTIF(L34:L40,AN14) -> 7 | AS14: =N14 -> 222 | AT14: =COUNTIF(L41:L47,AS14) -> 7
A15: 21 | B15: 1447 | C15: 21 | D15: 1453 | E15: 21 | F15: 1459 | K15: 0 | L15: 222 | P15: =SUM(P7:P14) -> 1 | Q15: =-SUM(Q7:Q14) -> 0.165427034 | V15: =SUM(V7:V14) -> 1 | W15: =-SUM(W7:W14) -> 0 | AA15: =SUM(AA7:AA14) ->  | AB15: =-SUM(AB7:AB14) ->  | AF15: =SUM(AF7:AF14) ->  | AG15: =-SUM(AG7:AG14) ->  | AK15: =SUM(AK7:AK14) ->  | AL15: =-SUM(AL7:AL14) ->  | AP15: =SUM(AP7:AP14) ->  | AQ15: =-SUM(AQ7:AQ14) ->  | AU15: =SUM(AU7:AU14) ->  | AV15: =-SUM(AV7:AV14) -> 
A16: 21 | B16: 1566 | C16: 21 | D16: 1586 | E16: 21 | F16: 1595 | K16: 0 | L16: 222 | P16: U= | Q16: =Q15/(LOG(Q4)/LOG(2)) -> 0.03087735478 | V16: U1= | W16: =W15/(LOG(W4)/LOG(2)) -> 0 | AA16: U2= | AB16: =AB15/(LOG(AB4)/LOG(2)) ->  | AF16: U3= | AG16: =AG15/(LOG(AG4)/LOG(2)) ->  | AK16: U4= | AL16: =AL15/(LOG(AL4)/LOG(2)) ->  | AP16: U5= | AQ16: =AQ15/(LOG(AQ4)/LOG(2)) ->  | AU16: U6= | AV16: =AV15/(LOG(AV4)/LOG(2)) -> 
A17: 21 | B17: 1692 | C17: 21 | D17: 1698 | E17: 21 | F17: 1705 | K17: 0 | L17: 222
A18: 21 | B18: 1856 | C18: 21 | D18: 1881 | E18: 21 | F18: 1896 | K18: 0 | L18: 222
A19: 21 | B19: 2004 | C19: 21 | D19: 2021 | E19: 21 | F19: 2041 | K19: 0 | L19: 222 | N19: Total Target Seq
A20: 21 | B20: 2139 | C20: 21 | D20: 2147 | E20: 21 | F20: 2154 | K20: 0 | L20: 222 | N20: =COUNTIF(L7:L47,G3) -> 40 | P20: 7 | Q20: 7 | R20: 6 | S20: 7 | T20: 7 | U20: 7
A21: 21 | B21: 2249 | C21: 21 | D21: 2261 | E21: 21 | F21: 2270 | K21: 0 | L21: 222 | P21: % of reinforcement given in 6 equal intervals based on number of trials
A22: 21 | B22: 2381 | C22: 21 | D22: 2422 | E22: 21 | F22: 2432 | K22: 0 | L22: 222 | P22: %_1 | Q22: %_2 | R22: %_3 | S22: %_4 | T22: %_5 | U22: %_6
A23: 21 | B23: 2562 | C23: 21 | D23: 2573 | E23: 21 | F23: 2609 | K23: 0 | L23: 222 | O23: target sequence | P23: =$G$3 -> 222 | Q23: =$G$3 -> 222 | R23: =$G$3 -> 222 | S23: =$G$3 -> 222 | T23: =$G$3 -> 222 | U23: =$G$3 -> 222
A24: 21 | B24: 2702 | C24: 21 | D24: 2708 | E24: 21 | F24: 2735 | K24: 0 | L24: 222 | O24: total reinforcement | P24: =U14 -> 6 | Q24: =Z14 -> 7 | R24: =AE14 -> 6 | S24: =AJ14 -> 7 | T24: =AO14 -> 7 | U24: =AT14 -> 7
A25: 21 | B25: 2858 | C25: 21 | D25: 2864 | E25: 21 | F25: 2871 | K25: 0 | L25: 222 | O25: % target
A26: 21 | B26: 3040 | C26: 21 | D26: 3052 | E26: 21 | F26: 3064 | K26: 0 | L26: 222 | O26: CCRF
A27: 21 | B27: 3157 | C27: 21 | D27: 3168 | E27: 21 | F27: 3180 | K27: 0 | L27: 222 | O27: % CCRf
A28: 21 | B28: 3282 | C28: 21 | D28: 3288 | E28: 21 | F28: 3300 | K28: 0 | L28: 222 | O28: average response rate | P28: =F13/P20 -> 162.5714286 | Q28: =(F20-F13)/Q20 -> 145.1428571 | R28: =(F26-F20)/R20 -> 151.6666667 | S28: =(F33-F26)/S20 -> 141.5714286 | T28: =(F40-F33)/T20 -> 143.5714286 | U28: =(F47-F40)/U20 -> 160.7142857
A29: 21 | B29: 3396 | C29: 21 | D29: 3432 | E29: 21 | F29: 3448 | K29: 0 | L29: 222
A30: 21 | B30: 3597 | C30: 21 | D30: 3611 | E30: 21 | F30: 3649 | K30: 0 | L30: 222
A31: 21 | B31: 3777 | C31: 21 | D31: 3783 | E31: 21 | F31: 3795 | K31: 0 | L31: 222
A32: 21 | B32: 3891 | C32: 21 | D32: 3915 | E32: 21 | F32: 3930 | K32: 0 | L32: 222
A33: 21 | B33: 4032 | C33: 21 | D33: 4044 | E33: 21 | F33: 4055 | K33: 0 | L33: 222
A34: 21 | B34: 4219 | C34: 21 | D34: 4225 | E34: 21 | F34: 4231 | K34: 0 | L34: 222
A35: 21 | B35: 4349 | C35: 21 | D35: 4353 | E35: 21 | F35: 4359 | K35: 0 | L35: 222
A36: 21 | B36: 4452 | C36: 21 | D36: 4459 | E36: 21 | F36: 4466 | K36: 0 | L36: 222
A37: 21 | B37: 4562 | C37: 21 | D37: 4567 | E37: 21 | F37: 4574 | K37: 0 | L37: 222
A38: 21 | B38: 4760 | C38: 21 | D38: 4806 | E38: 21 | F38: 4845 | K38: 0 | L38: 222
A39: 21 | B39: 4938 | C39: 21 | D39: 4945 | E39: 21 | F39: 4951 | K39: 0 | L39: 222
A40: 21 | B40: 5043 | C40: 21 | D40: 5048 | E40: 21 | F40: 5060 | K40: 0 | L40: 222
A41: 21 | B41: 5170 | C41: 21 | D41: 5175 | E41: 21 | F41: 5183 | K41: 0 | L41: 222
A42: 21 | B42: 5291 | C42: 21 | D42: 5326 | E42: 21 | F42: 5340 | K42: 0 | L42: 222
A43: 21 | B43: 5450 | C43: 21 | D43: 5510 | E43: 21 | F43: 5540 | K43: 0 | L43: 222
A44: 21 | B44: 5637 | C44: 21 | D44: 5648 | E44: 21 | F44: 5670 | K44: 0 | L44: 222
A45: 21 | B45: 5793 | C45: 21 | D45: 5801 | E45: 21 | F45: 5821 | K45: 0 | L45: 222
A46: 21 | B46: 6028 | C46: 21 | D46: 6046 | E46: 21 | F46: 6054 | K46: 0 | L46: 222
A47: 21 | B47: 6152 | C47: 21 | D47: 6175 | E47: 21 | F47: 6185 | K47: 1 | L47: 222

Sheet !M315A4I.sha
A1: Report for:!M315A4I.sha
A2: Date: | B2: <date>
A3: Hen: | B3: <hen> | F3: Correct Sequence | G3: =Start!J2 -> 222 | P3: Total Sequences in Data | Q3: =4994-COUNTBLANK(L7:L5000) -> 41 | V3: Total Sequences in Block Data | W3: =COUNTA(L7:L13) -> 7 | AA3: Total Sequences in Block Data | AB3: =COUNTA(L14:L20) -> 7 | AF3: Total Sequences in Block Data | AG3: =COUNTA(L21:L26) -> 6 | AK3: Total Sequences in Block Data | AL3: =COUNTA(L27:L33) -> 7 | AP3: Total Sequences in Block Data | AQ3: =COUNTA(L34:L40) -> 7 | AU3: Total Sequences in Block Data | AV3: =COUNTA(L41:L47) -> 7
P4: Total Sequences in Summary | Q4: =SUM(O7:O14) -> 41 | V4: Total Sequences in Block Summary | W4: =SUM(U7:U14) -> 7 | AA4: Total Sequences in Block Summary | AB4: =SUM(Z7:Z14) -> 7 | AF4: Total Sequences in Block Summary | AG4: =SUM(AE7:AE14) -> 6 | AK4: Total Sequences in Block Summary | AL4: =SUM(AJ7:AJ14) -> 7 | AP4: Total Sequences in Block Summary | AQ4: =SUM(AO7:AO14) -> 7 | AU4: Total Sequences in Block Summary | AV4: =SUM(AT7:AT14) -> 7
T5: Block 1 | Y5: Block 2 | AD5: Block 3 | AI5: Block 4 | AN5: Block 5 | AS5: Block 6
A6: Sequence Component 1 | B6: Time 1 | C6: Sequence Component 2 | D6: Time 2 | E6: Sequence Component 3 | F6: Time 3 | G6: Sequence Component 4 | H6: Time 4 | I6: Sequence Component 5 | J6: Time 5 | K6: Correct? 0=No 1=Yes | L6: Sequence | N6: Frequency | P6: Relative Frequency | Q6: Variability | T6: Frequency | V6: Relative Frequency | W6: Variability | Y6: Frequency | AA6: Relative Frequency | AB6: Variability | AD6: Frequency | AF6: Relative Frequency | AG6: Variability | AI6: Frequency | AK6: Relative Frequency | AL6: Variability | AN6: Frequency | AP6: Relative Frequency | AQ6: Variability | AS6: Frequency | AU6: Relative Frequency | AV6: Variability
A7: 21 | B7: 8 | C7: 12 | D7: 19 | E7: 23 | F7: 42 | K7: 0 | L7: 212 | N7: 111 | O7: =COUNTIF($L$7:$L$500,N7) -> 0 | P7: =O7/$Q$4 -> 0 | Q7: =IF(P7=0,0,(P7*((LOG(P7))/LOG(2)))) -> 0 | T7: =N7 -> 111 | U7: =COUNTIF(L7:L13,T7) -> 0 | V7: =U7/(W4-U14) -> 0 | W7: =IF(V7=0,0,(V7*((LOG(V7))/LOG(2)))) -> 0 | Y7: =N7 -> 111 | Z7: =COUNTIF(L14:L20,Y7) -> 0 | AA7: =Z7/(AB4-Z14) ->  | AB7: =IF(AA7=0,0,(AA7*((LOG(AA7))/LOG(2)))) ->  | AD7: =N7 -> 111 | AE7: =COUNTIF(L21:L26,AD7) -> 0 | AF7: =AE7/(AG4-AE14) ->  | AG7: =IF(AF7=0,0,(AF7*((LOG(AF7))/LOG(2)))) ->  | AI7: =N7 -> 111 | AJ7: =COUNTIF(L27:L33,AI7) -> 0 | AK7: =AJ7/(AL4-AJ14) ->  | AL7: =IF(AK7=0,0,(AK7*((LOG(AK7))/LOG(2)))) ->  | AN7: =N7 -> 111 | AO7: =COUNTIF(L34:L40,AN7) -> 0 | AP7: =AO7/(AQ4-AO14) ->  | AQ7: =IF(AP7=0,0,(AP7*((LOG(AP7))/LOG(2)))) ->  | AS7: =N7 -> 111 | AT7: =COUNTIF(L41:L47,AS7) -> 0 | AU7: =AT7/(AV4-AT14) ->  | AV7: =IF(AU7=0,0,(AU7*((LOG(AU7))/LOG(2)))) -> 
A8: 21 | B8: 142 | C8: 21 | D8: 146 | E8: 21 | F8: 193 | K8: 0 | L8: 222 | N8: 112 | O8: =COUNTIF($L$7:$L$500,N8) -> 0 | P8: =O8/$Q$4 -> 0 | Q8: =IF(P8=0,0,(P8*((LOG(P8))/LOG(2)))) -> 0 | T8: =N8 -> 112 | U8: =COUNTIF(L7:L13,T8) -> 0 | V8: =U8/(W4-U14) -> 0 | W8: =IF(V8=0,0,(V8*((LOG(V8))/LOG(2)))) -> 0 | Y8: =N8 -> 112 | Z8: =COUNTIF(L14:L20,Y8) -> 0 | AA8: =Z8/(AB4-Z14) ->  | AB8: =IF(AA8=0,0,(AA8*((LOG(AA8))/LOG(2)))) ->  | AD8: =N8 -> 112 | AE8: =COUNTIF(L21:L26,AD8) -> 0 | AF8: =AE8/(AG4-AE14) ->  | AG8: =IF(AF8=0,0,(AF8*((LOG(AF8))/LOG(2)))) ->  | AI8: =N8 -> 112 | AJ8: =COUNTIF(L27:L33,AI8) -> 0 | AK8: =AJ8/(AL4-AJ14) ->  | AL8: =IF(AK8=0,0,(AK8*((LOG(AK8))/LOG(2)))) ->  | AN8: =N8 -> 112 | AO8: =COUNTIF(L34:L40,AN8) -> 0 | AP8: =AO8/(AQ4-AO14) ->  | AQ8: =IF(AP8=0,0,(AP8*((LOG(AP8))/LOG(2)))) ->  | AS8: =N8 -> 112 | AT8: =COUNTIF(L41:L47,AS8) -> 0 | AU8: =AT8/(AV4-AT14) ->  | AV8: =IF(AU8=0,0,(AU8*((LOG(AU8))/LOG(2)))) -> 
A9: 21 | B9: 312 | C9: 21 | D9: 357 | E9: 21 | F9: 372 | K9: 0 | L9: 222 | N9: 121 | O9: =COUNTIF($L$7:$L$500,N9) -> 0 | P9: =O9/$Q$4 -> 0 | Q9: =IF(P9=0,0,(P9*((LOG(P9))/LOG(2)))) -> 0 | T9: =N9 -> 121 | U9: =COUNTIF(L7:L13,T9) -> 0 | V9: =U9/(W4-U14) -> 0 | W9: =IF(V9=0,0,(V9*((LOG(V9))/LOG(2)))) -> 0 | Y9: =N9 -> 121 | Z9: =COUNTIF(L14:L20,Y9) -> 0 | AA9: =Z9/(AB4-Z14) ->  | AB9: =IF(AA9=0,0,(AA9*((LOG(AA9))/LOG(2)))) ->  | AD9: =N9 -> 121 | AE9: =COUNTIF(L21:L26,AD9) -> 0 | AF9: =AE9/(AG4-AE14) ->  | AG9: =IF(AF9=0,0,(AF9*((LOG(AF9))/LOG(2)))) ->  | AI9: =N9 -> 121 | AJ9: =COUNTIF(L27:L33,AI9) -> 0 | AK9: =AJ9/(AL4-AJ14) ->  | AL9: =IF(AK9=0,0,(AK9*((LOG(AK9))/LOG(2)))) ->  | AN9: =N9 -> 121 | AO9: =COUNTIF(L34:L40,AN9) -> 0 | AP9: =AO9/(AQ4-AO14) ->  | AQ9: =IF(AP9=0,0,(AP9*((LOG(AP9))/LOG(2)))) ->  | AS9: =N9 -> 121 | AT9: =COUNTIF(L41:L47,AS9) -> 0 | AU9: =AT9/(AV4-AT14) ->  | AV9: =IF(AU9=0,0,(AU9*((LOG(AU9))/LOG(2)))) -> 
A10: 21 | B10: 465 | C10: 21 | D10: 467 | E10: 21 | F10: 506 | K10: 0 | L10: 222 | N10: 122 | O10: =COUNTIF($L$7:$L$500,N10) -> 0 | P10: =O10/$Q$4 -> 0 | Q10: =IF(P10=0,0,(P10*((LOG(P10))/LOG(2)))) -> 0 | T10: =N10 -> 122 | U10: =COUNTIF(L7:L13,T10) -> 0 | V10: =U10/(W4-U14) -> 0 | W10: =IF(V10=0,0,(V10*((LOG(V10))/LOG(2)))) -> 0 | Y10: =N10 -> 122 | Z10: =COUNTIF(L14:L20,Y10) -> 0 | AA10: =Z10/(AB4-Z14) ->  | AB10: =IF(AA10=0,0,(AA10*((LOG(AA10))/LOG(2)))) ->  | AD10: =N10 -> 122 | AE10: =COUNTIF(L21:L26,AD10) -> 0 | AF10: =AE10/(AG4-AE14) ->  | AG10: =IF(AF10=0,0,(AF10*((LOG(AF10))/LOG(2)))) ->  | AI10: =N10 -> 122 | AJ10: =COUNTIF(L27:L33,AI10) -> 0 | AK10: =AJ10/(AL4-AJ14) ->  | AL10: =IF(AK10=0,0,(AK10*((LOG(AK10))/LOG(2)))) ->  | AN10: =N10 -> 122 | AO10: =COUNTIF(L34:L40,AN10) -> 0 | AP10: =AO10/(AQ4-AO14) ->  | AQ10: =IF(AP10=0,0,(AP10*((LOG(AP10))/LOG(2)))) ->  | AS10: =N10 -> 122 | AT10: =COUNTIF(L41:L47,AS10) -> 0 | AU10: =AT10/(AV4-AT14) ->  | AV10: =IF(AU10=0,0,(AU10*((LOG(AU10))/LOG(2)))) -> 
A11: 21 | B11: 628 | C11: 21 | D11: 682 | E11: 21 | F11: 693 | K11: 0 | L11: 222 | N11: 211 | O11: =COUNTIF($L$7:$L$500,N11) -> 0 | P11: =O11/$Q$4 -> 0 | Q11: =IF(P11=0,0,(P11*((LOG(P11))/LOG(2)))) -> 0 | T11: =N11 -> 211 | U11: =COUNTIF(L7:L13,T11) -> 0 | V11: =U11/(W4-U14) -> 0 | W11: =IF(V11=0,0,(V11*((LOG(V11))/LOG(2)))) -> 0 | Y11: =N11 -> 211 | Z11: =COUNTIF(L14:L20,Y11) -> 0 | AA11: =Z11/(AB4-Z14) ->  | AB11: =IF(AA11=0,0,(AA11*((LOG(AA11))/LOG(2)))) ->  | AD11: =N11 -> 211 | AE11: =COUNTIF(L21:L26,AD11) -> 0 | AF11: =AE11/(AG4-AE14) ->  | AG11: =IF(AF11=0,0,(AF11*((LOG(AF11))/LOG(2)))) ->  | AI11: =N11 -> 211 | AJ11: =COUNTIF(L27:L33,AI11) -> 0 | AK11: =AJ11/(AL4-AJ14) ->  | AL11: =IF(AK11=0,0,(AK11*((LOG(AK11))/LOG(2)))) ->  | AN11: =N11 -> 211 | AO11: =COUNTIF(L34:L40,AN11) -> 0 | AP11: =AO11/(AQ4-AO14) ->  | AQ11: =IF(AP11=0,0,(AP11*((LOG(AP11))/LOG(2)))) ->  | AS11: =N11 -> 211 | AT11: =COUNTIF(L41:L47,AS11) -> 0 | AU11: =AT11/(AV4-AT14) ->  | AV11: =IF(AU11=0,0,(AU11*((LOG(AU11))/LOG(2)))) -> 
A12: 21 | B12: 786 | C12: 21 | D12: 799 | E12: 21 | F12: 807 | K12: 0 | L12: 222 | N12: 212 | O12: =COUNTIF($L$7:$L$500,N12) -> 1 | P12: =O12/$Q$4 -> 0.0243902439 | Q12: =IF(P12=0,0,(P12*((LOG(P12))/LOG(2)))) -> -0.1306720001 | T12: =N12 -> 212 | U12: =COUNTIF(L7:L13,T12) -> 1 | V12: =U12/(W4-U14) -> 1 | W12: =IF(V12=0,0,(V12*((LOG(V12))/LOG(2)))) -> 0 | Y12: =N12 -> 212 | Z12: =COUNTIF(L14:L20,Y12) -> 0 | AA12: =Z12/(AB4-Z14) ->  | AB12: =IF(AA12=0,0,(AA12*((LOG(AA12))/LOG(2)))) ->  | AD12: =N12 -> 212 | AE12: =COUNTIF(L21:L26,AD12) -> 0 | AF12: =AE12/(AG4-AE14) ->  | AG12: =IF(AF12=0,0,(AF12*((LOG(AF12))/LOG(2)))) ->  | AI12: =N12 -> 212 | AJ12: =COUNTIF(L27:L33,AI12) -> 0 | AK12: =AJ12/(AL4-AJ14) ->  | AL12: =IF(AK12=0,0,(AK12*((LOG(AK12))/LOG(2)))) ->  | AN12: =N12 -> 212 | AO12: =COUNTIF(L34:L40,AN12) -> 0 | AP12: =AO12/(AQ4-AO14) ->  | AQ12: =IF(AP12=0,0,(AP12*((LOG(AP12))/LOG(2)))) ->  | AS12: =N12 -> 212 | AT12: =COUNTIF(L41:L47,AS12) -> 0 | AU12: =AT12/(AV4-AT14) ->  | AV12: =IF(AU12=0,0,(AU12*((LOG(AU12))/LOG(2)))) -> 
A13: 21 | B13: 912 | C13: 21 | D13: 930 | E13: 21 | F13: 939 | K13: 0 | L13: 222 | N13: 221 | O13: =COUNTIF($L$7:$L$500,N13) -> 0 | P13: =O13/$Q$4 -> 0 | Q13: =IF(P13=0,0,(P13*((LOG(P13))/LOG(2)))) -> 0 | T13: =N13 -> 221 | U13: =COUNTIF(L7:L13,T13) -> 0 | V13: =U13/(W4-U14) -> 0 | W13: =IF(V13=0,0,(V13*((LOG(V13))/LOG(2)))) -> 0 | Y13: =N13 -> 221 | Z13: =COUNTIF(L14:L20,Y13) -> 0 | AA13: =Z13/(AB4-Z14) ->  | AB13: =IF(AA13=0,0,(AA13*((LOG(AA13))/LOG(2)))) ->  | AD13: =N13 -> 221 | AE13: =COUNTIF(L21:L26,AD13) -> 0 | AF13: =AE13/(AG4-AE14) ->  | AG13: =IF(AF13=0,0,(AF13*((LOG(AF13))/LOG(2)))) ->  | AI13: =N13 -> 221 | AJ13: =COUNTIF(L27:L33,AI13) -> 0 | AK13: =AJ13/(AL4-AJ14) ->  | AL13: =IF(AK13=0,0,(AK13*((LOG(AK13))/LOG(2)))) ->  | AN13: =N13 -> 221 | AO13: =COUNTIF(L34:L40,AN13) -> 0 | AP13: =AO13/(AQ4-AO14) ->  | AQ13: =IF(AP13=0,0,(AP13*((LOG(AP13))/LOG(2)))) ->  | AS13: =N13 -> 221 | AT13: =COUNTIF(L41:L47,AS13) -> 0 | AU13: =AT13/(AV4-AT14) ->  | AV13: =IF(AU13=0,0,(AU13*((LOG(AU13))/LOG(2)))) -> 
A14: 21 | B14: 1048 | C14: 21 | D14: 1058 | E14: 21 | F14: 1067 | K14: 0 | L14: 222 | N14: 222 | O14: =COUNTIF($L$7:$L$500,N14) -> 40 | P14: =O14/$Q$4 -> 0.9756097561 | Q14: =IF(P14=0,0,(P14*((LOG(P14))/LOG(2)))) -> -0.03475503388 | T14: =N14 -> 222 | U14: =COUNTIF(L7:L13,T14) -> 6 | Y14: =N14 -> 222 | Z14: =COUNTIF(L14:L20,Y14) -> 7 | AD14: =N14 -> 222 | AE14: =COUNTIF(L21:L26,AD14) -> 6 | AI14: =N14 -> 222 | AJ14: =COUNTIF(L27:L33,AI14) -> 7 | AN14: =N14 -> 222 | AO14: =COUNTIF(L34:L40,AN14) -> 7 | AS14: =N14 -> 222 | AT14: =COUNTIF(L41:L47,AS14) -> 7
A15: 21 | B15: 1159 | C15: 21 | D15: 1173 | E15: 21 | F15: 1202 | K15: 0 | L15: 222 | P15: =SUM(P7:P14) -> 1 | Q15: =-SUM(Q7:Q14) -> 0.165427034 | V15: =SUM(V7:V14) -> 1 | W15: =-SUM(W7:W14) -> 0 | AA15: =SUM(AA7:AA14) ->  | AB15: =-SUM(AB7:AB14) ->  | AF15: =SUM(AF7:AF14) ->  | AG15: =-SUM(AG7:AG14) ->  | AK15: =SUM(AK7:AK14) ->  | AL15: =-SUM(AL7:AL14) ->  | AP15: =SUM(AP7:AP14) ->  | AQ15: =-SUM(AQ7:AQ14) ->  | AU15: =SUM(AU7:AU14) ->  | AV15: =-SUM(AV7:AV14) -> 
A16: 21 | B16: 1314 | C16: 21 | D16: 1317 | E16: 21 | F16: 1323 | K16: 0 | L16: 222 | P16: U= | Q16: =Q15/(LOG(Q4)/LOG(2)) -> 0.03087735478 | V16: U1= | W16: =W15/(LOG(W4)/LOG(2)) -> 0 | AA16: U2= | AB16: =AB15/(LOG(AB4)/LOG(2)) ->  | AF16: U3= | AG16: =AG15/(LOG(AG4)/LOG(2)) ->  | AK16: U4= | AL16: =AL15/(LOG(AL4)/LOG(2)) ->  | AP16: U5= | AQ16: =AQ15/(LOG(AQ4)/LOG(2)) ->  | AU16: U6= | AV16: =AV15/(LOG(AV4)/LOG(2)) -> 
A17: 21 | B17: 1422 | C17: 21 | D17: 1428 | E17: 21 | F17: 1452 | K17: 0 | L17: 222
A18: 21 | B18: 1565 | C18: 21 | D18: 1586 | E18: 21 | F18: 1613 | K18: 0 | L18: 222
A19: 21 | B19: 1740 | C19: 21 | D19: 1748 | E19: 21 | F19: 1753 | K19: 0 | L19: 222 | N19: Total Target Seq
A20: 21 | B20: 1899 | C20: 21 | D20: 1911 | E20: 21 | F20: 1923 | K20: 0 | L20: 222 | N20: =COUNTIF(L7:L47,G3) -> 40 | P20: 7 | Q20: 7 | R20: 6 | S20: 7 | T20: 7 | U20: 7
A21: 21 | B21: 2056 | C21: 21 | D21: 2061 | E21: 21 | F21: 2067 | K21: 0 | L21: 222 | P21: % of reinforcement given in 6 equal intervals based on number of trials
A22: 21 | B22: 2171 | C22: 21 | D22: 2201 | E22: 21 | F22: 2219 | K22: 0 | L22: 222 | P22: %_1 | Q22: %_2 | R22: %_3 | S22: %_4 | T22: %_5 | U22: %_6
A23: 21 | B23: 2383 | C23: 21 | D23: 2390 | E23: 21 | F23: 2404 | K23: 0 | L23: 222 | O23: target sequence | P23: =$G$3 -> 222 | Q23: =$G$3 -> 222 | R23: =$G$3 -> 222 | S23: =$G$3 -> 222 | T23: =$G$3 -> 222 | U23: =$G$3 -> 222
A24: 21 | B24: 2540 | C24: 21 | D24: 2548 | E24: 21 | F24: 2557 | K24: 0 | L24: 222 | O24: total reinforcement | P24: =U14 -> 6 | Q24: =Z14 -> 7 | R24: =AE14 -> 6 | S24: =AJ14 -> 7 | T24: =AO14 -> 7 | U24: =AT14 -> 7
A25: 21 | B25: 2720 | C25: 21 | D25: 2740 | E25: 21 | F25: 2763 | K25: 0 | L25: 222 | O25: % target
A26: 21 | B26: 2858 | C26: 21 | D26: 2863 | E26: 21 | F26: 2870 | K26: 0 | L26: 222 | O26: CCRF
A27: 21 | B27: 2970 | C27: 21 | D27: 2977 | E27: 21 | F27: 2986 | K27: 0 | L27: 222 | O27: % CCRf
A28: 21 | B28: 3136 | C28: 21 | D28: 3199 | E28: 21 | F28: 3210 | K28: 0 | L28: 222 | O28: average response rate | P28: =F13/P20 -> 134.1428571 | Q28: =(F20-F13)/Q20 -> 140.5714286 | R28: =(F26-F20)/R20 -> 157.8333333 | S28: =(F33-F26)/S20 -> 148.8571429 | T28: =(F40-F33)/T20 -> 153.5714286 | U28: =(F47-F40)/U20 -> 159.1428571
A29: 21 | B29: 3304 | C29: 21 | D29: 3311 | E29: 21 | F29: 3319 | K29: 0 | L29: 222
A30: 21 | B30: 3439 | C30: 21 | D30: 3444 | E30: 21 | F30: 3463 | K30: 0 | L30: 222
A31: 21 | B31: 3556 | C31: 21 | D31: 3562 | E31: 21 | F31: 3570 | K31: 0 | L31: 222
A32: 21 | B32: 3672 | C32: 21 | D32: 3718 | E32: 21 | F32: 3738 | K32: 0 | L32: 222
A33: 21 | B33: 3862 | C33: 21 | D33: 3883 | E33: 21 | F33: 3912 | K33: 0 | L33: 222
A34: 21 | B34: 4081 | C34: 21 | D34: 4086 | E34: 21 | F34: 4099 | K34: 0 | L34: 222
A35: 21 | B35: 4195 | C35: 21 | D35: 4205 | E35: 21 | F35: 4221 | K35: 0 | L35: 222
A36: 21 | B36: 4313 | C36: 21 | D36: 4319 | E36: 21 | F36: 4334 | K36: 0 | L36: 222
A37: 21 | B37: 4462 | C37: 21 | D37: 4473 | E37: 21 | F37: 4494 | K37: 0 | L37: 222
A38: 21 | B38: 4589 | C38: 21 | D38: 4595 | E38: 21 | F38: 4614 | K38: 0 | L38: 222
A39: 21 | B39: 4819 | C39: 21 | D39: 4822 | E39: 21 | F39: 4838 | K39: 0 | L39: 222
A40: 21 | B40: 4952 | C40: 21 | D40: 4976 | E40: 21 | F40: 4987 | K40: 0 | L40: 222
A41: 21 | B41: 5089 | C41: 21 | D41: 5097 | E41: 21 | F41: 5114 | K41: 0 | L41: 222
A42: 21 | B42: 5207 | C42: 21 | D42: 5219 | E42: 21 | F42: 5278 | K42: 0 | L42: 222
A43: 21 | B43: 5407 | C43: 21 | D43: 5423 | E43: 21 | F43: 5440 | K43: 0 | L43: 222
A44: 21 | B44: 5558 | C44: 21 | D44: 5605 | E44: 21 | F44: 5632 | K44: 0 | L44: 222
A45: 21 | B45: 5766 | C45: 21 | D45: 5778 | E45: 21 | F45: 5786 | K45: 0 | L45: 222
A46: 21 | B46: 5930 | C46: 21 | D46: 5936 | E46: 21 | F46: 5946 | K46: 0 | L46: 222
A47: 21 | B47: 6071 | C47: 21 | D47: 6080 | E47: 21 | F47: 6101 | K47: 1 | L47: 222

Sheet !M316A5I.sha
A1: Report for:!M316A5I.sha
A2: Date: | B2: <date>
A3: Hen: | B3: <hen> | F3: Correct Sequence | G3: =Start!J2 -> 222 | P3: Total Sequences in Data | Q3: =4994-COUNTBLANK(L7:L5000) -> 41 | V3: Total Sequences in Block Data | W3: =COUNTA(L7:L13) -> 7 | AA3: Total Sequences in Block Data | AB3: =COUNTA(L14:L20) -> 7 | AF3: Total Sequences in Block Data | AG3: =COUNTA(L21:L26) -> 6 | AK3: Total Sequences in Block Data | AL3: =COUNTA(L27:L33) -> 7 | AP3: Total Sequences in Block Data | AQ3: =COUNTA(L34:L40) -> 7 | AU3: Total Sequences in Block Data | AV3: =COUNTA(L41:L47) -> 7
P4: Total Sequences in Summary | Q4: =SUM(O7:O14) -> 41 | V4: Total Sequences in Block Summary | W4: =SUM(U7:U14) -> 7 | AA4: Total Sequences in Block Summary | AB4: =SUM(Z7:Z14) -> 7 | AF4: Total Sequences in Block Summary | AG4: =SUM(AE7:AE14) -> 6 | AK4: Total Sequences in Block Summary | AL4: =SUM(AJ7:AJ14) -> 7 | AP4: Total Sequences in Block Summary | AQ4: =SUM(AO7:AO14) -> 7 | AU4: Total Sequences in Block Summary | AV4: =SUM(AT7:AT14) -> 7
T5: Block 1 | Y5: Block 2 | AD5: Block 3 | AI5: Block 4 | AN5: Block 5 | AS5: Block 6
A6: Sequence Component 1 | B6: Time 1 | C6: Sequence Component 2 | D6: Time 2 | E6: Sequence Component 3 | F6: Time 3 | G6: Sequence Component 4 | H6: Time 4 | I6: Sequence Component 5 | J6: Time 5 | K6: Correct? 0=No 1=Yes | L6: Sequence | N6: Frequency | P6: Relative Frequency | Q6: Variability | T6: Frequency | V6: Relative Frequency | W6: Variability | Y6: Frequency | AA6: Relative Frequency | AB6: Variability | AD6: Frequency | AF6: Relative Frequency | AG6: Variability | AI6: Frequency | AK6: Relative Frequency | AL6: Variability | AN6: Frequency | AP6: Relative Frequency | AQ6: Variability | AS6: Frequency | AU6: Relative Frequency | AV6: Variability
A7: 21 | B7: 10 | C7: 12 | D7: 23 | E7: 23 | F7: 38 | K7: 0 | L7: 212 | N7: 111 | O7: =COUNTIF($L$7:$L$500,N7) -> 0 | P7: =O7/$Q$4 -> 0 | Q7: =IF(P7=0,0,(P7*((LOG(P7))/LOG(2)))) -> 0 | T7: =N7 -> 111 | U7: =COUNTIF(L7:L13,T7) -> 0 | V7: =U7/(W4-U14) -> 0 | W7: =IF(V7=0,0,(V7*((LOG(V7))/LOG(2)))) -> 0 | Y7: =N7 -> 111 | Z7: =COUNTIF(L14:L20,Y7) -> 0 | AA7: =Z7/(AB4-Z14) ->  | AB7: =IF(AA7=0,0,(AA7*((LOG(AA7))/LOG(2)))) ->  | AD7: =N7 -> 111 | AE7: =COUNTIF(L21:L26,AD7) -> 0 | AF7: =AE7/(AG4-AE14) ->  | AG7: =IF(AF7=0,0,(AF7*((LOG(AF7))/LOG(2)))) ->  | AI7: =N7 -> 111 | AJ7: =COUNTIF(L27:L33,AI7) -> 0 | AK7: =AJ7/(AL4-AJ14) ->  | AL7: =IF(AK7=0,0,(AK7*((LOG(AK7))/LOG(2)))) ->  | AN7: =N7 -> 111 | AO7: =COUNTIF(L34:L40,AN7) -> 0 | AP7: =AO7/(AQ4-AO14) ->  | AQ7: =IF(AP7=0,0,(AP7*((LOG(AP7))/LOG(2)))) ->  | AS7: =N7 -> 111 | AT7: =COUNTIF(L41:L47,AS7) -> 0 | AU7: =AT7/(AV4-AT14) ->  | AV7: =IF(AU7=0,0,(AU7*((LOG(AU7))/LOG(2)))) -> 
A8: 21 | B8: 133 | C8: 21 | D8: 141 | E8: 21 | F8: 149 | K8: 0 | L8: 222 | N8: 112 | O8: =COUNTIF($L$7:$L$500,N8) -> 0 | P8: =O8/$Q$4 -> 0 | Q8: =IF(P8=0,0,(P8*((LOG(P8))/LOG(2)))) -> 0 | T8: =N8 -> 112 | U8: =COUNTIF(L7:L13,T8) -> 0 | V8: =U8/(W4-U14) -> 0 | W8: =IF(V8=0,0,(V8*((LOG(V8))/LOG(2)))) -> 0 | Y8: =N8 -> 112 | Z8: =COUNTIF(L14:L20,Y8) -> 0 | AA8: =Z8/(AB4-Z14) ->  | AB8: =IF(AA8=0,0,(AA8*((LOG(AA8))/LOG(2)))) ->  | AD8: =N8 -> 112 | AE8: =COUNTIF(L21:L26,AD8) -> 0 | AF8: =AE8/(AG4-AE14) ->  | AG8: =IF(AF8=0,0,(AF8*((LOG(AF8))/LOG(2)))) ->  | AI8: =N8 -> 112 | AJ8: =COUNTIF(L27:L33,AI8) -> 0 | AK8: =AJ8/(AL4-AJ14) ->  | AL8: =IF(AK8=0,0,(AK8*((LOG(AK8))/LOG(2)))) ->  | AN8: =N8 -> 112 | AO8: =COUNTIF(L34:L40,AN8) -> 0 | AP8: =AO8/(AQ4-AO14) ->  | AQ8: =IF(AP8=0,0,(AP8*((LOG(AP8))/LOG(2)))) ->  | AS8: =N8 -> 112 | AT8: =COUNTIF(L41:L47,AS8) -> 0 | AU8: =AT8/(AV4-AT14) ->  | AV8: =IF(AU8=0,0,(AU8*((LOG(AU8))/LOG(2)))) -> 
A9: 21 | B9: 297 | C9: 21 | D9: 307 | E9: 21 | F9: 348 | K9: 0 | L9: 222 | N9: 121 | O9: =COUNTIF($L$7:$L$500,N9) -> 0 | P9: =O9/$Q$4 -> 0 | Q9: =IF(P9=0,0,(P9*((LOG(P9))/LOG(2)))) -> 0 | T9: =N9 -> 121 | U9: =COUNTIF(L7:L13,T9) -> 0 | V9: =U9/(W4-U14) -> 0 | W9: =IF(V9=0,0,(V9*((LOG(V9))/LOG(2)))) -> 0 | Y9: =N9 -> 121 | Z9: =COUNTIF(L14:L20,Y9) -> 0 | AA9: =Z9/(AB4-Z14) ->  | AB9: =IF(AA9=0,0,(AA9*((LOG(AA9))/LOG(2)))) ->  | AD9: =N9 -> 121 | AE9: =COUNTIF(L21:L26,AD9) -> 0 | AF9: =AE9/(AG4-AE14) ->  | AG9: =IF(AF9=0,0,(AF9*((LOG(AF9))/LOG(2)))) ->  | AI9: =N9 -> 121 | AJ9: =COUNTIF(L27:L33,AI9) -> 0 | AK9: =AJ9/(AL4-AJ14) ->  | AL9: =IF(AK9=0,0,(AK9*((LOG(AK9))/LOG(2)))) ->  | AN9: =N9 -> 121 | AO9: =COUNTIF(L34:L40,AN9) -> 0 | AP9: =AO9/(AQ4-AO14) ->  | AQ9: =IF(AP9=0,0,(AP9*((LOG(AP9))/LOG(2)))) ->  | AS9: =N9 -> 121 | AT9: =COUNTIF(L41:L47,AS9) -> 0 | AU9: =AT9/(AV4-AT14) ->  | AV9: =IF(AU9=0,0,(AU9*((LOG(AU9))/LOG(2)))) -> 
A10: 21 | B10: 448 | C10: 21 | D10: 483 | E10: 21 | F10: 504 | K10: 0 | L10: 222 | N10: 122 | O10: =COUNTIF($L$7:$L$500,N10) -> 0 | P10: =O10/$Q$4 -> 0 | Q10: =IF(P10=0,0,(P10*((LOG(P10))/LOG(2)))) -> 0 | T10: =N10 -> 122 | U10: =COUNTIF(L7:L13,T10) -> 0 | V10: =U10/(W4-U14) -> 0 | W10: =IF(V10=0,0,(V10*((LOG(V10))/LOG(2)))) -> 0 | Y10: =N10 -> 122 | Z10: =COUNTIF(L14:L20,Y10) -> 0 | AA10: =Z10/(AB4-Z14) ->  | AB10: =IF(AA10=0,0,(AA10*((LOG(AA10))/LOG(2)))) ->  | AD10: =N10 -> 122 | AE10: =COUNTIF(L21:L26,AD10) -> 0 | AF10: =AE10/(AG4-AE14) ->  | AG10: =IF(AF10=0,0,(AF10*((LOG(AF10))/LOG(2)))) ->  | AI10: =N10 -> 122 | AJ10: =COUNTIF(L27:L33,AI10) -> 0 | AK10: =AJ10/(AL4-AJ14) ->  | AL10: =IF(AK10=0,0,(AK10*((LOG(AK10))/LOG(2)))) ->  | AN10: =N10 -> 122 | AO10: =COUNTIF(L34:L40,AN10) -> 0 | AP10: =AO10/(AQ4-AO14) ->  | AQ10: =IF(AP10=0,0,(AP10*((LOG(AP10))/LOG(2)))) ->  | AS10: =N10 -> 122 | AT10: =COUNTIF(L41:L47,AS10) -> 0 | AU10: =AT10/(AV4-AT14) ->  | AV10: =IF(AU10=0,0,(AU10*((LOG(AU10))/LOG(2)))) -> 
A11: 21 | B11: 647 | C11: 21 | D11: 665 | E11: 21 | F11: 678 | K11: 0 | L11: 222 | N11: 211 | O11: =COUNTIF($L$7:$L$500,N11) -> 0 | P11: =O11/$Q$4 -> 0 | Q11: =IF(P11=0,0,(P11*((LOG(P11))/LOG(2)))) -> 0 | T11: =N11 -> 211 | U11: =COUNTIF(L7:L13,T11) -> 0 | V11: =U11/(W4-U14) -> 0 | W11: =IF(V11=0,0,(V11*((LOG(V11))/LOG(2)))) -> 0 | Y11: =N11 -> 211 | Z11: =COUNTIF(L14:L20,Y11) -> 0 | AA11: =Z11/(AB4-Z14) ->  | AB11: =IF(AA11=0,0,(AA11*((LOG(AA11))/LOG(2)))) ->  | AD11: =N11 -> 211 | AE11: =COUNTIF(L21:L26,AD11) -> 0 | AF11: =AE11/(AG4-AE14) ->  | AG11: =IF(AF11=0,0,(AF11*((LOG(AF11))/LOG(2)))) ->  | AI11: =N11 -> 211 | AJ11: =COUNTIF(L27:L33,AI11) -> 0 | AK11: =AJ11/(AL4-AJ14) ->  | AL11: =IF(AK11=0,0,(AK11*((LOG(AK11))/LOG(2)))) ->  | AN11: =N11 -> 211 | AO11: =COUNTIF(L34:L40,AN11) -> 0 | AP11: =AO11/(AQ4-AO14) ->  | AQ11: =IF(AP11=0,0,(AP11*((LOG(AP11))/LOG(2)))) ->  | AS11: =N11 -> 211 | AT11: =COUNTIF(L41:L47,AS11) -> 0 | AU11: =AT11/(AV4-AT14) ->  | AV11: =IF(AU11=0,0,(AU11*((LOG(AU11))/LOG(2)))) -> 
A12: 21 | B12: 800 | C12: 21 | D12: 811 | E12: 21 | F12: 821 | K12: 0 | L12: 222 | N12: 212 | O12: =COUNTIF($L$7:$L$500,N12) -> 1 | P12: =O12/$Q$4 -> 0.0243902439 | Q12: =IF(P12=0,0,(P12*((LOG(P12))/LOG(2)))) -> -0.1306720001 | T12: =N12 -> 212 | U12: =COUNTIF(L7:L13,T12) -> 1 | V12: =U12/(W4-U14) -> 1 | W12: =IF(V12=0,0,(V12*((LOG(V12))/LOG(2)))) -> 0 | Y12: =N12 -> 212 | Z12: =COUNTIF(L14:L20,Y12) -> 0 | AA12: =Z12/(AB4-Z14) ->  | AB12: =IF(AA12=0,0,(AA12*((LOG(AA12))/LOG(2)))) ->  | AD12: =N12 -> 212 | AE12: =COUNTIF(L21:L26,AD12) -> 0 | AF12: =AE12/(AG4-AE14) ->  | AG12: =IF(AF12=0,0,(AF12*((LOG(AF12))/LOG(2)))) ->  | AI12: =N12 -> 212 | AJ12: =COUNTIF(L27:L33,AI12) -> 0 | AK12: =AJ12/(AL4-AJ14) ->  | AL12: =IF(AK12=0,0,(AK12*((LOG(AK12))/LOG(2)))) ->  | AN12: =N12 -> 212 | AO12: =COUNTIF(L34:L40,AN12) -> 0 | AP12: =AO12/(AQ4-AO14) ->  | AQ12: =IF(AP12=0,0,(AP12*((LOG(AP12))/LOG(2)))) ->  | AS12: =N12 -> 212 | AT12: =COUNTIF(L41:L47,AS12) -> 0 | AU12: =AT12/(AV4-AT14) ->  | AV12: =IF(AU12=0,0,(AU12*((LOG(AU12))/LOG(2)))) -> 
A13: 21 | B13: 940 | C13: 21 | D13: 950 | E13: 21 | F13: 974 | K13: 0 | L13: 222 | N13: 221 | O13: =COUNTIF($L$7:$L$500,N13) -> 0 | P13: =O13/$Q$4 -> 0 | Q13: =IF(P13=0,0,(P13*((LOG(P13))/LOG(2)))) -> 0 | T13: =N13 -> 221 | U13: =COUNTIF(L7:L13,T13) -> 0 | V13: =U13/(W4-U14) -> 0 | W13: =IF(V13=0,0,(V13*((LOG(V13))/LOG(2)))) -> 0 | Y13: =N13 -> 221 | Z13: =COUNTIF(L14:L20,Y13) -> 0 | AA13: =Z13/(AB4-Z14) ->  | AB13: =IF(AA13=0,0,(AA13*((LOG(AA13))/LOG(2)))) ->  | AD13: =N13 -> 221 | AE13: =COUNTIF(L21:L26,AD13) -> 0 | AF13: =AE13/(AG4-AE14) ->  | AG13: =IF(AF13=0,0,(AF13*((LOG(AF13))/LOG(2)))) ->  | AI13: =N13 -> 221 | AJ13: =COUNTIF(L27:L33,AI13) -> 0 | AK13: =AJ13/(AL4-AJ14) ->  | AL13: =IF(AK13=0,0,(AK13*((LOG(AK13))/LOG(2)))) ->  | AN13: =N13 -> 221 | AO13: =COUNTIF(L34:L40,AN13) -> 0 | AP13: =AO13/(AQ4-AO14) ->  | AQ13: =IF(AP13=0,0,(AP13*((LOG(AP13))/LOG(2)))) ->  | AS13: =N13 -> 221 | AT13: =COUNTIF(L41:L47,AS13) -> 0 | AU13: =AT13/(AV4-AT14) ->  | AV13: =IF(AU13=0,0,(AU13*((LOG(AU13))/LOG(2)))) -> 
A14: 21 | B14: 1148 | C14: 21 | D14: 1158 | E14: 21 | F14: 1164 | K14: 0 | L14: 222 | N14: 222 | O14: =COUNTIF($L$7:$L$500,N14) -> 40 | P14: =O14/$Q$4 -> 0.9756097561 | Q14: =IF(P14=0,0,(P14*((LOG(P14))/LOG(2)))) -> -0.03475503388 | T14: =N14 -> 222 | U14: =COUNTIF(L7:L13,T14) -> 6 | Y14: =N14 -> 222 | Z14: =COUNTIF(L14:L20,Y14) -> 7 | AD14: =N14 -> 222 | AE14: =COUNTIF(L21:L26,AD14) -> 6 | AI14: =N14 -> 222 | AJ14: =COUNTIF(L27:L33,AI14) -> 7 | AN14: =N14 -> 222 | AO14: =COUNTIF(L34:L40,AN14) -> 7 | AS14: =N14 -> 222 | AT14: =COUNTIF(L41:L47,AS14) -> 7
A15: 21 | B15: 1262 | C15: 21 | D15: 1269 | E15: 21 | F15: 1287 | K15: 0 | L15: 222 | P15: =SUM(P7:P14) -> 1 | Q15: =-SUM(Q7:Q14) -> 0.165427034 | V15: =SUM(V7:V14) -> 1 | W15: =-SUM(W7:W14) -> 0 | AA15: =SUM(AA7:AA14) ->  | AB15: =-SUM(AB7:AB14) ->  | AF15: =SUM(AF7:AF14) ->  | AG15: =-SUM(AG7:AG14) ->  | AK15: =SUM(AK7:AK14) ->  | AL15: =-SUM(AL7:AL14) ->  | AP15: =SUM(AP7:AP14) ->  | AQ15: =-SUM(AQ7:AQ14) ->  | AU15: =SUM(AU7:AU14) ->  | AV15: =-SUM(AV7:AV14) -> 
A16: 21 | B16: 1390 | C16: 21 | D16: 1415 | E16: 21 | F16: 1425 | K16: 0 | L16: 222 | P16: U= | Q16: =Q15/(LOG(Q4)/LOG(2)) -> 0.03087735478 | V16: U1= | W16: =W15/(LOG(W4)/LOG(2)) -> 0 | AA16: U2= | AB16: =AB15/(LOG(AB4)/LOG(2)) ->  | AF16: U3= | AG16: =AG15/(LOG(AG4)/LOG(2)) ->  | AK16: U4= | AL16: =AL15/(LOG(AL4)/LOG(2)) ->  | AP16: U5= | AQ16: =AQ15/(LOG(AQ4)/LOG(2)) ->  | AU16: U6= | AV16: =AV15/(LOG(AV4)/LOG(2)) -> 
A17: 21 | B17: 1517 | C17: 21 | D17: 1522 | E17: 21 | F17: 1529 | K17: 0 | L17: 222
A18: 21 | B18: 1634 | C18: 21 | D18: 1670 | E18: 21 | F18: 1689 | K18: 0 | L18: 222
A19: 21 | B19: 1789 | C19: 21 | D19: 1795 | E19: 21 | F19: 1802 | K19: 0 | L19: 222 | N19: Total Target Seq
A20: 21 | B20: 1918 | C20: 21 | D20: 1924 | E20: 21 | F20: 1957 | K20: 0 | L20: 222 | N20: =COUNTIF(L7:L47,G3) -> 40 | P20: 7 | Q20: 7 | R20: 6 | S20: 7 | T20: 7 | U20: 7
A21: 21 | B21: 2065 | C21: 21 | D21: 2085 | E21: 21 | F21: 2095 | K21: 0 | L21: 222 | P21: % of reinforcement given in 6 equal intervals based on number of trials
A22: 21 | B22: 2193 | C22: 21 | D22: 2199 | E22: 21 | F22: 2211 | K22: 0 | L22: 222 | P22: %_1 | Q22: %_2 | R22: %_3 | S22: %_4 | T22: %_5 | U22: %_6
A23: 21 | B23: 2321 | C23: 21 | D23: 2336 | E23: 21 | F23: 2350 | K23: 0 | L23: 222 | O23: target sequence | P23: =$G$3 -> 222 | Q23: =$G$3 -> 222 | R23: =$G$3 -> 222 | S23: =$G$3 -> 222 | T23: =$G$3 -> 222 | U23: =$G$3 -> 222
A24: 21 | B24: 2463 | C24: 21 | D24: 2469 | E24: 21 | F24: 2475 | K24: 0 | L24: 222 | O24: total reinforcement | P24: =U14 -> 6 | Q24: =Z14 -> 7 | R24: =AE14 -> 6 | S24: =AJ14 -> 7 | T24: =AO14 -> 7 | U24: =AT14 -> 7
A25: 21 | B25: 2579 | C25: 21 | D25: 2585 | E25: 21 | F25: 2591 | K25: 0 | L25: 222 | O25: % target
A26: 21 | B26: 2694 | C26: 21 | D26: 2700 | E26: 21 | F26: 2747 | K26: 0 | L26: 222 | O26: CCRF
A27: 21 | B27: 2842 | C27: 21 | D27: 2855 | E27: 21 | F27: 2866 | K27: 0 | L27: 222 | O27: % CCRf
A28: 21 | B28: 3008 | C28: 21 | D28: 3013 | E28: 21 | F28: 3019 | K28: 0 | L28: 222 | O28: average response rate | P28: =F13/P20 -> 139.1428571 | Q28: =(F20-F13)/Q20 -> 140.4285714 | R28: =(F26-F20)/R20 -> 131.6666667 | S28: =(F33-F26)/S20 -> 156 | T28: =(F40-F33)/T20 -> 135.5714286 | U28: =(F47-F40)/U20 -> 166.2857143
A29: 21 | B29: 3225 | C29: 21 | D29: 3230 | E29: 21 | F29: 3292 | K29: 0 | L29: 222
A30: 21 | B30: 3401 | C30: 21 | D30: 3415 | E30: 21 | F30: 3425 | K30: 0 | L30: 222
A31: 21 | B31: 3529 | C31: 21 | D31: 3535 | E31: 21 | F31: 3558 | K31: 0 | L31: 222
A32: 21 | B32: 3665 | C32: 21 | D32: 3671 | E32: 21 | F32: 3697 | K32: 0 | L32: 222
A33: 21 | B33: 3810 | C33: 21 | D33: 3819 | E33: 21 | F33: 3839 | K33: 0 | L33: 222
A34: 21 | B34: 3955 | C34: 21 | D34: 3961 | E34: 21 | F34: 3967 | K34: 0 | L34: 222
A35: 21 | B35: 4081 | C35: 21 | D35: 4106 | E35: 21 | F35: 4130 | K35: 0 | L35: 222
A36: 21 | B36: 4238 | C36: 21 | D36: 4255 | E36: 21 | F36: 4264 | K36: 0 | L36: 222
A37: 21 | B37: 4361 | C37: 21 | D37: 4371 | E37: 21 | F37: 4380 | K37: 0 | L37: 222
A38: 21 | B38: 4495 | C38: 21 | D38: 4501 | E38: 21 | F38: 4507 | K38: 0 | L38: 222
A39: 21 | B39: 4641 | C39: 21 | D39: 4664 | E39: 21 | F39: 4679 | K39: 0 | L39: 222
A40: 21 | B40: 4771 | C40: 21 | D40: 4781 | E40: 21 | F40: 4788 | K40: 0 | L40: 222
A41: 21 | B41: 4921 | C41: 21 | D41: 4927 | E41: 21 | F41: 4948 | K41: 0 | L41: 222
A42: 21 | B42: 5061 | C42: 21 | D42: 5067 | E42: 21 | F42: 5073 | K42: 0 | L42: 222
A43: 21 | B43: 5257 | C43: 21 | D43: 5273 | E43: 21 | F43: 5336 | K43: 0 | L43: 222
A44: 21 | B44: 5439 | C44: 21 | D44: 5444 | E44: 21 | F44: 5450 | K44: 0 | L44: 222
A45: 21 | B45: 5564 | C45: 21 | D45: 5572 | E45: 21 | F45: 5579 | K45: 0 | L45: 222
A46: 21 | B46: 5727 | C46: 21 | D46: 5734 | E46: 21 | F46: 5763 | K46: 0 | L46: 222
A47: 21 | B47: 5914 | C47: 21 | D47: 5929 | E47: 21 | F47: 5952 | K47: 1 | L47: 222

Sheet !M317B2I.sha
A1: Report for:!M317B2I.sha
A2: Date: | B2: <date>
A3: Hen: | B3: <hen> | F3: Correct Sequence | G3: =Start!J2 -> 222 | P3: Total Sequences in Data | Q3: =4994-COUNTBLANK(L7:L5000) -> 42 | V3: Total Sequences in Block Data | W3: =COUNTA(L7:L13) -> 7 | AA3: Total Sequences in Block Data | AB3: =COUNTA(L14:L20) -> 7 | AF3: Total Sequences in Block Data | AG3: =COUNTA(L21:L27) -> 7 | AK3: Total Sequences in Block Data | AL3: =COUNTA(L28:L34) -> 7 | AP3: Total Sequences in Block Data | AQ3: =COUNTA(L35:L41) -> 7 | AU3: Total Sequences in Block Data | AV3: =COUNTA(L42:L48) -> 7
P4: Total Sequences in Summary | Q4: =SUM(O7:O14) -> 42 | V4: Total Sequences in Block Summary | W4: =SUM(U7:U14) -> 7 | AA4: Total Sequences in Block Summary | AB4: =SUM(Z7:Z14) -> 7 | AF4: Total Sequences in Block Summary | AG4: =SUM(AE7:AE14) -> 7 | AK4: Total Sequences in Block Summary | AL4: =SUM(AJ7:AJ14) -> 7 | AP4: Total Sequences in Block Summary | AQ4: =SUM(AO7:AO14) -> 7 | AU4: Total Sequences in Block Summary | AV4: =SUM(AT7:AT14) -> 7
T5: Block 1 | Y5: Block 2 | AD5: Block 3 | AI5: Block 4 | AN5: Block 5 | AS5: Block 6
A6: Sequence Component 1 | B6: Time 1 | C6: Sequence Component 2 | D6: Time 2 | E6: Sequence Component 3 | F6: Time 3 | G6: Sequence Component 4 | H6: Time 4 | I6: Sequence Component 5 | J6: Time 5 | K6: Correct? 0=No 1=Yes | L6: Sequence | N6: Frequency | P6: Relative Frequency | Q6: Variability | T6: Frequency | V6: Relative Frequency | W6: Variability | Y6: Frequency | AA6: Relative Frequency | AB6: Variability | AD6: Frequency | AF6: Relative Frequency | AG6: Variability | AI6: Frequency | AK6: Relative Frequency | AL6: Variability | AN6: Frequency | AP6: Relative Frequency | AQ6: Variability | AS6: Frequency | AU6: Relative Frequency | AV6: Variability
A7: 21 | B7: 7 | C7: 21 | D7: 9 | E7: 21 | F7: 13 | K7: 0 | L7: 222 | N7: 111 | O7: =COUNTIF($L$7:$L$500,N7) -> 0 | P7: =O7/$Q$4 -> 0 | Q7: =IF(P7=0,0,(P7*((LOG(P7))/LOG(2)))) -> 0 | T7: =N7 -> 111 | U7: =COUNTIF(L7:L13,T7) -> 0 | V7: =U7/(W4-U14) -> 0 | W7: =IF(V7=0,0,(V7*((LOG(V7))/LOG(2)))) -> 0 | Y7: =N7 -> 111 | Z7: =COUNTIF(L14:L20,Y7) -> 0 | AA7: =Z7/(AB4-Z14) ->  | AB7: =IF(AA7=0,0,(AA7*((LOG(AA7))/LOG(2)))) ->  | AD7: =N7 -> 111 | AE7: =COUNTIF(L21:L27,AD7) -> 0 | AF7: =AE7/(AG4-AE14) ->  | AG7: =IF(AF7=0,0,(AF7*((LOG(AF7))/LOG(2)))) ->  | AI7: =N7 -> 111 | AJ7: =COUNTIF(L28:L34,AI7) -> 0 | AK7: =AJ7/(AL4-AJ14) ->  | AL7: =IF(AK7=0,0,(AK7*((LOG(AK7))/LOG(2)))) ->  | AN7: =N7 -> 111 | AO7: =COUNTIF(L35:L41,AN7) -> 0 | AP7: =AO7/(AQ4-AO14) ->  | AQ7: =IF(AP7=0,0,(AP7*((LOG(AP7))/LOG(2)))) ->  | AS7: =N7 -> 111 | AT7: =COUNTIF(L42:L48,AS7) -> 0 | AU7: =AT7/(AV4-AT14) ->  | AV7: =IF(AU7=0,0,(AU7*((LOG(AU7))/LOG(2)))) -> 
A8: 21 | B8: 138 | C8: 21 | D8: 259 | E8: 12 | F8: 300 | K8: 0 | L8: 221 | N8: 112 | O8: =COUNTIF($L$7:$L$500,N8) -> 0 | P8: =O8/$Q$4 -> 0 | Q8: =IF(P8=0,0,(P8*((LOG(P8))/LOG(2)))) -> 0 | T8: =N8 -> 112 | U8: =COUNTIF(L7:L13,T8) -> 0 | V8: =U8/(W4-U14) -> 0 | W8: =IF(V8=0,0,(V8*((LOG(V8))/LOG(2)))) -> 0 | Y8: =N8 -> 112 | Z8: =COUNTIF(L14:L20,Y8) -> 0 | AA8: =Z8/(AB4-Z14) ->  | AB8: =IF(AA8=0,0,(AA8*((LOG(AA8))/LOG(2)))) ->  | AD8: =N8 -> 112 | AE8: =COUNTIF(L21:L27,AD8) -> 0 | AF8: =AE8/(AG4-AE14) ->  | AG8: =IF(AF8=0,0,(AF8*((LOG(AF8))/LOG(2)))) ->  | AI8: =N8 -> 112 | AJ8: =COUNTIF(L28:L34,AI8) -> 0 | AK8: =AJ8/(AL4-AJ14) ->  | AL8: =IF(AK8=0,0,(AK8*((LOG(AK8))/LOG(2)))) ->  | AN8: =N8 -> 112 | AO8: =COUNTIF(L35:L41,AN8) -> 0 | AP8: =AO8/(AQ4-AO14) ->  | AQ8: =IF(AP8=0,0,(AP8*((LOG(AP8))/LOG(2)))) ->  | AS8: =N8 -> 112 | AT8: =COUNTIF(L42:L48,AS8) -> 0 | AU8: =AT8/(AV4-AT14) ->  | AV8: =IF(AU8=0,0,(AU8*((LOG(AU8))/LOG(2)))) -> 
A9: 21 | B9: 396 | C9: 12 | D9: 408 | E9: 23 | F9: 420 | K9: 0 | L9: 212 | N9: 121 | O9: =COUNTIF($L$7:$L$500,N9) -> 0 | P9: =O9/$Q$4 -> 0 | Q9: =IF(P9=0,0,(P9*((LOG(P9))/LOG(2)))) -> 0 | T9: =N9 -> 121 | U9: =COUNTIF(L7:L13,T9) -> 0 | V9: =U9/(W4-U14) -> 0 | W9: =IF(V9=0,0,(V9*((LOG(V9))/LOG(2)))) -> 0 | Y9: =N9 -> 121 | Z9: =COUNTIF(L14:L20,Y9) -> 0 | AA9: =Z9/(AB4-Z14) ->  | AB9: =IF(AA9=0,0,(AA9*((LOG(AA9))/LOG(2)))) ->  | AD9: =N9 -> 121 | AE9: =COUNTIF(L21:L27,AD9) -> 0 | AF9: =AE9/(AG4-AE14) ->  | AG9: =IF(AF9=0,0,(AF9*((LOG(AF9))/LOG(2)))) ->  | AI9: =N9 -> 121 | AJ9: =COUNTIF(L28:L34,AI9) -> 0 | AK9: =AJ9/(AL4-AJ14) ->  | AL9: =IF(AK9=0,0,(AK9*((LOG(AK9))/LOG(2)))) ->  | AN9: =N9 -> 121 | AO9: =COUNTIF(L35:L41,AN9) -> 0 | AP9: =AO9/(AQ4-AO14) ->  | AQ9: =IF(AP9=0,0,(AP9*((LOG(AP9))/LOG(2)))) ->  | AS9: =N9 -> 121 | AT9: =COUNTIF(L42:L48,AS9) -> 0 | AU9: =AT9/(AV4-AT14) ->  | AV9: =IF(AU9=0,0,(AU9*((LOG(AU9))/LOG(2)))) -> 
A10: 21 | B10: 517 | C10: 21 | D10: 523 | E10: 21 | F10: 553 | K10: 0 | L10: 222 | N10: 122 | O10: =COUNTIF($L$7:$L$500,N10) -> 0 | P10: =O10/$Q$4 -> 0 | Q10: =IF(P10=0,0,(P10*((LOG(P10))/LOG(2)))) -> 0 | T10: =N10 -> 122 | U10: =COUNTIF(L7:L13,T10) -> 0 | V10: =U10/(W4-U14) -> 0 | W10: =IF(V10=0,0,(V10*((LOG(V10))/LOG(2)))) -> 0 | Y10: =N10 -> 122 | Z10: =COUNTIF(L14:L20,Y10) -> 0 | AA10: =Z10/(AB4-Z14) ->  | AB10: =IF(AA10=0,0,(AA10*((LOG(AA10))/LOG(2)))) ->  | AD10: =N10 -> 122 | AE10: =COUNTIF(L21:L27,AD10) -> 0 | AF10: =AE10/(AG4-AE14) ->  | AG10: =IF(AF10=0,0,(AF10*((LOG(AF10))/LOG(2)))) ->  | AI10: =N10 -> 122 | AJ10: =COUNTIF(L28:L34,AI10) -> 0 | AK10: =AJ10/(AL4-AJ14) ->  | AL10: =IF(AK10=0,0,(AK10*((LOG(AK10))/LOG(2)))) ->  | AN10: =N10 -> 122 | AO10: =COUNTIF(L35:L41,AN10) -> 0 | AP10: =AO10/(AQ4-AO14) ->  | AQ10: =IF(AP10=0,0,(AP10*((LOG(AP10))/LOG(2)))) ->  | AS10: =N10 -> 122 | AT10: =COUNTIF(L42:L48,AS10) -> 0 | AU10: =AT10/(AV4-AT14) ->  | AV10: =IF(AU10=0,0,(AU10*((LOG(AU10))/LOG(2)))) -> 
A11: 21 | B11: 663 | C11: 21 | D11: 700 | E11: 21 | F11: 711 | K11: 0 | L11: 222 | N11: 211 | O11: =COUNTIF($L$7:$L$500,N11) -> 0 | P11: =O11/$Q$4 -> 0 | Q11: =IF(P11=0,0,(P11*((LOG(P11))/LOG(2)))) -> 0 | T11: =N11 -> 211 | U11: =COUNTIF(L7:L13,T11) -> 0 | V11: =U11/(W4-U14) -> 0 | W11: =IF(V11=0,0,(V11*((LOG(V11))/LOG(2)))) -> 0 | Y11: =N11 -> 211 | Z11: =COUNTIF(L14:L20,Y11) -> 0 | AA11: =Z11/(AB4-Z14) ->  | AB11: =IF(AA11=0,0,(AA11*((LOG(AA11))/LOG(2)))) ->  | AD11: =N11 -> 211 | AE11: =COUNTIF(L21:L27,AD11) -> 0 | AF11: =AE11/(AG4-AE14) ->  | AG11: =IF(AF11=0,0,(AF11*((LOG(AF11))/LOG(2)))) ->  | AI11: =N11 -> 211 | AJ11: =COUNTIF(L28:L34,AI11) -> 0 | AK11: =AJ11/(AL4-AJ14) ->  | AL11: =IF(AK11=0,0,(AK11*((LOG(AK11))/LOG(2)))) ->  | AN11: =N11 -> 211 | AO11: =COUNTIF(L35:L41,AN11) -> 0 | AP11: =AO11/(AQ4-AO14) ->  | AQ11: =IF(AP11=0,0,(AP11*((LOG(AP11))/LOG(2)))) ->  | AS11: =N11 -> 211 | AT11: =COUNTIF(L42:L48,AS11) -> 0 | AU11: =AT11/(AV4-AT14) ->  | AV11: =IF(AU11=0,0,(AU11*((LOG(AU11))/LOG(2)))) -> 
A12: 21 | B12: 841 | C12: 21 | D12: 849 | E12: 21 | F12: 884 | K12: 0 | L12: 222 | N12: 212 | O12: =COUNTIF($L$7:$L$500,N12) -> 1 | P12: =O12/$Q$4 -> 0.02380952381 | Q12: =IF(P12=0,0,(P12*((LOG(P12))/LOG(2)))) -> -0.1283885101 | T12: =N12 -> 212 | U12: =COUNTIF(L7:L13,T12) -> 1 | V12: =U12/(W4-U14) -> 0.5 | W12: =IF(V12=0,0,(V12*((LOG(V12))/LOG(2)))) -> -0.5 | Y12: =N12 -> 212 | Z12: =COUNTIF(L14:L20,Y12) -> 0 | AA12: =Z12/(AB4-Z14) ->  | AB12: =IF(AA12=0,0,(AA12*((LOG(AA12))/LOG(2)))) ->  | AD12: =N12 -> 212 | AE12: =COUNTIF(L21:L27,AD12) -> 0 | AF12: =AE12/(AG4-AE14) ->  | AG12: =IF(AF12=0,0,(AF12*((LOG(AF12))/LOG(2)))) ->  | AI12: =N12 -> 212 | AJ12: =COUNTIF(L28:L34,AI12) -> 0 | AK12: =AJ12/(AL4-AJ14) ->  | AL12: =IF(AK12=0,0,(AK12*((LOG(AK12))/LOG(2)))) ->  | AN12: =N12 -> 212 | AO12: =COUNTIF(L35:L41,AN12) -> 0 | AP12: =AO12/(AQ4-AO14) ->  | AQ12: =IF(AP12=0,0,(AP12*((LOG(AP12))/LOG(2)))) ->  | AS12: =N12 -> 212 | AT12: =COUNTIF(L42:L48,AS12) -> 0 | AU12: =AT12/(AV4-AT14) ->  | AV12: =IF(AU12=0,0,(AU12*((LOG(AU12))/LOG(2)))) -> 
A13: 21 | B13: 978 | C13: 21 | D13: 1066 | E13: 21 | F13: 1090 | K13: 0 | L13: 222 | N13: 221 | O13: =COUNTIF($L$7:$L$500,N13) -> 1 | P13: =O13/$Q$4 -> 0.02380952381 | Q13: =IF(P13=0,0,(P13*((LOG(P13))/LOG(2)))) -> -0.1283885101 | T13: =N13 -> 221 | U13: =COUNTIF(L7:L13,T13) -> 1 | V13: =U13/(W4-U14) -> 0.5 | W13: =IF(V13=0,0,(V13*((LOG(V13))/LOG(2)))) -> -0.5 | Y13: =N13 -> 221 | Z13: =COUNTIF(L14:L20,Y13) -> 0 | AA13: =Z13/(AB4-Z14) ->  | AB13: =IF(AA13=0,0,(AA13*((LOG(AA13))/LOG(2)))) ->  | AD13: =N13 -> 221 | AE13: =COUNTIF(L21:L27,AD13) -> 0 | AF13: =AE13/(AG4-AE14) ->  | AG13: =IF(AF13=0,0,(AF13*((LOG(AF13))/LOG(2)))) ->  | AI13: =N13 -> 221 | AJ13: =COUNTIF(L28:L34,AI13) -> 0 | AK13: =AJ13/(AL4-AJ14) ->  | AL13: =IF(AK13=0,0,(AK13*((LOG(AK13))/LOG(2)))) ->  | AN13: =N13 -> 221 | AO13: =COUNTIF(L35:L41,AN13) -> 0 | AP13: =AO13/(AQ4-AO14) ->  | AQ13: =IF(AP13=0,0,(AP13*((LOG(AP13))/LOG(2)))) ->  | AS13: =N13 -> 221 | AT13: =COUNTIF(L42:L48,AS13) -> 0 | AU13: =AT13/(AV4-AT14) ->  | AV13: =IF(AU13=0,0,(AU13*((LOG(AU13))/LOG(2)))) -> 
A14: 21 | B14: 1183 | C14: 21 | D14: 1187 | E14: 21 | F14: 1227 | K14: 0 | L14: 222 | N14: 222 | O14: =COUNTIF($L$7:$L$500,N14) -> 40 | P14: =O14/$Q$4 -> 0.9523809524 | Q14: =IF(P14=0,0,(P14*((LOG(P14))/LOG(2)))) -> -0.06703745513 | T14: =N14 -> 222 | U14: =COUNTIF(L7:L13,T14) -> 5 | Y14: =N14 -> 222 | Z14: =COUNTIF(L14:L20,Y14) -> 7 | AD14: =N14 -> 222 | AE14: =COUNTIF(L21:L27,AD14) -> 7 | AI14: =N14 -> 222 | AJ14: =COUNTIF(L28:L34,AI14) -> 7 | AN14: =N14 -> 222 | AO14: =COUNTIF(L35:L41,AN14) -> 7 | AS14: =N14 -> 222 | AT14: =COUNTIF(L42:L48,AS14) -> 7
A15: 21 | B15: 1335 | C15: 21 | D15: 1350 | E15: 21 | F15: 1377 | K15: 0 | L15: 222 | P15: =SUM(P7:P14) -> 1 | Q15: =-SUM(Q7:Q14) -> 0.3238144753 | V15: =SUM(V7:V14) -> 1 | W15: =-SUM(W7:W14) -> 1 | AA15: =SUM(AA7:AA14) ->  | AB15: =-SUM(AB7:AB14) ->  | AF15: =SUM(AF7:AF14) ->  | AG15: =-SUM(AG7:AG14) ->  | AK15: =SUM(AK7:AK14) ->  | AL15: =-SUM(AL7:AL14) ->  | AP15: =SUM(AP7:AP14) ->  | AQ15: =-SUM(AQ7:AQ14) ->  | AU15: =SUM(AU7:AU14) ->  | AV15: =-SUM(AV7:AV14) -> 
A16: 21 | B16: 1474 | C16: 21 | D16: 1481 | E16: 21 | F16: 1501 | K16: 0 | L16: 222 | P16: U= | Q16: =Q15/(LOG(Q4)/LOG(2)) -> 0.06005107821 | V16: U1= | W16: =W15/(LOG(W4)/LOG(2)) -> 0.3562071871 | AA16: U2= | AB16: =AB15/(LOG(AB4)/LOG(2)) ->  | AF16: U3= | AG16: =AG15/(LOG(AG4)/LOG(2)) ->  | AK16: U4= | AL16: =AL15/(LOG(AL4)/LOG(2)) ->  | AP16: U5= | AQ16: =AQ15/(LOG(AQ4)/LOG(2)) ->  | AU16: U6= | AV16: =AV15/(LOG(AV4)/LOG(2)) -> 
A17: 21 | B17: 1608 | C17: 21 | D17: 1614 | E17: 21 | F17: 1640 | K17: 0 | L17: 222
A18: 21 | B18: 1742 | C18: 21 | D18: 1756 | E18: 21 | F18: 1828 | K18: 0 | L18: 222
A19: 21 | B19: 1942 | C19: 21 | D19: 1950 | E19: 21 | F19: 1968 | K19: 0 | L19: 222 | N19: Total Target Seq
A20: 21 | B20: 2096 | C20: 21 | D20: 2098 | E20: 21 | F20: 2109 | K20: 0 | L20: 222 | N20: =COUNTIF(L7:L48,G3) -> 40 | P20: 7 | Q20: 7 | R20: 7 | S20: 7 | T20: 7 | U20: 7
A21: 21 | B21: 2203 | C21: 21 | D21: 2209 | E21: 21 | F21: 2224 | K21: 0 | L21: 222 | P21: % of reinforcement given in 6 equal intervals based on number of trials
A22: 21 | B22: 2348 | C22: 21 | D22: 2355 | E22: 21 | F22: 2360 | K22: 0 | L22: 222 | P22: %_1 | Q22: %_2 | R22: %_3 | S22: %_4 | T22: %_5 | U22: %_6
A23: 21 | B23: 2481 | C23: 21 | D23: 2487 | E23: 21 | F23: 2515 | K23: 0 | L23: 222 | O23: target sequence | P23: =$G$3 -> 222 | Q23: =$G$3 -> 222 | R23: =$G$3 -> 222 | S23: =$G$3 -> 222 | T23: =$G$3 -> 222 | U23: =$G$3 -> 222
A24: 21 | B24: 2623 | C24: 21 | D24: 2639 | E24: 21 | F24: 2649 | K24: 0 | L24: 222 | O24: total reinforcement | P24: =U14 -> 5 | Q24: =Z14 -> 7 | R24: =AE14 -> 7 | S24: =AJ14 -> 7 | T24: =AO14 -> 7 | U24: =AT14 -> 7
A25: 21 | B25: 2785 | C25: 21 | D25: 2805 | E25: 21 | F25: 2822 | K25: 0 | L25: 222 | O25: % target
A26: 21 | B26: 2934 | C26: 21 | D26: 2947 | E26: 21 | F26: 2975 | K26: 0 | L26: 222 | O26: CCRF
A27: 21 | B27: 3072 | C27: 21 | D27: 3079 | E27: 21 | F27: 3089 | K27: 0 | L27: 222 | O27: % CCRf
A28: 21 | B28: 3187 | C28: 21 | D28: 3196 | E28: 21 | F28: 3208 | K28: 0 | L28: 222 | O28: average response rate | P28: =F13/P20 -> 155.7142857 | Q28: =(F20-F13)/Q20 -> 145.5714286 | R28: =(F27-F20)/R20 -> 140 | S28: =(F34-F27)/S20 -> 138.8571429 | T28: =(F41-F34)/T20 -> 149.1428571 | U28: =(F48-F41)/U20 -> 160.7142857
A29: 21 | B29: 3306 | C29: 21 | D29: 3312 | E29: 21 | F29: 3328 | K29: 0 | L29: 222
A30: 21 | B30: 3425 | C30: 21 | D30: 3430 | E30: 21 | F30: 3438 | K30: 0 | L30: 222
A31: 21 | B31: 3538 | C31: 21 | D31: 3549 | E31: 21 | F31: 3565 | K31: 0 | L31: 222
A32: 21 | B32: 3660 | C32: 21 | D32: 3667 | E32: 21 | F32: 3679 | K32: 0 | L32: 222
A33: 21 | B33: 3838 | C33: 21 | D33: 3871 | E33: 21 | F33: 3887 | K33: 0 | L33: 222
A34: 21 | B34: 4034 | C34: 21 | D34: 4051 | E34: 21 | F34: 4061 | K34: 0 | L34: 222
A35: 21 | B35: 4182 | C35: 21 | D35: 4189 | E35: 21 | F35: 4201 | K35: 0 | L35: 222
A36: 21 | B36: 4297 | C36: 21 | D36: 4304 | E36: 21 | F36: 4337 | K36: 0 | L36: 222
A37: 21 | B37: 4458 | C37: 21 | D37: 4474 | E37: 21 | F37: 4501 | K37: 0 | L37: 222
A38: 21 | B38: 4613 | C38: 21 | D38: 4640 | E38: 21 | F38: 4672 | K38: 0 | L38: 222
A39: 21 | B39: 4765 | C39: 21 | D39: 4769 | E39: 21 | F39: 4775 | K39: 0 | L39: 222
A40: 21 | B40: 4903 | C40: 21 | D40: 4973 | E40: 21 | F40: 4990 | K40: 0 | L40: 222
A41: 21 | B41: 5083 | C41: 21 | D41: 5088 | E41: 21 | F41: 5105 | K41: 0 | L41: 222
A42: 21 | B42: 5205 | C42: 21 | D42: 5212 | E42: 21 | F42: 5221 | K42: 0 | L42: 222
A43: 21 | B43: 5457 | C43: 21 | D43: 5464 | E43: 21 | F43: 5492 | K43: 0 | L43: 222
A44: 21 | B44: 5620 | C44: 21 | D44: 5628 | E44: 21 | F44: 5633 | K44: 0 | L44: 222
A45: 21 | B45: 5759 | C45: 21 | D45: 5766 | E45: 21 | F45: 5781 | K45: 0 | L45: 222
A46: 21 | B46: 5881 | C46: 21 | D46: 5932 | E46: 21 | F46: 5955 | K46: 0 | L46: 222
A47: 21 | B47: 6072 | C47: 21 | D47: 6082 | E47: 21 | F47: 6093 | K47: 0 | L47: 222
A48: 21 | B48: 6187 | C48: 21 | D48: 6190 | E48: 21 | F48: 6230 | K48: 1 | L48: 222

Sheet !M318B0I.sha
A1: Report for:!M318B0I.sha
A2: Date: | B2: <date>
A3: Hen: | B3: <hen> | F3: Correct Sequence | G3: =Start!J2 -> 222 | P3: Total Sequences in Data | Q3: =4994-COUNTBLANK(L7:L5000) -> 41 | V3: Total Sequences in Block Data | W3: =COUNTA(L7:L13) -> 7 | AA3: Total Sequences in Block Data | AB3: =COUNTA(L14:L20) -> 7 | AF3: Total Sequences in Block Data | AG3: =COUNTA(L21:L26) -> 6 | AK3: Total Sequences in Block Data | AL3: =COUNTA(L27:L33) -> 7 | AP3: Total Sequences in Block Data | AQ3: =COUNTA(L34:L40) -> 7 | AU3: Total Sequences in Block Data | AV3: =COUNTA(L41:L47) -> 7
P4: Total Sequences in Summary | Q4: =SUM(O7:O14) -> 41 | V4: Total Sequences in Block Summary | W4: =SUM(U7:U14) -> 7 | AA4: Total Sequences in Block Summary | AB4: =SUM(Z7:Z14) -> 7 | AF4: Total Sequences in Block Summary | AG4: =SUM(AE7:AE14) -> 6 | AK4: Total Sequences in Block Summary | AL4: =SUM(AJ7:AJ14) -> 7 | AP4: Total Sequences in Block Summary | AQ4: =SUM(AO7:AO14) -> 7 | AU4: Total Sequences in Block Summary | AV4: =SUM(AT7:AT14) -> 7
T5: Block 1 | Y5: Block 2 | AD5: Block 3 | AI5: Block 4 | AN5: Block 5 | AS5: Block 6
A6: Sequence Component 1 | B6: Time 1 | C6: Sequence Component 2 | D6: Time 2 | E6: Sequence Component 3 | F6: Time 3 | G6: Sequence Component 4 | H6: Time 4 | I6: Sequence Component 5 | J6: Time 5 | K6: Correct? 0=No 1=Yes | L6: Sequence | N6: Frequency | P6: Relative Frequency | Q6: Variability | T6: Frequency | V6: Relative Frequency | W6: Variability | Y6: Frequency | AA6: Relative Frequency | AB6: Variability | AD6: Frequency | AF6: Relative Frequency | AG6: Variability | AI6: Frequency | AK6: Relative Frequency | AL6: Variability | AN6: Frequency | AP6: Relative Frequency | AQ6: Variability | AS6: Frequency | AU6: Relative Frequency | AV6: Variability
A7: 21 | B7: 8 | C7: 21 | D7: 30 | E7: 12 | F7: 50 | K7: 0 | L7: 221 | N7: 111 | O7: =COUNTIF($L$7:$L$500,N7) -> 0 | P7: =O7/$Q$4 -> 0 | Q7: =IF(P7=0,0,(P7*((LOG(P7))/LOG(2)))) -> 0 | T7: =N7 -> 111 | U7: =COUNTIF(L7:L13,T7) -> 0 | V7: =U7/(W4-U14) -> 0 | W7: =IF(V7=0,0,(V7*((LOG(V7))/LOG(2)))) -> 0 | Y7: =N7 -> 111 | Z7: =COUNTIF(L14:L20,Y7) -> 0 | AA7: =Z7/(AB4-Z14) ->  | AB7: =IF(AA7=0,0,(AA7*((LOG(AA7))/LOG(2)))) ->  | AD7: =N7 -> 111 | AE7: =COUNTIF(L21:L26,AD7) -> 0 | AF7: =AE7/(AG4-AE14) ->  | AG7: =IF(AF7=0,0,(AF7*((LOG(AF7))/LOG(2)))) ->  | AI7: =N7 -> 111 | AJ7: =COUNTIF(L27:L33,AI7) -> 0 | AK7: =AJ7/(AL4-AJ14) ->  | AL7: =IF(AK7=0,0,(AK7*((LOG(AK7))/LOG(2)))) ->  | AN7: =N7 -> 111 | AO7: =COUNTIF(L34:L40,AN7) -> 0 | AP7: =AO7/(AQ4-AO14) ->  | AQ7: =IF(AP7=0,0,(AP7*((LOG(AP7))/LOG(2)))) ->  | AS7: =N7 -> 111 | AT7: =COUNTIF(L41:L47,AS7) -> 0 | AU7: =AT7/(AV4-AT14) ->  | AV7: =IF(AU7=0,0,(AU7*((LOG(AU7))/LOG(2)))) -> 
A8: 21 | B8: 149 | C8: 21 | D8: 154 | E8: 21 | F8: 176 | K8: 0 | L8: 222 | N8: 112 | O8: =COUNTIF($L$7:$L$500,N8) -> 0 | P8: =O8/$Q$4 -> 0 | Q8: =IF(P8=0,0,(P8*((LOG(P8))/LOG(2)))) -> 0 | T8: =N8 -> 112 | U8: =COUNTIF(L7:L13,T8) -> 0 | V8: =U8/(W4-U14) -> 0 | W8: =IF(V8=0,0,(V8*((LOG(V8))/LOG(2)))) -> 0 | Y8: =N8 -> 112 | Z8: =COUNTIF(L14:L20,Y8) -> 0 | AA8: =Z8/(AB4-Z14) ->  | AB8: =IF(AA8=0,0,(AA8*((LOG(AA8))/LOG(2)))) ->  | AD8: =N8 -> 112 | AE8: =COUNTIF(L21:L26,AD8) -> 0 | AF8: =AE8/(AG4-AE14) ->  | AG8: =IF(AF8=0,0,(AF8*((LOG(AF8))/LOG(2)))) ->  | AI8: =N8 -> 112 | AJ8: =COUNTIF(L27:L33,AI8) -> 0 | AK8: =AJ8/(AL4-AJ14) ->  | AL8: =IF(AK8=0,0,(AK8*((LOG(AK8))/LOG(2)))) ->  | AN8: =N8 -> 112 | AO8: =COUNTIF(L34:L40,AN8) -> 0 | AP8: =AO8/(AQ4-AO14) ->  | AQ8: =IF(AP8=0,0,(AP8*((LOG(AP8))/LOG(2)))) ->  | AS8: =N8 -> 112 | AT8: =COUNTIF(L41:L47,AS8) -> 0 | AU8: =AT8/(AV4-AT14) ->  | AV8: =IF(AU8=0,0,(AU8*((LOG(AU8))/LOG(2)))) -> 
A9: 21 | B9: 269 | C9: 21 | D9: 280 | E9: 21 | F9: 310 | K9: 0 | L9: 222 | N9: 121 | O9: =COUNTIF($L$7:$L$500,N9) -> 0 | P9: =O9/$Q$4 -> 0 | Q9: =IF(P9=0,0,(P9*((LOG(P9))/LOG(2)))) -> 0 | T9: =N9 -> 121 | U9: =COUNTIF(L7:L13,T9) -> 0 | V9: =U9/(W4-U14) -> 0 | W9: =IF(V9=0,0,(V9*((LOG(V9))/LOG(2)))) -> 0 | Y9: =N9 -> 121 | Z9: =COUNTIF(L14:L20,Y9) -> 0 | AA9: =Z9/(AB4-Z14) ->  | AB9: =IF(AA9=0,0,(AA9*((LOG(AA9))/LOG(2)))) ->  | AD9: =N9 -> 121 | AE9: =COUNTIF(L21:L26,AD9) -> 0 | AF9: =AE9/(AG4-AE14) ->  | AG9: =IF(AF9=0,0,(AF9*((LOG(AF9))/LOG(2)))) ->  | AI9: =N9 -> 121 | AJ9: =COUNTIF(L27:L33,AI9) -> 0 | AK9: =AJ9/(AL4-AJ14) ->  | AL9: =IF(AK9=0,0,(AK9*((LOG(AK9))/LOG(2)))) ->  | AN9: =N9 -> 121 | AO9: =COUNTIF(L34:L40,AN9) -> 0 | AP9: =AO9/(AQ4-AO14) ->  | AQ9: =IF(AP9=0,0,(AP9*((LOG(AP9))/LOG(2)))) ->  | AS9: =N9 -> 121 | AT9: =COUNTIF(L41:L47,AS9) -> 0 | AU9: =AT9/(AV4-AT14) ->  | AV9: =IF(AU9=0,0,(AU9*((LOG(AU9))/LOG(2)))) -> 
A10: 21 | B10: 446 | C10: 21 | D10: 452 | E10: 21 | F10: 463 | K10: 0 | L10: 222 | N10: 122 | O10: =COUNTIF($L$7:$L$500,N10) -> 0 | P10: =O10/$Q$4 -> 0 | Q10: =IF(P10=0,0,(P10*((LOG(P10))/LOG(2)))) -> 0 | T10: =N10 -> 122 | U10: =COUNTIF(L7:L13,T10) -> 0 | V10: =U10/(W4-U14) -> 0 | W10: =IF(V10=0,0,(V10*((LOG(V10))/LOG(2)))) -> 0 | Y10: =N10 -> 122 | Z10: =COUNTIF(L14:L20,Y10) -> 0 | AA10: =Z10/(AB4-Z14) ->  | AB10: =IF(AA10=0,0,(AA10*((LOG(AA10))/LOG(2)))) ->  | AD10: =N10 -> 122 | AE10: =COUNTIF(L21:L26,AD10) -> 0 | AF10: =AE10/(AG4-AE14) ->  | AG10: =IF(AF10=0,0,(AF10*((LOG(AF10))/LOG(2)))) ->  | AI10: =N10 -> 122 | AJ10: =COUNTIF(L27:L33,AI10) -> 0 | AK10: =AJ10/(AL4-AJ14) ->  | AL10: =IF(AK10=0,0,(AK10*((LOG(AK10))/LOG(2)))) ->  | AN10: =N10 -> 122 | AO10: =COUNTIF(L34:L40,AN10) -> 0 | AP10: =AO10/(AQ4-AO14) ->  | AQ10: =IF(AP10=0,0,(AP10*((LOG(AP10))/LOG(2)))) ->  | AS10: =N10 -> 122 | AT10: =COUNTIF(L41:L47,AS10) -> 0 | AU10: =AT10/(AV4-AT14) ->  | AV10: =IF(AU10=0,0,(AU10*((LOG(AU10))/LOG(2)))) -> 
A11: 21 | B11: 572 | C11: 21 | D11: 595 | E11: 21 | F11: 616 | K11: 0 | L11: 222 | N11: 211 | O11: =COUNTIF($L$7:$L$500,N11) -> 0 | P11: =O11/$Q$4 -> 0 | Q11: =IF(P11=0,0,(P11*((LOG(P11))/LOG(2)))) -> 0 | T11: =N11 -> 211 | U11: =COUNTIF(L7:L13,T11) -> 0 | V11: =U11/(W4-U14) -> 0 | W11: =IF(V11=0,0,(V11*((LOG(V11))/LOG(2)))) -> 0 | Y11: =N11 -> 211 | Z11: =COUNTIF(L14:L20,Y11) -> 0 | AA11: =Z11/(AB4-Z14) ->  | AB11: =IF(AA11=0,0,(AA11*((LOG(AA11))/LOG(2)))) ->  | AD11: =N11 -> 211 | AE11: =COUNTIF(L21:L26,AD11) -> 0 | AF11: =AE11/(AG4-AE14) ->  | AG11: =IF(AF11=0,0,(AF11*((LOG(AF11))/LOG(2)))) ->  | AI11: =N11 -> 211 | AJ11: =COUNTIF(L27:L33,AI11) -> 0 | AK11: =AJ11/(AL4-AJ14) ->  | AL11: =IF(AK11=0,0,(AK11*((LOG(AK11))/LOG(2)))) ->  | AN11: =N11 -> 211 | AO11: =COUNTIF(L34:L40,AN11) -> 0 | AP11: =AO11/(AQ4-AO14) ->  | AQ11: =IF(AP11=0,0,(AP11*((LOG(AP11))/LOG(2)))) ->  | AS11: =N11 -> 211 | AT11: =COUNTIF(L41:L47,AS11) -> 0 | AU11: =AT11/(AV4-AT14) ->  | AV11: =IF(AU11=0,0,(AU11*((LOG(AU11))/LOG(2)))) -> 
A12: 21 | B12: 713 | C12: 21 | D12: 738 | E12: 21 | F12: 766 | K12: 0 | L12: 222 | N12: 212 | O12: =COUNTIF($L$7:$L$500,N12) -> 0 | P12: =O12/$Q$4 -> 0 | Q12: =IF(P12=0,0,(P12*((LOG(P12))/LOG(2)))) -> 0 | T12: =N12 -> 212 | U12: =COUNTIF(L7:L13,T12) -> 0 | V12: =U12/(W4-U14) -> 0 | W12: =IF(V12=0,0,(V12*((LOG(V12))/LOG(2)))) -> 0 | Y12: =N12 -> 212 | Z12: =COUNTIF(L14:L20,Y12) -> 0 | AA12: =Z12/(AB4-Z14) ->  | AB12: =IF(AA12=0,0,(AA12*((LOG(AA12))/LOG(2)))) ->  | AD12: =N12 -> 212 | AE12: =COUNTIF(L21:L26,AD12) -> 0 | AF12: =AE12/(AG4-AE14) ->  | AG12: =IF(AF12=0,0,(AF12*((LOG(AF12))/LOG(2)))) ->  | AI12: =N12 -> 212 | AJ12: =COUNTIF(L27:L33,AI12) -> 0 | AK12: =AJ12/(AL4-AJ14) ->  | AL12: =IF(AK12=0,0,(AK12*((LOG(AK12))/LOG(2)))) ->  | AN12: =N12 -> 212 | AO12: =COUNTIF(L34:L40,AN12) -> 0 | AP12: =AO12/(AQ4-AO14) ->  | AQ12: =IF(AP12=0,0,(AP12*((LOG(AP12))/LOG(2)))) ->  | AS12: =N12 -> 212 | AT12: =COUNTIF(L41:L47,AS12) -> 0 | AU12: =AT12/(AV4-AT14) ->  | AV12: =IF(AU12=0,0,(AU12*((LOG(AU12))/LOG(2)))) -> 
A13: 21 | B13: 872 | C13: 21 | D13: 879 | E13: 21 | F13: 901 | K13: 0 | L13: 222 | N13: 221 | O13: =COUNTIF($L$7:$L$500,N13) -> 1 | P13: =O13/$Q$4 -> 0.0243902439 | Q13: =IF(P13=0,0,(P13*((LOG(P13))/LOG(2)))) -> -0.1306720001 | T13: =N13 -> 221 | U13: =COUNTIF(L7:L13,T13) -> 1 | V13: =U13/(W4-U14) -> 1 | W13: =IF(V13=0,0,(V13*((LOG(V13))/LOG(2)))) -> 0 | Y13: =N13 -> 221 | Z13: =COUNTIF(L14:L20,Y13) -> 0 | AA13: =Z13/(AB4-Z14) ->  | AB13: =IF(AA13=0,0,(AA13*((LOG(AA13))/LOG(2)))) ->  | AD13: =N13 -> 221 | AE13: =COUNTIF(L21:L26,AD13) -> 0 | AF13: =AE13/(AG4-AE14) ->  | AG13: =IF(AF13=0,0,(AF13*((LOG(AF13))/LOG(2)))) ->  | AI13: =N13 -> 221 | AJ13: =COUNTIF(L27:L33,AI13) -> 0 | AK13: =AJ13/(AL4-AJ14) ->  | AL13: =IF(AK13=0,0,(AK13*((LOG(AK13))/LOG(2)))) ->  | AN13: =N13 -> 221 | AO13: =COUNTIF(L34:L40,AN13) -> 0 | AP13: =AO13/(AQ4-AO14) ->  | AQ13: =IF(AP13=0,0,(AP13*((LOG(AP13))/LOG(2)))) ->  | AS13: =N13 -> 221 | AT13: =COUNTIF(L41:L47,AS13) -> 0 | AU13: =AT13/(AV4-AT14) ->  | AV13: =IF(AU13=0,0,(AU13*((LOG(AU13))/LOG(2)))) -> 
A14: 21 | B14: 1049 | C14: 21 | D14: 1059 | E14: 21 | F14: 1067 | K14: 0 | L14: 222 | N14: 222 | O14: =COUNTIF($L$7:$L$500,N14) -> 40 | P14: =O14/$Q$4 -> 0.9756097561 | Q14: =IF(P14=0,0,(P14*((LOG(P14))/LOG(2)))) -> -0.03475503388 | T14: =N14 -> 222 | U14: =COUNTIF(L7:L13,T14) -> 6 | Y14: =N14 -> 222 | Z14: =COUNTIF(L14:L20,Y14) -> 7 | AD14: =N14 -> 222 | AE14: =COUNTIF(L21:L26,AD14) -> 6 | AI14: =N14 -> 222 | AJ14: =COUNTIF(L27:L33,AI14) -> 7 | AN14: =N14 -> 222 | AO14: =COUNTIF(L34:L40,AN14) -> 7 | AS14: =N14 -> 222 | AT14: =COUNTIF(L41:L47,AS14) -> 7
A15: 21 | B15: 1209 | C15: 21 | D15: 1251 | E15: 21 | F15: 1284 | K15: 0 | L15: 222 | P15: =SUM(P7:P14) -> 1 | Q15: =-SUM(Q7:Q14) -> 0.165427034 | V15: =SUM(V7:V14) -> 1 | W15: =-SUM(W7:W14) -> 0 | AA15: =SUM(AA7:AA14) ->  | AB15: =-SUM(AB7:AB14) ->  | AF15: =SUM(AF7:AF14) ->  | AG15: =-SUM(AG7:AG14) ->  | AK15: =SUM(AK7:AK14) ->  | AL15: =-SUM(AL7:AL14) ->  | AP15: =SUM(AP7:AP14) ->  | AQ15: =-SUM(AQ7:AQ14) ->  | AU15: =SUM(AU7:AU14) ->  | AV15: =-SUM(AV7:AV14) -> 
A16: 21 | B16: 1381 | C16: 21 | D16: 1390 | E16: 21 | F16: 1417 | K16: 0 | L16: 222 | P16: U= | Q16: =Q15/(LOG(Q4)/LOG(2)) -> 0.03087735478 | V16: U1= | W16: =W15/(LOG(W4)/LOG(2)) -> 0 | AA16: U2= | AB16: =AB15/(LOG(AB4)/LOG(2)) ->  | AF16: U3= | AG16: =AG15/(LOG(AG4)/LOG(2)) ->  | AK16: U4= | AL16: =AL15/(LOG(AL4)/LOG(2)) ->  | AP16: U5= | AQ16: =AQ15/(LOG(AQ4)/LOG(2)) ->  | AU16: U6= | AV16: =AV15/(LOG(AV4)/LOG(2)) -> 
A17: 21 | B17: 1520 | C17: 21 | D17: 1526 | E17: 21 | F17: 1535 | K17: 0 | L17: 222
A18: 21 | B18: 1638 | C18: 21 | D18: 1669 | E18: 21 | F18: 1686 | K18: 0 | L18: 222
A19: 21 | B19: 1806 | C19: 21 | D19: 1814 | E19: 21 | F19: 1833 | K19: 0 | L19: 222 | N19: Total Target Seq
A20: 21 | B20: 1962 | C20: 21 | D20: 1971 | E20: 21 | F20: 1996 | K20: 0 | L20: 222 | N20: =COUNTIF(L7:L47,G3) -> 40 | P20: 7 | Q20: 7 | R20: 6 | S20: 7 | T20: 7 | U20: 7
A21: 21 | B21: 2089 | C21: 21 | D21: 2102 | E21: 21 | F21: 2151 | K21: 0 | L21: 222 | P21: % of reinforcement given in 6 equal intervals based on number of trials
A22: 21 | B22: 2301 | C22: 21 | D22: 2330 | E22: 21 | F22: 2364 | K22: 0 | L22: 222 | P22: %_1 | Q22: %_2 | R22: %_3 | S22: %_4 | T22: %_5 | U22: %_6
A23: 21 | B23: 2458 | C23: 21 | D23: 2465 | E23: 21 | F23: 2471 | K23: 0 | L23: 222 | O23: target sequence | P23: =$G$3 -> 222 | Q23: =$G$3 -> 222 | R23: =$G$3 -> 222 | S23: =$G$3 -> 222 | T23: =$G$3 -> 222 | U23: =$G$3 -> 222
A24: 21 | B24: 2588 | C24: 21 | D24: 2606 | E24: 21 | F24: 2619 | K24: 0 | L24: 222 | O24: total reinforcement | P24: =U14 -> 6 | Q24: =Z14 -> 7 | R24: =AE14 -> 6 | S24: =AJ14 -> 7 | T24: =AO14 -> 7 | U24: =AT14 -> 7
A25: 21 | B25: 2713 | C25: 21 | D25: 2754 | E25: 21 | F25: 2775 | K25: 0 | L25: 222 | O25: % target
A26: 21 | B26: 2869 | C26: 21 | D26: 2875 | E26: 21 | F26: 2883 | K26: 0 | L26: 222 | O26: CCRF
A27: 21 | B27: 2977 | C27: 21 | D27: 2982 | E27: 21 | F27: 2990 | K27: 0 | L27: 222 | O27: % CCRf
A28: 21 | B28: 3142 | C28: 21 | D28: 3214 | E28: 21 | F28: 3224 | K28: 0 | L28: 222 | O28: average response rate | P28: =F13/P20 -> 128.7142857 | Q28: =(F20-F13)/Q20 -> 156.4285714 | R28: =(F26-F20)/R20 -> 147.8333333 | S28: =(F33-F26)/S20 -> 139 | T28: =(F40-F33)/T20 -> 149.1428571 | U28: =(F47-F40)/U20 -> 167.5714286
A29: 21 | B29: 3320 | C29: 21 | D29: 3325 | E29: 21 | F29: 3359 | K29: 0 | L29: 222
A30: 21 | B30: 3476 | C30: 21 | D30: 3481 | E30: 21 | F30: 3493 | K30: 0 | L30: 222
A31: 21 | B31: 3599 | C31: 21 | D31: 3603 | E31: 21 | F31: 3615 | K31: 0 | L31: 222
A32: 21 | B32: 3708 | C32: 21 | D32: 3720 | E32: 21 | F32: 3738 | K32: 0 | L32: 222
A33: 21 | B33: 3832 | C33: 21 | D33: 3841 | E33: 21 | F33: 3856 | K33: 0 | L33: 222
A34: 21 | B34: 3954 | C34: 21 | D34: 3967 | E34: 21 | F34: 3994 | K34: 0 | L34: 222
A35: 21 | B35: 4087 | C35: 21 | D35: 4093 | E35: 21 | F35: 4125 | K35: 0 | L35: 222
A36: 21 | B36: 4221 | C36: 21 | D36: 4292 | E36: 21 | F36: 4307 | K36: 0 | L36: 222
A37: 21 | B37: 4440 | C37: 21 | D37: 4446 | E37: 21 | F37: 4464 | K37: 0 | L37: 222
A38: 21 | B38: 4581 | C38: 21 | D38: 4597 | E38: 21 | F38: 4628 | K38: 0 | L38: 222
A39: 21 | B39: 4724 | C39: 21 | D39: 4747 | E39: 21 | F39: 4776 | K39: 0 | L39: 222
A40: 21 | B40: 4871 | C40: 21 | D40: 4887 | E40: 21 | F40: 4900 | K40: 0 | L40: 222
A41: 21 | B41: 5053 | C41: 21 | D41: 5062 | E41: 21 | F41: 5070 | K41: 0 | L41: 222
A42: 21 | B42: 5213 | C42: 21 | D42: 5219 | E42: 21 | F42: 5257 | K42: 0 | L42: 222
A43: 21 | B43: 5366 | C43: 21 | D43: 5415 | E43: 21 | F43: 5432 | K43: 0 | L43: 222
A44: 21 | B44: 5527 | C44: 21 | D44: 5535 | E44: 21 | F44: 5577 | K44: 0 | L44: 222
A45: 21 | B45: 5670 | C45: 21 | D45: 5679 | E45: 21 | F45: 5688 | K45: 0 | L45: 222
A46: 21 | B46: 5897 | C46: 21 | D46: 5902 | E46: 21 | F46: 5909 | K46: 0 | L46: 222
A47: 21 | B47: 6019 | C47: 21 | D47: 6043 | E47: 21 | F47: 6073 | K47: 1 | L47: 222

Sheet !M319B0I.sha
A1: Report for:!M319B0I.sha
A2: Date: | B2: <date>
A3: Hen: | B3: <hen> | F3: Correct Sequence | G3: =Start!J2 -> 222 | P3: Total Sequences in Data | Q3: =4994-COUNTBLANK(L7:L5000) -> 41 | V3: Total Sequences in Block Data | W3: =COUNTA(L7:L13) -> 7 | AA3: Total Sequences in Block Data | AB3: =COUNTA(L14:L20) -> 7 | AF3: Total Sequences in Block Data | AG3: =COUNTA(L21:L26) -> 6 | AK3: Total Sequences in Block Data | AL3: =COUNTA(L27:L33) -> 7 | AP3: Total Sequences in Block Data | AQ3: =COUNTA(L34:L40) -> 7 | AU3: Total Sequences in Block Data | AV3: =COUNTA(L41:L47) -> 7
P4: Total Sequences in Summary | Q4: =SUM(O7:O14) -> 41 | V4: Total Sequences in Block Summary | W4: =SUM(U7:U14) -> 7 | AA4: Total Sequences in Block Summary | AB4: =SUM(Z7:Z14) -> 7 | AF4: Total Sequences in Block Summary | AG4: =SUM(AE7:AE14) -> 6 | AK4: Total Sequences in Block Summary | AL4: =SUM(AJ7:AJ14) -> 7 | AP4: Total Sequences in Block Summary | AQ4: =SUM(AO7:AO14) -> 7 | AU4: Total Sequences in Block Summary | AV4: =SUM(AT7:AT14) -> 7
T5: Block 1 | Y5: Block 2 | AD5: Block 3 | AI5: Block 4 | AN5: Block 5 | AS5: Block 6
A6: Sequence Component 1 | B6: Time 1 | C6: Sequence Component 2 | D6: Time 2 | E6: Sequence Component 3 | F6: Time 3 | G6: Sequence Component 4 | H6: Time 4 | I6: Sequence Component 5 | J6: Time 5 | K6: Correct? 0=No 1=Yes | L6: Sequence | N6: Frequency | P6: Relative Frequency | Q6: Variability | T6: Frequency | V6: Relative Frequency | W6: Variability | Y6: Frequency | AA6: Relative Frequency | AB6: Variability | AD6: Frequency | AF6: Relative Frequency | AG6: Variability | AI6: Frequency | AK6: Relative Frequency | AL6: Variability | AN6: Frequency | AP6: Relative Frequency | AQ6: Variability | AS6: Frequency | AU6: Relative Frequency | AV6: Variability
A7: 12 | B7: 32 | C7: 23 | D7: 45 | E7: 23 | F7: 62 | K7: 0 | L7: 122 | N7: 111 | O7: =COUNTIF($L$7:$L$500,N7) -> 0 | P7: =O7/$Q$4 -> 0 | Q7: =IF(P7=0,0,(P7*((LOG(P7))/LOG(2)))) -> 0 | T7: =N7 -> 111 | U7: =COUNTIF(L7:L13,T7) -> 0 | V7: =U7/(W4-U14) -> 0 | W7: =IF(V7=0,0,(V7*((LOG(V7))/LOG(2)))) -> 0 | Y7: =N7 -> 111 | Z7: =COUNTIF(L14:L20,Y7) -> 0 | AA7: =Z7/(AB4-Z14) ->  | AB7: =IF(AA7=0,0,(AA7*((LOG(AA7))/LOG(2)))) ->  | AD7: =N7 -> 111 | AE7: =COUNTIF(L21:L26,AD7) -> 0 | AF7: =AE7/(AG4-AE14) ->  | AG7: =IF(AF7=0,0,(AF7*((LOG(AF7))/LOG(2)))) ->  | AI7: =N7 -> 111 | AJ7: =COUNTIF(L27:L33,AI7) -> 0 | AK7: =AJ7/(AL4-AJ14) ->  | AL7: =IF(AK7=0,0,(AK7*((LOG(AK7))/LOG(2)))) ->  | AN7: =N7 -> 111 | AO7: =COUNTIF(L34:L40,AN7) -> 0 | AP7: =AO7/(AQ4-AO14) ->  | AQ7: =IF(AP7=0,0,(AP7*((LOG(AP7))/LOG(2)))) ->  | AS7: =N7 -> 111 | AT7: =COUNTIF(L41:L47,AS7) -> 0 | AU7: =AT7/(AV4-AT14) ->  | AV7: =IF(AU7=0,0,(AU7*((LOG(AU7))/LOG(2)))) -> 
A8: 21 | B8: 159 | C8: 21 | D8: 181 | E8: 21 | F8: 232 | K8: 0 | L8: 222 | N8: 112 | O8: =COUNTIF($L$7:$L$500,N8) -> 0 | P8: =O8/$Q$4 -> 0 | Q8: =IF(P8=0,0,(P8*((LOG(P8))/LOG(2)))) -> 0 | T8: =N8 -> 112 | U8: =COUNTIF(L7:L13,T8) -> 0 | V8: =U8/(W4-U14) -> 0 | W8: =IF(V8=0,0,(V8*((LOG(V8))/LOG(2)))) -> 0 | Y8: =N8 -> 112 | Z8: =COUNTIF(L14:L20,Y8) -> 0 | AA8: =Z8/(AB4-Z14) ->  | AB8: =IF(AA8=0,0,(AA8*((LOG(AA8))/LOG(2)))) ->  | AD8: =N8 -> 112 | AE8: =COUNTIF(L21:L26,AD8) -> 0 | AF8: =AE8/(AG4-AE14) ->  | AG8: =IF(AF8=0,0,(AF8*((LOG(AF8))/LOG(2)))) ->  | AI8: =N8 -> 112 | AJ8: =COUNTIF(L27:L33,AI8) -> 0 | AK8: =AJ8/(AL4-AJ14) ->  | AL8: =IF(AK8=0,0,(AK8*((LOG(AK8))/LOG(2)))) ->  | AN8: =N8 -> 112 | AO8: =COUNTIF(L34:L40,AN8) -> 0 | AP8: =AO8/(AQ4-AO14) ->  | AQ8: =IF(AP8=0,0,(AP8*((LOG(AP8))/LOG(2)))) ->  | AS8: =N8 -> 112 | AT8: =COUNTIF(L41:L47,AS8) -> 0 | AU8: =AT8/(AV4-AT14) ->  | AV8: =IF(AU8=0,0,(AU8*((LOG(AU8))/LOG(2)))) -> 
A9: 21 | B9: 325 | C9: 21 | D9: 341 | E9: 21 | F9: 361 | K9: 0 | L9: 222 | N9: 121 | O9: =COUNTIF($L$7:$L$500,N9) -> 0 | P9: =O9/$Q$4 -> 0 | Q9: =IF(P9=0,0,(P9*((LOG(P9))/LOG(2)))) -> 0 | T9: =N9 -> 121 | U9: =COUNTIF(L7:L13,T9) -> 0 | V9: =U9/(W4-U14) -> 0 | W9: =IF(V9=0,0,(V9*((LOG(V9))/LOG(2)))) -> 0 | Y9: =N9 -> 121 | Z9: =COUNTIF(L14:L20,Y9) -> 0 | AA9: =Z9/(AB4-Z14) ->  | AB9: =IF(AA9=0,0,(AA9*((LOG(AA9))/LOG(2)))) ->  | AD9: =N9 -> 121 | AE9: =COUNTIF(L21:L26,AD9) -> 0 | AF9: =AE9/(AG4-AE14) ->  | AG9: =IF(AF9=0,0,(AF9*((LOG(AF9))/LOG(2)))) ->  | AI9: =N9 -> 121 | AJ9: =COUNTIF(L27:L33,AI9) -> 0 | AK9: =AJ9/(AL4-AJ14) ->  | AL9: =IF(AK9=0,0,(AK9*((LOG(AK9))/LOG(2)))) ->  | AN9: =N9 -> 121 | AO9: =COUNTIF(L34:L40,AN9) -> 0 | AP9: =AO9/(AQ4-AO14) ->  | AQ9: =IF(AP9=0,0,(AP9*((LOG(AP9))/LOG(2)))) ->  | AS9: =N9 -> 121 | AT9: =COUNTIF(L41:L47,AS9) -> 0 | AU9: =AT9/(AV4-AT14) ->  | AV9: =IF(AU9=0,0,(AU9*((LOG(AU9))/LOG(2)))) -> 
A10: 21 | B10: 476 | C10: 21 | D10: 483 | E10: 21 | F10: 524 | K10: 0 | L10: 222 | N10: 122 | O10: =COUNTIF($L$7:$L$500,N10) -> 1 | P10: =O10/$Q$4 -> 0.0243902439 | Q10: =IF(P10=0,0,(P10*((LOG(P10))/LOG(2)))) -> -0.1306720001 | T10: =N10 -> 122 | U10: =COUNTIF(L7:L13,T10) -> 1 | V10: =U10/(W4-U14) -> 1 | W10: =IF(V10=0,0,(V10*((LOG(V10))/LOG(2)))) -> 0 | Y10: =N10 -> 122 | Z10: =COUNTIF(L14:L20,Y10) -> 0 | AA10: =Z10/(AB4-Z14) ->  | AB10: =IF(AA10=0,0,(AA10*((LOG(AA10))/LOG(2)))) ->  | AD10: =N10 -> 122 | AE10: =COUNTIF(L21:L26,AD10) -> 0 | AF10: =AE10/(AG4-AE14) ->  | AG10: =IF(AF10=0,0,(AF10*((LOG(AF10))/LOG(2)))) ->  | AI10: =N10 -> 122 | AJ10: =COUNTIF(L27:L33,AI10) -> 0 | AK10: =AJ10/(AL4-AJ14) ->  | AL10: =IF(AK10=0,0,(AK10*((LOG(AK10))/LOG(2)))) ->  | AN10: =N10 -> 122 | AO10: =COUNTIF(L34:L40,AN10) -> 0 | AP10: =AO10/(AQ4-AO14) ->  | AQ10: =IF(AP10=0,0,(AP10*((LOG(AP10))/LOG(2)))) ->  | AS10: =N10 -> 122 | AT10: =COUNTIF(L41:L47,AS10) -> 0 | AU10: =AT10/(AV4-AT14) ->  | AV10: =IF(AU10=0,0,(AU10*((LOG(AU10))/LOG(2)))) -> 
A11: 21 | B11: 655 | C11: 21 | D11: 689 | E11: 21 | F11: 718 | K11: 0 | L11: 222 | N11: 211 | O11: =COUNTIF($L$7:$L$500,N11) -> 0 | P11: =O11/$Q$4 -> 0 | Q11: =IF(P11=0,0,(P11*((LOG(P11))/LOG(2)))) -> 0 | T11: =N11 -> 211 | U11: =COUNTIF(L7:L13,T11) -> 0 | V11: =U11/(W4-U14) -> 0 | W11: =IF(V11=0,0,(V11*((LOG(V11))/LOG(2)))) -> 0 | Y11: =N11 -> 211 | Z11: =COUNTIF(L14:L20,Y11) -> 0 | AA11: =Z11/(AB4-Z14) ->  | AB11: =IF(AA11=0,0,(AA11*((LOG(AA11))/LOG(2)))) ->  | AD11: =N11 -> 211 | AE11: =COUNTIF(L21:L26,AD11) -> 0 | AF11: =AE11/(AG4-AE14) ->  | AG11: =IF(AF11=0,0,(AF11*((LOG(AF11))/LOG(2)))) ->  | AI11: =N11 -> 211 | AJ11: =COUNTIF(L27:L33,AI11) -> 0 | AK11: =AJ11/(AL4-AJ14) ->  | AL11: =IF(AK11=0,0,(AK11*((LOG(AK11))/LOG(2)))) ->  | AN11: =N11 -> 211 | AO11: =COUNTIF(L34:L40,AN11) -> 0 | AP11: =AO11/(AQ4-AO14) ->  | AQ11: =IF(AP11=0,0,(AP11*((LOG(AP11))/LOG(2)))) ->  | AS11: =N11 -> 211 | AT11: =COUNTIF(L41:L47,AS11) -> 0 | AU11: =AT11/(AV4-AT14) ->  | AV11: =IF(AU11=0,0,(AU11*((LOG(AU11))/LOG(2)))) -> 
A12: 21 | B12: 857 | C12: 21 | D12: 872 | E12: 21 | F12: 888 | K12: 0 | L12: 222 | N12: 212 | O12: =COUNTIF($L$7:$L$500,N12) -> 0 | P12: =O12/$Q$4 -> 0 | Q12: =IF(P12=0,0,(P12*((LOG(P12))/LOG(2)))) -> 0 | T12: =N12 -> 212 | U12: =COUNTIF(L7:L13,T12) -> 0 | V12: =U12/(W4-U14) -> 0 | W12: =IF(V12=0,0,(V12*((LOG(V12))/LOG(2)))) -> 0 | Y12: =N12 -> 212 | Z12: =COUNTIF(L14:L20,Y12) -> 0 | AA12: =Z12/(AB4-Z14) ->  | AB12: =IF(AA12=0,0,(AA12*((LOG(AA12))/LOG(2)))) ->  | AD12: =N12 -> 212 | AE12: =COUNTIF(L21:L26,AD12) -> 0 | AF12: =AE12/(AG4-AE14) ->  | AG12: =IF(AF12=0,0,(AF12*((LOG(AF12))/LOG(2)))) ->  | AI12: =N12 -> 212 | AJ12: =COUNTIF(L27:L33,AI12) -> 0 | AK12: =AJ12/(AL4-AJ14) ->  | AL12: =IF(AK12=0,0,(AK12*((LOG(AK12))/LOG(2)))) ->  | AN12: =N12 -> 212 | AO12: =COUNTIF(L34:L40,AN12) -> 0 | AP12: =AO12/(AQ4-AO14) ->  | AQ12: =IF(AP12=0,0,(AP12*((LOG(AP12))/LOG(2)))) ->  | AS12: =N12 -> 212 | AT12: =COUNTIF(L41:L47,AS12) -> 0 | AU12: =AT12/(AV4-AT14) ->  | AV12: =IF(AU12=0,0,(AU12*((LOG(AU12))/LOG(2)))) -> 
A13: 21 | B13: 1037 | C13: 21 | D13: 1044 | E13: 21 | F13: 1078 | K13: 0 | L13: 222 | N13: 221 | O13: =COUNTIF($L$7:$L$500,N13) -> 0 | P13: =O13/$Q$4 -> 0 | Q13: =IF(P13=0,0,(P13*((LOG(P13))/LOG(2)))) -> 0 | T13: =N13 -> 221 | U13: =COUNTIF(L7:L13,T13) -> 0 | V13: =U13/(W4-U14) -> 0 | W13: =IF(V13=0,0,(V13*((LOG(V13))/LOG(2)))) -> 0 | Y13: =N13 -> 221 | Z13: =COUNTIF(L14:L20,Y13) -> 0 | AA13: =Z13/(AB4-Z14) ->  | AB13: =IF(AA13=0,0,(AA13*((LOG(AA13))/LOG(2)))) ->  | AD13: =N13 -> 221 | AE13: =COUNTIF(L21:L26,AD13) -> 0 | AF13: =AE13/(AG4-AE14) ->  | AG13: =IF(AF13=0,0,(AF13*((LOG(AF13))/LOG(2)))) ->  | AI13: =N13 -> 221 | AJ13: =COUNTIF(L27:L33,AI13) -> 0 | AK13: =AJ13/(AL4-AJ14) ->  | AL13: =IF(AK13=0,0,(AK13*((LOG(AK13))/LOG(2)))) ->  | AN13: =N13 -> 221 | AO13: =COUNTIF(L34:L40,AN13) -> 0 | AP13: =AO13/(AQ4-AO14) ->  | AQ13: =IF(AP13=0,0,(AP13*((LOG(AP13))/LOG(2)))) ->  | AS13: =N13 -> 221 | AT13: =COUNTIF(L41:L47,AS13) -> 0 | AU13: =AT13/(AV4-AT14) ->  | AV13: =IF(AU13=0,0,(AU13*((LOG(AU13))/LOG(2)))) -> 
A14: 21 | B14: 1205 | C14: 21 | D14: 1216 | E14: 21 | F14: 1224 | K14: 0 | L14: 222 | N14: 222 | O14: =COUNTIF($L$7:$L$500,N14) -> 40 | P14: =O14/$Q$4 -> 0.9756097561 | Q14: =IF(P14=0,0,(P14*((LOG(P14))/LOG(2)))) -> -0.03475503388 | T14: =N14 -> 222 | U14: =COUNTIF(L7:L13,T14) -> 6 | Y14: =N14 -> 222 | Z14: =COUNTIF(L14:L20,Y14) -> 7 | AD14: =N14 -> 222 | AE14: =COUNTIF(L21:L26,AD14) -> 6 | AI14: =N14 -> 222 | AJ14: =COUNTIF(L27:L33,AI14) -> 7 | AN14: =N14 -> 222 | AO14: =COUNTIF(L34:L40,AN14) -> 7 | AS14: =N14 -> 222 | AT14: =COUNTIF(L41:L47,AS14) -> 7
A15: 21 | B15: 1321 | C15: 21 | D15: 1326 | E15: 21 | F15: 1334 | K15: 0 | L15: 222 | P15: =SUM(P7:P14) -> 1 | Q15: =-SUM(Q7:Q14) -> 0.165427034 | V15: =SUM(V7:V14) -> 1 | W15: =-SUM(W7:W14) -> 0 | AA15: =SUM(AA7:AA14) ->  | AB15: =-SUM(AB7:AB14) ->  | AF15: =SUM(AF7:AF14) ->  | AG15: =-SUM(AG7:AG14) ->  | AK15: =SUM(AK7:AK14) ->  | AL15: =-SUM(AL7:AL14) ->  | AP15: =SUM(AP7:AP14) ->  | AQ15: =-SUM(AQ7:AQ14) ->  | AU15: =SUM(AU7:AU14) ->  | AV15: =-SUM(AV7:AV14) -> 
A16: 21 | B16: 1441 | C16: 21 | D16: 1447 | E16: 21 | F16: 1462 | K16: 0 | L16: 222 | P16: U= | Q16: =Q15/(LOG(Q4)/LOG(2)) -> 0.03087735478 | V16: U1= | W16: =W15/(LOG(W4)/LOG(2)) -> 0 | AA16: U2= | AB16: =AB15/(LOG(AB4)/LOG(2)) ->  | AF16: U3= | AG16: =AG15/(LOG(AG4)/LOG(2)) ->  | AK16: U4= | AL16: =AL15/(LOG(AL4)/LOG(2)) ->  | AP16: U5= | AQ16: =AQ15/(LOG(AQ4)/LOG(2)) ->  | AU16: U6= | AV16: =AV15/(LOG(AV4)/LOG(2)) -> 
A17: 21 | B17: 1572 | C17: 21 | D17: 1578 | E17: 21 | F17: 1630 | K17: 0 | L17: 222
A18: 21 | B18: 1762 | C18: 21 | D18: 1771 | E18: 21 | F18: 1800 | K18: 0 | L18: 222
A19: 21 | B19: 1899 | C19: 21 | D19: 1924 | E19: 21 | F19: 1934 | K19: 0 | L19: 222 | N19: Total Target Seq
A20: 21 | B20: 2042 | C20: 21 | D20: 2047 | E20: 21 | F20: 2057 | K20: 0 | L20: 222 | N20: =COUNTIF(L7:L47,G3) -> 40 | P20: 7 | Q20: 7 | R20: 6 | S20: 7 | T20: 7 | U20: 7
A21: 21 | B21: 2184 | C21: 21 | D21: 2205 | E21: 21 | F21: 2228 | K21: 0 | L21: 222 | P21: % of reinforcement given in 6 equal intervals based on number of trials
A22: 21 | B22: 2340 | C22: 21 | D22: 2346 | E22: 21 | F22: 2356 | K22: 0 | L22: 222 | P22: %_1 | Q22: %_2 | R22: %_3 | S22: %_4 | T22: %_5 | U22: %_6
A23: 21 | B23: 2507 | C23: 21 | D23: 2539 | E23: 21 | F23: 2548 | K23: 0 | L23: 222 | O23: target sequence | P23: =$G$3 -> 222 | Q23: =$G$3 -> 222 | R23: =$G$3 -> 222 | S23: =$G$3 -> 222 | T23: =$G$3 -> 222 | U23: =$G$3 -> 222
A24: 21 | B24: 2668 | C24: 21 | D24: 2675 | E24: 21 | F24: 2697 | K24: 0 | L24: 222 | O24: total reinforcement | P24: =U14 -> 6 | Q24: =Z14 -> 7 | R24: =AE14 -> 6 | S24: =AJ14 -> 7 | T24: =AO14 -> 7 | U24: =AT14 -> 7
A25: 21 | B25: 2793 | C25: 21 | D25: 2799 | E25: 21 | F25: 2831 | K25: 0 | L25: 222 | O25: % target
A26: 21 | B26: 2976 | C26: 21 | D26: 2982 | E26: 21 | F26: 2991 | K26: 0 | L26: 222 | O26: CCRF
A27: 21 | B27: 3095 | C27: 21 | D27: 3118 | E27: 21 | F27: 3141 | K27: 0 | L27: 222 | O27: % CCRf
A28: 21 | B28: 3311 | C28: 21 | D28: 3319 | E28: 21 | F28: 3344 | K28: 0 | L28: 222 | O28: average response rate | P28: =F13/P20 -> 154 | Q28: =(F20-F13)/Q20 -> 139.8571429 | R28: =(F26-F20)/R20 -> 155.6666667 | S28: =(F33-F26)/S20 -> 159 | T28: =(F40-F33)/T20 -> 158.5714286 | U28: =(F47-F40)/U20 -> 167.5714286
A29: 21 | B29: 3472 | C29: 21 | D29: 3477 | E29: 21 | F29: 3485 | K29: 0 | L29: 222
A30: 21 | B30: 3631 | C30: 21 | D30: 3637 | E30: 21 | F30: 3653 | K30: 0 | L30: 222
A31: 21 | B31: 3752 | C31: 21 | D31: 3823 | E31: 21 | F31: 3864 | K31: 0 | L31: 222
A32: 21 | B32: 3969 | C32: 21 | D32: 3977 | E32: 21 | F32: 3987 | K32: 0 | L32: 222
A33: 21 | B33: 4084 | C33: 21 | D33: 4093 | E33: 21 | F33: 4104 | K33: 0 | L33: 222
A34: 21 | B34: 4226 | C34: 21 | D34: 4238 | E34: 21 | F34: 4248 | K34: 0 | L34: 222
A35: 21 | B35: 4454 | C35: 21 | D35: 4465 | E35: 21 | F35: 4480 | K35: 0 | L35: 222
A36: 21 | B36: 4572 | C36: 21 | D36: 4581 | E36: 21 | F36: 4590 | K36: 0 | L36: 222
A37: 21 | B37: 4696 | C37: 21 | D37: 4701 | E37: 21 | F37: 4709 | K37: 0 | L37: 222
A38: 21 | B38: 4808 | C38: 21 | D38: 4848 | E38: 21 | F38: 4890 | K38: 0 | L38: 222
A39: 21 | B39: 5038 | C39: 21 | D39: 5044 | E39: 21 | F39: 5053 | K39: 0 | L39: 222
A40: 21 | B40: 5159 | C40: 21 | D40: 5191 | E40: 21 | F40: 5214 | K40: 0 | L40: 222
A41: 21 | B41: 5329 | C41: 21 | D41: 5338 | E41: 21 | F41: 5348 | K41: 0 | L41: 222
A42: 21 | B42: 5449 | C42: 21 | D42: 5456 | E42: 21 | F42: 5466 | K42: 0 | L42: 222
A43: 21 | B43: 5641 | C43: 21 | D43: 5697 | E43: 21 | F43: 5717 | K43: 0 | L43: 222
A44: 21 | B44: 5829 | C44: 21 | D44: 5834 | E44: 21 | F44: 5847 | K44: 0 | L44: 222
A45: 21 | B45: 5973 | C45: 21 | D45: 5978 | E45: 21 | F45: 6014 | K45: 0 | L45: 222
A46: 21 | B46: 6171 | C46: 21 | D46: 6254 | E46: 21 | F46: 6272 | K46: 0 | L46: 222
A47: 21 | B47: 6366 | C47: 21 | D47: 6372 | E47: 21 | F47: 6387 | K47: 1 | L47: 222

Sheet !M320B0I.sha
A1: Report for:!M320B0I.sha
A2: Date: | B2: <date>
A3: Hen: | B3: <hen> | F3: Correct Sequence | G3: =Start!J2 -> 222 | P3: Total Sequences in Data | Q3: =4994-COUNTBLANK(L7:L5000) -> 40 | V3: Total Sequences in Block Data | W3: =COUNTA(L7:L13) -> 7 | AA3: Total Sequences in Block Data | AB3: =COUNTA(L14:L19) -> 6 | AF3: Total Sequences in Block Data | AG3: =COUNTA(L20:L26) -> 7 | AK3: Total Sequences in Block Data | AL3: =COUNTA(L27:L33) -> 7 | AP3: Total Sequences in Block Data | AQ3: =COUNTA(L34:L39) -> 6 | AU3: Total Sequences in Block Data | AV3: =COUNTA(L40:L46) -> 7
P4: Total Sequences in Summary | Q4: =SUM(O7:O14) -> 40 | V4: Total Sequences in Block Summary | W4: =SUM(U7:U14) -> 7 | AA4: Total Sequences in Block Summary | AB4: =SUM(Z7:Z14) -> 6 | AF4: Total Sequences in Block Summary | AG4: =SUM(AE7:AE14) -> 7 | AK4: Total Sequences in Block Summary | AL4: =SUM(AJ7:AJ14) -> 7 | AP4: Total Sequences in Block Summary | AQ4: =SUM(AO7:AO14) -> 6 | AU4: Total Sequences in Block Summary | AV4: =SUM(AT7:AT14) -> 7
T5: Block 1 | Y5: Block 2 | AD5: Block 3 | AI5: Block 4 | AN5: Block 5 | AS5: Block 6
A6: Sequence Component 1 | B6: Time 1 | C6: Sequence Component 2 | D6: Time 2 | E6: Sequence Component 3 | F6: Time 3 | G6: Sequence Component 4 | H6: Time 4 | I6: Sequence Component 5 | J6: Time 5 | K6: Correct? 0=No 1=Yes | L6: Sequence | N6: Frequency | P6: Relative Frequency | Q6: Variability | T6: Frequency | V6: Relative Frequency | W6: Variability | Y6: Frequency | AA6: Relative Frequency | AB6: Variability | AD6: Frequency | AF6: Relative Frequency | AG6: Variability | AI6: Frequency | AK6: Relative Frequency | AL6: Variability | AN6: Frequency | AP6: Relative Frequency | AQ6: Variability | AS6: Frequency | AU6: Relative Frequency | AV6: Variability
A7: 21 | B7: 83 | C7: 21 | D7: 90 | E7: 21 | F7: 97 | K7: 0 | L7: 222 | N7: 111 | O7: =COUNTIF($L$7:$L$500,N7) -> 0 | P7: =O7/$Q$4 -> 0 | Q7: =IF(P7=0,0,(P7*((LOG(P7))/LOG(2)))) -> 0 | T7: =N7 -> 111 | U7: =COUNTIF(L7:L13,T7) -> 0 | V7: =U7/(W4-U14) ->  | W7: =IF(V7=0,0,(V7*((LOG(V7))/LOG(2)))) ->  | Y7: =N7 -> 111 | Z7: =COUNTIF(L14:L19,Y7) -> 0 | AA7: =Z7/(AB4-Z14) ->  | AB7: =IF(AA7=0,0,(AA7*((LOG(AA7))/LOG(2)))) ->  | AD7: =N7 -> 111 | AE7: =COUNTIF(L20:L26,AD7) -> 0 | AF7: =AE7/(AG4-AE14) ->  | AG7: =IF(AF7=0,0,(AF7*((LOG(AF7))/LOG(2)))) ->  | AI7: =N7 -> 111 | AJ7: =COUNTIF(L27:L33,AI7) -> 0 | AK7: =AJ7/(AL4-AJ14) ->  | AL7: =IF(AK7=0,0,(AK7*((LOG(AK7))/LOG(2)))) ->  | AN7: =N7 -> 111 | AO7: =COUNTIF(L34:L39,AN7) -> 0 | AP7: =AO7/(AQ4-AO14) ->  | AQ7: =IF(AP7=0,0,(AP7*((LOG(AP7))/LOG(2)))) ->  | AS7: =N7 -> 111 | AT7: =COUNTIF(L40:L46,AS7) -> 0 | AU7: =AT7/(AV4-AT14) ->  | AV7: =IF(AU7=0,0,(AU7*((LOG(AU7))/LOG(2)))) -> 
A8: 21 | B8: 206 | C8: 21 | D8: 269 | E8: 21 | F8: 290 | K8: 0 | L8: 222 | N8: 112 | O8: =COUNTIF($L$7:$L$500,N8) -> 0 | P8: =O8/$Q$4 -> 0 | Q8: =IF(P8=0,0,(P8*((LOG(P8))/LOG(2)))) -> 0 | T8: =N8 -> 112 | U8: =COUNTIF(L7:L13,T8) -> 0 | V8: =U8/(W4-U14) ->  | W8: =IF(V8=0,0,(V8*((LOG(V8))/LOG(2)))) ->  | Y8: =N8 -> 112 | Z8: =COUNTIF(L14:L19,Y8) -> 0 | AA8: =Z8/(AB4-Z14) ->  | AB8: =IF(AA8=0,0,(AA8*((LOG(AA8))/LOG(2)))) ->  | AD8: =N8 -> 112 | AE8: =COUNTIF(L20:L26,AD8) -> 0 | AF8: =AE8/(AG4-AE14) ->  | AG8: =IF(AF8=0,0,(AF8*((LOG(AF8))/LOG(2)))) ->  | AI8: =N8 -> 112 | AJ8: =COUNTIF(L27:L33,AI8) -> 0 | AK8: =AJ8/(AL4-AJ14) ->  | AL8: =IF(AK8=0,0,(AK8*((LOG(AK8))/LOG(2)))) ->  | AN8: =N8 -> 112 | AO8: =COUNTIF(L34:L39,AN8) -> 0 | AP8: =AO8/(AQ4-AO14) ->  | AQ8: =IF(AP8=0,0,(AP8*((LOG(AP8))/LOG(2)))) ->  | AS8: =N8 -> 112 | AT8: =COUNTIF(L40:L46,AS8) -> 0 | AU8: =AT8/(AV4-AT14) ->  | AV8: =IF(AU8=0,0,(AU8*((LOG(AU8))/LOG(2)))) -> 
A9: 21 | B9: 390 | C9: 21 | D9: 395 | E9: 21 | F9: 403 | K9: 0 | L9: 222 | N9: 121 | O9: =COUNTIF($L$7:$L$500,N9) -> 0 | P9: =O9/$Q$4 -> 0 | Q9: =IF(P9=0,0,(P9*((LOG(P9))/LOG(2)))) -> 0 | T9: =N9 -> 121 | U9: =COUNTIF(L7:L13,T9) -> 0 | V9: =U9/(W4-U14) ->  | W9: =IF(V9=0,0,(V9*((LOG(V9))/LOG(2)))) ->  | Y9: =N9 -> 121 | Z9: =COUNTIF(L14:L19,Y9) -> 0 | AA9: =Z9/(AB4-Z14) ->  | AB9: =IF(AA9=0,0,(AA9*((LOG(AA9))/LOG(2)))) ->  | AD9: =N9 -> 121 | AE9: =COUNTIF(L20:L26,AD9) -> 0 | AF9: =AE9/(AG4-AE14) ->  | AG9: =IF(AF9=0,0,(AF9*((LOG(AF9))/LOG(2)))) ->  | AI9: =N9 -> 121 | AJ9: =COUNTIF(L27:L33,AI9) -> 0 | AK9: =AJ9/(AL4-AJ14) ->  | AL9: =IF(AK9=0,0,(AK9*((LOG(AK9))/LOG(2)))) ->  | AN9: =N9 -> 121 | AO9: =COUNTIF(L34:L39,AN9) -> 0 | AP9: =AO9/(AQ4-AO14) ->  | AQ9: =IF(AP9=0,0,(AP9*((LOG(AP9))/LOG(2)))) ->  | AS9: =N9 -> 121 | AT9: =COUNTIF(L40:L46,AS9) -> 0 | AU9: =AT9/(AV4-AT14) ->  | AV9: =IF(AU9=0,0,(AU9*((LOG(AU9))/LOG(2)))) -> 
A10: 21 | B10: 496 | C10: 21 | D10: 499 | E10: 21 | F10: 505 | K10: 0 | L10: 222 | N10: 122 | O10: =COUNTIF($L$7:$L$500,N10) -> 0 | P10: =O10/$Q$4 -> 0 | Q10: =IF(P10=0,0,(P10*((LOG(P10))/LOG(2)))) -> 0 | T10: =N10 -> 122 | U10: =COUNTIF(L7:L13,T10) -> 0 | V10: =U10/(W4-U14) ->  | W10: =IF(V10=0,0,(V10*((LOG(V10))/LOG(2)))) ->  | Y10: =N10 -> 122 | Z10: =COUNTIF(L14:L19,Y10) -> 0 | AA10: =Z10/(AB4-Z14) ->  | AB10: =IF(AA10=0,0,(AA10*((LOG(AA10))/LOG(2)))) ->  | AD10: =N10 -> 122 | AE10: =COUNTIF(L20:L26,AD10) -> 0 | AF10: =AE10/(AG4-AE14) ->  | AG10: =IF(AF10=0,0,(AF10*((LOG(AF10))/LOG(2)))) ->  | AI10: =N10 -> 122 | AJ10: =COUNTIF(L27:L33,AI10) -> 0 | AK10: =AJ10/(AL4-AJ14) ->  | AL10: =IF(AK10=0,0,(AK10*((LOG(AK10))/LOG(2)))) ->  | AN10: =N10 -> 122 | AO10: =COUNTIF(L34:L39,AN10) -> 0 | AP10: =AO10/(AQ4-AO14) ->  | AQ10: =IF(AP10=0,0,(AP10*((LOG(AP10))/LOG(2)))) ->  | AS10: =N10 -> 122 | AT10: =COUNTIF(L40:L46,AS10) -> 0 | AU10: =AT10/(AV4-AT14) ->  | AV10: =IF(AU10=0,0,(AU10*((LOG(AU10))/LOG(2)))) -> 
A11: 21 | B11: 604 | C11: 21 | D11: 611 | E11: 21 | F11: 620 | K11: 0 | L11: 222 | N11: 211 | O11: =COUNTIF($L$7:$L$500,N11) -> 0 | P11: =O11/$Q$4 -> 0 | Q11: =IF(P11=0,0,(P11*((LOG(P11))/LOG(2)))) -> 0 | T11: =N11 -> 211 | U11: =COUNTIF(L7:L13,T11) -> 0 | V11: =U11/(W4-U14) ->  | W11: =IF(V11=0,0,(V11*((LOG(V11))/LOG(2)))) ->  | Y11: =N11 -> 211 | Z11: =COUNTIF(L14:L19,Y11) -> 0 | AA11: =Z11/(AB4-Z14) ->  | AB11: =IF(AA11=0,0,(AA11*((LOG(AA11))/LOG(2)))) ->  | AD11: =N11 -> 211 | AE11: =COUNTIF(L20:L26,AD11) -> 0 | AF11: =AE11/(AG4-AE14) ->  | AG11: =IF(AF11=0,0,(AF11*((LOG(AF11))/LOG(2)))) ->  | AI11: =N11 -> 211 | AJ11: =COUNTIF(L27:L33,AI11) -> 0 | AK11: =AJ11/(AL4-AJ14) ->  | AL11: =IF(AK11=0,0,(AK11*((LOG(AK11))/LOG(2)))) ->  | AN11: =N11 -> 211 | AO11: =COUNTIF(L34:L39,AN11) -> 0 | AP11: =AO11/(AQ4-AO14) ->  | AQ11: =IF(AP11=0,0,(AP11*((LOG(AP11))/LOG(2)))) ->  | AS11: =N11 -> 211 | AT11: =COUNTIF(L40:L46,AS11) -> 0 | AU11: =AT11/(AV4-AT14) ->  | AV11: =IF(AU11=0,0,(AU11*((LOG(AU11))/LOG(2)))) -> 
A12: 21 | B12: 719 | C12: 21 | D12: 731 | E12: 21 | F12: 737 | K12: 0 | L12: 222 | N12: 212 | O12: =COUNTIF($L$7:$L$500,N12) -> 0 | P12: =O12/$Q$4 -> 0 | Q12: =IF(P12=0,0,(P12*((LOG(P12))/LOG(2)))) -> 0 | T12: =N12 -> 212 | U12: =COUNTIF(L7:L13,T12) -> 0 | V12: =U12/(W4-U14) ->  | W12: =IF(V12=0,0,(V12*((LOG(V12))/LOG(2)))) ->  | Y12: =N12 -> 212 | Z12: =COUNTIF(L14:L19,Y12) -> 0 | AA12: =Z12/(AB4-Z14) ->  | AB12: =IF(AA12=0,0,(AA12*((LOG(AA12))/LOG(2)))) ->  | AD12: =N12 -> 212 | AE12: =COUNTIF(L20:L26,AD12) -> 0 | AF12: =AE12/(AG4-AE14) ->  | AG12: =IF(AF12=0,0,(AF12*((LOG(AF12))/LOG(2)))) ->  | AI12: =N12 -> 212 | AJ12: =COUNTIF(L27:L33,AI12) -> 0 | AK12: =AJ12/(AL4-AJ14) ->  | AL12: =IF(AK12=0,0,(AK12*((LOG(AK12))/LOG(2)))) ->  | AN12: =N12 -> 212 | AO12: =COUNTIF(L34:L39,AN12) -> 0 | AP12: =AO12/(AQ4-AO14) ->  | AQ12: =IF(AP12=0,0,(AP12*((LOG(AP12))/LOG(2)))) ->  | AS12: =N12 -> 212 | AT12: =COUNTIF(L40:L46,AS12) -> 0 | AU12: =AT12/(AV4-AT14) ->  | AV12: =IF(AU12=0,0,(AU12*((LOG(AU12))/LOG(2)))) -> 
A13: 21 | B13: 865 | C13: 21 | D13: 888 | E13: 21 | F13: 935 | K13: 0 | L13: 222 | N13: 221 | O13: =COUNTIF($L$7:$L$500,N13) -> 0 | P13: =O13/$Q$4 -> 0 | Q13: =IF(P13=0,0,(P13*((LOG(P13))/LOG(2)))) -> 0 | T13: =N13 -> 221 | U13: =COUNTIF(L7:L13,T13) -> 0 | V13: =U13/(W4-U14) ->  | W13: =IF(V13=0,0,(V13*((LOG(V13))/LOG(2)))) ->  | Y13: =N13 -> 221 | Z13: =COUNTIF(L14:L19,Y13) -> 0 | AA13: =Z13/(AB4-Z14) ->  | AB13: =IF(AA13=0,0,(AA13*((LOG(AA13))/LOG(2)))) ->  | AD13: =N13 -> 221 | AE13: =COUNTIF(L20:L26,AD13) -> 0 | AF13: =AE13/(AG4-AE14) ->  | AG13: =IF(AF13=0,0,(AF13*((LOG(AF13))/LOG(2)))) ->  | AI13: =N13 -> 221 | AJ13: =COUNTIF(L27:L33,AI13) -> 0 | AK13: =AJ13/(AL4-AJ14) ->  | AL13: =IF(AK13=0,0,(AK13*((LOG(AK13))/LOG(2)))) ->  | AN13: =N13 -> 221 | AO13: =COUNTIF(L34:L39,AN13) -> 0 | AP13: =AO13/(AQ4-AO14) ->  | AQ13: =IF(AP13=0,0,(AP13*((LOG(AP13))/LOG(2)))) ->  | AS13: =N13 -> 221 | AT13: =COUNTIF(L40:L46,AS13) -> 0 | AU13: =AT13/(AV4-AT14) ->  | AV13: =IF(AU13=0,0,(AU13*((LOG(AU13))/LOG(2)))) -> 
A14: 21 | B14: 1030 | C14: 21 | D14: 1036 | E14: 21 | F14: 1049 | K14: 0 | L14: 222 | N14: 222 | O14: =COUNTIF($L$7:$L$500,N14) -> 40 | P14: =O14/$Q$4 -> 1 | Q14: =IF(P14=0,0,(P14*((LOG(P14))/LOG(2)))) -> 0 | T14: =N14 -> 222 | U14: =COUNTIF(L7:L13,T14) -> 7 | Y14: =N14 -> 222 | Z14: =COUNTIF(L14:L19,Y14) -> 6 | AD14: =N14 -> 222 | AE14: =COUNTIF(L20:L26,AD14) -> 7 | AI14: =N14 -> 222 | AJ14: =COUNTIF(L27:L33,AI14) -> 7 | AN14: =N14 -> 222 | AO14: =COUNTIF(L34:L39,AN14) -> 6 | AS14: =N14 -> 222 | AT14: =COUNTIF(L40:L46,AS14) -> 7
A15: 21 | B15: 1144 | C15: 21 | D15: 1152 | E15: 21 | F15: 1162 | K15: 0 | L15: 222 | P15: =SUM(P7:P14) -> 1 | Q15: =-SUM(Q7:Q14) -> 0 | V15: =SUM(V7:V14) ->  | W15: =-SUM(W7:W14) ->  | AA15: =SUM(AA7:AA14) ->  | AB15: =-SUM(AB7:AB14) ->  | AF15: =SUM(AF7:AF14) ->  | AG15: =-SUM(AG7:AG14) ->  | AK15: =SUM(AK7:AK14) ->  | AL15: =-SUM(AL7:AL14) ->  | AP15: =SUM(AP7:AP14) ->  | AQ15: =-SUM(AQ7:AQ14) ->  | AU15: =SUM(AU7:AU14) ->  | AV15: =-SUM(AV7:AV14) -> 
A16: 21 | B16: 1282 | C16: 21 | D16: 1288 | E16: 21 | F16: 1342 | K16: 0 | L16: 222 | P16: U= | Q16: =Q15/(LOG(Q4)/LOG(2)) -> 0 | V16: U1= | W16: =W15/(LOG(W4)/LOG(2)) ->  | AA16: U2= | AB16: =AB15/(LOG(AB4)/LOG(2)) ->  | AF16: U3= | AG16: =AG15/(LOG(AG4)/LOG(2)) ->  | AK16: U4= | AL16: =AL15/(LOG(AL4)/LOG(2)) ->  | AP16: U5= | AQ16: =AQ15/(LOG(AQ4)/LOG(2)) ->  | AU16: U6= | AV16: =AV15/(LOG(AV4)/LOG(2)) -> 
A17: 21 | B17: 1446 | C17: 21 | D17: 1453 | E17: 21 | F17: 1476 | K17: 0 | L17: 222
A18: 21 | B18: 1607 | C18: 21 | D18: 1616 | E18: 21 | F18: 1626 | K18: 0 | L18: 222
A19: 21 | B19: 1721 | C19: 21 | D19: 1760 | E19: 21 | F19: 1784 | K19: 0 | L19: 222 | N19: Total Target Seq
A20: 21 | B20: 1900 | C20: 21 | D20: 1919 | E20: 21 | F20: 1932 | K20: 0 | L20: 222 | N20: =COUNTIF(L7:L46,G3) -> 40 | P20: 7 | Q20: 6 | R20: 7 | S20: 7 | T20: 6 | U20: 7
A21: 21 | B21: 2088 | C21: 21 | D21: 2099 | E21: 21 | F21: 2108 | K21: 0 | L21: 222 | P21: % of reinforcement given in 6 equal intervals based on number of trials
A22: 21 | B22: 2259 | C22: 21 | D22: 2281 | E22: 21 | F22: 2292 | K22: 0 | L22: 222 | P22: %_1 | Q22: %_2 | R22: %_3 | S22: %_4 | T22: %_5 | U22: %_6
A23: 21 | B23: 2385 | C23: 21 | D23: 2391 | E23: 21 | F23: 2400 | K23: 0 | L23: 222 | O23: target sequence | P23: =$G$3 -> 222 | Q23: =$G$3 -> 222 | R23: =$G$3 -> 222 | S23: =$G$3 -> 222 | T23: =$G$3 -> 222 | U23: =$G$3 -> 222
A24: 21 | B24: 2499 | C24: 21 | D24: 2518 | E24: 21 | F24: 2539 | K24: 0 | L24: 222 | O24: total reinforcement | P24: =U14 -> 7 | Q24: =Z14 -> 6 | R24: =AE14 -> 7 | S24: =AJ14 -> 7 | T24: =AO14 -> 6 | U24: =AT14 -> 7
A25: 21 | B25: 2634 | C25: 21 | D25: 2652 | E25: 21 | F25: 2663 | K25: 0 | L25: 222 | O25: % target
A26: 21 | B26: 2768 | C26: 21 | D26: 2780 | E26: 21 | F26: 2790 | K26: 0 | L26: 222 | O26: CCRF
A27: 21 | B27: 2905 | C27: 21 | D27: 2929 | E27: 21 | F27: 2959 | K27: 0 | L27: 222 | O27: % CCRf
A28: 21 | B28: 3063 | C28: 21 | D28: 3070 | E28: 21 | F28: 3079 | K28: 0 | L28: 222 | O28: average response rate | P28: =F13/P20 -> 133.5714286 | Q28: =(F19-F13)/Q20 -> 141.5 | R28: =(F26-F19)/R20 -> 143.7142857 | S28: =(F33-F26)/S20 -> 155.2857143 | T28: =(F39-F33)/T20 -> 158.8333333 | U28: =(F46-F39)/U20 -> 156.2857143
A29: 21 | B29: 3189 | C29: 21 | D29: 3206 | E29: 21 | F29: 3251 | K29: 0 | L29: 222
A30: 21 | B30: 3387 | C30: 21 | D30: 3395 | E30: 21 | F30: 3408 | K30: 0 | L30: 222
A31: 21 | B31: 3502 | C31: 21 | D31: 3507 | E31: 21 | F31: 3527 | K31: 0 | L31: 222
A32: 21 | B32: 3679 | C32: 21 | D32: 3685 | E32: 21 | F32: 3747 | K32: 0 | L32: 222
A33: 21 | B33: 3843 | C33: 21 | D33: 3849 | E33: 21 | F33: 3877 | K33: 0 | L33: 222
A34: 21 | B34: 4017 | C34: 21 | D34: 4030 | E34: 21 | F34: 4046 | K34: 0 | L34: 222
A35: 21 | B35: 4161 | C35: 21 | D35: 4169 | E35: 21 | F35: 4178 | K35: 0 | L35: 222
A36: 21 | B36: 4286 | C36: 21 | D36: 4309 | E36: 21 | F36: 4359 | K36: 0 | L36: 222
A37: 21 | B37: 4496 | C37: 21 | D37: 4510 | E37: 21 | F37: 4519 | K37: 0 | L37: 222
A38: 21 | B38: 4620 | C38: 21 | D38: 4641 | E38: 21 | F38: 4656 | K38: 0 | L38: 222
A39: 21 | B39: 4768 | C39: 21 | D39: 4778 | E39: 21 | F39: 4830 | K39: 0 | L39: 222
A40: 21 | B40: 4964 | C40: 21 | D40: 4988 | E40: 21 | F40: 5036 | K40: 0 | L40: 222
A41: 21 | B41: 5141 | C41: 21 | D41: 5146 | E41: 21 | F41: 5158 | K41: 0 | L41: 222
A42: 21 | B42: 5276 | C42: 21 | D42: 5283 | E42: 21 | F42: 5301 | K42: 0 | L42: 222
A43: 21 | B43: 5411 | C43: 21 | D43: 5464 | E43: 21 | F43: 5488 | K43: 0 | L43: 222
A44: 21 | B44: 5603 | C44: 21 | D44: 5608 | E44: 21 | F44: 5618 | K44: 0 | L44: 222
A45: 21 | B45: 5764 | C45: 21 | D45: 5775 | E45: 21 | F45: 5785 | K45: 0 | L45: 222
A46: 21 | B46: 5876 | C46: 21 | D46: 5884 | E46: 21 | F46: 5924 | K46: 1 | L46: 222

Sheet !M321A3I.sha
A1: Report for:!M321A3I.sha
A2: Date: | B2: <date>
A3: Hen: | B3: <hen> | F3: Correct Sequence | G3: =Start!J2 -> 222 | P3: Total Sequences in Data | Q3: =4994-COUNTBLANK(L7:L5000) -> 41 | V3: Total Sequences in Block Data | W3: =COUNTA(L7:L13) -> 7 | AA3: Total Sequences in Block Data | AB3: =COUNTA(L14:L20) -> 7 | AF3: Total Sequences in Block Data | AG3: =COUNTA(L21:L26) -> 6 | AK3: Total Sequences in Block Data | AL3: =COUNTA(L27:L33) -> 7 | AP3: Total Sequences in Block Data | AQ3: =COUNTA(L34:L40) -> 7 | AU3: Total Sequences in Block Data | AV3: =COUNTA(L41:L47) -> 7
P4: Total Sequences in Summary | Q4: =SUM(O7:O14) -> 41 | V4: Total Sequences in Block Summary | W4: =SUM(U7:U14) -> 7 | AA4: Total Sequences in Block Summary | AB4: =SUM(Z7:Z14) -> 7 | AF4: Total Sequences in Block Summary | AG4: =SUM(AE7:AE14) -> 6 | AK4: Total Sequences in Block Summary | AL4: =SUM(AJ7:AJ14) -> 7 | AP4: Total Sequences in Block Summary | AQ4: =SUM(AO7:AO14) -> 7 | AU4: Total Sequences in Block Summary | AV4: =SUM(AT7:AT14) -> 7
T5: Block 1 | Y5: Block 2 | AD5: Block 3 | AI5: Block 4 | AN5: Block 5 | AS5: Block 6
A6: Sequence Component 1 | B6: Time 1 | C6: Sequence Component 2 | D6: Time 2 | E6: Sequence Component 3 | F6: Time 3 | G6: Sequence Component 4 | H6: Time 4 | I6: Sequence Component 5 | J6: Time 5 | K6: Correct? 0=No 1=Yes | L6: Sequence | N6: Frequency | P6: Relative Frequency | Q6: Variability | T6: Frequency | V6: Relative Frequency | W6: Variability | Y6: Frequency | AA6: Relative Frequency | AB6: Variability | AD6: Frequency | AF6: Relative Frequency | AG6: Variability | AI6: Frequency | AK6: Relative Frequency | AL6: Variability | AN6: Frequency | AP6: Relative Frequency | AQ6: Variability | AS6: Frequency | AU6: Relative Frequency | AV6: Variability
A7: 21 | B7: 10 | C7: 12 | D7: 35 | E7: 14 | F7: 41 | K7: 0 | L7: 211 | N7: 111 | O7: =COUNTIF($L$7:$L$500,N7) -> 0 | P7: =O7/$Q$4 -> 0 | Q7: =IF(P7=0,0,(P7*((LOG(P7))/LOG(2)))) -> 0 | T7: =N7 -> 111 | U7: =COUNTIF(L7:L13,T7) -> 0 | V7: =U7/(W4-U14) -> 0 | W7: =IF(V7=0,0,(V7*((LOG(V7))/LOG(2)))) -> 0 | Y7: =N7 -> 111 | Z7: =COUNTIF(L14:L20,Y7) -> 0 | AA7: =Z7/(AB4-Z14) ->  | AB7: =IF(AA7=0,0,(AA7*((LOG(AA7))/LOG(2)))) ->  | AD7: =N7 -> 111 | AE7: =COUNTIF(L21:L26,AD7) -> 0 | AF7: =AE7/(AG4-AE14) ->  | AG7: =IF(AF7=0,0,(AF7*((LOG(AF7))/LOG(2)))) ->  | AI7: =N7 -> 111 | AJ7: =COUNTIF(L27:L33,AI7) -> 0 | AK7: =AJ7/(AL4-AJ14) ->  | AL7: =IF(AK7=0,0,(AK7*((LOG(AK7))/LOG(2)))) ->  | AN7: =N7 -> 111 | AO7: =COUNTIF(L34:L40,AN7) -> 0 | AP7: =AO7/(AQ4-AO14) ->  | AQ7: =IF(AP7=0,0,(AP7*((LOG(AP7))/LOG(2)))) ->  | AS7: =N7 -> 111 | AT7: =COUNTIF(L41:L47,AS7) -> 0 | AU7: =AT7/(AV4-AT14) ->  | AV7: =IF(AU7=0,0,(AU7*((LOG(AU7))/LOG(2)))) -> 
A8: 21 | B8: 138 | C8: 21 | D8: 148 | E8: 21 | F8: 164 | K8: 0 | L8: 222 | N8: 112 | O8: =COUNTIF($L$7:$L$500,N8) -> 0 | P8: =O8/$Q$4 -> 0 | Q8: =IF(P8=0,0,(P8*((LOG(P8))/LOG(2)))) -> 0 | T8: =N8 -> 112 | U8: =COUNTIF(L7:L13,T8) -> 0 | V8: =U8/(W4-U14) -> 0 | W8: =IF(V8=0,0,(V8*((LOG(V8))/LOG(2)))) -> 0 | Y8: =N8 -> 112 | Z8: =COUNTIF(L14:L20,Y8) -> 0 | AA8: =Z8/(AB4-Z14) ->  | AB8: =IF(AA8=0,0,(AA8*((LOG(AA8))/LOG(2)))) ->  | AD8: =N8 -> 112 | AE8: =COUNTIF(L21:L26,AD8) -> 0 | AF8: =AE8/(AG4-AE14) ->  | AG8: =IF(AF8=0,0,(AF8*((LOG(AF8))/LOG(2)))) ->  | AI8: =N8 -> 112 | AJ8: =COUNTIF(L27:L33,AI8) -> 0 | AK8: =AJ8/(AL4-AJ14) ->  | AL8: =IF(AK8=0,0,(AK8*((LOG(AK8))/LOG(2)))) ->  | AN8: =N8 -> 112 | AO8: =COUNTIF(L34:L40,AN8) -> 0 | AP8: =AO8/(AQ4-AO14) ->  | AQ8: =IF(AP8=0,0,(AP8*((LOG(AP8))/LOG(2)))) ->  | AS8: =N8 -> 112 | AT8: =COUNTIF(L41:L47,AS8) -> 0 | AU8: =AT8/(AV4-AT14) ->  | AV8: =IF(AU8=0,0,(AU8*((LOG(AU8))/LOG(2)))) -> 
A9: 21 | B9: 273 | C9: 21 | D9: 307 | E9: 21 | F9: 323 | K9: 0 | L9: 222 | N9: 121 | O9: =COUNTIF($L$7:$L$500,N9) -> 0 | P9: =O9/$Q$4 -> 0 | Q9: =IF(P9=0,0,(P9*((LOG(P9))/LOG(2)))) -> 0 | T9: =N9 -> 121 | U9: =COUNTIF(L7:L13,T9) -> 0 | V9: =U9/(W4-U14) -> 0 | W9: =IF(V9=0,0,(V9*((LOG(V9))/LOG(2)))) -> 0 | Y9: =N9 -> 121 | Z9: =COUNTIF(L14:L20,Y9) -> 0 | AA9: =Z9/(AB4-Z14) ->  | AB9: =IF(AA9=0,0,(AA9*((LOG(AA9))/LOG(2)))) ->  | AD9: =N9 -> 121 | AE9: =COUNTIF(L21:L26,AD9) -> 0 | AF9: =AE9/(AG4-AE14) ->  | AG9: =IF(AF9=0,0,(AF9*((LOG(AF9))/LOG(2)))) ->  | AI9: =N9 -> 121 | AJ9: =COUNTIF(L27:L33,AI9) -> 0 | AK9: =AJ9/(AL4-AJ14) ->  | AL9: =IF(AK9=0,0,(AK9*((LOG(AK9))/LOG(2)))) ->  | AN9: =N9 -> 121 | AO9: =COUNTIF(L34:L40,AN9) -> 0 | AP9: =AO9/(AQ4-AO14) ->  | AQ9: =IF(AP9=0,0,(AP9*((LOG(AP9))/LOG(2)))) ->  | AS9: =N9 -> 121 | AT9: =COUNTIF(L41:L47,AS9) -> 0 | AU9: =AT9/(AV4-AT14) ->  | AV9: =IF(AU9=0,0,(AU9*((LOG(AU9))/LOG(2)))) -> 
A10: 21 | B10: 529 | C10: 21 | D10: 545 | E10: 21 | F10: 556 | K10: 0 | L10: 222 | N10: 122 | O10: =COUNTIF($L$7:$L$500,N10) -> 0 | P10: =O10/$Q$4 -> 0 | Q10: =IF(P10=0,0,(P10*((LOG(P10))/LOG(2)))) -> 0 | T10: =N10 -> 122 | U10: =COUNTIF(L7:L13,T10) -> 0 | V10: =U10/(W4-U14) -> 0 | W10: =IF(V10=0,0,(V10*((LOG(V10))/LOG(2)))) -> 0 | Y10: =N10 -> 122 | Z10: =COUNTIF(L14:L20,Y10) -> 0 | AA10: =Z10/(AB4-Z14) ->  | AB10: =IF(AA10=0,0,(AA10*((LOG(AA10))/LOG(2)))) ->  | AD10: =N10 -> 122 | AE10: =COUNTIF(L21:L26,AD10) -> 0 | AF10: =AE10/(AG4-AE14) ->  | AG10: =IF(AF10=0,0,(AF10*((LOG(AF10))/LOG(2)))) ->  | AI10: =N10 -> 122 | AJ10: =COUNTIF(L27:L33,AI10) -> 0 | AK10: =AJ10/(AL4-AJ14) ->  | AL10: =IF(AK10=0,0,(AK10*((LOG(AK10))/LOG(2)))) ->  | AN10: =N10 -> 122 | AO10: =COUNTIF(L34:L40,AN10) -> 0 | AP10: =AO10/(AQ4-AO14) ->  | AQ10: =IF(AP10=0,0,(AP10*((LOG(AP10))/LOG(2)))) ->  | AS10: =N10 -> 122 | AT10: =COUNTIF(L41:L47,AS10) -> 0 | AU10: =AT10/(AV4-AT14) ->  | AV10: =IF(AU10=0,0,(AU10*((LOG(AU10))/LOG(2)))) -> 
A11: 21 | B11: 691 | C11: 21 | D11: 710 | E11: 21 | F11: 735 | K11: 0 | L11: 222 | N11: 211 | O11: =COUNTIF($L$7:$L$500,N11) -> 1 | P11: =O11/$Q$4 -> 0.0243902439 | Q11: =IF(P11=0,0,(P11*((LOG(P11))/LOG(2)))) -> -0.1306720001 | T11: =N11 -> 211 | U11: =COUNTIF(L7:L13,T11) -> 1 | V11: =U11/(W4-U14) -> 1 | W11: =IF(V11=0,0,(V11*((LOG(V11))/LOG(2)))) -> 0 | Y11: =N11 -> 211 | Z11: =COUNTIF(L14:L20,Y11) -> 0 | AA11: =Z11/(AB4-Z14) ->  | AB11: =IF(AA11=0,0,(AA11*((LOG(AA11))/LOG(2)))) ->  | AD11: =N11 -> 211 | AE11: =COUNTIF(L21:L26,AD11) -> 0 | AF11: =AE11/(AG4-AE14) ->  | AG11: =IF(AF11=0,0,(AF11*((LOG(AF11))/LOG(2)))) ->  | AI11: =N11 -> 211 | AJ11: =COUNTIF(L27:L33,AI11) -> 0 | AK11: =AJ11/(AL4-AJ14) ->  | AL11: =IF(AK11=0,0,(AK11*((LOG(AK11))/LOG(2)))) ->  | AN11: =N11 -> 211 | AO11: =COUNTIF(L34:L40,AN11) -> 0 | AP11: =AO11/(AQ4-AO14) ->  | AQ11: =IF(AP11=0,0,(AP11*((LOG(AP11))/LOG(2)))) ->  | AS11: =N11 -> 211 | AT11: =COUNTIF(L41:L47,AS11) -> 0 | AU11: =AT11/(AV4-AT14) ->  | AV11: =IF(AU11=0,0,(AU11*((LOG(AU11))/LOG(2)))) -> 
A12: 21 | B12: 856 | C12: 21 | D12: 873 | E12: 21 | F12: 886 | K12: 0 | L12: 222 | N12: 212 | O12: =COUNTIF($L$7:$L$500,N12) -> 0 | P12: =O12/$Q$4 -> 0 | Q12: =IF(P12=0,0,(P12*((LOG(P12))/LOG(2)))) -> 0 | T12: =N12 -> 212 | U12: =COUNTIF(L7:L13,T12) -> 0 | V12: =U12/(W4-U14) -> 0 | W12: =IF(V12=0,0,(V12*((LOG(V12))/LOG(2)))) -> 0 | Y12: =N12 -> 212 | Z12: =COUNTIF(L14:L20,Y12) -> 0 | AA12: =Z12/(AB4-Z14) ->  | AB12: =IF(AA12=0,0,(AA12*((LOG(AA12))/LOG(2)))) ->  | AD12: =N12 -> 212 | AE12: =COUNTIF(L21:L26,AD12) -> 0 | AF12: =AE12/(AG4-AE14) ->  | AG12: =IF(AF12=0,0,(AF12*((LOG(AF12))/LOG(2)))) ->  | AI12: =N12 -> 212 | AJ12: =COUNTIF(L27:L33,AI12) -> 0 | AK12: =AJ12/(AL4-AJ14) ->  | AL12: =IF(AK12=0,0,(AK12*((LOG(AK12))/LOG(2)))) ->  | AN12: =N12 -> 212 | AO12: =COUNTIF(L34:L40,AN12) -> 0 | AP12: =AO12/(AQ4-AO14) ->  | AQ12: =IF(AP12=0,0,(AP12*((LOG(AP12))/LOG(2)))) ->  | AS12: =N12 -> 212 | AT12: =COUNTIF(L41:L47,AS12) -> 0 | AU12: =AT12/(AV4-AT14) ->  | AV12: =IF(AU12=0,0,(AU12*((LOG(AU12))/LOG(2)))) -> 
A13: 21 | B13: 1019 | C13: 21 | D13: 1026 | E13: 21 | F13: 1032 | K13: 0 | L13: 222 | N13: 221 | O13: =COUNTIF($L$7:$L$500,N13) -> 0 | P13: =O13/$Q$4 -> 0 | Q13: =IF(P13=0,0,(P13*((LOG(P13))/LOG(2)))) -> 0 | T13: =N13 -> 221 | U13: =COUNTIF(L7:L13,T13) -> 0 | V13: =U13/(W4-U14) -> 0 | W13: =IF(V13=0,0,(V13*((LOG(V13))/LOG(2)))) -> 0 | Y13: =N13 -> 221 | Z13: =COUNTIF(L14:L20,Y13) -> 0 | AA13: =Z13/(AB4-Z14) ->  | AB13: =IF(AA13=0,0,(AA13*((LOG(AA13))/LOG(2)))) ->  | AD13: =N13 -> 221 | AE13: =COUNTIF(L21:L26,AD13) -> 0 | AF13: =AE13/(AG4-AE14) ->  | AG13: =IF(AF13=0,0,(AF13*((LOG(AF13))/LOG(2)))) ->  | AI13: =N13 -> 221 | AJ13: =COUNTIF(L27:L33,AI13) -> 0 | AK13: =AJ13/(AL4-AJ14) ->  | AL13: =IF(AK13=0,0,(AK13*((LOG(AK13))/LOG(2)))) ->  | AN13: =N13 -> 221 | AO13: =COUNTIF(L34:L40,AN13) -> 0 | AP13: =AO13/(AQ4-AO14) ->  | AQ13: =IF(AP13=0,0,(AP13*((LOG(AP13))/LOG(2)))) ->  | AS13: =N13 -> 221 | AT13: =COUNTIF(L41:L47,AS13) -> 0 | AU13: =AT13/(AV4-AT14) ->  | AV13: =IF(AU13=0,0,(AU13*((LOG(AU13))/LOG(2)))) -> 
A14: 21 | B14: 1150 | C14: 21 | D14: 1160 | E14: 21 | F14: 1179 | K14: 0 | L14: 222 | N14: 222 | O14: =COUNTIF($L$7:$L$500,N14) -> 40 | P14: =O14/$Q$4 -> 0.9756097561 | Q14: =IF(P14=0,0,(P14*((LOG(P14))/LOG(2)))) -> -0.03475503388 | T14: =N14 -> 222 | U14: =COUNTIF(L7:L13,T14) -> 6 | Y14: =N14 -> 222 | Z14: =COUNTIF(L14:L20,Y14) -> 7 | AD14: =N14 -> 222 | AE14: =COUNTIF(L21:L26,AD14) -> 6 | AI14: =N14 -> 222 | AJ14: =COUNTIF(L27:L33,AI14) -> 7 | AN14: =N14 -> 222 | AO14: =COUNTIF(L34:L40,AN14) -> 7 | AS14: =N14 -> 222 | AT14: =COUNTIF(L41:L47,AS14) -> 7
A15: 21 | B15: 1332 | C15: 21 | D15: 1345 | E15: 21 | F15: 1356 | K15: 0 | L15: 222 | P15: =SUM(P7:P14) -> 1 | Q15: =-SUM(Q7:Q14) -> 0.165427034 | V15: =SUM(V7:V14) -> 1 | W15: =-SUM(W7:W14) -> 0 | AA15: =SUM(AA7:AA14) ->  | AB15: =-SUM(AB7:AB14) ->  | AF15: =SUM(AF7:AF14) ->  | AG15: =-SUM(AG7:AG14) ->  | AK15: =SUM(AK7:AK14) ->  | AL15: =-SUM(AL7:AL14) ->  | AP15: =SUM(AP7:AP14) ->  | AQ15: =-SUM(AQ7:AQ14) ->  | AU15: =SUM(AU7:AU14) ->  | AV15: =-SUM(AV7:AV14) -> 
A16: 21 | B16: 1496 | C16: 21 | D16: 1506 | E16: 21 | F16: 1516 | K16: 0 | L16: 222 | P16: U= | Q16: =Q15/(LOG(Q4)/LOG(2)) -> 0.03087735478 | V16: U1= | W16: =W15/(LOG(W4)/LOG(2)) -> 0 | AA16: U2= | AB16: =AB15/(LOG(AB4)/LOG(2)) ->  | AF16: U3= | AG16: =AG15/(LOG(AG4)/LOG(2)) ->  | AK16: U4= | AL16: =AL15/(LOG(AL4)/LOG(2)) ->  | AP16: U5= | AQ16: =AQ15/(LOG(AQ4)/LOG(2)) ->  | AU16: U6= | AV16: =AV15/(LOG(AV4)/LOG(2)) -> 
A17: 21 | B17: 1708 | C17: 21 | D17: 1714 | E17: 21 | F17: 1737 | K17: 0 | L17: 222
A18: 21 | B18: 1857 | C18: 21 | D18: 1863 | E18: 21 | F18: 1874 | K18: 0 | L18: 222
A19: 21 | B19: 1997 | C19: 21 | D19: 2010 | E19: 21 | F19: 2026 | K19: 0 | L19: 222 | N19: Total Target Seq
A20: 21 | B20: 2143 | C20: 21 | D20: 2162 | E20: 21 | F20: 2178 | K20: 0 | L20: 222 | N20: =COUNTIF(L7:L47,G3) -> 40 | P20: 7 | Q20: 7 | R20: 6 | S20: 7 | T20: 7 | U20: 7
A21: 21 | B21: 2327 | C21: 21 | D21: 2344 | E21: 21 | F21: 2354 | K21: 0 | L21: 222 | P21: % of reinforcement given in 6 equal intervals based on number of trials
A22: 21 | B22: 2531 | C22: 21 | D22: 2537 | E22: 21 | F22: 2568 | K22: 0 | L22: 222 | P22: %_1 | Q22: %_2 | R22: %_3 | S22: %_4 | T22: %_5 | U22: %_6
A23: 21 | B23: 2716 | C23: 21 | D23: 2737 | E23: 21 | F23: 2754 | K23: 0 | L23: 222 | O23: target sequence | P23: =$G$3 -> 222 | Q23: =$G$3 -> 222 | R23: =$G$3 -> 222 | S23: =$G$3 -> 222 | T23: =$G$3 -> 222 | U23: =$G$3 -> 222
A24: 21 | B24: 2900 | C24: 21 | D24: 2957 | E24: 21 | F24: 2970 | K24: 0 | L24: 222 | O24: total reinforcement | P24: =U14 -> 6 | Q24: =Z14 -> 7 | R24: =AE14 -> 6 | S24: =AJ14 -> 7 | T24: =AO14 -> 7 | U24: =AT14 -> 7
A25: 21 | B25: 3097 | C25: 21 | D25: 3108 | E25: 21 | F25: 3124 | K25: 0 | L25: 222 | O25: % target
A26: 21 | B26: 3258 | C26: 21 | D26: 3268 | E26: 21 | F26: 3292 | K26: 0 | L26: 222 | O26: CCRF
A27: 21 | B27: 3396 | C27: 21 | D27: 3413 | E27: 21 | F27: 3428 | K27: 0 | L27: 222 | O27: % CCRf
A28: 21 | B28: 3551 | C28: 21 | D28: 3555 | E28: 21 | F28: 3561 | K28: 0 | L28: 222 | O28: average response rate | P28: =F13/P20 -> 147.4285714 | Q28: =(F20-F13)/Q20 -> 163.7142857 | R28: =(F26-F20)/R20 -> 185.6666667 | S28: =(F33-F26)/S20 -> 154.1428571 | T28: =(F40-F33)/T20 -> 159.2857143 | U28: =(F47-F40)/U20 -> 177.4285714
A29: 21 | B29: 3683 | C29: 21 | D29: 3690 | E29: 21 | F29: 3703 | K29: 0 | L29: 222
A30: 21 | B30: 3804 | C30: 21 | D30: 3854 | E30: 21 | F30: 3891 | K30: 0 | L30: 222
A31: 21 | B31: 4026 | C31: 21 | D31: 4064 | E31: 21 | F31: 4101 | K31: 0 | L31: 222
A32: 21 | B32: 4217 | C32: 21 | D32: 4223 | E32: 21 | F32: 4239 | K32: 0 | L32: 222
A33: 21 | B33: 4333 | C33: 21 | D33: 4349 | E33: 21 | F33: 4371 | K33: 0 | L33: 222
A34: 21 | B34: 4595 | C34: 21 | D34: 4602 | E34: 21 | F34: 4611 | K34: 0 | L34: 222
A35: 21 | B35: 4705 | C35: 21 | D35: 4710 | E35: 21 | F35: 4715 | K35: 0 | L35: 222
A36: 21 | B36: 4813 | C36: 21 | D36: 4825 | E36: 21 | F36: 4871 | K36: 0 | L36: 222
A37: 21 | B37: 4994 | C37: 21 | D37: 5019 | E37: 21 | F37: 5030 | K37: 0 | L37: 222
A38: 21 | B38: 5145 | C38: 21 | D38: 5151 | E38: 21 | F38: 5159 | K38: 0 | L38: 222
A39: 21 | B39: 5285 | C39: 21 | D39: 5295 | E39: 21 | F39: 5305 | K39: 0 | L39: 222
A40: 21 | B40: 5450 | C40: 21 | D40: 5470 | E40: 21 | F40: 5486 | K40: 0 | L40: 222
A41: 21 | B41: 5625 | C41: 21 | D41: 5631 | E41: 21 | F41: 5653 | K41: 0 | L41: 222
A42: 21 | B42: 5822 | C42: 21 | D42: 5833 | E42: 21 | F42: 5843 | K42: 0 | L42: 222
A43: 21 | B43: 5992 | C43: 21 | D43: 6013 | E43: 21 | F43: 6024 | K43: 0 | L43: 222
A44: 21 | B44: 6199 | C44: 21 | D44: 6204 | E44: 21 | F44: 6230 | K44: 0 | L44: 222
A45: 21 | B45: 6339 | C45: 21 | D45: 6352 | E45: 21 | F45: 6371 | K45: 0 | L45: 222
A46: 21 | B46: 6502 | C46: 21 | D46: 6509 | E46: 21 | F46: 6530 | K46: 0 | L46: 222
A47: 21 | B47: 6694 | C47: 21 | D47: 6713 | E47: 21 | F47: 6728 | K47: 1 | L47: 222

Sheet !M322B2I.sha
A1: Report for:!M322B2I.sha
A2: Date: | B2: <date>
A3: Hen: | B3: <hen> | F3: Correct Sequence | G3: =Start!J2 -> 222 | P3: Total Sequences in Data | Q3: =4994-COUNTBLANK(L7:L5000) -> 41 | V3: Total Sequences in Block Data | W3: =COUNTA(L7:L13) -> 7 | AA3: Total Sequences in Block Data | AB3: =COUNTA(L14:L20) -> 7 | AF3: Total Sequences in Block Data | AG3: =COUNTA(L21:L26) -> 6 | AK3: Total Sequences in Block Data | AL3: =COUNTA(L27:L33) -> 7 | AP3: Total Sequences in Block Data | AQ3: =COUNTA(L34:L40) -> 7 | AU3: Total Sequences in Block Data | AV3: =COUNTA(L41:L47) -> 7
P4: Total Sequences in Summary | Q4: =SUM(O7:O14) -> 41 | V4: Total Sequences in Block Summary | W4: =SUM(U7:U14) -> 7 | AA4: Total Sequences in Block Summary | AB4: =SUM(Z7:Z14) -> 7 | AF4: Total Sequences in Block Summary | AG4: =SUM(AE7:AE14) -> 6 | AK4: Total Sequences in Block Summary | AL4: =SUM(AJ7:AJ14) -> 7 | AP4: Total Sequences in Block Summary | AQ4: =SUM(AO7:AO14) -> 7 | AU4: Total Sequences in Block Summary | AV4: =SUM(AT7:AT14) -> 7
T5: Block 1 | Y5: Block 2 | AD5: Block 3 | AI5: Block 4 | AN5: Block 5 | AS5: Block 6
A6: Sequence Component 1 | B6: Time 1 | C6: Sequence Component 2 | D6: Time 2 | E6: Sequence Component 3 | F6: Time 3 | G6: Sequence Component 4 | H6: Time 4 | I6: Sequence Component 5 | J6: Time 5 | K6: Correct? 0=No 1=Yes | L6: Sequence | N6: Frequency | P6: Relative Frequency | Q6: Variability | T6: Frequency | V6: Relative Frequency | W6: Variability | Y6: Frequency | AA6: Relative Frequency | AB6: Variability | AD6: Frequency | AF6: Relative Frequency | AG6: Variability | AI6: Frequency | AK6: Relative Frequency | AL6: Variability | AN6: Frequency | AP6: Relative Frequency | AQ6: Variability | AS6: Frequency | AU6: Relative Frequency | AV6: Variability
A7: 21 | B7: 10 | C7: 12 | D7: 20 | E7: 14 | F7: 24 | K7: 0 | L7: 211 | N7: 111 | O7: =COUNTIF($L$7:$L$500,N7) -> 0 | P7: =O7/$Q$4 -> 0 | Q7: =IF(P7=0,0,(P7*((LOG(P7))/LOG(2)))) -> 0 | T7: =N7 -> 111 | U7: =COUNTIF(L7:L13,T7) -> 0 | V7: =U7/(W4-U14) -> 0 | W7: =IF(V7=0,0,(V7*((LOG(V7))/LOG(2)))) -> 0 | Y7: =N7 -> 111 | Z7: =COUNTIF(L14:L20,Y7) -> 0 | AA7: =Z7/(AB4-Z14) ->  | AB7: =IF(AA7=0,0,(AA7*((LOG(AA7))/LOG(2)))) ->  | AD7: =N7 -> 111 | AE7: =COUNTIF(L21:L26,AD7) -> 0 | AF7: =AE7/(AG4-AE14) ->  | AG7: =IF(AF7=0,0,(AF7*((LOG(AF7))/LOG(2)))) ->  | AI7: =N7 -> 111 | AJ7: =COUNTIF(L27:L33,AI7) -> 0 | AK7: =AJ7/(AL4-AJ14) ->  | AL7: =IF(AK7=0,0,(AK7*((LOG(AK7))/LOG(2)))) ->  | AN7: =N7 -> 111 | AO7: =COUNTIF(L34:L40,AN7) -> 0 | AP7: =AO7/(AQ4-AO14) ->  | AQ7: =IF(AP7=0,0,(AP7*((LOG(AP7))/LOG(2)))) ->  | AS7: =N7 -> 111 | AT7: =COUNTIF(L41:L47,AS7) -> 0 | AU7: =AT7/(AV4-AT14) ->  | AV7: =IF(AU7=0,0,(AU7*((LOG(AU7))/LOG(2)))) -> 
A8: 21 | B8: 122 | C8: 21 | D8: 129 | E8: 21 | F8: 145 | K8: 0 | L8: 222 | N8: 112 | O8: =COUNTIF($L$7:$L$500,N8) -> 0 | P8: =O8/$Q$4 -> 0 | Q8: =IF(P8=0,0,(P8*((LOG(P8))/LOG(2)))) -> 0 | T8: =N8 -> 112 | U8: =COUNTIF(L7:L13,T8) -> 0 | V8: =U8/(W4-U14) -> 0 | W8: =IF(V8=0,0,(V8*((LOG(V8))/LOG(2)))) -> 0 | Y8: =N8 -> 112 | Z8: =COUNTIF(L14:L20,Y8) -> 0 | AA8: =Z8/(AB4-Z14) ->  | AB8: =IF(AA8=0,0,(AA8*((LOG(AA8))/LOG(2)))) ->  | AD8: =N8 -> 112 | AE8: =COUNTIF(L21:L26,AD8) -> 0 | AF8: =AE8/(AG4-AE14) ->  | AG8: =IF(AF8=0,0,(AF8*((LOG(AF8))/LOG(2)))) ->  | AI8: =N8 -> 112 | AJ8: =COUNTIF(L27:L33,AI8) -> 0 | AK8: =AJ8/(AL4-AJ14) ->  | AL8: =IF(AK8=0,0,(AK8*((LOG(AK8))/LOG(2)))) ->  | AN8: =N8 -> 112 | AO8: =COUNTIF(L34:L40,AN8) -> 0 | AP8: =AO8/(AQ4-AO14) ->  | AQ8: =IF(AP8=0,0,(AP8*((LOG(AP8))/LOG(2)))) ->  | AS8: =N8 -> 112 | AT8: =COUNTIF(L41:L47,AS8) -> 0 | AU8: =AT8/(AV4-AT14) ->  | AV8: =IF(AU8=0,0,(AU8*((LOG(AU8))/LOG(2)))) -> 
A9: 21 | B9: 239 | C9: 21 | D9: 252 | E9: 21 | F9: 260 | K9: 0 | L9: 222 | N9: 121 | O9: =COUNTIF($L$7:$L$500,N9) -> 0 | P9: =O9/$Q$4 -> 0 | Q9: =IF(P9=0,0,(P9*((LOG(P9))/LOG(2)))) -> 0 | T9: =N9 -> 121 | U9: =COUNTIF(L7:L13,T9) -> 0 | V9: =U9/(W4-U14) -> 0 | W9: =IF(V9=0,0,(V9*((LOG(V9))/LOG(2)))) -> 0 | Y9: =N9 -> 121 | Z9: =COUNTIF(L14:L20,Y9) -> 0 | AA9: =Z9/(AB4-Z14) ->  | AB9: =IF(AA9=0,0,(AA9*((LOG(AA9))/LOG(2)))) ->  | AD9: =N9 -> 121 | AE9: =COUNTIF(L21:L26,AD9) -> 0 | AF9: =AE9/(AG4-AE14) ->  | AG9: =IF(AF9=0,0,(AF9*((LOG(AF9))/LOG(2)))) ->  | AI9: =N9 -> 121 | AJ9: =COUNTIF(L27:L33,AI9) -> 0 | AK9: =AJ9/(AL4-AJ14) ->  | AL9: =IF(AK9=0,0,(AK9*((LOG(AK9))/LOG(2)))) ->  | AN9: =N9 -> 121 | AO9: =COUNTIF(L34:L40,AN9) -> 0 | AP9: =AO9/(AQ4-AO14) ->  | AQ9: =IF(AP9=0,0,(AP9*((LOG(AP9))/LOG(2)))) ->  | AS9: =N9 -> 121 | AT9: =COUNTIF(L41:L47,AS9) -> 0 | AU9: =AT9/(AV4-AT14) ->  | AV9: =IF(AU9=0,0,(AU9*((LOG(AU9))/LOG(2)))) -> 
A10: 21 | B10: 354 | C10: 21 | D10: 358 | E10: 21 | F10: 376 | K10: 0 | L10: 222 | N10: 122 | O10: =COUNTIF($L$7:$L$500,N10) -> 0 | P10: =O10/$Q$4 -> 0 | Q10: =IF(P10=0,0,(P10*((LOG(P10))/LOG(2)))) -> 0 | T10: =N10 -> 122 | U10: =COUNTIF(L7:L13,T10) -> 0 | V10: =U10/(W4-U14) -> 0 | W10: =IF(V10=0,0,(V10*((LOG(V10))/LOG(2)))) -> 0 | Y10: =N10 -> 122 | Z10: =COUNTIF(L14:L20,Y10) -> 0 | AA10: =Z10/(AB4-Z14) ->  | AB10: =IF(AA10=0,0,(AA10*((LOG(AA10))/LOG(2)))) ->  | AD10: =N10 -> 122 | AE10: =COUNTIF(L21:L26,AD10) -> 0 | AF10: =AE10/(AG4-AE14) ->  | AG10: =IF(AF10=0,0,(AF10*((LOG(AF10))/LOG(2)))) ->  | AI10: =N10 -> 122 | AJ10: =COUNTIF(L27:L33,AI10) -> 0 | AK10: =AJ10/(AL4-AJ14) ->  | AL10: =IF(AK10=0,0,(AK10*((LOG(AK10))/LOG(2)))) ->  | AN10: =N10 -> 122 | AO10: =COUNTIF(L34:L40,AN10) -> 0 | AP10: =AO10/(AQ4-AO14) ->  | AQ10: =IF(AP10=0,0,(AP10*((LOG(AP10))/LOG(2)))) ->  | AS10: =N10 -> 122 | AT10: =COUNTIF(L41:L47,AS10) -> 0 | AU10: =AT10/(AV4-AT14) ->  | AV10: =IF(AU10=0,0,(AU10*((LOG(AU10))/LOG(2)))) -> 
A11: 21 | B11: 525 | C11: 21 | D11: 546 | E11: 21 | F11: 561 | K11: 0 | L11: 222 | N11: 211 | O11: =COUNTIF($L$7:$L$500,N11) -> 1 | P11: =O11/$Q$4 -> 0.0243902439 | Q11: =IF(P11=0,0,(P11*((LOG(P11))/LOG(2)))) -> -0.1306720001 | T11: =N11 -> 211 | U11: =COUNTIF(L7:L13,T11) -> 1 | V11: =U11/(W4-U14) -> 1 | W11: =IF(V11=0,0,(V11*((LOG(V11))/LOG(2)))) -> 0 | Y11: =N11 -> 211 | Z11: =COUNTIF(L14:L20,Y11) -> 0 | AA11: =Z11/(AB4-Z14) ->  | AB11: =IF(AA11=0,0,(AA11*((LOG(AA11))/LOG(2)))) ->  | AD11: =N11 -> 211 | AE11: =COUNTIF(L21:L26,AD11) -> 0 | AF11: =AE11/(AG4-AE14) ->  | AG11: =IF(AF11=0,0,(AF11*((LOG(AF11))/LOG(2)))) ->  | AI11: =N11 -> 211 | AJ11: =COUNTIF(L27:L33,AI11) -> 0 | AK11: =AJ11/(AL4-AJ14) ->  | AL11: =IF(AK11=0,0,(AK11*((LOG(AK11))/LOG(2)))) ->  | AN11: =N11 -> 211 | AO11: =COUNTIF(L34:L40,AN11) -> 0 | AP11: =AO11/(AQ4-AO14) ->  | AQ11: =IF(AP11=0,0,(AP11*((LOG(AP11))/LOG(2)))) ->  | AS11: =N11 -> 211 | AT11: =COUNTIF(L41:L47,AS11) -> 0 | AU11: =AT11/(AV4-AT14) ->  | AV11: =IF(AU11=0,0,(AU11*((LOG(AU11))/LOG(2)))) -> 
A12: 21 | B12: 678 | C12: 21 | D12: 718 | E12: 21 | F12: 757 | K12: 0 | L12: 222 | N12: 212 | O12: =COUNTIF($L$7:$L$500,N12) -> 0 | P12: =O12/$Q$4 -> 0 | Q12: =IF(P12=0,0,(P12*((LOG(P12))/LOG(2)))) -> 0 | T12: =N12 -> 212 | U12: =COUNTIF(L7:L13,T12) -> 0 | V12: =U12/(W4-U14) -> 0 | W12: =IF(V12=0,0,(V12*((LOG(V12))/LOG(2)))) -> 0 | Y12: =N12 -> 212 | Z12: =COUNTIF(L14:L20,Y12) -> 0 | AA12: =Z12/(AB4-Z14) ->  | AB12: =IF(AA12=0,0,(AA12*((LOG(AA12))/LOG(2)))) ->  | AD12: =N12 -> 212 | AE12: =COUNTIF(L21:L26,AD12) -> 0 | AF12: =AE12/(AG4-AE14) ->  | AG12: =IF(AF12=0,0,(AF12*((LOG(AF12))/LOG(2)))) ->  | AI12: =N12 -> 212 | AJ12: =COUNTIF(L27:L33,AI12) -> 0 | AK12: =AJ12/(AL4-AJ14) ->  | AL12: =IF(AK12=0,0,(AK12*((LOG(AK12))/LOG(2)))) ->  | AN12: =N12 -> 212 | AO12: =COUNTIF(L34:L40,AN12) -> 0 | AP12: =AO12/(AQ4-AO14) ->  | AQ12: =IF(AP12=0,0,(AP12*((LOG(AP12))/LOG(2)))) ->  | AS12: =N12 -> 212 | AT12: =COUNTIF(L41:L47,AS12) -> 0 | AU12: =AT12/(AV4-AT14) ->  | AV12: =IF(AU12=0,0,(AU12*((LOG(AU12))/LOG(2)))) -> 
A13: 21 | B13: 873 | C13: 21 | D13: 929 | E13: 21 | F13: 940 | K13: 0 | L13: 222 | N13: 221 | O13: =COUNTIF($L$7:$L$500,N13) -> 0 | P13: =O13/$Q$4 -> 0 | Q13: =IF(P13=0,0,(P13*((LOG(P13))/LOG(2)))) -> 0 | T13: =N13 -> 221 | U13: =COUNTIF(L7:L13,T13) -> 0 | V13: =U13/(W4-U14) -> 0 | W13: =IF(V13=0,0,(V13*((LOG(V13))/LOG(2)))) -> 0 | Y13: =N13 -> 221 | Z13: =COUNTIF(L14:L20,Y13) -> 0 | AA13: =Z13/(AB4-Z14) ->  | AB13: =IF(AA13=0,0,(AA13*((LOG(AA13))/LOG(2)))) ->  | AD13: =N13 -> 221 | AE13: =COUNTIF(L21:L26,AD13) -> 0 | AF13: =AE13/(AG4-AE14) ->  | AG13: =IF(AF13=0,0,(AF13*((LOG(AF13))/LOG(2)))) ->  | AI13: =N13 -> 221 | AJ13: =COUNTIF(L27:L33,AI13) -> 0 | AK13: =AJ13/(AL4-AJ14) ->  | AL13: =IF(AK13=0,0,(AK13*((LOG(AK13))/LOG(2)))) ->  | AN13: =N13 -> 221 | AO13: =COUNTIF(L34:L40,AN13) -> 0 | AP13: =AO13/(AQ4-AO14) ->  | AQ13: =IF(AP13=0,0,(AP13*((LOG(AP13))/LOG(2)))) ->  | AS13: =N13 -> 221 | AT13: =COUNTIF(L41:L47,AS13) -> 0 | AU13: =AT13/(AV4-AT14) ->  | AV13: =IF(AU13=0,0,(AU13*((LOG(AU13))/LOG(2)))) -> 
A14: 21 | B14: 1059 | C14: 21 | D14: 1065 | E14: 21 | F14: 1119 | K14: 0 | L14: 222 | N14: 222 | O14: =COUNTIF($L$7:$L$500,N14) -> 40 | P14: =O14/$Q$4 -> 0.9756097561 | Q14: =IF(P14=0,0,(P14*((LOG(P14))/LOG(2)))) -> -0.03475503388 | T14: =N14 -> 222 | U14: =COUNTIF(L7:L13,T14) -> 6 | Y14: =N14 -> 222 | Z14: =COUNTIF(L14:L20,Y14) -> 7 | AD14: =N14 -> 222 | AE14: =COUNTIF(L21:L26,AD14) -> 6 | AI14: =N14 -> 222 | AJ14: =COUNTIF(L27:L33,AI14) -> 7 | AN14: =N14 -> 222 | AO14: =COUNTIF(L34:L40,AN14) -> 7 | AS14: =N14 -> 222 | AT14: =COUNTIF(L41:L47,AS14) -> 7
A15: 21 | B15: 1238 | C15: 21 | D15: 1253 | E15: 21 | F15: 1259 | K15: 0 | L15: 222 | P15: =SUM(P7:P14) -> 1 | Q15: =-SUM(Q7:Q14) -> 0.165427034 | V15: =SUM(V7:V14) -> 1 | W15: =-SUM(W7:W14) -> 0 | AA15: =SUM(AA7:AA14) ->  | AB15: =-SUM(AB7:AB14) ->  | AF15: =SUM(AF7:AF14) ->  | AG15: =-SUM(AG7:AG14) ->  | AK15: =SUM(AK7:AK14) ->  | AL15: =-SUM(AL7:AL14) ->  | AP15: =SUM(AP7:AP14) ->  | AQ15: =-SUM(AQ7:AQ14) ->  | AU15: =SUM(AU7:AU14) ->  | AV15: =-SUM(AV7:AV14) -> 
A16: 21 | B16: 1381 | C16: 21 | D16: 1408 | E16: 21 | F16: 1430 | K16: 0 | L16: 222 | P16: U= | Q16: =Q15/(LOG(Q4)/LOG(2)) -> 0.03087735478 | V16: U1= | W16: =W15/(LOG(W4)/LOG(2)) -> 0 | AA16: U2= | AB16: =AB15/(LOG(AB4)/LOG(2)) ->  | AF16: U3= | AG16: =AG15/(LOG(AG4)/LOG(2)) ->  | AK16: U4= | AL16: =AL15/(LOG(AL4)/LOG(2)) ->  | AP16: U5= | AQ16: =AQ15/(LOG(AQ4)/LOG(2)) ->  | AU16: U6= | AV16: =AV15/(LOG(AV4)/LOG(2)) -> 
A17: 21 | B17: 1544 | C17: 21 | D17: 1549 | E17: 21 | F17: 1554 | K17: 0 | L17: 222
A18: 21 | B18: 1656 | C18: 21 | D18: 1671 | E18: 21 | F18: 1687 | K18: 0 | L18: 222
A19: 21 | B19: 1805 | C19: 21 | D19: 1810 | E19: 21 | F19: 1865 | K19: 0 | L19: 222 | N19: Total Target Seq
A20: 21 | B20: 1957 | C20: 21 | D20: 1962 | E20: 21 | F20: 1967 | K20: 0 | L20: 222 | N20: =COUNTIF(L7:L47,G3) -> 40 | P20: 7 | Q20: 7 | R20: 6 | S20: 7 | T20: 7 | U20: 7
A21: 21 | B21: 2062 | C21: 21 | D21: 2072 | E21: 21 | F21: 2082 | K21: 0 | L21: 222 | P21: % of reinforcement given in 6 equal intervals based on number of trials
A22: 21 | B22: 2181 | C22: 21 | D22: 2198 | E22: 21 | F22: 2214 | K22: 0 | L22: 222 | P22: %_1 | Q22: %_2 | R22: %_3 | S22: %_4 | T22: %_5 | U22: %_6
A23: 21 | B23: 2310 | C23: 21 | D23: 2327 | E23: 21 | F23: 2361 | K23: 0 | L23: 222 | O23: target sequence | P23: =$G$3 -> 222 | Q23: =$G$3 -> 222 | R23: =$G$3 -> 222 | S23: =$G$3 -> 222 | T23: =$G$3 -> 222 | U23: =$G$3 -> 222
A24: 21 | B24: 2479 | C24: 21 | D24: 2486 | E24: 21 | F24: 2494 | K24: 0 | L24: 222 | O24: total reinforcement | P24: =U14 -> 6 | Q24: =Z14 -> 7 | R24: =AE14 -> 6 | S24: =AJ14 -> 7 | T24: =AO14 -> 7 | U24: =AT14 -> 7
A25: 21 | B25: 2609 | C25: 21 | D25: 2621 | E25: 21 | F25: 2655 | K25: 0 | L25: 222 | O25: % target
A26: 21 | B26: 2797 | C26: 21 | D26: 2815 | E26: 21 | F26: 2871 | K26: 0 | L26: 222 | O26: CCRF
A27: 21 | B27: 2984 | C27: 21 | D27: 2994 | E27: 21 | F27: 3011 | K27: 0 | L27: 222 | O27: % CCRf
A28: 21 | B28: 3105 | C28: 21 | D28: 3115 | E28: 21 | F28: 3133 | K28: 0 | L28: 222 | O28: average response rate | P28: =F13/P20 -> 134.2857143 | Q28: =(F20-F13)/Q20 -> 146.7142857 | R28: =(F26-F20)/R20 -> 150.6666667 | S28: =(F33-F26)/S20 -> 154.7142857 | T28: =(F40-F33)/T20 -> 140 | U28: =(F47-F40)/U20 -> 164.1428571
A29: 21 | B29: 3228 | C29: 21 | D29: 3245 | E29: 21 | F29: 3254 | K29: 0 | L29: 222
A30: 21 | B30: 3348 | C30: 21 | D30: 3353 | E30: 21 | F30: 3363 | K30: 0 | L30: 222
A31: 21 | B31: 3495 | C31: 21 | D31: 3501 | E31: 21 | F31: 3551 | K31: 0 | L31: 222
A32: 21 | B32: 3734 | C32: 21 | D32: 3770 | E32: 21 | F32: 3785 | K32: 0 | L32: 222
A33: 21 | B33: 3923 | C33: 21 | D33: 3929 | E33: 21 | F33: 3954 | K33: 0 | L33: 222
A34: 21 | B34: 4081 | C34: 21 | D34: 4092 | E34: 21 | F34: 4108 | K34: 0 | L34: 222
A35: 21 | B35: 4207 | C35: 21 | D35: 4239 | E35: 21 | F35: 4251 | K35: 0 | L35: 222
A36: 21 | B36: 4349 | C36: 21 | D36: 4356 | E36: 21 | F36: 4364 | K36: 0 | L36: 222
A37: 21 | B37: 4462 | C37: 21 | D37: 4491 | E37: 21 | F37: 4522 | K37: 0 | L37: 222
A38: 21 | B38: 4644 | C38: 21 | D38: 4650 | E38: 21 | F38: 4660 | K38: 0 | L38: 222
A39: 21 | B39: 4755 | C39: 21 | D39: 4759 | E39: 21 | F39: 4777 | K39: 0 | L39: 222
A40: 21 | B40: 4914 | C40: 21 | D40: 4926 | E40: 21 | F40: 4934 | K40: 0 | L40: 222
A41: 21 | B41: 5045 | C41: 21 | D41: 5052 | E41: 21 | F41: 5061 | K41: 0 | L41: 222
A42: 21 | B42: 5303 | C42: 21 | D42: 5307 | E42: 21 | F42: 5355 | K42: 0 | L42: 222
A43: 21 | B43: 5506 | C43: 21 | D43: 5517 | E43: 21 | F43: 5522 | K43: 0 | L43: 222
A44: 21 | B44: 5647 | C44: 21 | D44: 5654 | E44: 21 | F44: 5678 | K44: 0 | L44: 222
A45: 21 | B45: 5793 | C45: 21 | D45: 5802 | E45: 21 | F45: 5836 | K45: 0 | L45: 222
A46: 21 | B46: 5944 | C46: 21 | D46: 5958 | E46: 21 | F46: 5973 | K46: 0 | L46: 222
A47: 21 | B47: 6065 | C47: 21 | D47: 6070 | E47: 21 | F47: 6083 | K47: 1 | L47: 222

Sheet !M323A0I.sha
A1: Report for:!M323A0I.sha
A2: Date: | B2: <date>
A3: Hen: | B3: <hen> | F3: Correct Sequence | G3: =Start!J2 -> 222 | P3: Total Sequences in Data | Q3: =4994-COUNTBLANK(L7:L5000) -> 41 | V3: Total Sequences in Block Data | W3: =COUNTA(L7:L13) -> 7 | AA3: Total Sequences in Block Data | AB3: =COUNTA(L14:L20) -> 7 | AF3: Total Sequences in Block Data | AG3: =COUNTA(L21:L26) -> 6 | AK3: Total Sequences in Block Data | AL3: =COUNTA(L27:L33) -> 7 | AP3: Total Sequences in Block Data | AQ3: =COUNTA(L34:L40) -> 7 | AU3: Total Sequences in Block Data | AV3: =COUNTA(L41:L47) -> 7
P4: Total Sequences in Summary | Q4: =SUM(O7:O14) -> 41 | V4: Total Sequences in Block Summary | W4: =SUM(U7:U14) -> 7 | AA4: Total Sequences in Block Summary | AB4: =SUM(Z7:Z14) -> 7 | AF4: Total Sequences in Block Summary | AG4: =SUM(AE7:AE14) -> 6 | AK4: Total Sequences in Block Summary | AL4: =SUM(AJ7:AJ14) -> 7 | AP4: Total Sequences in Block Summary | AQ4: =SUM(AO7:AO14) -> 7 | AU4: Total Sequences in Block Summary | AV4: =SUM(AT7:AT14) -> 7
T5: Block 1 | Y5: Block 2 | AD5: Block 3 | AI5: Block 4 | AN5: Block 5 | AS5: Block 6
A6: Sequence Component 1 | B6: Time 1 | C6: Sequence Component 2 | D6: Time 2 | E6: Sequence Component 3 | F6: Time 3 | G6: Sequence Component 4 | H6: Time 4 | I6: Sequence Component 5 | J6: Time 5 | K6: Correct? 0=No 1=Yes | L6: Sequence | N6: Frequency | P6: Relative Frequency | Q6: Variability | T6: Frequency | V6: Relative Frequency | W6: Variability | Y6: Frequency | AA6: Relative Frequency | AB6: Variability | AD6: Frequency | AF6: Relative Frequency | AG6: Variability | AI6: Frequency | AK6: Relative Frequency | AL6: Variability | AN6: Frequency | AP6: Relative Frequency | AQ6: Variability | AS6: Frequency | AU6: Relative Frequency | AV6: Variability
A7: 12 | B7: 54 | C7: 23 | D7: 67 | E7: 23 | F7: 72 | K7: 0 | L7: 122 | N7: 111 | O7: =COUNTIF($L$7:$L$500,N7) -> 0 | P7: =O7/$Q$4 -> 0 | Q7: =IF(P7=0,0,(P7*((LOG(P7))/LOG(2)))) -> 0 | T7: =N7 -> 111 | U7: =COUNTIF(L7:L13,T7) -> 0 | V7: =U7/(W4-U14) -> 0 | W7: =IF(V7=0,0,(V7*((LOG(V7))/LOG(2)))) -> 0 | Y7: =N7 -> 111 | Z7: =COUNTIF(L14:L20,Y7) -> 0 | AA7: =Z7/(AB4-Z14) ->  | AB7: =IF(AA7=0,0,(AA7*((LOG(AA7))/LOG(2)))) ->  | AD7: =N7 -> 111 | AE7: =COUNTIF(L21:L26,AD7) -> 0 | AF7: =AE7/(AG4-AE14) ->  | AG7: =IF(AF7=0,0,(AF7*((LOG(AF7))/LOG(2)))) ->  | AI7: =N7 -> 111 | AJ7: =COUNTIF(L27:L33,AI7) -> 0 | AK7: =AJ7/(AL4-AJ14) ->  | AL7: =IF(AK7=0,0,(AK7*((LOG(AK7))/LOG(2)))) ->  | AN7: =N7 -> 111 | AO7: =COUNTIF(L34:L40,AN7) -> 0 | AP7: =AO7/(AQ4-AO14) ->  | AQ7: =IF(AP7=0,0,(AP7*((LOG(AP7))/LOG(2)))) ->  | AS7: =N7 -> 111 | AT7: =COUNTIF(L41:L47,AS7) -> 0 | AU7: =AT7/(AV4-AT14) ->  | AV7: =IF(AU7=0,0,(AU7*((LOG(AU7))/LOG(2)))) -> 
A8: 21 | B8: 169 | C8: 21 | D8: 172 | E8: 21 | F8: 178 | K8: 0 | L8: 222 | N8: 112 | O8: =COUNTIF($L$7:$L$500,N8) -> 0 | P8: =O8/$Q$4 -> 0 | Q8: =IF(P8=0,0,(P8*((LOG(P8))/LOG(2)))) -> 0 | T8: =N8 -> 112 | U8: =COUNTIF(L7:L13,T8) -> 0 | V8: =U8/(W4-U14) -> 0 | W8: =IF(V8=0,0,(V8*((LOG(V8))/LOG(2)))) -> 0 | Y8: =N8 -> 112 | Z8: =COUNTIF(L14:L20,Y8) -> 0 | AA8: =Z8/(AB4-Z14) ->  | AB8: =IF(AA8=0,0,(AA8*((LOG(AA8))/LOG(2)))) ->  | AD8: =N8 -> 112 | AE8: =COUNTIF(L21:L26,AD8) -> 0 | AF8: =AE8/(AG4-AE14) ->  | AG8: =IF(AF8=0,0,(AF8*((LOG(AF8))/LOG(2)))) ->  | AI8: =N8 -> 112 | AJ8: =COUNTIF(L27:L33,AI8) -> 0 | AK8: =AJ8/(AL4-AJ14) ->  | AL8: =IF(AK8=0,0,(AK8*((LOG(AK8))/LOG(2)))) ->  | AN8: =N8 -> 112 | AO8: =COUNTIF(L34:L40,AN8) -> 0 | AP8: =AO8/(AQ4-AO14) ->  | AQ8: =IF(AP8=0,0,(AP8*((LOG(AP8))/LOG(2)))) ->  | AS8: =N8 -> 112 | AT8: =COUNTIF(L41:L47,AS8) -> 0 | AU8: =AT8/(AV4-AT14) ->  | AV8: =IF(AU8=0,0,(AU8*((LOG(AU8))/LOG(2)))) -> 
A9: 21 | B9: 272 | C9: 21 | D9: 276 | E9: 21 | F9: 300 | K9: 0 | L9: 222 | N9: 121 | O9: =COUNTIF($L$7:$L$500,N9) -> 0 | P9: =O9/$Q$4 -> 0 | Q9: =IF(P9=0,0,(P9*((LOG(P9))/LOG(2)))) -> 0 | T9: =N9 -> 121 | U9: =COUNTIF(L7:L13,T9) -> 0 | V9: =U9/(W4-U14) -> 0 | W9: =IF(V9=0,0,(V9*((LOG(V9))/LOG(2)))) -> 0 | Y9: =N9 -> 121 | Z9: =COUNTIF(L14:L20,Y9) -> 0 | AA9: =Z9/(AB4-Z14) ->  | AB9: =IF(AA9=0,0,(AA9*((LOG(AA9))/LOG(2)))) ->  | AD9: =N9 -> 121 | AE9: =COUNTIF(L21:L26,AD9) -> 0 | AF9: =AE9/(AG4-AE14) ->  | AG9: =IF(AF9=0,0,(AF9*((LOG(AF9))/LOG(2)))) ->  | AI9: =N9 -> 121 | AJ9: =COUNTIF(L27:L33,AI9) -> 0 | AK9: =AJ9/(AL4-AJ14) ->  | AL9: =IF(AK9=0,0,(AK9*((LOG(AK9))/LOG(2)))) ->  | AN9: =N9 -> 121 | AO9: =COUNTIF(L34:L40,AN9) -> 0 | AP9: =AO9/(AQ4-AO14) ->  | AQ9: =IF(AP9=0,0,(AP9*((LOG(AP9))/LOG(2)))) ->  | AS9: =N9 -> 121 | AT9: =COUNTIF(L41:L47,AS9) -> 0 | AU9: =AT9/(AV4-AT14) ->  | AV9: =IF(AU9=0,0,(AU9*((LOG(AU9))/LOG(2)))) -> 
A10: 21 | B10: 392 | C10: 21 | D10: 403 | E10: 21 | F10: 415 | K10: 0 | L10: 222 | N10: 122 | O10: =COUNTIF($L$7:$L$500,N10) -> 1 | P10: =O10/$Q$4 -> 0.0243902439 | Q10: =IF(P10=0,0,(P10*((LOG(P10))/LOG(2)))) -> -0.1306720001 | T10: =N10 -> 122 | U10: =COUNTIF(L7:L13,T10) -> 1 | V10: =U10/(W4-U14) -> 1 | W10: =IF(V10=0,0,(V10*((LOG(V10))/LOG(2)))) -> 0 | Y10: =N10 -> 122 | Z10: =COUNTIF(L14:L20,Y10) -> 0 | AA10: =Z10/(AB4-Z14) ->  | AB10: =IF(AA10=0,0,(AA10*((LOG(AA10))/LOG(2)))) ->  | AD10: =N10 -> 122 | AE10: =COUNTIF(L21:L26,AD10) -> 0 | AF10: =AE10/(AG4-AE14) ->  | AG10: =IF(AF10=0,0,(AF10*((LOG(AF10))/LOG(2)))) ->  | AI10: =N10 -> 122 | AJ10: =COUNTIF(L27:L33,AI10) -> 0 | AK10: =AJ10/(AL4-AJ14) ->  | AL10: =IF(AK10=0,0,(AK10*((LOG(AK10))/LOG(2)))) ->  | AN10: =N10 -> 122 | AO10: =COUNTIF(L34:L40,AN10) -> 0 | AP10: =AO10/(AQ4-AO14) ->  | AQ10: =IF(AP10=0,0,(AP10*((LOG(AP10))/LOG(2)))) ->  | AS10: =N10 -> 122 | AT10: =COUNTIF(L41:L47,AS10) -> 0 | AU10: =AT10/(AV4-AT14) ->  | AV10: =IF(AU10=0,0,(AU10*((LOG(AU10))/LOG(2)))) -> 
A11: 21 | B11: 508 | C11: 21 | D11: 519 | E11: 21 | F11: 529 | K11: 0 | L11: 222 | N11: 211 | O11: =COUNTIF($L$7:$L$500,N11) -> 0 | P11: =O11/$Q$4 -> 0 | Q11: =IF(P11=0,0,(P11*((LOG(P11))/LOG(2)))) -> 0 | T11: =N11 -> 211 | U11: =COUNTIF(L7:L13,T11) -> 0 | V11: =U11/(W4-U14) -> 0 | W11: =IF(V11=0,0,(V11*((LOG(V11))/LOG(2)))) -> 0 | Y11: =N11 -> 211 | Z11: =COUNTIF(L14:L20,Y11) -> 0 | AA11: =Z11/(AB4-Z14) ->  | AB11: =IF(AA11=0,0,(AA11*((LOG(AA11))/LOG(2)))) ->  | AD11: =N11 -> 211 | AE11: =COUNTIF(L21:L26,AD11) -> 0 | AF11: =AE11/(AG4-AE14) ->  | AG11: =IF(AF11=0,0,(AF11*((LOG(AF11))/LOG(2)))) ->  | AI11: =N11 -> 211 | AJ11: =COUNTIF(L27:L33,AI11) -> 0 | AK11: =AJ11/(AL4-AJ14) ->  | AL11: =IF(AK11=0,0,(AK11*((LOG(AK11))/LOG(2)))) ->  | AN11: =N11 -> 211 | AO11: =COUNTIF(L34:L40,AN11) -> 0 | AP11: =AO11/(AQ4-AO14) ->  | AQ11: =IF(AP11=0,0,(AP11*((LOG(AP11))/LOG(2)))) ->  | AS11: =N11 -> 211 | AT11: =COUNTIF(L41:L47,AS11) -> 0 | AU11: =AT11/(AV4-AT14) ->  | AV11: =IF(AU11=0,0,(AU11*((LOG(AU11))/LOG(2)))) -> 
A12: 21 | B12: 621 | C12: 21 | D12: 627 | E12: 21 | F12: 638 | K12: 0 | L12: 222 | N12: 212 | O12: =COUNTIF($L$7:$L$500,N12) -> 0 | P12: =O12/$Q$4 -> 0 | Q12: =IF(P12=0,0,(P12*((LOG(P12))/LOG(2)))) -> 0 | T12: =N12 -> 212 | U12: =COUNTIF(L7:L13,T12) -> 0 | V12: =U12/(W4-U14) -> 0 | W12: =IF(V12=0,0,(V12*((LOG(V12))/LOG(2)))) -> 0 | Y12: =N12 -> 212 | Z12: =COUNTIF(L14:L20,Y12) -> 0 | AA12: =Z12/(AB4-Z14) ->  | AB12: =IF(AA12=0,0,(AA12*((LOG(AA12))/LOG(2)))) ->  | AD12: =N12 -> 212 | AE12: =COUNTIF(L21:L26,AD12) -> 0 | AF12: =AE12/(AG4-AE14) ->  | AG12: =IF(AF12=0,0,(AF12*((LOG(AF12))/LOG(2)))) ->  | AI12: =N12 -> 212 | AJ12: =COUNTIF(L27:L33,AI12) -> 0 | AK12: =AJ12/(AL4-AJ14) ->  | AL12: =IF(AK12=0,0,(AK12*((LOG(AK12))/LOG(2)))) ->  | AN12: =N12 -> 212 | AO12: =COUNTIF(L34:L40,AN12) -> 0 | AP12: =AO12/(AQ4-AO14) ->  | AQ12: =IF(AP12=0,0,(AP12*((LOG(AP12))/LOG(2)))) ->  | AS12: =N12 -> 212 | AT12: =COUNTIF(L41:L47,AS12) -> 0 | AU12: =AT12/(AV4-AT14) ->  | AV12: =IF(AU12=0,0,(AU12*((LOG(AU12))/LOG(2)))) -> 
A13: 21 | B13: 729 | C13: 21 | D13: 804 | E13: 21 | F13: 832 | K13: 0 | L13: 222 | N13: 221 | O13: =COUNTIF($L$7:$L$500,N13) -> 0 | P13: =O13/$Q$4 -> 0 | Q13: =IF(P13=0,0,(P13*((LOG(P13))/LOG(2)))) -> 0 | T13: =N13 -> 221 | U13: =COUNTIF(L7:L13,T13) -> 0 | V13: =U13/(W4-U14) -> 0 | W13: =IF(V13=0,0,(V13*((LOG(V13))/LOG(2)))) -> 0 | Y13: =N13 -> 221 | Z13: =COUNTIF(L14:L20,Y13) -> 0 | AA13: =Z13/(AB4-Z14) ->  | AB13: =IF(AA13=0,0,(AA13*((LOG(AA13))/LOG(2)))) ->  | AD13: =N13 -> 221 | AE13: =COUNTIF(L21:L26,AD13) -> 0 | AF13: =AE13/(AG4-AE14) ->  | AG13: =IF(AF13=0,0,(AF13*((LOG(AF13))/LOG(2)))) ->  | AI13: =N13 -> 221 | AJ13: =COUNTIF(L27:L33,AI13) -> 0 | AK13: =AJ13/(AL4-AJ14) ->  | AL13: =IF(AK13=0,0,(AK13*((LOG(AK13))/LOG(2)))) ->  | AN13: =N13 -> 221 | AO13: =COUNTIF(L34:L40,AN13) -> 0 | AP13: =AO13/(AQ4-AO14) ->  | AQ13: =IF(AP13=0,0,(AP13*((LOG(AP13))/LOG(2)))) ->  | AS13: =N13 -> 221 | AT13: =COUNTIF(L41:L47,AS13) -> 0 | AU13: =AT13/(AV4-AT14) ->  | AV13: =IF(AU13=0,0,(AU13*((LOG(AU13))/LOG(2)))) -> 
A14: 21 | B14: 924 | C14: 21 | D14: 932 | E14: 21 | F14: 948 | K14: 0 | L14: 222 | N14: 222 | O14: =COUNTIF($L$7:$L$500,N14) -> 40 | P14: =O14/$Q$4 -> 0.9756097561 | Q14: =IF(P14=0,0,(P14*((LOG(P14))/LOG(2)))) -> -0.03475503388 | T14: =N14 -> 222 | U14: =COUNTIF(L7:L13,T14) -> 6 | Y14: =N14 -> 222 | Z14: =COUNTIF(L14:L20,Y14) -> 7 | AD14: =N14 -> 222 | AE14: =COUNTIF(L21:L26,AD14) -> 6 | AI14: =N14 -> 222 | AJ14: =COUNTIF(L27:L33,AI14) -> 7 | AN14: =N14 -> 222 | AO14: =COUNTIF(L34:L40,AN14) -> 7 | AS14: =N14 -> 222 | AT14: =COUNTIF(L41:L47,AS14) -> 7
A15: 21 | B15: 1042 | C15: 21 | D15: 1052 | E15: 21 | F15: 1059 | K15: 0 | L15: 222 | P15: =SUM(P7:P14) -> 1 | Q15: =-SUM(Q7:Q14) -> 0.165427034 | V15: =SUM(V7:V14) -> 1 | W15: =-SUM(W7:W14) -> 0 | AA15: =SUM(AA7:AA14) ->  | AB15: =-SUM(AB7:AB14) ->  | AF15: =SUM(AF7:AF14) ->  | AG15: =-SUM(AG7:AG14) ->  | AK15: =SUM(AK7:AK14) ->  | AL15: =-SUM(AL7:AL14) ->  | AP15: =SUM(AP7:AP14) ->  | AQ15: =-SUM(AQ7:AQ14) ->  | AU15: =SUM(AU7:AU14) ->  | AV15: =-SUM(AV7:AV14) -> 
A16: 21 | B16: 1154 | C16: 21 | D16: 1164 | E16: 21 | F16: 1173 | K16: 0 | L16: 222 | P16: U= | Q16: =Q15/(LOG(Q4)/LOG(2)) -> 0.03087735478 | V16: U1= | W16: =W15/(LOG(W4)/LOG(2)) -> 0 | AA16: U2= | AB16: =AB15/(LOG(AB4)/LOG(2)) ->  | AF16: U3= | AG16: =AG15/(LOG(AG4)/LOG(2)) ->  | AK16: U4= | AL16: =AL15/(LOG(AL4)/LOG(2)) ->  | AP16: U5= | AQ16: =AQ15/(LOG(AQ4)/LOG(2)) ->  | AU16: U6= | AV16: =AV15/(LOG(AV4)/LOG(2)) -> 
A17: 21 | B17: 1274 | C17: 21 | D17: 1310 | E17: 21 | F17: 1352 | K17: 0 | L17: 222
A18: 21 | B18: 1444 | C18: 21 | D18: 1447 | E18: 21 | F18: 1473 | K18: 0 | L18: 222
A19: 21 | B19: 1568 | C19: 21 | D19: 1579 | E19: 21 | F19: 1588 | K19: 0 | L19: 222 | N19: Total Target Seq
A20: 21 | B20: 1683 | C20: 21 | D20: 1688 | E20: 21 | F20: 1695 | K20: 0 | L20: 222 | N20: =COUNTIF(L7:L47,G3) -> 40 | P20: 7 | Q20: 7 | R20: 6 | S20: 7 | T20: 7 | U20: 7
A21: 21 | B21: 1795 | C21: 21 | D21: 1814 | E21: 21 | F21: 1824 | K21: 0 | L21: 222 | P21: % of reinforcement given in 6 equal intervals based on number of trials
A22: 21 | B22: 1980 | C22: 21 | D22: 2005 | E22: 21 | F22: 2017 | K22: 0 | L22: 222 | P22: %_1 | Q22: %_2 | R22: %_3 | S22: %_4 | T22: %_5 | U22: %_6
A23: 21 | B23: 2113 | C23: 21 | D23: 2120 | E23: 21 | F23: 2132 | K23: 0 | L23: 222 | O23: target sequence | P23: =$G$3 -> 222 | Q23: =$G$3 -> 222 | R23: =$G$3 -> 222 | S23: =$G$3 -> 222 | T23: =$G$3 -> 222 | U23: =$G$3 -> 222
A24: 21 | B24: 2224 | C24: 21 | D24: 2227 | E24: 21 | F24: 2234 | K24: 0 | L24: 222 | O24: total reinforcement | P24: =U14 -> 6 | Q24: =Z14 -> 7 | R24: =AE14 -> 6 | S24: =AJ14 -> 7 | T24: =AO14 -> 7 | U24: =AT14 -> 7
A25: 21 | B25: 2349 | C25: 21 | D25: 2356 | E25: 21 | F25: 2363 | K25: 0 | L25: 222 | O25: % target
A26: 21 | B26: 2456 | C26: 21 | D26: 2487 | E26: 21 | F26: 2518 | K26: 0 | L26: 222 | O26: CCRF
A27: 21 | B27: 2611 | C27: 21 | D27: 2633 | E27: 21 | F27: 2644 | K27: 0 | L27: 222 | O27: % CCRf
A28: 21 | B28: 2772 | C28: 21 | D28: 2779 | E28: 21 | F28: 2789 | K28: 0 | L28: 222 | O28: average response rate | P28: =F13/P20 -> 118.8571429 | Q28: =(F20-F13)/Q20 -> 123.2857143 | R28: =(F26-F20)/R20 -> 137.1666667 | S28: =(F33-F26)/S20 -> 133.8571429 | T28: =(F40-F33)/T20 -> 148.5714286 | U28: =(F47-F40)/U20 -> 146.4285714
A29: 21 | B29: 2895 | C29: 21 | D29: 2900 | E29: 21 | F29: 2924 | K29: 0 | L29: 222
A30: 21 | B30: 3015 | C30: 21 | D30: 3022 | E30: 21 | F30: 3036 | K30: 0 | L30: 222
A31: 21 | B31: 3139 | C31: 21 | D31: 3154 | E31: 21 | F31: 3170 | K31: 0 | L31: 222
A32: 21 | B32: 3274 | C32: 21 | D32: 3286 | E32: 21 | F32: 3309 | K32: 0 | L32: 222
A33: 21 | B33: 3408 | C33: 21 | D33: 3415 | E33: 21 | F33: 3455 | K33: 0 | L33: 222
A34: 21 | B34: 3587 | C34: 21 | D34: 3601 | E34: 21 | F34: 3608 | K34: 0 | L34: 222
A35: 21 | B35: 3734 | C35: 21 | D35: 3740 | E35: 21 | F35: 3802 | K35: 0 | L35: 222
A36: 21 | B36: 3895 | C36: 21 | D36: 3910 | E36: 21 | F36: 3920 | K36: 0 | L36: 222
A37: 21 | B37: 4023 | C37: 21 | D37: 4048 | E37: 21 | F37: 4067 | K37: 0 | L37: 222
A38: 21 | B38: 4167 | C38: 21 | D38: 4173 | E38: 21 | F38: 4181 | K38: 0 | L38: 222
A39: 21 | B39: 4319 | C39: 21 | D39: 4349 | E39: 21 | F39: 4364 | K39: 0 | L39: 222
A40: 21 | B40: 4458 | C40: 21 | D40: 4465 | E40: 21 | F40: 4495 | K40: 0 | L40: 222
A41: 21 | B41: 4704 | C41: 21 | D41: 4717 | E41: 21 | F41: 4731 | K41: 0 | L41: 222
A42: 21 | B42: 4822 | C42: 21 | D42: 4827 | E42: 21 | F42: 4832 | K42: 0 | L42: 222
A43: 21 | B43: 4933 | C43: 21 | D43: 5018 | E43: 21 | F43: 5028 | K43: 0 | L43: 222
A44: 21 | B44: 5131 | C44: 21 | D44: 5156 | E44: 21 | F44: 5166 | K44: 0 | L44: 222
A45: 21 | B45: 5257 | C45: 21 | D45: 5259 | E45: 21 | F45: 5268 | K45: 0 | L45: 222
A46: 21 | B46: 5364 | C46: 21 | D46: 5371 | E46: 21 | F46: 5388 | K46: 0 | L46: 222
A47: 21 | B47: 5490 | C47: 21 | D47: 5504 | E47: 21 | F47: 5520 | K47: 1 | L47: 222

Sheet !M324B5I.sha
A1: Report for:!M324B5I.sha
A2: Date: | B2: <date>
A3: Hen: | B3: <hen> | F3: Correct Sequence | G3: =Start!J2 -> 222 | P3: Total Sequences in Data | Q3: =4994-COUNTBLANK(L7:L5000) -> 42 | V3: Total Sequences in Block Data | W3: =COUNTA(L7:L13) -> 7 | AA3: Total Sequences in Block Data | AB3: =COUNTA(L14:L20) -> 7 | AF3: Total Sequences in Block Data | AG3: =COUNTA(L21:L27) -> 7 | AK3: Total Sequences in Block Data | AL3: =COUNTA(L28:L34) -> 7 | AP3: Total Sequences in Block Data | AQ3: =COUNTA(L35:L41) -> 7 | AU3: Total Sequences in Block Data | AV3: =COUNTA(L42:L48) -> 7
P4: Total Sequences in Summary | Q4: =SUM(O7:O14) -> 42 | V4: Total Sequences in Block Summary | W4: =SUM(U7:U14) -> 7 | AA4: Total Sequences in Block Summary | AB4: =SUM(Z7:Z14) -> 7 | AF4: Total Sequences in Block Summary | AG4: =SUM(AE7:AE14) -> 7 | AK4: Total Sequences in Block Summary | AL4: =SUM(AJ7:AJ14) -> 7 | AP4: Total Sequences in Block Summary | AQ4: =SUM(AO7:AO14) -> 7 | AU4: Total Sequences in Block Summary | AV4: =SUM(AT7:AT14) -> 7
T5: Block 1 | Y5: Block 2 | AD5: Block 3 | AI5: Block 4 | AN5: Block 5 | AS5: Block 6
A6: Sequence Component 1 | B6: Time 1 | C6: Sequence Component 2 | D6: Time 2 | E6: Sequence Component 3 | F6: Time 3 | G6: Sequence Component 4 | H6: Time 4 | I6: Sequence Component 5 | J6: Time 5 | K6: Correct? 0=No 1=Yes | L6: Sequence | N6: Frequency | P6: Relative Frequency | Q6: Variability | T6: Frequency | V6: Relative Frequency | W6: Variability | Y6: Frequency | AA6: Relative Frequency | AB6: Variability | AD6: Frequency | AF6: Relative Frequency | AG6: Variability | AI6: Frequency | AK6: Relative Frequency | AL6: Variability | AN6: Frequency | AP6: Relative Frequency | AQ6: Variability | AS6: Frequency | AU6: Relative Frequency | AV6: Variability
A7: 12 | B7: 76 | C7: 14 | D7: 101 | E7: 23 | F7: 117 | K7: 0 | L7: 112 | N7: 111 | O7: =COUNTIF($L$7:$L$500,N7) -> 0 | P7: =O7/$Q$4 -> 0 | Q7: =IF(P7=0,0,(P7*((LOG(P7))/LOG(2)))) -> 0 | T7: =N7 -> 111 | U7: =COUNTIF(L7:L13,T7) -> 0 | V7: =U7/(W4-U14) -> 0 | W7: =IF(V7=0,0,(V7*((LOG(V7))/LOG(2)))) -> 0 | Y7: =N7 -> 111 | Z7: =COUNTIF(L14:L20,Y7) -> 0 | AA7: =Z7/(AB4-Z14) -> 0 | AB7: =IF(AA7=0,0,(AA7*((LOG(AA7))/LOG(2)))) -> 0 | AD7: =N7 -> 111 | AE7: =COUNTIF(L21:L27,AD7) -> 0 | AF7: =AE7/(AG4-AE14) ->  | AG7: =IF(AF7=0,0,(AF7*((LOG(AF7))/LOG(2)))) ->  | AI7: =N7 -> 111 | AJ7: =COUNTIF(L28:L34,AI7) -> 0 | AK7: =AJ7/(AL4-AJ14) ->  | AL7: =IF(AK7=0,0,(AK7*((LOG(AK7))/LOG(2)))) ->  | AN7: =N7 -> 111 | AO7: =COUNTIF(L35:L41,AN7) -> 0 | AP7: =AO7/(AQ4-AO14) ->  | AQ7: =IF(AP7=0,0,(AP7*((LOG(AP7))/LOG(2)))) ->  | AS7: =N7 -> 111 | AT7: =COUNTIF(L42:L48,AS7) -> 0 | AU7: =AT7/(AV4-AT14) ->  | AV7: =IF(AU7=0,0,(AU7*((LOG(AU7))/LOG(2)))) -> 
A8: 21 | B8: 215 | C8: 21 | D8: 258 | E8: 21 | F8: 270 | K8: 0 | L8: 222 | N8: 112 | O8: =COUNTIF($L$7:$L$500,N8) -> 1 | P8: =O8/$Q$4 -> 0.02380952381 | Q8: =IF(P8=0,0,(P8*((LOG(P8))/LOG(2)))) -> -0.1283885101 | T8: =N8 -> 112 | U8: =COUNTIF(L7:L13,T8) -> 1 | V8: =U8/(W4-U14) -> 1 | W8: =IF(V8=0,0,(V8*((LOG(V8))/LOG(2)))) -> 0 | Y8: =N8 -> 112 | Z8: =COUNTIF(L14:L20,Y8) -> 0 | AA8: =Z8/(AB4-Z14) -> 0 | AB8: =IF(AA8=0,0,(AA8*((LOG(AA8))/LOG(2)))) -> 0 | AD8: =N8 -> 112 | AE8: =COUNTIF(L21:L27,AD8) -> 0 | AF8: =AE8/(AG4-AE14) ->  | AG8: =IF(AF8=0,0,(AF8*((LOG(AF8))/LOG(2)))) ->  | AI8: =N8 -> 112 | AJ8: =COUNTIF(L28:L34,AI8) -> 0 | AK8: =AJ8/(AL4-AJ14) ->  | AL8: =IF(AK8=0,0,(AK8*((LOG(AK8))/LOG(2)))) ->  | AN8: =N8 -> 112 | AO8: =COUNTIF(L35:L41,AN8) -> 0 | AP8: =AO8/(AQ4-AO14) ->  | AQ8: =IF(AP8=0,0,(AP8*((LOG(AP8))/LOG(2)))) ->  | AS8: =N8 -> 112 | AT8: =COUNTIF(L42:L48,AS8) -> 0 | AU8: =AT8/(AV4-AT14) ->  | AV8: =IF(AU8=0,0,(AU8*((LOG(AU8))/LOG(2)))) -> 
A9: 21 | B9: 362 | C9: 21 | D9: 367 | E9: 21 | F9: 411 | K9: 0 | L9: 222 | N9: 121 | O9: =COUNTIF($L$7:$L$500,N9) -> 0 | P9: =O9/$Q$4 -> 0 | Q9: =IF(P9=0,0,(P9*((LOG(P9))/LOG(2)))) -> 0 | T9: =N9 -> 121 | U9: =COUNTIF(L7:L13,T9) -> 0 | V9: =U9/(W4-U14) -> 0 | W9: =IF(V9=0,0,(V9*((LOG(V9))/LOG(2)))) -> 0 | Y9: =N9 -> 121 | Z9: =COUNTIF(L14:L20,Y9) -> 0 | AA9: =Z9/(AB4-Z14) -> 0 | AB9: =IF(AA9=0,0,(AA9*((LOG(AA9))/LOG(2)))) -> 0 | AD9: =N9 -> 121 | AE9: =COUNTIF(L21:L27,AD9) -> 0 | AF9: =AE9/(AG4-AE14) ->  | AG9: =IF(AF9=0,0,(AF9*((LOG(AF9))/LOG(2)))) ->  | AI9: =N9 -> 121 | AJ9: =COUNTIF(L28:L34,AI9) -> 0 | AK9: =AJ9/(AL4-AJ14) ->  | AL9: =IF(AK9=0,0,(AK9*((LOG(AK9))/LOG(2)))) ->  | AN9: =N9 -> 121 | AO9: =COUNTIF(L35:L41,AN9) -> 0 | AP9: =AO9/(AQ4-AO14) ->  | AQ9: =IF(AP9=0,0,(AP9*((LOG(AP9))/LOG(2)))) ->  | AS9: =N9 -> 121 | AT9: =COUNTIF(L42:L48,AS9) -> 0 | AU9: =AT9/(AV4-AT14) ->  | AV9: =IF(AU9=0,0,(AU9*((LOG(AU9))/LOG(2)))) -> 
A10: 21 | B10: 507 | C10: 21 | D10: 512 | E10: 21 | F10: 582 | K10: 0 | L10: 222 | N10: 122 | O10: =COUNTIF($L$7:$L$500,N10) -> 0 | P10: =O10/$Q$4 -> 0 | Q10: =IF(P10=0,0,(P10*((LOG(P10))/LOG(2)))) -> 0 | T10: =N10 -> 122 | U10: =COUNTIF(L7:L13,T10) -> 0 | V10: =U10/(W4-U14) -> 0 | W10: =IF(V10=0,0,(V10*((LOG(V10))/LOG(2)))) -> 0 | Y10: =N10 -> 122 | Z10: =COUNTIF(L14:L20,Y10) -> 0 | AA10: =Z10/(AB4-Z14) -> 0 | AB10: =IF(AA10=0,0,(AA10*((LOG(AA10))/LOG(2)))) -> 0 | AD10: =N10 -> 122 | AE10: =COUNTIF(L21:L27,AD10) -> 0 | AF10: =AE10/(AG4-AE14) ->  | AG10: =IF(AF10=0,0,(AF10*((LOG(AF10))/LOG(2)))) ->  | AI10: =N10 -> 122 | AJ10: =COUNTIF(L28:L34,AI10) -> 0 | AK10: =AJ10/(AL4-AJ14) ->  | AL10: =IF(AK10=0,0,(AK10*((LOG(AK10))/LOG(2)))) ->  | AN10: =N10 -> 122 | AO10: =COUNTIF(L35:L41,AN10) -> 0 | AP10: =AO10/(AQ4-AO14) ->  | AQ10: =IF(AP10=0,0,(AP10*((LOG(AP10))/LOG(2)))) ->  | AS10: =N10 -> 122 | AT10: =COUNTIF(L42:L48,AS10) -> 0 | AU10: =AT10/(AV4-AT14) ->  | AV10: =IF(AU10=0,0,(AU10*((LOG(AU10))/LOG(2)))) -> 
A11: 21 | B11: 674 | C11: 21 | D11: 680 | E11: 21 | F11: 687 | K11: 0 | L11: 222 | N11: 211 | O11: =COUNTIF($L$7:$L$500,N11) -> 0 | P11: =O11/$Q$4 -> 0 | Q11: =IF(P11=0,0,(P11*((LOG(P11))/LOG(2)))) -> 0 | T11: =N11 -> 211 | U11: =COUNTIF(L7:L13,T11) -> 0 | V11: =U11/(W4-U14) -> 0 | W11: =IF(V11=0,0,(V11*((LOG(V11))/LOG(2)))) -> 0 | Y11: =N11 -> 211 | Z11: =COUNTIF(L14:L20,Y11) -> 0 | AA11: =Z11/(AB4-Z14) -> 0 | AB11: =IF(AA11=0,0,(AA11*((LOG(AA11))/LOG(2)))) -> 0 | AD11: =N11 -> 211 | AE11: =COUNTIF(L21:L27,AD11) -> 0 | AF11: =AE11/(AG4-AE14) ->  | AG11: =IF(AF11=0,0,(AF11*((LOG(AF11))/LOG(2)))) ->  | AI11: =N11 -> 211 | AJ11: =COUNTIF(L28:L34,AI11) -> 0 | AK11: =AJ11/(AL4-AJ14) ->  | AL11: =IF(AK11=0,0,(AK11*((LOG(AK11))/LOG(2)))) ->  | AN11: =N11 -> 211 | AO11: =COUNTIF(L35:L41,AN11) -> 0 | AP11: =AO11/(AQ4-AO14) ->  | AQ11: =IF(AP11=0,0,(AP11*((LOG(AP11))/LOG(2)))) ->  | AS11: =N11 -> 211 | AT11: =COUNTIF(L42:L48,AS11) -> 0 | AU11: =AT11/(AV4-AT14) ->  | AV11: =IF(AU11=0,0,(AU11*((LOG(AU11))/LOG(2)))) -> 
A12: 21 | B12: 778 | C12: 21 | D12: 785 | E12: 21 | F12: 809 | K12: 0 | L12: 222 | N12: 212 | O12: =COUNTIF($L$7:$L$500,N12) -> 1 | P12: =O12/$Q$4 -> 0.02380952381 | Q12: =IF(P12=0,0,(P12*((LOG(P12))/LOG(2)))) -> -0.1283885101 | T12: =N12 -> 212 | U12: =COUNTIF(L7:L13,T12) -> 0 | V12: =U12/(W4-U14) -> 0 | W12: =IF(V12=0,0,(V12*((LOG(V12))/LOG(2)))) -> 0 | Y12: =N12 -> 212 | Z12: =COUNTIF(L14:L20,Y12) -> 1 | AA12: =Z12/(AB4-Z14) -> 1 | AB12: =IF(AA12=0,0,(AA12*((LOG(AA12))/LOG(2)))) -> 0 | AD12: =N12 -> 212 | AE12: =COUNTIF(L21:L27,AD12) -> 0 | AF12: =AE12/(AG4-AE14) ->  | AG12: =IF(AF12=0,0,(AF12*((LOG(AF12))/LOG(2)))) ->  | AI12: =N12 -> 212 | AJ12: =COUNTIF(L28:L34,AI12) -> 0 | AK12: =AJ12/(AL4-AJ14) ->  | AL12: =IF(AK12=0,0,(AK12*((LOG(AK12))/LOG(2)))) ->  | AN12: =N12 -> 212 | AO12: =COUNTIF(L35:L41,AN12) -> 0 | AP12: =AO12/(AQ4-AO14) ->  | AQ12: =IF(AP12=0,0,(AP12*((LOG(AP12))/LOG(2)))) ->  | AS12: =N12 -> 212 | AT12: =COUNTIF(L42:L48,AS12) -> 0 | AU12: =AT12/(AV4-AT14) ->  | AV12: =IF(AU12=0,0,(AU12*((LOG(AU12))/LOG(2)))) -> 
A13: 21 | B13: 933 | C13: 21 | D13: 951 | E13: 21 | F13: 1027 | K13: 0 | L13: 222 | N13: 221 | O13: =COUNTIF($L$7:$L$500,N13) -> 0 | P13: =O13/$Q$4 -> 0 | Q13: =IF(P13=0,0,(P13*((LOG(P13))/LOG(2)))) -> 0 | T13: =N13 -> 221 | U13: =COUNTIF(L7:L13,T13) -> 0 | V13: =U13/(W4-U14) -> 0 | W13: =IF(V13=0,0,(V13*((LOG(V13))/LOG(2)))) -> 0 | Y13: =N13 -> 221 | Z13: =COUNTIF(L14:L20,Y13) -> 0 | AA13: =Z13/(AB4-Z14) -> 0 | AB13: =IF(AA13=0,0,(AA13*((LOG(AA13))/LOG(2)))) -> 0 | AD13: =N13 -> 221 | AE13: =COUNTIF(L21:L27,AD13) -> 0 | AF13: =AE13/(AG4-AE14) ->  | AG13: =IF(AF13=0,0,(AF13*((LOG(AF13))/LOG(2)))) ->  | AI13: =N13 -> 221 | AJ13: =COUNTIF(L28:L34,AI13) -> 0 | AK13: =AJ13/(AL4-AJ14) ->  | AL13: =IF(AK13=0,0,(AK13*((LOG(AK13))/LOG(2)))) ->  | AN13: =N13 -> 221 | AO13: =COUNTIF(L35:L41,AN13) -> 0 | AP13: =AO13/(AQ4-AO14) ->  | AQ13: =IF(AP13=0,0,(AP13*((LOG(AP13))/LOG(2)))) ->  | AS13: =N13 -> 221 | AT13: =COUNTIF(L42:L48,AS13) -> 0 | AU13: =AT13/(AV4-AT14) ->  | AV13: =IF(AU13=0,0,(AU13*((LOG(AU13))/LOG(2)))) -> 
A14: 21 | B14: 1161 | C14: 21 | D14: 1178 | E14: 21 | F14: 1198 | K14: 0 | L14: 222 | N14: 222 | O14: =COUNTIF($L$7:$L$500,N14) -> 40 | P14: =O14/$Q$4 -> 0.9523809524 | Q14: =IF(P14=0,0,(P14*((LOG(P14))/LOG(2)))) -> -0.06703745513 | T14: =N14 -> 222 | U14: =COUNTIF(L7:L13,T14) -> 6 | Y14: =N14 -> 222 | Z14: =COUNTIF(L14:L20,Y14) -> 6 | AD14: =N14 -> 222 | AE14: =COUNTIF(L21:L27,AD14) -> 7 | AI14: =N14 -> 222 | AJ14: =COUNTIF(L28:L34,AI14) -> 7 | AN14: =N14 -> 222 | AO14: =COUNTIF(L35:L41,AN14) -> 7 | AS14: =N14 -> 222 | AT14: =COUNTIF(L42:L48,AS14) -> 7
A15: 21 | B15: 1393 | C15: 21 | D15: 1407 | E15: 21 | F15: 1455 | K15: 0 | L15: 222 | P15: =SUM(P7:P14) -> 1 | Q15: =-SUM(Q7:Q14) -> 0.3238144753 | V15: =SUM(V7:V14) -> 1 | W15: =-SUM(W7:W14) -> 0 | AA15: =SUM(AA7:AA14) -> 1 | AB15: =-SUM(AB7:AB14) -> 0 | AF15: =SUM(AF7:AF14) ->  | AG15: =-SUM(AG7:AG14) ->  | AK15: =SUM(AK7:AK14) ->  | AL15: =-SUM(AL7:AL14) ->  | AP15: =SUM(AP7:AP14) ->  | AQ15: =-SUM(AQ7:AQ14) ->  | AU15: =SUM(AU7:AU14) ->  | AV15: =-SUM(AV7:AV14) -> 
A16: 21 | B16: 1560 | C16: 21 | D16: 1576 | E16: 21 | F16: 1612 | K16: 0 | L16: 222 | P16: U= | Q16: =Q15/(LOG(Q4)/LOG(2)) -> 0.06005107821 | V16: U1= | W16: =W15/(LOG(W4)/LOG(2)) -> 0 | AA16: U2= | AB16: =AB15/(LOG(AB4)/LOG(2)) -> 0 | AF16: U3= | AG16: =AG15/(LOG(AG4)/LOG(2)) ->  | AK16: U4= | AL16: =AL15/(LOG(AL4)/LOG(2)) ->  | AP16: U5= | AQ16: =AQ15/(LOG(AQ4)/LOG(2)) ->  | AU16: U6= | AV16: =AV15/(LOG(AV4)/LOG(2)) -> 
A17: 21 | B17: 1726 | C17: 21 | D17: 1733 | E17: 21 | F17: 1767 | K17: 0 | L17: 222
A18: 21 | B18: 5404 | C18: 12 | D18: 5414 | E18: 23 | F18: 5422 | K18: 0 | L18: 212
A19: 21 | B19: 5521 | C19: 21 | D19: 5525 | E19: 21 | F19: 5566 | K19: 0 | L19: 222 | N19: Total Target Seq
A20: 21 | B20: 5687 | C20: 21 | D20: 5693 | E20: 21 | F20: 5700 | K20: 0 | L20: 222 | N20: =COUNTIF(L7:L48,G3) -> 40 | P20: 7 | Q20: 7 | R20: 7 | S20: 7 | T20: 7 | U20: 7
A21: 21 | B21: 5825 | C21: 21 | D21: 5853 | E21: 21 | F21: 5868 | K21: 0 | L21: 222 | P21: % of reinforcement given in 6 equal intervals based on number of trials
A22: 21 | B22: 6014 | C22: 21 | D22: 6040 | E22: 21 | F22: 6106 | K22: 0 | L22: 222 | P22: %_1 | Q22: %_2 | R22: %_3 | S22: %_4 | T22: %_5 | U22: %_6
A23: 21 | B23: 6212 | C23: 21 | D23: 6217 | E23: 21 | F23: 6224 | K23: 0 | L23: 222 | O23: target sequence | P23: =$G$3 -> 222 | Q23: =$G$3 -> 222 | R23: =$G$3 -> 222 | S23: =$G$3 -> 222 | T23: =$G$3 -> 222 | U23: =$G$3 -> 222
A24: 21 | B24: 6387 | C24: 21 | D24: 6442 | E24: 21 | F24: 6486 | K24: 0 | L24: 222 | O24: total reinforcement | P24: =U14 -> 6 | Q24: =Z14 -> 6 | R24: =AE14 -> 7 | S24: =AJ14 -> 7 | T24: =AO14 -> 7 | U24: =AT14 -> 7
A25: 21 | B25: 6593 | C25: 21 | D25: 6615 | E25: 21 | F25: 6625 | K25: 0 | L25: 222 | O25: % target
A26: 21 | B26: 6745 | C26: 21 | D26: 6791 | E26: 21 | F26: 6832 | K26: 0 | L26: 222 | O26: CCRF
A27: 21 | B27: 6936 | C27: 21 | D27: 6942 | E27: 21 | F27: 6951 | K27: 0 | L27: 222 | O27: % CCRf
A28: 21 | B28: 7083 | C28: 21 | D28: 7090 | E28: 21 | F28: 7098 | K28: 0 | L28: 222 | O28: average response rate | P28: =F13/P20 -> 146.7142857 | Q28: =(F20-F13)/Q20 -> 667.5714286 | R28: =(F27-F20)/R20 -> 178.7142857 | S28: =(F34-F27)/S20 -> 188.2857143 | T28: =(F41-F34)/T20 -> 183.5714286 | U28: =(F48-F41)/U20 -> 184.7142857
A29: 21 | B29: 7229 | C29: 21 | D29: 7231 | E29: 21 | F29: 7260 | K29: 0 | L29: 222
A30: 21 | B30: 7358 | C30: 21 | D30: 7364 | E30: 21 | F30: 7424 | K30: 0 | L30: 222
A31: 21 | B31: 7616 | C31: 21 | D31: 7658 | E31: 21 | F31: 7680 | K31: 0 | L31: 222
A32: 21 | B32: 7950 | C32: 21 | D32: 7960 | E32: 21 | F32: 7975 | K32: 0 | L32: 222
A33: 21 | B33: 8102 | C33: 21 | D33: 8118 | E33: 21 | F33: 8144 | K33: 0 | L33: 222
A34: 21 | B34: 8245 | C34: 21 | D34: 8251 | E34: 21 | F34: 8269 | K34: 0 | L34: 222
A35: 21 | B35: 8385 | C35: 21 | D35: 8391 | E35: 21 | F35: 8424 | K35: 0 | L35: 222
A36: 21 | B36: 8564 | C36: 21 | D36: 8580 | E36: 21 | F36: 8612 | K36: 0 | L36: 222
A37: 21 | B37: 8828 | C37: 21 | D37: 8866 | E37: 21 | F37: 8915 | K37: 0 | L37: 222
A38: 21 | B38: 9063 | C38: 21 | D38: 9070 | E38: 21 | F38: 9083 | K38: 0 | L38: 222
A39: 21 | B39: 9217 | C39: 21 | D39: 9221 | E39: 21 | F39: 9227 | K39: 0 | L39: 222
A40: 21 | B40: 9343 | C40: 21 | D40: 9370 | E40: 21 | F40: 9380 | K40: 0 | L40: 222
A41: 21 | B41: 9502 | C41: 21 | D41: 9516 | E41: 21 | F41: 9554 | K41: 0 | L41: 222
A42: 21 | B42: 9676 | C42: 21 | D42: 9695 | E42: 21 | F42: 9702 | K42: 0 | L42: 222
A43: 21 | B43: 9854 | C43: 21 | D43: 9876 | E43: 21 | F43: 9890 | K43: 0 | L43: 222
A44: 21 | B44: 10117 | C44: 21 | D44: 10182 | E44: 21 | F44: 10225 | K44: 0 | L44: 222
A45: 21 | B45: 10335 | C45: 21 | D45: 10339 | E45: 21 | F45: 10343 | K45: 0 | L45: 222
A46: 21 | B46: 10448 | C46: 21 | D46: 10458 | E46: 21 | F46: 10473 | K46: 0 | L46: 222
A47: 21 | B47: 10593 | C47: 21 | D47: 10610 | E47: 21 | F47: 10647 | K47: 0 | L47: 222
A48: 21 | B48: 10741 | C48: 21 | D48: 10835 | E48: 21 | F48: 10847 | K48: 1 | L48: 222

Sheet !M325B1I.sha
A1: Report for:!M325B1I.sha
A2: Date: | B2: <date>
A3: Hen: | B3: <hen> | F3: Correct Sequence | G3: =Start!J2 -> 222 | P3: Total Sequences in Data | Q3: =4994-COUNTBLANK(L7:L5000) -> 41 | V3: Total Sequences in Block Data | W3: =COUNTA(L7:L13) -> 7 | AA3: Total Sequences in Block Data | AB3: =COUNTA(L14:L20) -> 7 | AF3: Total Sequences in Block Data | AG3: =COUNTA(L21:L26) -> 6 | AK3: Total Sequences in Block Data | AL3: =COUNTA(L27:L33) -> 7 | AP3: Total Sequences in Block Data | AQ3: =COUNTA(L34:L40) -> 7 | AU3: Total Sequences in Block Data | AV3: =COUNTA(L41:L47) -> 7
P4: Total Sequences in Summary | Q4: =SUM(O7:O14) -> 41 | V4: Total Sequences in Block Summary | W4: =SUM(U7:U14) -> 7 | AA4: Total Sequences in Block Summary | AB4: =SUM(Z7:Z14) -> 7 | AF4: Total Sequences in Block Summary | AG4: =SUM(AE7:AE14) -> 6 | AK4: Total Sequences in Block Summary | AL4: =SUM(AJ7:AJ14) -> 7 | AP4: Total Sequences in Block Summary | AQ4: =SUM(AO7:AO14) -> 7 | AU4: Total Sequences in Block Summary | AV4: =SUM(AT7:AT14) -> 7
T5: Block 1 | Y5: Block 2 | AD5: Block 3 | AI5: Block 4 | AN5: Block 5 | AS5: Block 6
A6: Sequence Component 1 | B6: Time 1 | C6: Sequence Component 2 | D6: Time 2 | E6: Sequence Component 3 | F6: Time 3 | G6: Sequence Component 4 | H6: Time 4 | I6: Sequence Component 5 | J6: Time 5 | K6: Correct? 0=No 1=Yes | L6: Sequence | N6: Frequency | P6: Relative Frequency | Q6: Variability | T6: Frequency | V6: Relative Frequency | W6: Variability | Y6: Frequency | AA6: Relative Frequency | AB6: Variability | AD6: Frequency | AF6: Relative Frequency | AG6: Variability | AI6: Frequency | AK6: Relative Frequency | AL6: Variability | AN6: Frequency | AP6: Relative Frequency | AQ6: Variability | AS6: Frequency | AU6: Relative Frequency | AV6: Variability
A7: 12 | B7: 29 | C7: 23 | D7: 40 | E7: 23 | F7: 45 | K7: 0 | L7: 122 | N7: 111 | O7: =COUNTIF($L$7:$L$500,N7) -> 0 | P7: =O7/$Q$4 -> 0 | Q7: =IF(P7=0,0,(P7*((LOG(P7))/LOG(2)))) -> 0 | T7: =N7 -> 111 | U7: =COUNTIF(L7:L13,T7) -> 0 | V7: =U7/(W4-U14) -> 0 | W7: =IF(V7=0,0,(V7*((LOG(V7))/LOG(2)))) -> 0 | Y7: =N7 -> 111 | Z7: =COUNTIF(L14:L20,Y7) -> 0 | AA7: =Z7/(AB4-Z14) ->  | AB7: =IF(AA7=0,0,(AA7*((LOG(AA7))/LOG(2)))) ->  | AD7: =N7 -> 111 | AE7: =COUNTIF(L21:L26,AD7) -> 0 | AF7: =AE7/(AG4-AE14) ->  | AG7: =IF(AF7=0,0,(AF7*((LOG(AF7))/LOG(2)))) ->  | AI7: =N7 -> 111 | AJ7: =COUNTIF(L27:L33,AI7) -> 0 | AK7: =AJ7/(AL4-AJ14) ->  | AL7: =IF(AK7=0,0,(AK7*((LOG(AK7))/LOG(2)))) ->  | AN7: =N7 -> 111 | AO7: =COUNTIF(L34:L40,AN7) -> 0 | AP7: =AO7/(AQ4-AO14) ->  | AQ7: =IF(AP7=0,0,(AP7*((LOG(AP7))/LOG(2)))) ->  | AS7: =N7 -> 111 | AT7: =COUNTIF(L41:L47,AS7) -> 0 | AU7: =AT7/(AV4-AT14) ->  | AV7: =IF(AU7=0,0,(AU7*((LOG(AU7))/LOG(2)))) -> 
A8: 21 | B8: 143 | C8: 21 | D8: 194 | E8: 21 | F8: 220 | K8: 0 | L8: 222 | N8: 112 | O8: =COUNTIF($L$7:$L$500,N8) -> 0 | P8: =O8/$Q$4 -> 0 | Q8: =IF(P8=0,0,(P8*((LOG(P8))/LOG(2)))) -> 0 | T8: =N8 -> 112 | U8: =COUNTIF(L7:L13,T8) -> 0 | V8: =U8/(W4-U14) -> 0 | W8: =IF(V8=0,0,(V8*((LOG(V8))/LOG(2)))) -> 0 | Y8: =N8 -> 112 | Z8: =COUNTIF(L14:L20,Y8) -> 0 | AA8: =Z8/(AB4-Z14) ->  | AB8: =IF(AA8=0,0,(AA8*((LOG(AA8))/LOG(2)))) ->  | AD8: =N8 -> 112 | AE8: =COUNTIF(L21:L26,AD8) -> 0 | AF8: =AE8/(AG4-AE14) ->  | AG8: =IF(AF8=0,0,(AF8*((LOG(AF8))/LOG(2)))) ->  | AI8: =N8 -> 112 | AJ8: =COUNTIF(L27:L33,AI8) -> 0 | AK8: =AJ8/(AL4-AJ14) ->  | AL8: =IF(AK8=0,0,(AK8*((LOG(AK8))/LOG(2)))) ->  | AN8: =N8 -> 112 | AO8: =COUNTIF(L34:L40,AN8) -> 0 | AP8: =AO8/(AQ4-AO14) ->  | AQ8: =IF(AP8=0,0,(AP8*((LOG(AP8))/LOG(2)))) ->  | AS8: =N8 -> 112 | AT8: =COUNTIF(L41:L47,AS8) -> 0 | AU8: =AT8/(AV4-AT14) ->  | AV8: =IF(AU8=0,0,(AU8*((LOG(AU8))/LOG(2)))) -> 
A9: 21 | B9: 331 | C9: 21 | D9: 345 | E9: 21 | F9: 416 | K9: 0 | L9: 222 | N9: 121 | O9: =COUNTIF($L$7:$L$500,N9) -> 0 | P9: =O9/$Q$4 -> 0 | Q9: =IF(P9=0,0,(P9*((LOG(P9))/LOG(2)))) -> 0 | T9: =N9 -> 121 | U9: =COUNTIF(L7:L13,T9) -> 0 | V9: =U9/(W4-U14) -> 0 | W9: =IF(V9=0,0,(V9*((LOG(V9))/LOG(2)))) -> 0 | Y9: =N9 -> 121 | Z9: =COUNTIF(L14:L20,Y9) -> 0 | AA9: =Z9/(AB4-Z14) ->  | AB9: =IF(AA9=0,0,(AA9*((LOG(AA9))/LOG(2)))) ->  | AD9: =N9 -> 121 | AE9: =COUNTIF(L21:L26,AD9) -> 0 | AF9: =AE9/(AG4-AE14) ->  | AG9: =IF(AF9=0,0,(AF9*((LOG(AF9))/LOG(2)))) ->  | AI9: =N9 -> 121 | AJ9: =COUNTIF(L27:L33,AI9) -> 0 | AK9: =AJ9/(AL4-AJ14) ->  | AL9: =IF(AK9=0,0,(AK9*((LOG(AK9))/LOG(2)))) ->  | AN9: =N9 -> 121 | AO9: =COUNTIF(L34:L40,AN9) -> 0 | AP9: =AO9/(AQ4-AO14) ->  | AQ9: =IF(AP9=0,0,(AP9*((LOG(AP9))/LOG(2)))) ->  | AS9: =N9 -> 121 | AT9: =COUNTIF(L41:L47,AS9) -> 0 | AU9: =AT9/(AV4-AT14) ->  | AV9: =IF(AU9=0,0,(AU9*((LOG(AU9))/LOG(2)))) -> 
A10: 21 | B10: 509 | C10: 21 | D10: 516 | E10: 21 | F10: 523 | K10: 0 | L10: 222 | N10: 122 | O10: =COUNTIF($L$7:$L$500,N10) -> 1 | P10: =O10/$Q$4 -> 0.0243902439 | Q10: =IF(P10=0,0,(P10*((LOG(P10))/LOG(2)))) -> -0.1306720001 | T10: =N10 -> 122 | U10: =COUNTIF(L7:L13,T10) -> 1 | V10: =U10/(W4-U14) -> 1 | W10: =IF(V10=0,0,(V10*((LOG(V10))/LOG(2)))) -> 0 | Y10: =N10 -> 122 | Z10: =COUNTIF(L14:L20,Y10) -> 0 | AA10: =Z10/(AB4-Z14) ->  | AB10: =IF(AA10=0,0,(AA10*((LOG(AA10))/LOG(2)))) ->  | AD10: =N10 -> 122 | AE10: =COUNTIF(L21:L26,AD10) -> 0 | AF10: =AE10/(AG4-AE14) ->  | AG10: =IF(AF10=0,0,(AF10*((LOG(AF10))/LOG(2)))) ->  | AI10: =N10 -> 122 | AJ10: =COUNTIF(L27:L33,AI10) -> 0 | AK10: =AJ10/(AL4-AJ14) ->  | AL10: =IF(AK10=0,0,(AK10*((LOG(AK10))/LOG(2)))) ->  | AN10: =N10 -> 122 | AO10: =COUNTIF(L34:L40,AN10) -> 0 | AP10: =AO10/(AQ4-AO14) ->  | AQ10: =IF(AP10=0,0,(AP10*((LOG(AP10))/LOG(2)))) ->  | AS10: =N10 -> 122 | AT10: =COUNTIF(L41:L47,AS10) -> 0 | AU10: =AT10/(AV4-AT14) ->  | AV10: =IF(AU10=0,0,(AU10*((LOG(AU10))/LOG(2)))) -> 
A11: 21 | B11: 622 | C11: 21 | D11: 641 | E11: 21 | F11: 664 | K11: 0 | L11: 222 | N11: 211 | O11: =COUNTIF($L$7:$L$500,N11) -> 0 | P11: =O11/$Q$4 -> 0 | Q11: =IF(P11=0,0,(P11*((LOG(P11))/LOG(2)))) -> 0 | T11: =N11 -> 211 | U11: =COUNTIF(L7:L13,T11) -> 0 | V11: =U11/(W4-U14) -> 0 | W11: =IF(V11=0,0,(V11*((LOG(V11))/LOG(2)))) -> 0 | Y11: =N11 -> 211 | Z11: =COUNTIF(L14:L20,Y11) -> 0 | AA11: =Z11/(AB4-Z14) ->  | AB11: =IF(AA11=0,0,(AA11*((LOG(AA11))/LOG(2)))) ->  | AD11: =N11 -> 211 | AE11: =COUNTIF(L21:L26,AD11) -> 0 | AF11: =AE11/(AG4-AE14) ->  | AG11: =IF(AF11=0,0,(AF11*((LOG(AF11))/LOG(2)))) ->  | AI11: =N11 -> 211 | AJ11: =COUNTIF(L27:L33,AI11) -> 0 | AK11: =AJ11/(AL4-AJ14) ->  | AL11: =IF(AK11=0,0,(AK11*((LOG(AK11))/LOG(2)))) ->  | AN11: =N11 -> 211 | AO11: =COUNTIF(L34:L40,AN11) -> 0 | AP11: =AO11/(AQ4-AO14) ->  | AQ11: =IF(AP11=0,0,(AP11*((LOG(AP11))/LOG(2)))) ->  | AS11: =N11 -> 211 | AT11: =COUNTIF(L41:L47,AS11) -> 0 | AU11: =AT11/(AV4-AT14) ->  | AV11: =IF(AU11=0,0,(AU11*((LOG(AU11))/LOG(2)))) -> 
A12: 21 | B12: 773 | C12: 21 | D12: 789 | E12: 21 | F12: 833 | K12: 0 | L12: 222 | N12: 212 | O12: =COUNTIF($L$7:$L$500,N12) -> 0 | P12: =O12/$Q$4 -> 0 | Q12: =IF(P12=0,0,(P12*((LOG(P12))/LOG(2)))) -> 0 | T12: =N12 -> 212 | U12: =COUNTIF(L7:L13,T12) -> 0 | V12: =U12/(W4-U14) -> 0 | W12: =IF(V12=0,0,(V12*((LOG(V12))/LOG(2)))) -> 0 | Y12: =N12 -> 212 | Z12: =COUNTIF(L14:L20,Y12) -> 0 | AA12: =Z12/(AB4-Z14) ->  | AB12: =IF(AA12=0,0,(AA12*((LOG(AA12))/LOG(2)))) ->  | AD12: =N12 -> 212 | AE12: =COUNTIF(L21:L26,AD12) -> 0 | AF12: =AE12/(AG4-AE14) ->  | AG12: =IF(AF12=0,0,(AF12*((LOG(AF12))/LOG(2)))) ->  | AI12: =N12 -> 212 | AJ12: =COUNTIF(L27:L33,AI12) -> 0 | AK12: =AJ12/(AL4-AJ14) ->  | AL12: =IF(AK12=0,0,(AK12*((LOG(AK12))/LOG(2)))) ->  | AN12: =N12 -> 212 | AO12: =COUNTIF(L34:L40,AN12) -> 0 | AP12: =AO12/(AQ4-AO14) ->  | AQ12: =IF(AP12=0,0,(AP12*((LOG(AP12))/LOG(2)))) ->  | AS12: =N12 -> 212 | AT12: =COUNTIF(L41:L47,AS12) -> 0 | AU12: =AT12/(AV4-AT14) ->  | AV12: =IF(AU12=0,0,(AU12*((LOG(AU12))/LOG(2)))) -> 
A13: 21 | B13: 926 | C13: 21 | D13: 937 | E13: 21 | F13: 953 | K13: 0 | L13: 222 | N13: 221 | O13: =COUNTIF($L$7:$L$500,N13) -> 0 | P13: =O13/$Q$4 -> 0 | Q13: =IF(P13=0,0,(P13*((LOG(P13))/LOG(2)))) -> 0 | T13: =N13 -> 221 | U13: =COUNTIF(L7:L13,T13) -> 0 | V13: =U13/(W4-U14) -> 0 | W13: =IF(V13=0,0,(V13*((LOG(V13))/LOG(2)))) -> 0 | Y13: =N13 -> 221 | Z13: =COUNTIF(L14:L20,Y13) -> 0 | AA13: =Z13/(AB4-Z14) ->  | AB13: =IF(AA13=0,0,(AA13*((LOG(AA13))/LOG(2)))) ->  | AD13: =N13 -> 221 | AE13: =COUNTIF(L21:L26,AD13) -> 0 | AF13: =AE13/(AG4-AE14) ->  | AG13: =IF(AF13=0,0,(AF13*((LOG(AF13))/LOG(2)))) ->  | AI13: =N13 -> 221 | AJ13: =COUNTIF(L27:L33,AI13) -> 0 | AK13: =AJ13/(AL4-AJ14) ->  | AL13: =IF(AK13=0,0,(AK13*((LOG(AK13))/LOG(2)))) ->  | AN13: =N13 -> 221 | AO13: =COUNTIF(L34:L40,AN13) -> 0 | AP13: =AO13/(AQ4-AO14) ->  | AQ13: =IF(AP13=0,0,(AP13*((LOG(AP13))/LOG(2)))) ->  | AS13: =N13 -> 221 | AT13: =COUNTIF(L41:L47,AS13) -> 0 | AU13: =AT13/(AV4-AT14) ->  | AV13: =IF(AU13=0,0,(AU13*((LOG(AU13))/LOG(2)))) -> 
A14: 21 | B14: 1048 | C14: 21 | D14: 1054 | E14: 21 | F14: 1064 | K14: 0 | L14: 222 | N14: 222 | O14: =COUNTIF($L$7:$L$500,N14) -> 40 | P14: =O14/$Q$4 -> 0.9756097561 | Q14: =IF(P14=0,0,(P14*((LOG(P14))/LOG(2)))) -> -0.03475503388 | T14: =N14 -> 222 | U14: =COUNTIF(L7:L13,T14) -> 6 | Y14: =N14 -> 222 | Z14: =COUNTIF(L14:L20,Y14) -> 7 | AD14: =N14 -> 222 | AE14: =COUNTIF(L21:L26,AD14) -> 6 | AI14: =N14 -> 222 | AJ14: =COUNTIF(L27:L33,AI14) -> 7 | AN14: =N14 -> 222 | AO14: =COUNTIF(L34:L40,AN14) -> 7 | AS14: =N14 -> 222 | AT14: =COUNTIF(L41:L47,AS14) -> 7
A15: 21 | B15: 1159 | C15: 21 | D15: 1171 | E15: 21 | F15: 1188 | K15: 0 | L15: 222 | P15: =SUM(P7:P14) -> 1 | Q15: =-SUM(Q7:Q14) -> 0.165427034 | V15: =SUM(V7:V14) -> 1 | W15: =-SUM(W7:W14) -> 0 | AA15: =SUM(AA7:AA14) ->  | AB15: =-SUM(AB7:AB14) ->  | AF15: =SUM(AF7:AF14) ->  | AG15: =-SUM(AG7:AG14) ->  | AK15: =SUM(AK7:AK14) ->  | AL15: =-SUM(AL7:AL14) ->  | AP15: =SUM(AP7:AP14) ->  | AQ15: =-SUM(AQ7:AQ14) ->  | AU15: =SUM(AU7:AU14) ->  | AV15: =-SUM(AV7:AV14) -> 
A16: 21 | B16: 1376 | C16: 21 | D16: 1398 | E16: 21 | F16: 1415 | K16: 0 | L16: 222 | P16: U= | Q16: =Q15/(LOG(Q4)/LOG(2)) -> 0.03087735478 | V16: U1= | W16: =W15/(LOG(W4)/LOG(2)) -> 0 | AA16: U2= | AB16: =AB15/(LOG(AB4)/LOG(2)) ->  | AF16: U3= | AG16: =AG15/(LOG(AG4)/LOG(2)) ->  | AK16: U4= | AL16: =AL15/(LOG(AL4)/LOG(2)) ->  | AP16: U5= | AQ16: =AQ15/(LOG(AQ4)/LOG(2)) ->  | AU16: U6= | AV16: =AV15/(LOG(AV4)/LOG(2)) -> 
A17: 21 | B17: 1509 | C17: 21 | D17: 1518 | E17: 21 | F17: 1551 | K17: 0 | L17: 222
A18: 21 | B18: 1646 | C18: 21 | D18: 1651 | E18: 21 | F18: 1659 | K18: 0 | L18: 222
A19: 21 | B19: 1757 | C19: 21 | D19: 1764 | E19: 21 | F19: 1774 | K19: 0 | L19: 222 | N19: Total Target Seq
A20: 21 | B20: 1946 | C20: 21 | D20: 1954 | E20: 21 | F20: 2010 | K20: 0 | L20: 222 | N20: =COUNTIF(L7:L47,G3) -> 40 | P20: 7 | Q20: 7 | R20: 6 | S20: 7 | T20: 7 | U20: 7
A21: 21 | B21: 2105 | C21: 21 | D21: 2120 | E21: 21 | F21: 2169 | K21: 0 | L21: 222 | P21: % of reinforcement given in 6 equal intervals based on number of trials
A22: 21 | B22: 2267 | C22: 21 | D22: 2284 | E22: 21 | F22: 2299 | K22: 0 | L22: 222 | P22: %_1 | Q22: %_2 | R22: %_3 | S22: %_4 | T22: %_5 | U22: %_6
A23: 21 | B23: 2393 | C23: 21 | D23: 2399 | E23: 21 | F23: 2407 | K23: 0 | L23: 222 | O23: target sequence | P23: =$G$3 -> 222 | Q23: =$G$3 -> 222 | R23: =$G$3 -> 222 | S23: =$G$3 -> 222 | T23: =$G$3 -> 222 | U23: =$G$3 -> 222
A24: 21 | B24: 2513 | C24: 21 | D24: 2559 | E24: 21 | F24: 2610 | K24: 0 | L24: 222 | O24: total reinforcement | P24: =U14 -> 6 | Q24: =Z14 -> 7 | R24: =AE14 -> 6 | S24: =AJ14 -> 7 | T24: =AO14 -> 7 | U24: =AT14 -> 7
A25: 21 | B25: 2718 | C25: 21 | D25: 2725 | E25: 21 | F25: 2741 | K25: 0 | L25: 222 | O25: % target
A26: 21 | B26: 2838 | C26: 21 | D26: 2861 | E26: 21 | F26: 2877 | K26: 0 | L26: 222 | O26: CCRF
A27: 21 | B27: 2973 | C27: 21 | D27: 2979 | E27: 21 | F27: 2990 | K27: 0 | L27: 222 | O27: % CCRf
A28: 21 | B28: 3113 | C28: 21 | D28: 3149 | E28: 21 | F28: 3159 | K28: 0 | L28: 222 | O28: average response rate | P28: =F13/P20 -> 136.1428571 | Q28: =(F20-F13)/Q20 -> 151 | R28: =(F26-F20)/R20 -> 144.5 | S28: =(F33-F26)/S20 -> 139.5714286 | T28: =(F40-F33)/T20 -> 153.1428571 | U28: =(F47-F40)/U20 -> 156.1428571
A29: 21 | B29: 3267 | C29: 21 | D29: 3273 | E29: 21 | F29: 3288 | K29: 0 | L29: 222
A30: 21 | B30: 3401 | C30: 21 | D30: 3431 | E30: 21 | F30: 3459 | K30: 0 | L30: 222
A31: 21 | B31: 3552 | C31: 21 | D31: 3558 | E31: 21 | F31: 3583 | K31: 0 | L31: 222
A32: 21 | B32: 3684 | C32: 21 | D32: 3691 | E32: 21 | F32: 3698 | K32: 0 | L32: 222
A33: 21 | B33: 3837 | C33: 21 | D33: 3845 | E33: 21 | F33: 3854 | K33: 0 | L33: 222
A34: 21 | B34: 3956 | C34: 21 | D34: 3972 | E34: 21 | F34: 3995 | K34: 0 | L34: 222
A35: 21 | B35: 4192 | C35: 21 | D35: 4212 | E35: 21 | F35: 4240 | K35: 0 | L35: 222
A36: 21 | B36: 4337 | C36: 21 | D36: 4362 | E36: 21 | F36: 4395 | K36: 0 | L36: 222
A37: 21 | B37: 4490 | C37: 21 | D37: 4495 | E37: 21 | F37: 4502 | K37: 0 | L37: 222
A38: 21 | B38: 4602 | C38: 21 | D38: 4609 | E38: 21 | F38: 4662 | K38: 0 | L38: 222
A39: 21 | B39: 4755 | C39: 21 | D39: 4762 | E39: 21 | F39: 4778 | K39: 0 | L39: 222
A40: 21 | B40: 4870 | C40: 21 | D40: 4876 | E40: 21 | F40: 4926 | K40: 0 | L40: 222
A41: 21 | B41: 5040 | C41: 21 | D41: 5051 | E41: 21 | F41: 5105 | K41: 0 | L41: 222
A42: 21 | B42: 5210 | C42: 21 | D42: 5216 | E42: 21 | F42: 5246 | K42: 0 | L42: 222
A43: 21 | B43: 5347 | C43: 21 | D43: 5354 | E43: 21 | F43: 5382 | K43: 0 | L43: 222
A44: 21 | B44: 5524 | C44: 21 | D44: 5554 | E44: 21 | F44: 5587 | K44: 0 | L44: 222
A45: 21 | B45: 5693 | C45: 21 | D45: 5700 | E45: 21 | F45: 5706 | K45: 0 | L45: 222
A46: 21 | B46: 5821 | C46: 21 | D46: 5827 | E46: 21 | F46: 5881 | K46: 0 | L46: 222
A47: 21 | B47: 5997 | C47: 21 | D47: 6008 | E47: 21 | F47: 6019 | K47: 1 | L47: 222

Sheet !M326B4I.sha
A1: Report for:!M326B4I.sha
A2: Date: | B2: <date>
A3: Hen: | B3: <hen> | F3: Correct Sequence | G3: =Start!J2 -> 222 | P3: Total Sequences in Data | Q3: =4994-COUNTBLANK(L7:L5000) -> 40 | V3: Total Sequences in Block Data | W3: =COUNTA(L7:L13) -> 7 | AA3: Total Sequences in Block Data | AB3: =COUNTA(L14:L19) -> 6 | AF3: Total Sequences in Block Data | AG3: =COUNTA(L20:L26) -> 7 | AK3: Total Sequences in Block Data | AL3: =COUNTA(L27:L33) -> 7 | AP3: Total Sequences in Block Data | AQ3: =COUNTA(L34:L39) -> 6 | AU3: Total Sequences in Block Data | AV3: =COUNTA(L40:L46) -> 7
P4: Total Sequences in Summary | Q4: =SUM(O7:O14) -> 40 | V4: Total Sequences in Block Summary | W4: =SUM(U7:U14) -> 7 | AA4: Total Sequences in Block Summary | AB4: =SUM(Z7:Z14) -> 6 | AF4: Total Sequences in Block Summary | AG4: =SUM(AE7:AE14) -> 7 | AK4: Total Sequences in Block Summary | AL4: =SUM(AJ7:AJ14) -> 7 | AP4: Total Sequences in Block Summary | AQ4: =SUM(AO7:AO14) -> 6 | AU4: Total Sequences in Block Summary | AV4: =SUM(AT7:AT14) -> 7
T5: Block 1 | Y5: Block 2 | AD5: Block 3 | AI5: Block 4 | AN5: Block 5 | AS5: Block 6
A6: Sequence Component 1 | B6: Time 1 | C6: Sequence Component 2 | D6: Time 2 | E6: Sequence Component 3 | F6: Time 3 | G6: Sequence Component 4 | H6: Time 4 | I6: Sequence Component 5 | J6: Time 5 | K6: Correct? 0=No 1=Yes | L6: Sequence | N6: Frequency | P6: Relative Frequency | Q6: Variability | T6: Frequency | V6: Relative Frequency | W6: Variability | Y6: Frequency | AA6: Relative Frequency | AB6: Variability | AD6: Frequency | AF6: Relative Frequency | AG6: Variability | AI6: Frequency | AK6: Relative Frequency | AL6: Variability | AN6: Frequency | AP6: Relative Frequency | AQ6: Variability | AS6: Frequency | AU6: Relative Frequency | AV6: Variability
A7: 21 | B7: 42 | C7: 21 | D7: 128 | E7: 21 | F7: 164 | K7: 0 | L7: 222 | N7: 111 | O7: =COUNTIF($L$7:$L$500,N7) -> 0 | P7: =O7/$Q$4 -> 0 | Q7: =IF(P7=0,0,(P7*((LOG(P7))/LOG(2)))) -> 0 | T7: =N7 -> 111 | U7: =COUNTIF(L7:L13,T7) -> 0 | V7: =U7/(W4-U14) ->  | W7: =IF(V7=0,0,(V7*((LOG(V7))/LOG(2)))) ->  | Y7: =N7 -> 111 | Z7: =COUNTIF(L14:L19,Y7) -> 0 | AA7: =Z7/(AB4-Z14) ->  | AB7: =IF(AA7=0,0,(AA7*((LOG(AA7))/LOG(2)))) ->  | AD7: =N7 -> 111 | AE7: =COUNTIF(L20:L26,AD7) -> 0 | AF7: =AE7/(AG4-AE14) ->  | AG7: =IF(AF7=0,0,(AF7*((LOG(AF7))/LOG(2)))) ->  | AI7: =N7 -> 111 | AJ7: =COUNTIF(L27:L33,AI7) -> 0 | AK7: =AJ7/(AL4-AJ14) ->  | AL7: =IF(AK7=0,0,(AK7*((LOG(AK7))/LOG(2)))) ->  | AN7: =N7 -> 111 | AO7: =COUNTIF(L34:L39,AN7) -> 0 | AP7: =AO7/(AQ4-AO14) ->  | AQ7: =IF(AP7=0,0,(AP7*((LOG(AP7))/LOG(2)))) ->  | AS7: =N7 -> 111 | AT7: =COUNTIF(L40:L46,AS7) -> 0 | AU7: =AT7/(AV4-AT14) ->  | AV7: =IF(AU7=0,0,(AU7*((LOG(AU7))/LOG(2)))) -> 
A8: 21 | B8: 323 | C8: 21 | D8: 328 | E8: 21 | F8: 385 | K8: 0 | L8: 222 | N8: 112 | O8: =COUNTIF($L$7:$L$500,N8) -> 0 | P8: =O8/$Q$4 -> 0 | Q8: =IF(P8=0,0,(P8*((LOG(P8))/LOG(2)))) -> 0 | T8: =N8 -> 112 | U8: =COUNTIF(L7:L13,T8) -> 0 | V8: =U8/(W4-U14) ->  | W8: =IF(V8=0,0,(V8*((LOG(V8))/LOG(2)))) ->  | Y8: =N8 -> 112 | Z8: =COUNTIF(L14:L19,Y8) -> 0 | AA8: =Z8/(AB4-Z14) ->  | AB8: =IF(AA8=0,0,(AA8*((LOG(AA8))/LOG(2)))) ->  | AD8: =N8 -> 112 | AE8: =COUNTIF(L20:L26,AD8) -> 0 | AF8: =AE8/(AG4-AE14) ->  | AG8: =IF(AF8=0,0,(AF8*((LOG(AF8))/LOG(2)))) ->  | AI8: =N8 -> 112 | AJ8: =COUNTIF(L27:L33,AI8) -> 0 | AK8: =AJ8/(AL4-AJ14) ->  | AL8: =IF(AK8=0,0,(AK8*((LOG(AK8))/LOG(2)))) ->  | AN8: =N8 -> 112 | AO8: =COUNTIF(L34:L39,AN8) -> 0 | AP8: =AO8/(AQ4-AO14) ->  | AQ8: =IF(AP8=0,0,(AP8*((LOG(AP8))/LOG(2)))) ->  | AS8: =N8 -> 112 | AT8: =COUNTIF(L40:L46,AS8) -> 0 | AU8: =AT8/(AV4-AT14) ->  | AV8: =IF(AU8=0,0,(AU8*((LOG(AU8))/LOG(2)))) -> 
A9: 21 | B9: 537 | C9: 21 | D9: 550 | E9: 21 | F9: 614 | K9: 0 | L9: 222 | N9: 121 | O9: =COUNTIF($L$7:$L$500,N9) -> 0 | P9: =O9/$Q$4 -> 0 | Q9: =IF(P9=0,0,(P9*((LOG(P9))/LOG(2)))) -> 0 | T9: =N9 -> 121 | U9: =COUNTIF(L7:L13,T9) -> 0 | V9: =U9/(W4-U14) ->  | W9: =IF(V9=0,0,(V9*((LOG(V9))/LOG(2)))) ->  | Y9: =N9 -> 121 | Z9: =COUNTIF(L14:L19,Y9) -> 0 | AA9: =Z9/(AB4-Z14) ->  | AB9: =IF(AA9=0,0,(AA9*((LOG(AA9))/LOG(2)))) ->  | AD9: =N9 -> 121 | AE9: =COUNTIF(L20:L26,AD9) -> 0 | AF9: =AE9/(AG4-AE14) ->  | AG9: =IF(AF9=0,0,(AF9*((LOG(AF9))/LOG(2)))) ->  | AI9: =N9 -> 121 | AJ9: =COUNTIF(L27:L33,AI9) -> 0 | AK9: =AJ9/(AL4-AJ14) ->  | AL9: =IF(AK9=0,0,(AK9*((LOG(AK9))/LOG(2)))) ->  | AN9: =N9 -> 121 | AO9: =COUNTIF(L34:L39,AN9) -> 0 | AP9: =AO9/(AQ4-AO14) ->  | AQ9: =IF(AP9=0,0,(AP9*((LOG(AP9))/LOG(2)))) ->  | AS9: =N9 -> 121 | AT9: =COUNTIF(L40:L46,AS9) -> 0 | AU9: =AT9/(AV4-AT14) ->  | AV9: =IF(AU9=0,0,(AU9*((LOG(AU9))/LOG(2)))) -> 
A10: 21 | B10: 782 | C10: 21 | D10: 808 | E10: 21 | F10: 823 | K10: 0 | L10: 222 | N10: 122 | O10: =COUNTIF($L$7:$L$500,N10) -> 0 | P10: =O10/$Q$4 -> 0 | Q10: =IF(P10=0,0,(P10*((LOG(P10))/LOG(2)))) -> 0 | T10: =N10 -> 122 | U10: =COUNTIF(L7:L13,T10) -> 0 | V10: =U10/(W4-U14) ->  | W10: =IF(V10=0,0,(V10*((LOG(V10))/LOG(2)))) ->  | Y10: =N10 -> 122 | Z10: =COUNTIF(L14:L19,Y10) -> 0 | AA10: =Z10/(AB4-Z14) ->  | AB10: =IF(AA10=0,0,(AA10*((LOG(AA10))/LOG(2)))) ->  | AD10: =N10 -> 122 | AE10: =COUNTIF(L20:L26,AD10) -> 0 | AF10: =AE10/(AG4-AE14) ->  | AG10: =IF(AF10=0,0,(AF10*((LOG(AF10))/LOG(2)))) ->  | AI10: =N10 -> 122 | AJ10: =COUNTIF(L27:L33,AI10) -> 0 | AK10: =AJ10/(AL4-AJ14) ->  | AL10: =IF(AK10=0,0,(AK10*((LOG(AK10))/LOG(2)))) ->  | AN10: =N10 -> 122 | AO10: =COUNTIF(L34:L39,AN10) -> 0 | AP10: =AO10/(AQ4-AO14) ->  | AQ10: =IF(AP10=0,0,(AP10*((LOG(AP10))/LOG(2)))) ->  | AS10: =N10 -> 122 | AT10: =COUNTIF(L40:L46,AS10) -> 0 | AU10: =AT10/(AV4-AT14) ->  | AV10: =IF(AU10=0,0,(AU10*((LOG(AU10))/LOG(2)))) -> 
A11: 21 | B11: 918 | C11: 21 | D11: 923 | E11: 21 | F11: 955 | K11: 0 | L11: 222 | N11: 211 | O11: =COUNTIF($L$7:$L$500,N11) -> 0 | P11: =O11/$Q$4 -> 0 | Q11: =IF(P11=0,0,(P11*((LOG(P11))/LOG(2)))) -> 0 | T11: =N11 -> 211 | U11: =COUNTIF(L7:L13,T11) -> 0 | V11: =U11/(W4-U14) ->  | W11: =IF(V11=0,0,(V11*((LOG(V11))/LOG(2)))) ->  | Y11: =N11 -> 211 | Z11: =COUNTIF(L14:L19,Y11) -> 0 | AA11: =Z11/(AB4-Z14) ->  | AB11: =IF(AA11=0,0,(AA11*((LOG(AA11))/LOG(2)))) ->  | AD11: =N11 -> 211 | AE11: =COUNTIF(L20:L26,AD11) -> 0 | AF11: =AE11/(AG4-AE14) ->  | AG11: =IF(AF11=0,0,(AF11*((LOG(AF11))/LOG(2)))) ->  | AI11: =N11 -> 211 | AJ11: =COUNTIF(L27:L33,AI11) -> 0 | AK11: =AJ11/(AL4-AJ14) ->  | AL11: =IF(AK11=0,0,(AK11*((LOG(AK11))/LOG(2)))) ->  | AN11: =N11 -> 211 | AO11: =COUNTIF(L34:L39,AN11) -> 0 | AP11: =AO11/(AQ4-AO14) ->  | AQ11: =IF(AP11=0,0,(AP11*((LOG(AP11))/LOG(2)))) ->  | AS11: =N11 -> 211 | AT11: =COUNTIF(L40:L46,AS11) -> 0 | AU11: =AT11/(AV4-AT14) ->  | AV11: =IF(AU11=0,0,(AU11*((LOG(AU11))/LOG(2)))) -> 
A12: 21 | B12: 1055 | C12: 21 | D12: 1060 | E12: 21 | F12: 1118 | K12: 0 | L12: 222 | N12: 212 | O12: =COUNTIF($L$7:$L$500,N12) -> 0 | P12: =O12/$Q$4 -> 0 | Q12: =IF(P12=0,0,(P12*((LOG(P12))/LOG(2)))) -> 0 | T12: =N12 -> 212 | U12: =COUNTIF(L7:L13,T12) -> 0 | V12: =U12/(W4-U14) ->  | W12: =IF(V12=0,0,(V12*((LOG(V12))/LOG(2)))) ->  | Y12: =N12 -> 212 | Z12: =COUNTIF(L14:L19,Y12) -> 0 | AA12: =Z12/(AB4-Z14) ->  | AB12: =IF(AA12=0,0,(AA12*((LOG(AA12))/LOG(2)))) ->  | AD12: =N12 -> 212 | AE12: =COUNTIF(L20:L26,AD12) -> 0 | AF12: =AE12/(AG4-AE14) ->  | AG12: =IF(AF12=0,0,(AF12*((LOG(AF12))/LOG(2)))) ->  | AI12: =N12 -> 212 | AJ12: =COUNTIF(L27:L33,AI12) -> 0 | AK12: =AJ12/(AL4-AJ14) ->  | AL12: =IF(AK12=0,0,(AK12*((LOG(AK12))/LOG(2)))) ->  | AN12: =N12 -> 212 | AO12: =COUNTIF(L34:L39,AN12) -> 0 | AP12: =AO12/(AQ4-AO14) ->  | AQ12: =IF(AP12=0,0,(AP12*((LOG(AP12))/LOG(2)))) ->  | AS12: =N12 -> 212 | AT12: =COUNTIF(L40:L46,AS12) -> 0 | AU12: =AT12/(AV4-AT14) ->  | AV12: =IF(AU12=0,0,(AU12*((LOG(AU12))/LOG(2)))) -> 
A13: 21 | B13: 1213 | C13: 21 | D13: 1259 | E13: 21 | F13: 1277 | K13: 0 | L13: 222 | N13: 221 | O13: =COUNTIF($L$7:$L$500,N13) -> 0 | P13: =O13/$Q$4 -> 0 | Q13: =IF(P13=0,0,(P13*((LOG(P13))/LOG(2)))) -> 0 | T13: =N13 -> 221 | U13: =COUNTIF(L7:L13,T13) -> 0 | V13: =U13/(W4-U14) ->  | W13: =IF(V13=0,0,(V13*((LOG(V13))/LOG(2)))) ->  | Y13: =N13 -> 221 | Z13: =COUNTIF(L14:L19,Y13) -> 0 | AA13: =Z13/(AB4-Z14) ->  | AB13: =IF(AA13=0,0,(AA13*((LOG(AA13))/LOG(2)))) ->  | AD13: =N13 -> 221 | AE13: =COUNTIF(L20:L26,AD13) -> 0 | AF13: =AE13/(AG4-AE14) ->  | AG13: =IF(AF13=0,0,(AF13*((LOG(AF13))/LOG(2)))) ->  | AI13: =N13 -> 221 | AJ13: =COUNTIF(L27:L33,AI13) -> 0 | AK13: =AJ13/(AL4-AJ14) ->  | AL13: =IF(AK13=0,0,(AK13*((LOG(AK13))/LOG(2)))) ->  | AN13: =N13 -> 221 | AO13: =COUNTIF(L34:L39,AN13) -> 0 | AP13: =AO13/(AQ4-AO14) ->  | AQ13: =IF(AP13=0,0,(AP13*((LOG(AP13))/LOG(2)))) ->  | AS13: =N13 -> 221 | AT13: =COUNTIF(L40:L46,AS13) -> 0 | AU13: =AT13/(AV4-AT14) ->  | AV13: =IF(AU13=0,0,(AU13*((LOG(AU13))/LOG(2)))) -> 
A14: 21 | B14: 1378 | C14: 21 | D14: 1384 | E14: 21 | F14: 1394 | K14: 0 | L14: 222 | N14: 222 | O14: =COUNTIF($L$7:$L$500,N14) -> 40 | P14: =O14/$Q$4 -> 1 | Q14: =IF(P14=0,0,(P14*((LOG(P14))/LOG(2)))) -> 0 | T14: =N14 -> 222 | U14: =COUNTIF(L7:L13,T14) -> 7 | Y14: =N14 -> 222 | Z14: =COUNTIF(L14:L19,Y14) -> 6 | AD14: =N14 -> 222 | AE14: =COUNTIF(L20:L26,AD14) -> 7 | AI14: =N14 -> 222 | AJ14: =COUNTIF(L27:L33,AI14) -> 7 | AN14: =N14 -> 222 | AO14: =COUNTIF(L34:L39,AN14) -> 6 | AS14: =N14 -> 222 | AT14: =COUNTIF(L40:L46,AS14) -> 7
A15: 21 | B15: 1543 | C15: 21 | D15: 1602 | E15: 21 | F15: 1613 | K15: 0 | L15: 222 | P15: =SUM(P7:P14) -> 1 | Q15: =-SUM(Q7:Q14) -> 0 | V15: =SUM(V7:V14) ->  | W15: =-SUM(W7:W14) ->  | AA15: =SUM(AA7:AA14) ->  | AB15: =-SUM(AB7:AB14) ->  | AF15: =SUM(AF7:AF14) ->  | AG15: =-SUM(AG7:AG14) ->  | AK15: =SUM(AK7:AK14) ->  | AL15: =-SUM(AL7:AL14) ->  | AP15: =SUM(AP7:AP14) ->  | AQ15: =-SUM(AQ7:AQ14) ->  | AU15: =SUM(AU7:AU14) ->  | AV15: =-SUM(AV7:AV14) -> 
A16: 21 | B16: 1712 | C16: 21 | D16: 1814 | E16: 21 | F16: 1825 | K16: 0 | L16: 222 | P16: U= | Q16: =Q15/(LOG(Q4)/LOG(2)) -> 0 | V16: U1= | W16: =W15/(LOG(W4)/LOG(2)) ->  | AA16: U2= | AB16: =AB15/(LOG(AB4)/LOG(2)) ->  | AF16: U3= | AG16: =AG15/(LOG(AG4)/LOG(2)) ->  | AK16: U4= | AL16: =AL15/(LOG(AL4)/LOG(2)) ->  | AP16: U5= | AQ16: =AQ15/(LOG(AQ4)/LOG(2)) ->  | AU16: U6= | AV16: =AV15/(LOG(AV4)/LOG(2)) -> 
A17: 21 | B17: 1924 | C17: 21 | D17: 1951 | E17: 21 | F17: 1960 | K17: 0 | L17: 222
A18: 21 | B18: 2072 | C18: 21 | D18: 2086 | E18: 21 | F18: 2104 | K18: 0 | L18: 222
A19: 21 | B19: 2206 | C19: 21 | D19: 2218 | E19: 21 | F19: 2269 | K19: 0 | L19: 222 | N19: Total Target Seq
A20: 21 | B20: 2389 | C20: 21 | D20: 2392 | E20: 21 | F20: 2399 | K20: 0 | L20: 222 | N20: =COUNTIF(L7:L46,G3) -> 40 | P20: 7 | Q20: 6 | R20: 7 | S20: 7 | T20: 6 | U20: 7
A21: 21 | B21: 2514 | C21: 21 | D21: 2563 | E21: 21 | F21: 2603 | K21: 0 | L21: 222 | P21: % of reinforcement given in 6 equal intervals based on number of trials
A22: 21 | B22: 2704 | C22: 21 | D22: 2710 | E22: 21 | F22: 2720 | K22: 0 | L22: 222 | P22: %_1 | Q22: %_2 | R22: %_3 | S22: %_4 | T22: %_5 | U22: %_6
A23: 21 | B23: 2817 | C23: 21 | D23: 2824 | E23: 21 | F23: 2840 | K23: 0 | L23: 222 | O23: target sequence | P23: =$G$3 -> 222 | Q23: =$G$3 -> 222 | R23: =$G$3 -> 222 | S23: =$G$3 -> 222 | T23: =$G$3 -> 222 | U23: =$G$3 -> 222
A24: 21 | B24: 2948 | C24: 21 | D24: 3026 | E24: 21 | F24: 3045 | K24: 0 | L24: 222 | O24: total reinforcement | P24: =U14 -> 7 | Q24: =Z14 -> 6 | R24: =AE14 -> 7 | S24: =AJ14 -> 7 | T24: =AO14 -> 6 | U24: =AT14 -> 7
A25: 21 | B25: 3146 | C25: 21 | D25: 3164 | E25: 21 | F25: 3179 | K25: 0 | L25: 222 | O25: % target
A26: 21 | B26: 3299 | C26: 21 | D26: 3304 | E26: 21 | F26: 3312 | K26: 0 | L26: 222 | O26: CCRF
A27: 21 | B27: 3425 | C27: 21 | D27: 3432 | E27: 21 | F27: 3505 | K27: 0 | L27: 222 | O27: % CCRf
A28: 21 | B28: 3606 | C28: 21 | D28: 3613 | E28: 21 | F28: 3631 | K28: 0 | L28: 222 | O28: average response rate | P28: =F13/P20 -> 182.4285714 | Q28: =(F19-F13)/Q20 -> 165.3333333 | R28: =(F26-F19)/R20 -> 149 | S28: =(F33-F26)/S20 -> 155.1428571 | T28: =(F39-F33)/T20 -> 178.1666667 | U28: =(F46-F39)/U20 -> 151.5714286
A29: 21 | B29: 3731 | C29: 21 | D29: 3736 | E29: 21 | F29: 3749 | K29: 0 | L29: 222
A30: 21 | B30: 3884 | C30: 21 | D30: 3902 | E30: 21 | F30: 3953 | K30: 0 | L30: 222
A31: 21 | B31: 4075 | C31: 21 | D31: 4082 | E31: 21 | F31: 4094 | K31: 0 | L31: 222
A32: 21 | B32: 4204 | C32: 21 | D32: 4253 | E32: 21 | F32: 4276 | K32: 0 | L32: 222
A33: 21 | B33: 4368 | C33: 21 | D33: 4380 | E33: 21 | F33: 4398 | K33: 0 | L33: 222
A34: 21 | B34: 4557 | C34: 21 | D34: 4643 | E34: 21 | F34: 4655 | K34: 0 | L34: 222
A35: 21 | B35: 4764 | C35: 21 | D35: 4780 | E35: 21 | F35: 4789 | K35: 0 | L35: 222
A36: 21 | B36: 4903 | C36: 21 | D36: 4917 | E36: 21 | F36: 4972 | K36: 0 | L36: 222
A37: 21 | B37: 5081 | C37: 21 | D37: 5120 | E37: 21 | F37: 5142 | K37: 0 | L37: 222
A38: 21 | B38: 5279 | C38: 21 | D38: 5286 | E38: 21 | F38: 5303 | K38: 0 | L38: 222
A39: 21 | B39: 5448 | C39: 21 | D39: 5454 | E39: 21 | F39: 5467 | K39: 0 | L39: 222
A40: 21 | B40: 5576 | C40: 21 | D40: 5612 | E40: 21 | F40: 5640 | K40: 0 | L40: 222
A41: 21 | B41: 5748 | C41: 21 | D41: 5801 | E41: 21 | F41: 5812 | K41: 0 | L41: 222
A42: 21 | B42: 5922 | C42: 21 | D42: 5927 | E42: 21 | F42: 5933 | K42: 0 | L42: 222
A43: 21 | B43: 6034 | C43: 21 | D43: 6038 | E43: 21 | F43: 6054 | K43: 0 | L43: 222
A44: 21 | B44: 6197 | C44: 21 | D44: 6224 | E44: 21 | F44: 6247 | K44: 0 | L44: 222
A45: 21 | B45: 6341 | C45: 21 | D45: 6346 | E45: 21 | F45: 6353 | K45: 0 | L45: 222
A46: 21 | B46: 6496 | C46: 21 | D46: 6512 | E46: 21 | F46: 6528 | K46: 1 | L46: 222

Sheet !M327A5I.sha
A1: Report for:!M327A5I.sha
A2: Date: | B2: <date>
A3: Hen: | B3: <hen> | F3: Correct Sequence | G3: =Start!J2 -> 222 | P3: Total Sequences in Data | Q3: =4994-COUNTBLANK(L7:L5000) -> 41 | V3: Total Sequences in Block Data | W3: =COUNTA(L7:L13) -> 7 | AA3: Total Sequences in Block Data | AB3: =COUNTA(L14:L20) -> 7 | AF3: Total Sequences in Block Data | AG3: =COUNTA(L21:L26) -> 6 | AK3: Total Sequences in Block Data | AL3: =COUNTA(L27:L33) -> 7 | AP3: Total Sequences in Block Data | AQ3: =COUNTA(L34:L40) -> 7 | AU3: Total Sequences in Block Data | AV3: =COUNTA(L41:L47) -> 7
P4: Total Sequences in Summary | Q4: =SUM(O7:O14) -> 41 | V4: Total Sequences in Block Summary | W4: =SUM(U7:U14) -> 7 | AA4: Total Sequences in Block Summary | AB4: =SUM(Z7:Z14) -> 7 | AF4: Total Sequences in Block Summary | AG4: =SUM(AE7:AE14) -> 6 | AK4: Total Sequences in Block Summary | AL4: =SUM(AJ7:AJ14) -> 7 | AP4: Total Sequences in Block Summary | AQ4: =SUM(AO7:AO14) -> 7 | AU4: Total Sequences in Block Summary | AV4: =SUM(AT7:AT14) -> 7
T5: Block 1 | Y5: Block 2 | AD5: Block 3 | AI5: Block 4 | AN5: Block 5 | AS5: Block 6
A6: Sequence Component 1 | B6: Time 1 | C6: Sequence Component 2 | D6: Time 2 | E6: Sequence Component 3 | F6: Time 3 | G6: Sequence Component 4 | H6: Time 4 | I6: Sequence Component 5 | J6: Time 5 | K6: Correct? 0=No 1=Yes | L6: Sequence | N6: Frequency | P6: Relative Frequency | Q6: Variability | T6: Frequency | V6: Relative Frequency | W6: Variability | Y6: Frequency | AA6: Relative Frequency | AB6: Variability | AD6: Frequency | AF6: Relative Frequency | AG6: Variability | AI6: Frequency | AK6: Relative Frequency | AL6: Variability | AN6: Frequency | AP6: Relative Frequency | AQ6: Variability | AS6: Frequency | AU6: Relative Frequency | AV6: Variability
A7: 21 | B7: 9 | C7: 21 | D7: 18 | E7: 12 | F7: 35 | K7: 0 | L7: 221 | N7: 111 | O7: =COUNTIF($L$7:$L$500,N7) -> 0 | P7: =O7/$Q$4 -> 0 | Q7: =IF(P7=0,0,(P7*((LOG(P7))/LOG(2)))) -> 0 | T7: =N7 -> 111 | U7: =COUNTIF(L7:L13,T7) -> 0 | V7: =U7/(W4-U14) -> 0 | W7: =IF(V7=0,0,(V7*((LOG(V7))/LOG(2)))) -> 0 | Y7: =N7 -> 111 | Z7: =COUNTIF(L14:L20,Y7) -> 0 | AA7: =Z7/(AB4-Z14) ->  | AB7: =IF(AA7=0,0,(AA7*((LOG(AA7))/LOG(2)))) ->  | AD7: =N7 -> 111 | AE7: =COUNTIF(L21:L26,AD7) -> 0 | AF7: =AE7/(AG4-AE14) ->  | AG7: =IF(AF7=0,0,(AF7*((LOG(AF7))/LOG(2)))) ->  | AI7: =N7 -> 111 | AJ7: =COUNTIF(L27:L33,AI7) -> 0 | AK7: =AJ7/(AL4-AJ14) ->  | AL7: =IF(AK7=0,0,(AK7*((LOG(AK7))/LOG(2)))) ->  | AN7: =N7 -> 111 | AO7: =COUNTIF(L34:L40,AN7) -> 0 | AP7: =AO7/(AQ4-AO14) ->  | AQ7: =IF(AP7=0,0,(AP7*((LOG(AP7))/LOG(2)))) ->  | AS7: =N7 -> 111 | AT7: =COUNTIF(L41:L47,AS7) -> 0 | AU7: =AT7/(AV4-AT14) ->  | AV7: =IF(AU7=0,0,(AU7*((LOG(AU7))/LOG(2)))) -> 
A8: 21 | B8: 132 | C8: 21 | D8: 141 | E8: 21 | F8: 162 | K8: 0 | L8: 222 | N8: 112 | O8: =COUNTIF($L$7:$L$500,N8) -> 0 | P8: =O8/$Q$4 -> 0 | Q8: =IF(P8=0,0,(P8*((LOG(P8))/LOG(2)))) -> 0 | T8: =N8 -> 112 | U8: =COUNTIF(L7:L13,T8) -> 0 | V8: =U8/(W4-U14) -> 0 | W8: =IF(V8=0,0,(V8*((LOG(V8))/LOG(2)))) -> 0 | Y8: =N8 -> 112 | Z8: =COUNTIF(L14:L20,Y8) -> 0 | AA8: =Z8/(AB4-Z14) ->  | AB8: =IF(AA8=0,0,(AA8*((LOG(AA8))/LOG(2)))) ->  | AD8: =N8 -> 112 | AE8: =COUNTIF(L21:L26,AD8) -> 0 | AF8: =AE8/(AG4-AE14) ->  | AG8: =IF(AF8=0,0,(AF8*((LOG(AF8))/LOG(2)))) ->  | AI8: =N8 -> 112 | AJ8: =COUNTIF(L27:L33,AI8) -> 0 | AK8: =AJ8/(AL4-AJ14) ->  | AL8: =IF(AK8=0,0,(AK8*((LOG(AK8))/LOG(2)))) ->  | AN8: =N8 -> 112 | AO8: =COUNTIF(L34:L40,AN8) -> 0 | AP8: =AO8/(AQ4-AO14) ->  | AQ8: =IF(AP8=0,0,(AP8*((LOG(AP8))/LOG(2)))) ->  | AS8: =N8 -> 112 | AT8: =COUNTIF(L41:L47,AS8) -> 0 | AU8: =AT8/(AV4-AT14) ->  | AV8: =IF(AU8=0,0,(AU8*((LOG(AU8))/LOG(2)))) -> 
A9: 21 | B9: 254 | C9: 21 | D9: 269 | E9: 21 | F9: 291 | K9: 0 | L9: 222 | N9: 121 | O9: =COUNTIF($L$7:$L$500,N9) -> 0 | P9: =O9/$Q$4 -> 0 | Q9: =IF(P9=0,0,(P9*((LOG(P9))/LOG(2)))) -> 0 | T9: =N9 -> 121 | U9: =COUNTIF(L7:L13,T9) -> 0 | V9: =U9/(W4-U14) -> 0 | W9: =IF(V9=0,0,(V9*((LOG(V9))/LOG(2)))) -> 0 | Y9: =N9 -> 121 | Z9: =COUNTIF(L14:L20,Y9) -> 0 | AA9: =Z9/(AB4-Z14) ->  | AB9: =IF(AA9=0,0,(AA9*((LOG(AA9))/LOG(2)))) ->  | AD9: =N9 -> 121 | AE9: =COUNTIF(L21:L26,AD9) -> 0 | AF9: =AE9/(AG4-AE14) ->  | AG9: =IF(AF9=0,0,(AF9*((LOG(AF9))/LOG(2)))) ->  | AI9: =N9 -> 121 | AJ9: =COUNTIF(L27:L33,AI9) -> 0 | AK9: =AJ9/(AL4-AJ14) ->  | AL9: =IF(AK9=0,0,(AK9*((LOG(AK9))/LOG(2)))) ->  | AN9: =N9 -> 121 | AO9: =COUNTIF(L34:L40,AN9) -> 0 | AP9: =AO9/(AQ4-AO14) ->  | AQ9: =IF(AP9=0,0,(AP9*((LOG(AP9))/LOG(2)))) ->  | AS9: =N9 -> 121 | AT9: =COUNTIF(L41:L47,AS9) -> 0 | AU9: =AT9/(AV4-AT14) ->  | AV9: =IF(AU9=0,0,(AU9*((LOG(AU9))/LOG(2)))) -> 
A10: 21 | B10: 385 | C10: 21 | D10: 392 | E10: 21 | F10: 402 | K10: 0 | L10: 222 | N10: 122 | O10: =COUNTIF($L$7:$L$500,N10) -> 0 | P10: =O10/$Q$4 -> 0 | Q10: =IF(P10=0,0,(P10*((LOG(P10))/LOG(2)))) -> 0 | T10: =N10 -> 122 | U10: =COUNTIF(L7:L13,T10) -> 0 | V10: =U10/(W4-U14) -> 0 | W10: =IF(V10=0,0,(V10*((LOG(V10))/LOG(2)))) -> 0 | Y10: =N10 -> 122 | Z10: =COUNTIF(L14:L20,Y10) -> 0 | AA10: =Z10/(AB4-Z14) ->  | AB10: =IF(AA10=0,0,(AA10*((LOG(AA10))/LOG(2)))) ->  | AD10: =N10 -> 122 | AE10: =COUNTIF(L21:L26,AD10) -> 0 | AF10: =AE10/(AG4-AE14) ->  | AG10: =IF(AF10=0,0,(AF10*((LOG(AF10))/LOG(2)))) ->  | AI10: =N10 -> 122 | AJ10: =COUNTIF(L27:L33,AI10) -> 0 | AK10: =AJ10/(AL4-AJ14) ->  | AL10: =IF(AK10=0,0,(AK10*((LOG(AK10))/LOG(2)))) ->  | AN10: =N10 -> 122 | AO10: =COUNTIF(L34:L40,AN10) -> 0 | AP10: =AO10/(AQ4-AO14) ->  | AQ10: =IF(AP10=0,0,(AP10*((LOG(AP10))/LOG(2)))) ->  | AS10: =N10 -> 122 | AT10: =COUNTIF(L41:L47,AS10) -> 0 | AU10: =AT10/(AV4-AT14) ->  | AV10: =IF(AU10=0,0,(AU10*((LOG(AU10))/LOG(2)))) -> 
A11: 21 | B11: 513 | C11: 21 | D11: 528 | E11: 21 | F11: 538 | K11: 0 | L11: 222 | N11: 211 | O11: =COUNTIF($L$7:$L$500,N11) -> 0 | P11: =O11/$Q$4 -> 0 | Q11: =IF(P11=0,0,(P11*((LOG(P11))/LOG(2)))) -> 0 | T11: =N11 -> 211 | U11: =COUNTIF(L7:L13,T11) -> 0 | V11: =U11/(W4-U14) -> 0 | W11: =IF(V11=0,0,(V11*((LOG(V11))/LOG(2)))) -> 0 | Y11: =N11 -> 211 | Z11: =COUNTIF(L14:L20,Y11) -> 0 | AA11: =Z11/(AB4-Z14) ->  | AB11: =IF(AA11=0,0,(AA11*((LOG(AA11))/LOG(2)))) ->  | AD11: =N11 -> 211 | AE11: =COUNTIF(L21:L26,AD11) -> 0 | AF11: =AE11/(AG4-AE14) ->  | AG11: =IF(AF11=0,0,(AF11*((LOG(AF11))/LOG(2)))) ->  | AI11: =N11 -> 211 | AJ11: =COUNTIF(L27:L33,AI11) -> 0 | AK11: =AJ11/(AL4-AJ14) ->  | AL11: =IF(AK11=0,0,(AK11*((LOG(AK11))/LOG(2)))) ->  | AN11: =N11 -> 211 | AO11: =COUNTIF(L34:L40,AN11) -> 0 | AP11: =AO11/(AQ4-AO14) ->  | AQ11: =IF(AP11=0,0,(AP11*((LOG(AP11))/LOG(2)))) ->  | AS11: =N11 -> 211 | AT11: =COUNTIF(L41:L47,AS11) -> 0 | AU11: =AT11/(AV4-AT14) ->  | AV11: =IF(AU11=0,0,(AU11*((LOG(AU11))/LOG(2)))) -> 
A12: 21 | B12: 660 | C12: 21 | D12: 675 | E12: 21 | F12: 684 | K12: 0 | L12: 222 | N12: 212 | O12: =COUNTIF($L$7:$L$500,N12) -> 0 | P12: =O12/$Q$4 -> 0 | Q12: =IF(P12=0,0,(P12*((LOG(P12))/LOG(2)))) -> 0 | T12: =N12 -> 212 | U12: =COUNTIF(L7:L13,T12) -> 0 | V12: =U12/(W4-U14) -> 0 | W12: =IF(V12=0,0,(V12*((LOG(V12))/LOG(2)))) -> 0 | Y12: =N12 -> 212 | Z12: =COUNTIF(L14:L20,Y12) -> 0 | AA12: =Z12/(AB4-Z14) ->  | AB12: =IF(AA12=0,0,(AA12*((LOG(AA12))/LOG(2)))) ->  | AD12: =N12 -> 212 | AE12: =COUNTIF(L21:L26,AD12) -> 0 | AF12: =AE12/(AG4-AE14) ->  | AG12: =IF(AF12=0,0,(AF12*((LOG(AF12))/LOG(2)))) ->  | AI12: =N12 -> 212 | AJ12: =COUNTIF(L27:L33,AI12) -> 0 | AK12: =AJ12/(AL4-AJ14) ->  | AL12: =IF(AK12=0,0,(AK12*((LOG(AK12))/LOG(2)))) ->  | AN12: =N12 -> 212 | AO12: =COUNTIF(L34:L40,AN12) -> 0 | AP12: =AO12/(AQ4-AO14) ->  | AQ12: =IF(AP12=0,0,(AP12*((LOG(AP12))/LOG(2)))) ->  | AS12: =N12 -> 212 | AT12: =COUNTIF(L41:L47,AS12) -> 0 | AU12: =AT12/(AV4-AT14) ->  | AV12: =IF(AU12=0,0,(AU12*((LOG(AU12))/LOG(2)))) -> 
A13: 21 | B13: 780 | C13: 21 | D13: 791 | E13: 21 | F13: 801 | K13: 0 | L13: 222 | N13: 221 | O13: =COUNTIF($L$7:$L$500,N13) -> 1 | P13: =O13/$Q$4 -> 0.0243902439 | Q13: =IF(P13=0,0,(P13*((LOG(P13))/LOG(2)))) -> -0.1306720001 | T13: =N13 -> 221 | U13: =COUNTIF(L7:L13,T13) -> 1 | V13: =U13/(W4-U14) -> 1 | W13: =IF(V13=0,0,(V13*((LOG(V13))/LOG(2)))) -> 0 | Y13: =N13 -> 221 | Z13: =COUNTIF(L14:L20,Y13) -> 0 | AA13: =Z13/(AB4-Z14) ->  | AB13: =IF(AA13=0,0,(AA13*((LOG(AA13))/LOG(2)))) ->  | AD13: =N13 -> 221 | AE13: =COUNTIF(L21:L26,AD13) -> 0 | AF13: =AE13/(AG4-AE14) ->  | AG13: =IF(AF13=0,0,(AF13*((LOG(AF13))/LOG(2)))) ->  | AI13: =N13 -> 221 | AJ13: =COUNTIF(L27:L33,AI13) -> 0 | AK13: =AJ13/(AL4-AJ14) ->  | AL13: =IF(AK13=0,0,(AK13*((LOG(AK13))/LOG(2)))) ->  | AN13: =N13 -> 221 | AO13: =COUNTIF(L34:L40,AN13) -> 0 | AP13: =AO13/(AQ4-AO14) ->  | AQ13: =IF(AP13=0,0,(AP13*((LOG(AP13))/LOG(2)))) ->  | AS13: =N13 -> 221 | AT13: =COUNTIF(L41:L47,AS13) -> 0 | AU13: =AT13/(AV4-AT14) ->  | AV13: =IF(AU13=0,0,(AU13*((LOG(AU13))/LOG(2)))) -> 
A14: 21 | B14: 928 | C14: 21 | D14: 942 | E14: 21 | F14: 974 | K14: 0 | L14: 222 | N14: 222 | O14: =COUNTIF($L$7:$L$500,N14) -> 40 | P14: =O14/$Q$4 -> 0.9756097561 | Q14: =IF(P14=0,0,(P14*((LOG(P14))/LOG(2)))) -> -0.03475503388 | T14: =N14 -> 222 | U14: =COUNTIF(L7:L13,T14) -> 6 | Y14: =N14 -> 222 | Z14: =COUNTIF(L14:L20,Y14) -> 7 | AD14: =N14 -> 222 | AE14: =COUNTIF(L21:L26,AD14) -> 6 | AI14: =N14 -> 222 | AJ14: =COUNTIF(L27:L33,AI14) -> 7 | AN14: =N14 -> 222 | AO14: =COUNTIF(L34:L40,AN14) -> 7 | AS14: =N14 -> 222 | AT14: =COUNTIF(L41:L47,AS14) -> 7
A15: 21 | B15: 1068 | C15: 21 | D15: 1092 | E15: 21 | F15: 1103 | K15: 0 | L15: 222 | P15: =SUM(P7:P14) -> 1 | Q15: =-SUM(Q7:Q14) -> 0.165427034 | V15: =SUM(V7:V14) -> 1 | W15: =-SUM(W7:W14) -> 0 | AA15: =SUM(AA7:AA14) ->  | AB15: =-SUM(AB7:AB14) ->  | AF15: =SUM(AF7:AF14) ->  | AG15: =-SUM(AG7:AG14) ->  | AK15: =SUM(AK7:AK14) ->  | AL15: =-SUM(AL7:AL14) ->  | AP15: =SUM(AP7:AP14) ->  | AQ15: =-SUM(AQ7:AQ14) ->  | AU15: =SUM(AU7:AU14) ->  | AV15: =-SUM(AV7:AV14) -> 
A16: 21 | B16: 1211 | C16: 21 | D16: 1218 | E16: 21 | F16: 1257 | K16: 0 | L16: 222 | P16: U= | Q16: =Q15/(LOG(Q4)/LOG(2)) -> 0.03087735478 | V16: U1= | W16: =W15/(LOG(W4)/LOG(2)) -> 0 | AA16: U2= | AB16: =AB15/(LOG(AB4)/LOG(2)) ->  | AF16: U3= | AG16: =AG15/(LOG(AG4)/LOG(2)) ->  | AK16: U4= | AL16: =AL15/(LOG(AL4)/LOG(2)) ->  | AP16: U5= | AQ16: =AQ15/(LOG(AQ4)/LOG(2)) ->  | AU16: U6= | AV16: =AV15/(LOG(AV4)/LOG(2)) -> 
A17: 21 | B17: 1373 | C17: 21 | D17: 1380 | E17: 21 | F17: 1435 | K17: 0 | L17: 222
A18: 21 | B18: 1534 | C18: 21 | D18: 1545 | E18: 21 | F18: 1589 | K18: 0 | L18: 222
A19: 21 | B19: 1696 | C19: 21 | D19: 1703 | E19: 21 | F19: 1710 | K19: 0 | L19: 222 | N19: Total Target Seq
A20: 21 | B20: 1890 | C20: 21 | D20: 1920 | E20: 21 | F20: 1931 | K20: 0 | L20: 222 | N20: =COUNTIF(L7:L47,G3) -> 40 | P20: 7 | Q20: 7 | R20: 6 | S20: 7 | T20: 7 | U20: 7
A21: 21 | B21: 2037 | C21: 21 | D21: 2044 | E21: 21 | F21: 2056 | K21: 0 | L21: 222 | P21: % of reinforcement given in 6 equal intervals based on number of trials
A22: 21 | B22: 2149 | C22: 21 | D22: 2167 | E22: 21 | F22: 2176 | K22: 0 | L22: 222 | P22: %_1 | Q22: %_2 | R22: %_3 | S22: %_4 | T22: %_5 | U22: %_6
A23: 21 | B23: 2323 | C23: 21 | D23: 2340 | E23: 21 | F23: 2384 | K23: 0 | L23: 222 | O23: target sequence | P23: =$G$3 -> 222 | Q23: =$G$3 -> 222 | R23: =$G$3 -> 222 | S23: =$G$3 -> 222 | T23: =$G$3 -> 222 | U23: =$G$3 -> 222
A24: 21 | B24: 2480 | C24: 21 | D24: 2504 | E24: 21 | F24: 2519 | K24: 0 | L24: 222 | O24: total reinforcement | P24: =U14 -> 6 | Q24: =Z14 -> 7 | R24: =AE14 -> 6 | S24: =AJ14 -> 7 | T24: =AO14 -> 7 | U24: =AT14 -> 7
A25: 21 | B25: 2638 | C25: 21 | D25: 2645 | E25: 21 | F25: 2686 | K25: 0 | L25: 222 | O25: % target
A26: 21 | B26: 2793 | C26: 21 | D26: 2803 | E26: 21 | F26: 2827 | K26: 0 | L26: 222 | O26: CCRF
A27: 21 | B27: 2922 | C27: 21 | D27: 2929 | E27: 21 | F27: 2971 | K27: 0 | L27: 222 | O27: % CCRf
A28: 21 | B28: 3066 | C28: 21 | D28: 3086 | E28: 21 | F28: 3116 | K28: 0 | L28: 222 | O28: average response rate | P28: =F13/P20 -> 114.4285714 | Q28: =(F20-F13)/Q20 -> 161.4285714 | R28: =(F26-F20)/R20 -> 149.3333333 | S28: =(F33-F26)/S20 -> 141 | T28: =(F40-F33)/T20 -> 152.4285714 | U28: =(F47-F40)/U20 -> 175.8571429
A29: 21 | B29: 3223 | C29: 21 | D29: 3229 | E29: 21 | F29: 3238 | K29: 0 | L29: 222
A30: 21 | B30: 3343 | C30: 21 | D30: 3356 | E30: 21 | F30: 3412 | K30: 0 | L30: 222
A31: 21 | B31: 3513 | C31: 21 | D31: 3525 | E31: 21 | F31: 3556 | K31: 0 | L31: 222
A32: 21 | B32: 3652 | C32: 21 | D32: 3658 | E32: 21 | F32: 3677 | K32: 0 | L32: 222
A33: 21 | B33: 3788 | C33: 21 | D33: 3803 | E33: 21 | F33: 3814 | K33: 0 | L33: 222
A34: 21 | B34: 3927 | C34: 21 | D34: 3935 | E34: 21 | F34: 3996 | K34: 0 | L34: 222
A35: 21 | B35: 4088 | C35: 21 | D35: 4095 | E35: 21 | F35: 4124 | K35: 0 | L35: 222
A36: 21 | B36: 4222 | C36: 21 | D36: 4227 | E36: 21 | F36: 4303 | K36: 0 | L36: 222
A37: 21 | B37: 4408 | C37: 21 | D37: 4417 | E37: 21 | F37: 4435 | K37: 0 | L37: 222
A38: 21 | B38: 4587 | C38: 21 | D38: 4608 | E38: 21 | F38: 4628 | K38: 0 | L38: 222
A39: 21 | B39: 4725 | C39: 21 | D39: 4738 | E39: 21 | F39: 4747 | K39: 0 | L39: 222
A40: 21 | B40: 4860 | C40: 21 | D40: 4871 | E40: 21 | F40: 4881 | K40: 0 | L40: 222
A41: 21 | B41: 5008 | C41: 21 | D41: 5110 | E41: 21 | F41: 5123 | K41: 0 | L41: 222
A42: 21 | B42: 5270 | C42: 21 | D42: 5284 | E42: 21 | F42: 5295 | K42: 0 | L42: 222
A43: 21 | B43: 5461 | C43: 21 | D43: 5468 | E43: 21 | F43: 5475 | K43: 0 | L43: 222
A44: 21 | B44: 5592 | C44: 21 | D44: 5631 | E44: 21 | F44: 5664 | K44: 0 | L44: 222
A45: 21 | B45: 5794 | C45: 21 | D45: 5799 | E45: 21 | F45: 5832 | K45: 0 | L45: 222
A46: 21 | B46: 5939 | C46: 21 | D46: 5949 | E46: 21 | F46: 5957 | K46: 0 | L46: 222
A47: 21 | B47: 6094 | C47: 21 | D47: 6101 | E47: 21 | F47: 6112 | K47: 1 | L47: 222

Sheet !M328A5I.sha
A1: Report for:!M328A5I.sha
A2: Date: | B2: <date>
A3: Hen: | B3: <hen> | F3: Correct Sequence | G3: =Start!J2 -> 222 | P3: Total Sequences in Data | Q3: =4994-COUNTBLANK(L7:L5000) -> 40 | V3: Total Sequences in Block Data | W3: =COUNTA(L7:L13) -> 7 | AA3: Total Sequences in Block Data | AB3: =COUNTA(L14:L19) -> 6 | AF3: Total Sequences in Block Data | AG3: =COUNTA(L20:L26) -> 7 | AK3: Total Sequences in Block Data | AL3: =COUNTA(L27:L33) -> 7 | AP3: Total Sequences in Block Data | AQ3: =COUNTA(L34:L39) -> 6 | AU3: Total Sequences in Block Data | AV3: =COUNTA(L40:L46) -> 7
P4: Total Sequences in Summary | Q4: =SUM(O7:O14) -> 40 | V4: Total Sequences in Block Summary | W4: =SUM(U7:U14) -> 7 | AA4: Total Sequences in Block Summary | AB4: =SUM(Z7:Z14) -> 6 | AF4: Total Sequences in Block Summary | AG4: =SUM(AE7:AE14) -> 7 | AK4: Total Sequences in Block Summary | AL4: =SUM(AJ7:AJ14) -> 7 | AP4: Total Sequences in Block Summary | AQ4: =SUM(AO7:AO14) -> 6 | AU4: Total Sequences in Block Summary | AV4: =SUM(AT7:AT14) -> 7
T5: Block 1 | Y5: Block 2 | AD5: Block 3 | AI5: Block 4 | AN5: Block 5 | AS5: Block 6
A6: Sequence Component 1 | B6: Time 1 | C6: Sequence Component 2 | D6: Time 2 | E6: Sequence Component 3 | F6: Time 3 | G6: Sequence Component 4 | H6: Time 4 | I6: Sequence Component 5 | J6: Time 5 | K6: Correct? 0=No 1=Yes | L6: Sequence | N6: Frequency | P6: Relative Frequency | Q6: Variability | T6: Frequency | V6: Relative Frequency | W6: Variability | Y6: Frequency | AA6: Relative Frequency | AB6: Variability | AD6: Frequency | AF6: Relative Frequency | AG6: Variability | AI6: Frequency | AK6: Relative Frequency | AL6: Variability | AN6: Frequency | AP6: Relative Frequency | AQ6: Variability | AS6: Frequency | AU6: Relative Frequency | AV6: Variability
A7: 21 | B7: 10 | C7: 21 | D7: 32 | E7: 21 | F7: 37 | K7: 0 | L7: 222 | N7: 111 | O7: =COUNTIF($L$7:$L$500,N7) -> 0 | P7: =O7/$Q$4 -> 0 | Q7: =IF(P7=0,0,(P7*((LOG(P7))/LOG(2)))) -> 0 | T7: =N7 -> 111 | U7: =COUNTIF(L7:L13,T7) -> 0 | V7: =U7/(W4-U14) ->  | W7: =IF(V7=0,0,(V7*((LOG(V7))/LOG(2)))) ->  | Y7: =N7 -> 111 | Z7: =COUNTIF(L14:L19,Y7) -> 0 | AA7: =Z7/(AB4-Z14) ->  | AB7: =IF(AA7=0,0,(AA7*((LOG(AA7))/LOG(2)))) ->  | AD7: =N7 -> 111 | AE7: =COUNTIF(L20:L26,AD7) -> 0 | AF7: =AE7/(AG4-AE14) ->  | AG7: =IF(AF7=0,0,(AF7*((LOG(AF7))/LOG(2)))) ->  | AI7: =N7 -> 111 | AJ7: =COUNTIF(L27:L33,AI7) -> 0 | AK7: =AJ7/(AL4-AJ14) ->  | AL7: =IF(AK7=0,0,(AK7*((LOG(AK7))/LOG(2)))) ->  | AN7: =N7 -> 111 | AO7: =COUNTIF(L34:L39,AN7) -> 0 | AP7: =AO7/(AQ4-AO14) ->  | AQ7: =IF(AP7=0,0,(AP7*((LOG(AP7))/LOG(2)))) ->  | AS7: =N7 -> 111 | AT7: =COUNTIF(L40:L46,AS7) -> 0 | AU7: =AT7/(AV4-AT14) ->  | AV7: =IF(AU7=0,0,(AU7*((LOG(AU7))/LOG(2)))) -> 
A8: 21 | B8: 132 | C8: 21 | D8: 136 | E8: 21 | F8: 147 | K8: 0 | L8: 222 | N8: 112 | O8: =COUNTIF($L$7:$L$500,N8) -> 0 | P8: =O8/$Q$4 -> 0 | Q8: =IF(P8=0,0,(P8*((LOG(P8))/LOG(2)))) -> 0 | T8: =N8 -> 112 | U8: =COUNTIF(L7:L13,T8) -> 0 | V8: =U8/(W4-U14) ->  | W8: =IF(V8=0,0,(V8*((LOG(V8))/LOG(2)))) ->  | Y8: =N8 -> 112 | Z8: =COUNTIF(L14:L19,Y8) -> 0 | AA8: =Z8/(AB4-Z14) ->  | AB8: =IF(AA8=0,0,(AA8*((LOG(AA8))/LOG(2)))) ->  | AD8: =N8 -> 112 | AE8: =COUNTIF(L20:L26,AD8) -> 0 | AF8: =AE8/(AG4-AE14) ->  | AG8: =IF(AF8=0,0,(AF8*((LOG(AF8))/LOG(2)))) ->  | AI8: =N8 -> 112 | AJ8: =COUNTIF(L27:L33,AI8) -> 0 | AK8: =AJ8/(AL4-AJ14) ->  | AL8: =IF(AK8=0,0,(AK8*((LOG(AK8))/LOG(2)))) ->  | AN8: =N8 -> 112 | AO8: =COUNTIF(L34:L39,AN8) -> 0 | AP8: =AO8/(AQ4-AO14) ->  | AQ8: =IF(AP8=0,0,(AP8*((LOG(AP8))/LOG(2)))) ->  | AS8: =N8 -> 112 | AT8: =COUNTIF(L40:L46,AS8) -> 0 | AU8: =AT8/(AV4-AT14) ->  | AV8: =IF(AU8=0,0,(AU8*((LOG(AU8))/LOG(2)))) -> 
A9: 21 | B9: 240 | C9: 21 | D9: 258 | E9: 21 | F9: 283 | K9: 0 | L9: 222 | N9: 121 | O9: =COUNTIF($L$7:$L$500,N9) -> 0 | P9: =O9/$Q$4 -> 0 | Q9: =IF(P9=0,0,(P9*((LOG(P9))/LOG(2)))) -> 0 | T9: =N9 -> 121 | U9: =COUNTIF(L7:L13,T9) -> 0 | V9: =U9/(W4-U14) ->  | W9: =IF(V9=0,0,(V9*((LOG(V9))/LOG(2)))) ->  | Y9: =N9 -> 121 | Z9: =COUNTIF(L14:L19,Y9) -> 0 | AA9: =Z9/(AB4-Z14) ->  | AB9: =IF(AA9=0,0,(AA9*((LOG(AA9))/LOG(2)))) ->  | AD9: =N9 -> 121 | AE9: =COUNTIF(L20:L26,AD9) -> 0 | AF9: =AE9/(AG4-AE14) ->  | AG9: =IF(AF9=0,0,(AF9*((LOG(AF9))/LOG(2)))) ->  | AI9: =N9 -> 121 | AJ9: =COUNTIF(L27:L33,AI9) -> 0 | AK9: =AJ9/(AL4-AJ14) ->  | AL9: =IF(AK9=0,0,(AK9*((LOG(AK9))/LOG(2)))) ->  | AN9: =N9 -> 121 | AO9: =COUNTIF(L34:L39,AN9) -> 0 | AP9: =AO9/(AQ4-AO14) ->  | AQ9: =IF(AP9=0,0,(AP9*((LOG(AP9))/LOG(2)))) ->  | AS9: =N9 -> 121 | AT9: =COUNTIF(L40:L46,AS9) -> 0 | AU9: =AT9/(AV4-AT14) ->  | AV9: =IF(AU9=0,0,(AU9*((LOG(AU9))/LOG(2)))) -> 
A10: 21 | B10: 376 | C10: 21 | D10: 384 | E10: 21 | F10: 392 | K10: 0 | L10: 222 | N10: 122 | O10: =COUNTIF($L$7:$L$500,N10) -> 0 | P10: =O10/$Q$4 -> 0 | Q10: =IF(P10=0,0,(P10*((LOG(P10))/LOG(2)))) -> 0 | T10: =N10 -> 122 | U10: =COUNTIF(L7:L13,T10) -> 0 | V10: =U10/(W4-U14) ->  | W10: =IF(V10=0,0,(V10*((LOG(V10))/LOG(2)))) ->  | Y10: =N10 -> 122 | Z10: =COUNTIF(L14:L19,Y10) -> 0 | AA10: =Z10/(AB4-Z14) ->  | AB10: =IF(AA10=0,0,(AA10*((LOG(AA10))/LOG(2)))) ->  | AD10: =N10 -> 122 | AE10: =COUNTIF(L20:L26,AD10) -> 0 | AF10: =AE10/(AG4-AE14) ->  | AG10: =IF(AF10=0,0,(AF10*((LOG(AF10))/LOG(2)))) ->  | AI10: =N10 -> 122 | AJ10: =COUNTIF(L27:L33,AI10) -> 0 | AK10: =AJ10/(AL4-AJ14) ->  | AL10: =IF(AK10=0,0,(AK10*((LOG(AK10))/LOG(2)))) ->  | AN10: =N10 -> 122 | AO10: =COUNTIF(L34:L39,AN10) -> 0 | AP10: =AO10/(AQ4-AO14) ->  | AQ10: =IF(AP10=0,0,(AP10*((LOG(AP10))/LOG(2)))) ->  | AS10: =N10 -> 122 | AT10: =COUNTIF(L40:L46,AS10) -> 0 | AU10: =AT10/(AV4-AT14) ->  | AV10: =IF(AU10=0,0,(AU10*((LOG(AU10))/LOG(2)))) -> 
A11: 21 | B11: 484 | C11: 21 | D11: 491 | E11: 21 | F11: 522 | K11: 0 | L11: 222 | N11: 211 | O11: =COUNTIF($L$7:$L$500,N11) -> 0 | P11: =O11/$Q$4 -> 0 | Q11: =IF(P11=0,0,(P11*((LOG(P11))/LOG(2)))) -> 0 | T11: =N11 -> 211 | U11: =COUNTIF(L7:L13,T11) -> 0 | V11: =U11/(W4-U14) ->  | W11: =IF(V11=0,0,(V11*((LOG(V11))/LOG(2)))) ->  | Y11: =N11 -> 211 | Z11: =COUNTIF(L14:L19,Y11) -> 0 | AA11: =Z11/(AB4-Z14) ->  | AB11: =IF(AA11=0,0,(AA11*((LOG(AA11))/LOG(2)))) ->  | AD11: =N11 -> 211 | AE11: =COUNTIF(L20:L26,AD11) -> 0 | AF11: =AE11/(AG4-AE14) ->  | AG11: =IF(AF11=0,0,(AF11*((LOG(AF11))/LOG(2)))) ->  | AI11: =N11 -> 211 | AJ11: =COUNTIF(L27:L33,AI11) -> 0 | AK11: =AJ11/(AL4-AJ14) ->  | AL11: =IF(AK11=0,0,(AK11*((LOG(AK11))/LOG(2)))) ->  | AN11: =N11 -> 211 | AO11: =COUNTIF(L34:L39,AN11) -> 0 | AP11: =AO11/(AQ4-AO14) ->  | AQ11: =IF(AP11=0,0,(AP11*((LOG(AP11))/LOG(2)))) ->  | AS11: =N11 -> 211 | AT11: =COUNTIF(L40:L46,AS11) -> 0 | AU11: =AT11/(AV4-AT14) ->  | AV11: =IF(AU11=0,0,(AU11*((LOG(AU11))/LOG(2)))) -> 
A12: 21 | B12: 624 | C12: 21 | D12: 629 | E12: 21 | F12: 641 | K12: 0 | L12: 222 | N12: 212 | O12: =COUNTIF($L$7:$L$500,N12) -> 0 | P12: =O12/$Q$4 -> 0 | Q12: =IF(P12=0,0,(P12*((LOG(P12))/LOG(2)))) -> 0 | T12: =N12 -> 212 | U12: =COUNTIF(L7:L13,T12) -> 0 | V12: =U12/(W4-U14) ->  | W12: =IF(V12=0,0,(V12*((LOG(V12))/LOG(2)))) ->  | Y12: =N12 -> 212 | Z12: =COUNTIF(L14:L19,Y12) -> 0 | AA12: =Z12/(AB4-Z14) ->  | AB12: =IF(AA12=0,0,(AA12*((LOG(AA12))/LOG(2)))) ->  | AD12: =N12 -> 212 | AE12: =COUNTIF(L20:L26,AD12) -> 0 | AF12: =AE12/(AG4-AE14) ->  | AG12: =IF(AF12=0,0,(AF12*((LOG(AF12))/LOG(2)))) ->  | AI12: =N12 -> 212 | AJ12: =COUNTIF(L27:L33,AI12) -> 0 | AK12: =AJ12/(AL4-AJ14) ->  | AL12: =IF(AK12=0,0,(AK12*((LOG(AK12))/LOG(2)))) ->  | AN12: =N12 -> 212 | AO12: =COUNTIF(L34:L39,AN12) -> 0 | AP12: =AO12/(AQ4-AO14) ->  | AQ12: =IF(AP12=0,0,(AP12*((LOG(AP12))/LOG(2)))) ->  | AS12: =N12 -> 212 | AT12: =COUNTIF(L40:L46,AS12) -> 0 | AU12: =AT12/(AV4-AT14) ->  | AV12: =IF(AU12=0,0,(AU12*((LOG(AU12))/LOG(2)))) -> 
A13: 21 | B13: 737 | C13: 21 | D13: 748 | E13: 21 | F13: 756 | K13: 0 | L13: 222 | N13: 221 | O13: =COUNTIF($L$7:$L$500,N13) -> 0 | P13: =O13/$Q$4 -> 0 | Q13: =IF(P13=0,0,(P13*((LOG(P13))/LOG(2)))) -> 0 | T13: =N13 -> 221 | U13: =COUNTIF(L7:L13,T13) -> 0 | V13: =U13/(W4-U14) ->  | W13: =IF(V13=0,0,(V13*((LOG(V13))/LOG(2)))) ->  | Y13: =N13 -> 221 | Z13: =COUNTIF(L14:L19,Y13) -> 0 | AA13: =Z13/(AB4-Z14) ->  | AB13: =IF(AA13=0,0,(AA13*((LOG(AA13))/LOG(2)))) ->  | AD13: =N13 -> 221 | AE13: =COUNTIF(L20:L26,AD13) -> 0 | AF13: =AE13/(AG4-AE14) ->  | AG13: =IF(AF13=0,0,(AF13*((LOG(AF13))/LOG(2)))) ->  | AI13: =N13 -> 221 | AJ13: =COUNTIF(L27:L33,AI13) -> 0 | AK13: =AJ13/(AL4-AJ14) ->  | AL13: =IF(AK13=0,0,(AK13*((LOG(AK13))/LOG(2)))) ->  | AN13: =N13 -> 221 | AO13: =COUNTIF(L34:L39,AN13) -> 0 | AP13: =AO13/(AQ4-AO14) ->  | AQ13: =IF(AP13=0,0,(AP13*((LOG(AP13))/LOG(2)))) ->  | AS13: =N13 -> 221 | AT13: =COUNTIF(L40:L46,AS13) -> 0 | AU13: =AT13/(AV4-AT14) ->  | AV13: =IF(AU13=0,0,(AU13*((LOG(AU13))/LOG(2)))) -> 
A14: 21 | B14: 886 | C14: 21 | D14: 934 | E14: 21 | F14: 968 | K14: 0 | L14: 222 | N14: 222 | O14: =COUNTIF($L$7:$L$500,N14) -> 40 | P14: =O14/$Q$4 -> 1 | Q14: =IF(P14=0,0,(P14*((LOG(P14))/LOG(2)))) -> 0 | T14: =N14 -> 222 | U14: =COUNTIF(L7:L13,T14) -> 7 | Y14: =N14 -> 222 | Z14: =COUNTIF(L14:L19,Y14) -> 6 | AD14: =N14 -> 222 | AE14: =COUNTIF(L20:L26,AD14) -> 7 | AI14: =N14 -> 222 | AJ14: =COUNTIF(L27:L33,AI14) -> 7 | AN14: =N14 -> 222 | AO14: =COUNTIF(L34:L39,AN14) -> 6 | AS14: =N14 -> 222 | AT14: =COUNTIF(L40:L46,AS14) -> 7
A15: 21 | B15: 1062 | C15: 21 | D15: 1068 | E15: 21 | F15: 1076 | K15: 0 | L15: 222 | P15: =SUM(P7:P14) -> 1 | Q15: =-SUM(Q7:Q14) -> 0 | V15: =SUM(V7:V14) ->  | W15: =-SUM(W7:W14) ->  | AA15: =SUM(AA7:AA14) ->  | AB15: =-SUM(AB7:AB14) ->  | AF15: =SUM(AF7:AF14) ->  | AG15: =-SUM(AG7:AG14) ->  | AK15: =SUM(AK7:AK14) ->  | AL15: =-SUM(AL7:AL14) ->  | AP15: =SUM(AP7:AP14) ->  | AQ15: =-SUM(AQ7:AQ14) ->  | AU15: =SUM(AU7:AU14) ->  | AV15: =-SUM(AV7:AV14) -> 
A16: 21 | B16: 1203 | C16: 21 | D16: 1209 | E16: 21 | F16: 1219 | K16: 0 | L16: 222 | P16: U= | Q16: =Q15/(LOG(Q4)/LOG(2)) -> 0 | V16: U1= | W16: =W15/(LOG(W4)/LOG(2)) ->  | AA16: U2= | AB16: =AB15/(LOG(AB4)/LOG(2)) ->  | AF16: U3= | AG16: =AG15/(LOG(AG4)/LOG(2)) ->  | AK16: U4= | AL16: =AL15/(LOG(AL4)/LOG(2)) ->  | AP16: U5= | AQ16: =AQ15/(LOG(AQ4)/LOG(2)) ->  | AU16: U6= | AV16: =AV15/(LOG(AV4)/LOG(2)) -> 
A17: 21 | B17: 1348 | C17: 21 | D17: 1377 | E17: 21 | F17: 1385 | K17: 0 | L17: 222
A18: 21 | B18: 1486 | C18: 21 | D18: 1496 | E18: 21 | F18: 1506 | K18: 0 | L18: 222
A19: 21 | B19: 1600 | C19: 21 | D19: 1630 | E19: 21 | F19: 1662 | K19: 0 | L19: 222 | N19: Total Target Seq
A20: 21 | B20: 1759 | C20: 21 | D20: 1765 | E20: 21 | F20: 1789 | K20: 0 | L20: 222 | N20: =COUNTIF(L7:L46,G3) -> 40 | P20: 7 | Q20: 6 | R20: 7 | S20: 7 | T20: 6 | U20: 7
A21: 21 | B21: 1900 | C21: 21 | D21: 1906 | E21: 21 | F21: 1931 | K21: 0 | L21: 222 | P21: % of reinforcement given in 6 equal intervals based on number of trials
A22: 21 | B22: 2119 | C22: 21 | D22: 2126 | E22: 21 | F22: 2131 | K22: 0 | L22: 222 | P22: %_1 | Q22: %_2 | R22: %_3 | S22: %_4 | T22: %_5 | U22: %_6
A23: 21 | B23: 2239 | C23: 21 | D23: 2264 | E23: 21 | F23: 2283 | K23: 0 | L23: 222 | O23: target sequence | P23: =$G$3 -> 222 | Q23: =$G$3 -> 222 | R23: =$G$3 -> 222 | S23: =$G$3 -> 222 | T23: =$G$3 -> 222 | U23: =$G$3 -> 222
A24: 21 | B24: 2378 | C24: 21 | D24: 2383 | E24: 21 | F24: 2393 | K24: 0 | L24: 222 | O24: total reinforcement | P24: =U14 -> 7 | Q24: =Z14 -> 6 | R24: =AE14 -> 7 | S24: =AJ14 -> 7 | T24: =AO14 -> 6 | U24: =AT14 -> 7
A25: 21 | B25: 2486 | C25: 21 | D25: 2496 | E25: 21 | F25: 2525 | K25: 0 | L25: 222 | O25: % target
A26: 21 | B26: 2630 | C26: 21 | D26: 2653 | E26: 21 | F26: 2688 | K26: 0 | L26: 222 | O26: CCRF
A27: 21 | B27: 2782 | C27: 21 | D27: 2787 | E27: 21 | F27: 2792 | K27: 0 | L27: 222 | O27: % CCRf
A28: 21 | B28: 2892 | C28: 21 | D28: 2899 | E28: 21 | F28: 2930 | K28: 0 | L28: 222 | O28: average response rate | P28: =F13/P20 -> 108 | Q28: =(F19-F13)/Q20 -> 151 | R28: =(F26-F19)/R20 -> 146.5714286 | S28: =(F33-F26)/S20 -> 155 | T28: =(F39-F33)/T20 -> 194.3333333 | U28: =(F46-F39)/U20 -> 175.2857143
A29: 21 | B29: 3044 | C29: 21 | D29: 3059 | E29: 21 | F29: 3088 | K29: 0 | L29: 222
A30: 21 | B30: 3216 | C30: 21 | D30: 3220 | E30: 21 | F30: 3226 | K30: 0 | L30: 222
A31: 21 | B31: 3368 | C31: 21 | D31: 3419 | E31: 21 | F31: 3431 | K31: 0 | L31: 222
A32: 21 | B32: 3556 | C32: 21 | D32: 3561 | E32: 21 | F32: 3604 | K32: 0 | L32: 222
A33: 21 | B33: 3743 | C33: 21 | D33: 3753 | E33: 21 | F33: 3773 | K33: 0 | L33: 222
A34: 21 | B34: 3885 | C34: 21 | D34: 3891 | E34: 21 | F34: 3916 | K34: 0 | L34: 222
A35: 21 | B35: 4043 | C35: 21 | D35: 4051 | E35: 21 | F35: 4057 | K35: 0 | L35: 222
A36: 21 | B36: 4212 | C36: 21 | D36: 4219 | E36: 21 | F36: 4298 | K36: 0 | L36: 222
A37: 21 | B37: 4475 | C37: 21 | D37: 4496 | E37: 21 | F37: 4535 | K37: 0 | L37: 222
A38: 21 | B38: 4719 | C38: 21 | D38: 4724 | E38: 21 | F38: 4739 | K38: 0 | L38: 222
A39: 21 | B39: 4855 | C39: 21 | D39: 4910 | E39: 21 | F39: 4939 | K39: 0 | L39: 222
A40: 21 | B40: 5104 | C40: 21 | D40: 5110 | E40: 21 | F40: 5118 | K40: 0 | L40: 222
A41: 21 | B41: 5242 | C41: 21 | D41: 5253 | E41: 21 | F41: 5268 | K41: 0 | L41: 222
A42: 21 | B42: 5409 | C42: 21 | D42: 5467 | E42: 21 | F42: 5526 | K42: 0 | L42: 222
A43: 21 | B43: 5627 | C43: 21 | D43: 5638 | E43: 21 | F43: 5652 | K43: 0 | L43: 222
A44: 21 | B44: 5756 | C44: 21 | D44: 5762 | E44: 21 | F44: 5786 | K44: 0 | L44: 222
A45: 21 | B45: 5951 | C45: 21 | D45: 5960 | E45: 21 | F45: 5971 | K45: 0 | L45: 222
A46: 21 | B46: 6096 | C46: 21 | D46: 6105 | E46: 21 | F46: 6166 | K46: 1 | L46: 222

Sheet !M32995I.sha
A1: Report for:!M32995I.sha
A2: Date: | B2: <date>
A3: Hen: | B3: <hen> | F3: Correct Sequence | G3: =Start!J2 -> 222 | P3: Total Sequences in Data | Q3: =4994-COUNTBLANK(L7:L5000) -> 41 | V3: Total Sequences in Block Data | W3: =COUNTA(L7:L13) -> 7 | AA3: Total Sequences in Block Data | AB3: =COUNTA(L14:L20) -> 7 | AF3: Total Sequences in Block Data | AG3: =COUNTA(L21:L26) -> 6 | AK3: Total Sequences in Block Data | AL3: =COUNTA(L27:L33) -> 7 | AP3: Total Sequences in Block Data | AQ3: =COUNTA(L34:L40) -> 7 | AU3: Total Sequences in Block Data | AV3: =COUNTA(L41:L47) -> 7
P4: Total Sequences in Summary | Q4: =SUM(O7:O14) -> 41 | V4: Total Sequences in Block Summary | W4: =SUM(U7:U14) -> 7 | AA4: Total Sequences in Block Summary | AB4: =SUM(Z7:Z14) -> 7 | AF4: Total Sequences in Block Summary | AG4: =SUM(AE7:AE14) -> 6 | AK4: Total Sequences in Block Summary | AL4: =SUM(AJ7:AJ14) -> 7 | AP4: Total Sequences in Block Summary | AQ4: =SUM(AO7:AO14) -> 7 | AU4: Total Sequences in Block Summary | AV4: =SUM(AT7:AT14) -> 7
T5: Block 1 | Y5: Block 2 | AD5: Block 3 | AI5: Block 4 | AN5: Block 5 | AS5: Block 6
A6: Sequence Component 1 | B6: Time 1 | C6: Sequence Component 2 | D6: Time 2 | E6: Sequence Component 3 | F6: Time 3 | G6: Sequence Component 4 | H6: Time 4 | I6: Sequence Component 5 | J6: Time 5 | K6: Correct? 0=No 1=Yes | L6: Sequence | N6: Frequency | P6: Relative Frequency | Q6: Variability | T6: Frequency | V6: Relative Frequency | W6: Variability | Y6: Frequency | AA6: Relative Frequency | AB6: Variability | AD6: Frequency | AF6: Relative Frequency | AG6: Variability | AI6: Frequency | AK6: Relative Frequency | AL6: Variability | AN6: Frequency | AP6: Relative Frequency | AQ6: Variability | AS6: Frequency | AU6: Relative Frequency | AV6: Variability
A7: 12 | B7: 17 | C7: 23 | D7: 30 | E7: 23 | F7: 35 | K7: 0 | L7: 122 | N7: 111 | O7: =COUNTIF($L$7:$L$500,N7) -> 0 | P7: =O7/$Q$4 -> 0 | Q7: =IF(P7=0,0,(P7*((LOG(P7))/LOG(2)))) -> 0 | T7: =N7 -> 111 | U7: =COUNTIF(L7:L13,T7) -> 0 | V7: =U7/(W4-U14) -> 0 | W7: =IF(V7=0,0,(V7*((LOG(V7))/LOG(2)))) -> 0 | Y7: =N7 -> 111 | Z7: =COUNTIF(L14:L20,Y7) -> 0 | AA7: =Z7/(AB4-Z14) ->  | AB7: =IF(AA7=0,0,(AA7*((LOG(AA7))/LOG(2)))) ->  | AD7: =N7 -> 111 | AE7: =COUNTIF(L21:L26,AD7) -> 0 | AF7: =AE7/(AG4-AE14) ->  | AG7: =IF(AF7=0,0,(AF7*((LOG(AF7))/LOG(2)))) ->  | AI7: =N7 -> 111 | AJ7: =COUNTIF(L27:L33,AI7) -> 0 | AK7: =AJ7/(AL4-AJ14) ->  | AL7: =IF(AK7=0,0,(AK7*((LOG(AK7))/LOG(2)))) ->  | AN7: =N7 -> 111 | AO7: =COUNTIF(L34:L40,AN7) -> 0 | AP7: =AO7/(AQ4-AO14) ->  | AQ7: =IF(AP7=0,0,(AP7*((LOG(AP7))/LOG(2)))) ->  | AS7: =N7 -> 111 | AT7: =COUNTIF(L41:L47,AS7) -> 0 | AU7: =AT7/(AV4-AT14) ->  | AV7: =IF(AU7=0,0,(AU7*((LOG(AU7))/LOG(2)))) -> 
A8: 21 | B8: 131 | C8: 21 | D8: 155 | E8: 21 | F8: 160 | K8: 0 | L8: 222 | N8: 112 | O8: =COUNTIF($L$7:$L$500,N8) -> 0 | P8: =O8/$Q$4 -> 0 | Q8: =IF(P8=0,0,(P8*((LOG(P8))/LOG(2)))) -> 0 | T8: =N8 -> 112 | U8: =COUNTIF(L7:L13,T8) -> 0 | V8: =U8/(W4-U14) -> 0 | W8: =IF(V8=0,0,(V8*((LOG(V8))/LOG(2)))) -> 0 | Y8: =N8 -> 112 | Z8: =COUNTIF(L14:L20,Y8) -> 0 | AA8: =Z8/(AB4-Z14) ->  | AB8: =IF(AA8=0,0,(AA8*((LOG(AA8))/LOG(2)))) ->  | AD8: =N8 -> 112 | AE8: =COUNTIF(L21:L26,AD8) -> 0 | AF8: =AE8/(AG4-AE14) ->  | AG8: =IF(AF8=0,0,(AF8*((LOG(AF8))/LOG(2)))) ->  | AI8: =N8 -> 112 | AJ8: =COUNTIF(L27:L33,AI8) -> 0 | AK8: =AJ8/(AL4-AJ14) ->  | AL8: =IF(AK8=0,0,(AK8*((LOG(AK8))/LOG(2)))) ->  | AN8: =N8 -> 112 | AO8: =COUNTIF(L34:L40,AN8) -> 0 | AP8: =AO8/(AQ4-AO14) ->  | AQ8: =IF(AP8=0,0,(AP8*((LOG(AP8))/LOG(2)))) ->  | AS8: =N8 -> 112 | AT8: =COUNTIF(L41:L47,AS8) -> 0 | AU8: =AT8/(AV4-AT14) ->  | AV8: =IF(AU8=0,0,(AU8*((LOG(AU8))/LOG(2)))) -> 
A9: 21 | B9: 254 | C9: 21 | D9: 265 | E9: 21 | F9: 294 | K9: 0 | L9: 222 | N9: 121 | O9: =COUNTIF($L$7:$L$500,N9) -> 0 | P9: =O9/$Q$4 -> 0 | Q9: =IF(P9=0,0,(P9*((LOG(P9))/LOG(2)))) -> 0 | T9: =N9 -> 121 | U9: =COUNTIF(L7:L13,T9) -> 0 | V9: =U9/(W4-U14) -> 0 | W9: =IF(V9=0,0,(V9*((LOG(V9))/LOG(2)))) -> 0 | Y9: =N9 -> 121 | Z9: =COUNTIF(L14:L20,Y9) -> 0 | AA9: =Z9/(AB4-Z14) ->  | AB9: =IF(AA9=0,0,(AA9*((LOG(AA9))/LOG(2)))) ->  | AD9: =N9 -> 121 | AE9: =COUNTIF(L21:L26,AD9) -> 0 | AF9: =AE9/(AG4-AE14) ->  | AG9: =IF(AF9=0,0,(AF9*((LOG(AF9))/LOG(2)))) ->  | AI9: =N9 -> 121 | AJ9: =COUNTIF(L27:L33,AI9) -> 0 | AK9: =AJ9/(AL4-AJ14) ->  | AL9: =IF(AK9=0,0,(AK9*((LOG(AK9))/LOG(2)))) ->  | AN9: =N9 -> 121 | AO9: =COUNTIF(L34:L40,AN9) -> 0 | AP9: =AO9/(AQ4-AO14) ->  | AQ9: =IF(AP9=0,0,(AP9*((LOG(AP9))/LOG(2)))) ->  | AS9: =N9 -> 121 | AT9: =COUNTIF(L41:L47,AS9) -> 0 | AU9: =AT9/(AV4-AT14) ->  | AV9: =IF(AU9=0,0,(AU9*((LOG(AU9))/LOG(2)))) -> 
A10: 21 | B10: 400 | C10: 21 | D10: 410 | E10: 21 | F10: 419 | K10: 0 | L10: 222 | N10: 122 | O10: =COUNTIF($L$7:$L$500,N10) -> 1 | P10: =O10/$Q$4 -> 0.0243902439 | Q10: =IF(P10=0,0,(P10*((LOG(P10))/LOG(2)))) -> -0.1306720001 | T10: =N10 -> 122 | U10: =COUNTIF(L7:L13,T10) -> 1 | V10: =U10/(W4-U14) -> 1 | W10: =IF(V10=0,0,(V10*((LOG(V10))/LOG(2)))) -> 0 | Y10: =N10 -> 122 | Z10: =COUNTIF(L14:L20,Y10) -> 0 | AA10: =Z10/(AB4-Z14) ->  | AB10: =IF(AA10=0,0,(AA10*((LOG(AA10))/LOG(2)))) ->  | AD10: =N10 -> 122 | AE10: =COUNTIF(L21:L26,AD10) -> 0 | AF10: =AE10/(AG4-AE14) ->  | AG10: =IF(AF10=0,0,(AF10*((LOG(AF10))/LOG(2)))) ->  | AI10: =N10 -> 122 | AJ10: =COUNTIF(L27:L33,AI10) -> 0 | AK10: =AJ10/(AL4-AJ14) ->  | AL10: =IF(AK10=0,0,(AK10*((LOG(AK10))/LOG(2)))) ->  | AN10: =N10 -> 122 | AO10: =COUNTIF(L34:L40,AN10) -> 0 | AP10: =AO10/(AQ4-AO14) ->  | AQ10: =IF(AP10=0,0,(AP10*((LOG(AP10))/LOG(2)))) ->  | AS10: =N10 -> 122 | AT10: =COUNTIF(L41:L47,AS10) -> 0 | AU10: =AT10/(AV4-AT14) ->  | AV10: =IF(AU10=0,0,(AU10*((LOG(AU10))/LOG(2)))) -> 
A11: 21 | B11: 533 | C11: 21 | D11: 556 | E11: 21 | F11: 567 | K11: 0 | L11: 222 | N11: 211 | O11: =COUNTIF($L$7:$L$500,N11) -> 0 | P11: =O11/$Q$4 -> 0 | Q11: =IF(P11=0,0,(P11*((LOG(P11))/LOG(2)))) -> 0 | T11: =N11 -> 211 | U11: =COUNTIF(L7:L13,T11) -> 0 | V11: =U11/(W4-U14) -> 0 | W11: =IF(V11=0,0,(V11*((LOG(V11))/LOG(2)))) -> 0 | Y11: =N11 -> 211 | Z11: =COUNTIF(L14:L20,Y11) -> 0 | AA11: =Z11/(AB4-Z14) ->  | AB11: =IF(AA11=0,0,(AA11*((LOG(AA11))/LOG(2)))) ->  | AD11: =N11 -> 211 | AE11: =COUNTIF(L21:L26,AD11) -> 0 | AF11: =AE11/(AG4-AE14) ->  | AG11: =IF(AF11=0,0,(AF11*((LOG(AF11))/LOG(2)))) ->  | AI11: =N11 -> 211 | AJ11: =COUNTIF(L27:L33,AI11) -> 0 | AK11: =AJ11/(AL4-AJ14) ->  | AL11: =IF(AK11=0,0,(AK11*((LOG(AK11))/LOG(2)))) ->  | AN11: =N11 -> 211 | AO11: =COUNTIF(L34:L40,AN11) -> 0 | AP11: =AO11/(AQ4-AO14) ->  | AQ11: =IF(AP11=0,0,(AP11*((LOG(AP11))/LOG(2)))) ->  | AS11: =N11 -> 211 | AT11: =COUNTIF(L41:L47,AS11) -> 0 | AU11: =AT11/(AV4-AT14) ->  | AV11: =IF(AU11=0,0,(AU11*((LOG(AU11))/LOG(2)))) -> 
A12: 21 | B12: 684 | C12: 21 | D12: 751 | E12: 21 | F12: 763 | K12: 0 | L12: 222 | N12: 212 | O12: =COUNTIF($L$7:$L$500,N12) -> 0 | P12: =O12/$Q$4 -> 0 | Q12: =IF(P12=0,0,(P12*((LOG(P12))/LOG(2)))) -> 0 | T12: =N12 -> 212 | U12: =COUNTIF(L7:L13,T12) -> 0 | V12: =U12/(W4-U14) -> 0 | W12: =IF(V12=0,0,(V12*((LOG(V12))/LOG(2)))) -> 0 | Y12: =N12 -> 212 | Z12: =COUNTIF(L14:L20,Y12) -> 0 | AA12: =Z12/(AB4-Z14) ->  | AB12: =IF(AA12=0,0,(AA12*((LOG(AA12))/LOG(2)))) ->  | AD12: =N12 -> 212 | AE12: =COUNTIF(L21:L26,AD12) -> 0 | AF12: =AE12/(AG4-AE14) ->  | AG12: =IF(AF12=0,0,(AF12*((LOG(AF12))/LOG(2)))) ->  | AI12: =N12 -> 212 | AJ12: =COUNTIF(L27:L33,AI12) -> 0 | AK12: =AJ12/(AL4-AJ14) ->  | AL12: =IF(AK12=0,0,(AK12*((LOG(AK12))/LOG(2)))) ->  | AN12: =N12 -> 212 | AO12: =COUNTIF(L34:L40,AN12) -> 0 | AP12: =AO12/(AQ4-AO14) ->  | AQ12: =IF(AP12=0,0,(AP12*((LOG(AP12))/LOG(2)))) ->  | AS12: =N12 -> 212 | AT12: =COUNTIF(L41:L47,AS12) -> 0 | AU12: =AT12/(AV4-AT14) ->  | AV12: =IF(AU12=0,0,(AU12*((LOG(AU12))/LOG(2)))) -> 
A13: 21 | B13: 861 | C13: 21 | D13: 866 | E13: 21 | F13: 902 | K13: 0 | L13: 222 | N13: 221 | O13: =COUNTIF($L$7:$L$500,N13) -> 0 | P13: =O13/$Q$4 -> 0 | Q13: =IF(P13=0,0,(P13*((LOG(P13))/LOG(2)))) -> 0 | T13: =N13 -> 221 | U13: =COUNTIF(L7:L13,T13) -> 0 | V13: =U13/(W4-U14) -> 0 | W13: =IF(V13=0,0,(V13*((LOG(V13))/LOG(2)))) -> 0 | Y13: =N13 -> 221 | Z13: =COUNTIF(L14:L20,Y13) -> 0 | AA13: =Z13/(AB4-Z14) ->  | AB13: =IF(AA13=0,0,(AA13*((LOG(AA13))/LOG(2)))) ->  | AD13: =N13 -> 221 | AE13: =COUNTIF(L21:L26,AD13) -> 0 | AF13: =AE13/(AG4-AE14) ->  | AG13: =IF(AF13=0,0,(AF13*((LOG(AF13))/LOG(2)))) ->  | AI13: =N13 -> 221 | AJ13: =COUNTIF(L27:L33,AI13) -> 0 | AK13: =AJ13/(AL4-AJ14) ->  | AL13: =IF(AK13=0,0,(AK13*((LOG(AK13))/LOG(2)))) ->  | AN13: =N13 -> 221 | AO13: =COUNTIF(L34:L40,AN13) -> 0 | AP13: =AO13/(AQ4-AO14) ->  | AQ13: =IF(AP13=0,0,(AP13*((LOG(AP13))/LOG(2)))) ->  | AS13: =N13 -> 221 | AT13: =COUNTIF(L41:L47,AS13) -> 0 | AU13: =AT13/(AV4-AT14) ->  | AV13: =IF(AU13=0,0,(AU13*((LOG(AU13))/LOG(2)))) -> 
A14: 21 | B14: 999 | C14: 21 | D14: 1006 | E14: 21 | F14: 1036 | K14: 0 | L14: 222 | N14: 222 | O14: =COUNTIF($L$7:$L$500,N14) -> 40 | P14: =O14/$Q$4 -> 0.9756097561 | Q14: =IF(P14=0,0,(P14*((LOG(P14))/LOG(2)))) -> -0.03475503388 | T14: =N14 -> 222 | U14: =COUNTIF(L7:L13,T14) -> 6 | Y14: =N14 -> 222 | Z14: =COUNTIF(L14:L20,Y14) -> 7 | AD14: =N14 -> 222 | AE14: =COUNTIF(L21:L26,AD14) -> 6 | AI14: =N14 -> 222 | AJ14: =COUNTIF(L27:L33,AI14) -> 7 | AN14: =N14 -> 222 | AO14: =COUNTIF(L34:L40,AN14) -> 7 | AS14: =N14 -> 222 | AT14: =COUNTIF(L41:L47,AS14) -> 7
A15: 21 | B15: 1147 | C15: 21 | D15: 1170 | E15: 21 | F15: 1179 | K15: 0 | L15: 222 | P15: =SUM(P7:P14) -> 1 | Q15: =-SUM(Q7:Q14) -> 0.165427034 | V15: =SUM(V7:V14) -> 1 | W15: =-SUM(W7:W14) -> 0 | AA15: =SUM(AA7:AA14) ->  | AB15: =-SUM(AB7:AB14) ->  | AF15: =SUM(AF7:AF14) ->  | AG15: =-SUM(AG7:AG14) ->  | AK15: =SUM(AK7:AK14) ->  | AL15: =-SUM(AL7:AL14) ->  | AP15: =SUM(AP7:AP14) ->  | AQ15: =-SUM(AQ7:AQ14) ->  | AU15: =SUM(AU7:AU14) ->  | AV15: =-SUM(AV7:AV14) -> 
A16: 21 | B16: 1288 | C16: 21 | D16: 1294 | E16: 21 | F16: 1315 | K16: 0 | L16: 222 | P16: U= | Q16: =Q15/(LOG(Q4)/LOG(2)) -> 0.03087735478 | V16: U1= | W16: =W15/(LOG(W4)/LOG(2)) -> 0 | AA16: U2= | AB16: =AB15/(LOG(AB4)/LOG(2)) ->  | AF16: U3= | AG16: =AG15/(LOG(AG4)/LOG(2)) ->  | AK16: U4= | AL16: =AL15/(LOG(AL4)/LOG(2)) ->  | AP16: U5= | AQ16: =AQ15/(LOG(AQ4)/LOG(2)) ->  | AU16: U6= | AV16: =AV15/(LOG(AV4)/LOG(2)) -> 
A17: 21 | B17: 1471 | C17: 21 | D17: 1491 | E17: 21 | F17: 1529 | K17: 0 | L17: 222
A18: 21 | B18: 1646 | C18: 21 | D18: 1666 | E18: 21 | F18: 1684 | K18: 0 | L18: 222
A19: 21 | B19: 1782 | C19: 21 | D19: 1788 | E19: 21 | F19: 1795 | K19: 0 | L19: 222 | N19: Total Target Seq
A20: 21 | B20: 1937 | C20: 21 | D20: 2006 | E20: 21 | F20: 2018 | K20: 0 | L20: 222 | N20: =COUNTIF(L7:L47,G3) -> 40 | P20: 7 | Q20: 7 | R20: 6 | S20: 7 | T20: 7 | U20: 7
A21: 21 | B21: 2120 | C21: 21 | D21: 2126 | E21: 21 | F21: 2154 | K21: 0 | L21: 222 | P21: % of reinforcement given in 6 equal intervals based on number of trials
A22: 21 | B22: 2255 | C22: 21 | D22: 2257 | E22: 21 | F22: 2270 | K22: 0 | L22: 222 | P22: %_1 | Q22: %_2 | R22: %_3 | S22: %_4 | T22: %_5 | U22: %_6
A23: 21 | B23: 2370 | C23: 21 | D23: 2377 | E23: 21 | F23: 2421 | K23: 0 | L23: 222 | O23: target sequence | P23: =$G$3 -> 222 | Q23: =$G$3 -> 222 | R23: =$G$3 -> 222 | S23: =$G$3 -> 222 | T23: =$G$3 -> 222 | U23: =$G$3 -> 222
A24: 21 | B24: 2520 | C24: 21 | D24: 2541 | E24: 21 | F24: 2573 | K24: 0 | L24: 222 | O24: total reinforcement | P24: =U14 -> 6 | Q24: =Z14 -> 7 | R24: =AE14 -> 6 | S24: =AJ14 -> 7 | T24: =AO14 -> 7 | U24: =AT14 -> 7
A25: 21 | B25: 2705 | C25: 21 | D25: 2712 | E25: 21 | F25: 2734 | K25: 0 | L25: 222 | O25: % target
A26: 21 | B26: 2847 | C26: 21 | D26: 2853 | E26: 21 | F26: 2904 | K26: 0 | L26: 222 | O26: CCRF
A27: 21 | B27: 3016 | C27: 21 | D27: 3047 | E27: 21 | F27: 3063 | K27: 0 | L27: 222 | O27: % CCRf
A28: 21 | B28: 3158 | C28: 21 | D28: 3190 | E28: 21 | F28: 3200 | K28: 0 | L28: 222 | O28: average response rate | P28: =F13/P20 -> 128.8571429 | Q28: =(F20-F13)/Q20 -> 159.4285714 | R28: =(F26-F20)/R20 -> 147.6666667 | S28: =(F33-F26)/S20 -> 152.7142857 | T28: =(F40-F33)/T20 -> 159.4285714 | U28: =(F47-F40)/U20 -> 146.8571429
A29: 21 | B29: 3338 | C29: 21 | D29: 3394 | E29: 21 | F29: 3409 | K29: 0 | L29: 222
A30: 21 | B30: 3533 | C30: 21 | D30: 3544 | E30: 21 | F30: 3554 | K30: 0 | L30: 222
A31: 21 | B31: 3647 | C31: 21 | D31: 3653 | E31: 21 | F31: 3661 | K31: 0 | L31: 222
A32: 21 | B32: 3762 | C32: 21 | D32: 3775 | E32: 21 | F32: 3799 | K32: 0 | L32: 222
A33: 21 | B33: 3957 | C33: 21 | D33: 3965 | E33: 21 | F33: 3973 | K33: 0 | L33: 222
A34: 21 | B34: 4072 | C34: 21 | D34: 4087 | E34: 21 | F34: 4102 | K34: 0 | L34: 222
A35: 21 | B35: 4213 | C35: 21 | D35: 4231 | E35: 21 | F35: 4246 | K35: 0 | L35: 222
A36: 21 | B36: 4365 | C36: 21 | D36: 4369 | E36: 21 | F36: 4454 | K36: 0 | L36: 222
A37: 21 | B37: 4553 | C37: 21 | D37: 4559 | E37: 21 | F37: 4591 | K37: 0 | L37: 222
A38: 21 | B38: 4717 | C38: 21 | D38: 4730 | E38: 21 | F38: 4766 | K38: 0 | L38: 222
A39: 21 | B39: 4874 | C39: 21 | D39: 4882 | E39: 21 | F39: 4895 | K39: 0 | L39: 222
A40: 21 | B40: 5036 | C40: 21 | D40: 5076 | E40: 21 | F40: 5089 | K40: 0 | L40: 222
A41: 21 | B41: 5231 | C41: 21 | D41: 5237 | E41: 21 | F41: 5272 | K41: 0 | L41: 222
A42: 21 | B42: 5380 | C42: 21 | D42: 5403 | E42: 21 | F42: 5422 | K42: 0 | L42: 222
A43: 21 | B43: 5528 | C43: 21 | D43: 5540 | E43: 21 | F43: 5568 | K43: 0 | L43: 222
A44: 21 | B44: 5660 | C44: 21 | D44: 5675 | E44: 21 | F44: 5724 | K44: 0 | L44: 222
A45: 21 | B45: 5856 | C45: 21 | D45: 5863 | E45: 21 | F45: 5872 | K45: 0 | L45: 222
A46: 21 | B46: 5966 | C46: 21 | D46: 5973 | E46: 21 | F46: 5990 | K46: 0 | L46: 222
A47: 21 | B47: 6098 | C47: 21 | D47: 6105 | E47: 21 | F47: 6117 | K47: 1 | L47: 222

Sheet !M330A2I.sha
A1: Report for:!M330A2I.sha
A2: Date: | B2: <date>
A3: Hen: | B3: <hen> | F3: Correct Sequence | G3: =Start!J2 -> 222 | P3: Total Sequences in Data | Q3: =4994-COUNTBLANK(L7:L5000) -> 40 | V3: Total Sequences in Block Data | W3: =COUNTA(L7:L13) -> 7 | AA3: Total Sequences in Block Data | AB3: =COUNTA(L14:L19) -> 6 | AF3: Total Sequences in Block Data | AG3: =COUNTA(L20:L26) -> 7 | AK3: Total Sequences in Block Data | AL3: =COUNTA(L27:L33) -> 7 | AP3: Total Sequences in Block Data | AQ3: =COUNTA(L34:L39) -> 6 | AU3: Total Sequences in Block Data | AV3: =COUNTA(L40:L46) -> 7
P4: Total Sequences in Summary | Q4: =SUM(O7:O14) -> 40 | V4: Total Sequences in Block Summary | W4: =SUM(U7:U14) -> 7 | AA4: Total Sequences in Block Summary | AB4: =SUM(Z7:Z14) -> 6 | AF4: Total Sequences in Block Summary | AG4: =SUM(AE7:AE14) -> 7 | AK4: Total Sequences in Block Summary | AL4: =SUM(AJ7:AJ14) -> 7 | AP4: Total Sequences in Block Summary | AQ4: =SUM(AO7:AO14) -> 6 | AU4: Total Sequences in Block Summary | AV4: =SUM(AT7:AT14) -> 7
T5: Block 1 | Y5: Block 2 | AD5: Block 3 | AI5: Block 4 | AN5: Block 5 | AS5: Block 6
A6: Sequence Component 1 | B6: Time 1 | C6: Sequence Component 2 | D6: Time 2 | E6: Sequence Component 3 | F6: Time 3 | G6: Sequence Component 4 | H6: Time 4 | I6: Sequence Component 5 | J6: Time 5 | K6: Correct? 0=No 1=Yes | L6: Sequence | N6: Frequency | P6: Relative Frequency | Q6: Variability | T6: Frequency | V6: Relative Frequency | W6: Variability | Y6: Frequency | AA6: Relative Frequency | AB6: Variability | AD6: Frequency | AF6: Relative Frequency | AG6: Variability | AI6: Frequency | AK6: Relative Frequency | AL6: Variability | AN6: Frequency | AP6: Relative Frequency | AQ6: Variability | AS6: Frequency | AU6: Relative Frequency | AV6: Variability
A7: 21 | B7: 5 | C7: 21 | D7: 25 | E7: 21 | F7: 29 | K7: 0 | L7: 222 | N7: 111 | O7: =COUNTIF($L$7:$L$500,N7) -> 0 | P7: =O7/$Q$4 -> 0 | Q7: =IF(P7=0,0,(P7*((LOG(P7))/LOG(2)))) -> 0 | T7: =N7 -> 111 | U7: =COUNTIF(L7:L13,T7) -> 0 | V7: =U7/(W4-U14) ->  | W7: =IF(V7=0,0,(V7*((LOG(V7))/LOG(2)))) ->  | Y7: =N7 -> 111 | Z7: =COUNTIF(L14:L19,Y7) -> 0 | AA7: =Z7/(AB4-Z14) ->  | AB7: =IF(AA7=0,0,(AA7*((LOG(AA7))/LOG(2)))) ->  | AD7: =N7 -> 111 | AE7: =COUNTIF(L20:L26,AD7) -> 0 | AF7: =AE7/(AG4-AE14) ->  | AG7: =IF(AF7=0,0,(AF7*((LOG(AF7))/LOG(2)))) ->  | AI7: =N7 -> 111 | AJ7: =COUNTIF(L27:L33,AI7) -> 0 | AK7: =AJ7/(AL4-AJ14) ->  | AL7: =IF(AK7=0,0,(AK7*((LOG(AK7))/LOG(2)))) ->  | AN7: =N7 -> 111 | AO7: =COUNTIF(L34:L39,AN7) -> 0 | AP7: =AO7/(AQ4-AO14) ->  | AQ7: =IF(AP7=0,0,(AP7*((LOG(AP7))/LOG(2)))) ->  | AS7: =N7 -> 111 | AT7: =COUNTIF(L40:L46,AS7) -> 0 | AU7: =AT7/(AV4-AT14) ->  | AV7: =IF(AU7=0,0,(AU7*((LOG(AU7))/LOG(2)))) -> 
A8: 21 | B8: 131 | C8: 21 | D8: 142 | E8: 21 | F8: 151 | K8: 0 | L8: 222 | N8: 112 | O8: =COUNTIF($L$7:$L$500,N8) -> 0 | P8: =O8/$Q$4 -> 0 | Q8: =IF(P8=0,0,(P8*((LOG(P8))/LOG(2)))) -> 0 | T8: =N8 -> 112 | U8: =COUNTIF(L7:L13,T8) -> 0 | V8: =U8/(W4-U14) ->  | W8: =IF(V8=0,0,(V8*((LOG(V8))/LOG(2)))) ->  | Y8: =N8 -> 112 | Z8: =COUNTIF(L14:L19,Y8) -> 0 | AA8: =Z8/(AB4-Z14) ->  | AB8: =IF(AA8=0,0,(AA8*((LOG(AA8))/LOG(2)))) ->  | AD8: =N8 -> 112 | AE8: =COUNTIF(L20:L26,AD8) -> 0 | AF8: =AE8/(AG4-AE14) ->  | AG8: =IF(AF8=0,0,(AF8*((LOG(AF8))/LOG(2)))) ->  | AI8: =N8 -> 112 | AJ8: =COUNTIF(L27:L33,AI8) -> 0 | AK8: =AJ8/(AL4-AJ14) ->  | AL8: =IF(AK8=0,0,(AK8*((LOG(AK8))/LOG(2)))) ->  | AN8: =N8 -> 112 | AO8: =COUNTIF(L34:L39,AN8) -> 0 | AP8: =AO8/(AQ4-AO14) ->  | AQ8: =IF(AP8=0,0,(AP8*((LOG(AP8))/LOG(2)))) ->  | AS8: =N8 -> 112 | AT8: =COUNTIF(L40:L46,AS8) -> 0 | AU8: =AT8/(AV4-AT14) ->  | AV8: =IF(AU8=0,0,(AU8*((LOG(AU8))/LOG(2)))) -> 
A9: 21 | B9: 250 | C9: 21 | D9: 263 | E9: 21 | F9: 308 | K9: 0 | L9: 222 | N9: 121 | O9: =COUNTIF($L$7:$L$500,N9) -> 0 | P9: =O9/$Q$4 -> 0 | Q9: =IF(P9=0,0,(P9*((LOG(P9))/LOG(2)))) -> 0 | T9: =N9 -> 121 | U9: =COUNTIF(L7:L13,T9) -> 0 | V9: =U9/(W4-U14) ->  | W9: =IF(V9=0,0,(V9*((LOG(V9))/LOG(2)))) ->  | Y9: =N9 -> 121 | Z9: =COUNTIF(L14:L19,Y9) -> 0 | AA9: =Z9/(AB4-Z14) ->  | AB9: =IF(AA9=0,0,(AA9*((LOG(AA9))/LOG(2)))) ->  | AD9: =N9 -> 121 | AE9: =COUNTIF(L20:L26,AD9) -> 0 | AF9: =AE9/(AG4-AE14) ->  | AG9: =IF(AF9=0,0,(AF9*((LOG(AF9))/LOG(2)))) ->  | AI9: =N9 -> 121 | AJ9: =COUNTIF(L27:L33,AI9) -> 0 | AK9: =AJ9/(AL4-AJ14) ->  | AL9: =IF(AK9=0,0,(AK9*((LOG(AK9))/LOG(2)))) ->  | AN9: =N9 -> 121 | AO9: =COUNTIF(L34:L39,AN9) -> 0 | AP9: =AO9/(AQ4-AO14) ->  | AQ9: =IF(AP9=0,0,(AP9*((LOG(AP9))/LOG(2)))) ->  | AS9: =N9 -> 121 | AT9: =COUNTIF(L40:L46,AS9) -> 0 | AU9: =AT9/(AV4-AT14) ->  | AV9: =IF(AU9=0,0,(AU9*((LOG(AU9))/LOG(2)))) -> 
A10: 21 | B10: 415 | C10: 21 | D10: 420 | E10: 21 | F10: 429 | K10: 0 | L10: 222 | N10: 122 | O10: =COUNTIF($L$7:$L$500,N10) -> 0 | P10: =O10/$Q$4 -> 0 | Q10: =IF(P10=0,0,(P10*((LOG(P10))/LOG(2)))) -> 0 | T10: =N10 -> 122 | U10: =COUNTIF(L7:L13,T10) -> 0 | V10: =U10/(W4-U14) ->  | W10: =IF(V10=0,0,(V10*((LOG(V10))/LOG(2)))) ->  | Y10: =N10 -> 122 | Z10: =COUNTIF(L14:L19,Y10) -> 0 | AA10: =Z10/(AB4-Z14) ->  | AB10: =IF(AA10=0,0,(AA10*((LOG(AA10))/LOG(2)))) ->  | AD10: =N10 -> 122 | AE10: =COUNTIF(L20:L26,AD10) -> 0 | AF10: =AE10/(AG4-AE14) ->  | AG10: =IF(AF10=0,0,(AF10*((LOG(AF10))/LOG(2)))) ->  | AI10: =N10 -> 122 | AJ10: =COUNTIF(L27:L33,AI10) -> 0 | AK10: =AJ10/(AL4-AJ14) ->  | AL10: =IF(AK10=0,0,(AK10*((LOG(AK10))/LOG(2)))) ->  | AN10: =N10 -> 122 | AO10: =COUNTIF(L34:L39,AN10) -> 0 | AP10: =AO10/(AQ4-AO14) ->  | AQ10: =IF(AP10=0,0,(AP10*((LOG(AP10))/LOG(2)))) ->  | AS10: =N10 -> 122 | AT10: =COUNTIF(L40:L46,AS10) -> 0 | AU10: =AT10/(AV4-AT14) ->  | AV10: =IF(AU10=0,0,(AU10*((LOG(AU10))/LOG(2)))) -> 
A11: 21 | B11: 551 | C11: 21 | D11: 561 | E11: 21 | F11: 570 | K11: 0 | L11: 222 | N11: 211 | O11: =COUNTIF($L$7:$L$500,N11) -> 0 | P11: =O11/$Q$4 -> 0 | Q11: =IF(P11=0,0,(P11*((LOG(P11))/LOG(2)))) -> 0 | T11: =N11 -> 211 | U11: =COUNTIF(L7:L13,T11) -> 0 | V11: =U11/(W4-U14) ->  | W11: =IF(V11=0,0,(V11*((LOG(V11))/LOG(2)))) ->  | Y11: =N11 -> 211 | Z11: =COUNTIF(L14:L19,Y11) -> 0 | AA11: =Z11/(AB4-Z14) ->  | AB11: =IF(AA11=0,0,(AA11*((LOG(AA11))/LOG(2)))) ->  | AD11: =N11 -> 211 | AE11: =COUNTIF(L20:L26,AD11) -> 0 | AF11: =AE11/(AG4-AE14) ->  | AG11: =IF(AF11=0,0,(AF11*((LOG(AF11))/LOG(2)))) ->  | AI11: =N11 -> 211 | AJ11: =COUNTIF(L27:L33,AI11) -> 0 | AK11: =AJ11/(AL4-AJ14) ->  | AL11: =IF(AK11=0,0,(AK11*((LOG(AK11))/LOG(2)))) ->  | AN11: =N11 -> 211 | AO11: =COUNTIF(L34:L39,AN11) -> 0 | AP11: =AO11/(AQ4-AO14) ->  | AQ11: =IF(AP11=0,0,(AP11*((LOG(AP11))/LOG(2)))) ->  | AS11: =N11 -> 211 | AT11: =COUNTIF(L40:L46,AS11) -> 0 | AU11: =AT11/(AV4-AT14) ->  | AV11: =IF(AU11=0,0,(AU11*((LOG(AU11))/LOG(2)))) -> 
A12: 21 | B12: 674 | C12: 21 | D12: 680 | E12: 21 | F12: 689 | K12: 0 | L12: 222 | N12: 212 | O12: =COUNTIF($L$7:$L$500,N12) -> 0 | P12: =O12/$Q$4 -> 0 | Q12: =IF(P12=0,0,(P12*((LOG(P12))/LOG(2)))) -> 0 | T12: =N12 -> 212 | U12: =COUNTIF(L7:L13,T12) -> 0 | V12: =U12/(W4-U14) ->  | W12: =IF(V12=0,0,(V12*((LOG(V12))/LOG(2)))) ->  | Y12: =N12 -> 212 | Z12: =COUNTIF(L14:L19,Y12) -> 0 | AA12: =Z12/(AB4-Z14) ->  | AB12: =IF(AA12=0,0,(AA12*((LOG(AA12))/LOG(2)))) ->  | AD12: =N12 -> 212 | AE12: =COUNTIF(L20:L26,AD12) -> 0 | AF12: =AE12/(AG4-AE14) ->  | AG12: =IF(AF12=0,0,(AF12*((LOG(AF12))/LOG(2)))) ->  | AI12: =N12 -> 212 | AJ12: =COUNTIF(L27:L33,AI12) -> 0 | AK12: =AJ12/(AL4-AJ14) ->  | AL12: =IF(AK12=0,0,(AK12*((LOG(AK12))/LOG(2)))) ->  | AN12: =N12 -> 212 | AO12: =COUNTIF(L34:L39,AN12) -> 0 | AP12: =AO12/(AQ4-AO14) ->  | AQ12: =IF(AP12=0,0,(AP12*((LOG(AP12))/LOG(2)))) ->  | AS12: =N12 -> 212 | AT12: =COUNTIF(L40:L46,AS12) -> 0 | AU12: =AT12/(AV4-AT14) ->  | AV12: =IF(AU12=0,0,(AU12*((LOG(AU12))/LOG(2)))) -> 
A13: 21 | B13: 805 | C13: 21 | D13: 821 | E13: 21 | F13: 871 | K13: 0 | L13: 222 | N13: 221 | O13: =COUNTIF($L$7:$L$500,N13) -> 0 | P13: =O13/$Q$4 -> 0 | Q13: =IF(P13=0,0,(P13*((LOG(P13))/LOG(2)))) -> 0 | T13: =N13 -> 221 | U13: =COUNTIF(L7:L13,T13) -> 0 | V13: =U13/(W4-U14) ->  | W13: =IF(V13=0,0,(V13*((LOG(V13))/LOG(2)))) ->  | Y13: =N13 -> 221 | Z13: =COUNTIF(L14:L19,Y13) -> 0 | AA13: =Z13/(AB4-Z14) ->  | AB13: =IF(AA13=0,0,(AA13*((LOG(AA13))/LOG(2)))) ->  | AD13: =N13 -> 221 | AE13: =COUNTIF(L20:L26,AD13) -> 0 | AF13: =AE13/(AG4-AE14) ->  | AG13: =IF(AF13=0,0,(AF13*((LOG(AF13))/LOG(2)))) ->  | AI13: =N13 -> 221 | AJ13: =COUNTIF(L27:L33,AI13) -> 0 | AK13: =AJ13/(AL4-AJ14) ->  | AL13: =IF(AK13=0,0,(AK13*((LOG(AK13))/LOG(2)))) ->  | AN13: =N13 -> 221 | AO13: =COUNTIF(L34:L39,AN13) -> 0 | AP13: =AO13/(AQ4-AO14) ->  | AQ13: =IF(AP13=0,0,(AP13*((LOG(AP13))/LOG(2)))) ->  | AS13: =N13 -> 221 | AT13: =COUNTIF(L40:L46,AS13) -> 0 | AU13: =AT13/(AV4-AT14) ->  | AV13: =IF(AU13=0,0,(AU13*((LOG(AU13))/LOG(2)))) -> 
A14: 21 | B14: 1006 | C14: 21 | D14: 1018 | E14: 21 | F14: 1028 | K14: 0 | L14: 222 | N14: 222 | O14: =COUNTIF($L$7:$L$500,N14) -> 40 | P14: =O14/$Q$4 -> 1 | Q14: =IF(P14=0,0,(P14*((LOG(P14))/LOG(2)))) -> 0 | T14: =N14 -> 222 | U14: =COUNTIF(L7:L13,T14) -> 7 | Y14: =N14 -> 222 | Z14: =COUNTIF(L14:L19,Y14) -> 6 | AD14: =N14 -> 222 | AE14: =COUNTIF(L20:L26,AD14) -> 7 | AI14: =N14 -> 222 | AJ14: =COUNTIF(L27:L33,AI14) -> 7 | AN14: =N14 -> 222 | AO14: =COUNTIF(L34:L39,AN14) -> 6 | AS14: =N14 -> 222 | AT14: =COUNTIF(L40:L46,AS14) -> 7
A15: 21 | B15: 1123 | C15: 21 | D15: 1132 | E15: 21 | F15: 1162 | K15: 0 | L15: 222 | P15: =SUM(P7:P14) -> 1 | Q15: =-SUM(Q7:Q14) -> 0 | V15: =SUM(V7:V14) ->  | W15: =-SUM(W7:W14) ->  | AA15: =SUM(AA7:AA14) ->  | AB15: =-SUM(AB7:AB14) ->  | AF15: =SUM(AF7:AF14) ->  | AG15: =-SUM(AG7:AG14) ->  | AK15: =SUM(AK7:AK14) ->  | AL15: =-SUM(AL7:AL14) ->  | AP15: =SUM(AP7:AP14) ->  | AQ15: =-SUM(AQ7:AQ14) ->  | AU15: =SUM(AU7:AU14) ->  | AV15: =-SUM(AV7:AV14) -> 
A16: 21 | B16: 1257 | C16: 21 | D16: 1303 | E16: 21 | F16: 1323 | K16: 0 | L16: 222 | P16: U= | Q16: =Q15/(LOG(Q4)/LOG(2)) -> 0 | V16: U1= | W16: =W15/(LOG(W4)/LOG(2)) ->  | AA16: U2= | AB16: =AB15/(LOG(AB4)/LOG(2)) ->  | AF16: U3= | AG16: =AG15/(LOG(AG4)/LOG(2)) ->  | AK16: U4= | AL16: =AL15/(LOG(AL4)/LOG(2)) ->  | AP16: U5= | AQ16: =AQ15/(LOG(AQ4)/LOG(2)) ->  | AU16: U6= | AV16: =AV15/(LOG(AV4)/LOG(2)) -> 
A17: 21 | B17: 1437 | C17: 21 | D17: 1443 | E17: 21 | F17: 1493 | K17: 0 | L17: 222
A18: 21 | B18: 1590 | C18: 21 | D18: 1601 | E18: 21 | F18: 1626 | K18: 0 | L18: 222
A19: 21 | B19: 1719 | C19: 21 | D19: 1740 | E19: 21 | F19: 1768 | K19: 0 | L19: 222 | N19: Total Target Seq
A20: 21 | B20: 1878 | C20: 21 | D20: 1884 | E20: 21 | F20: 1889 | K20: 0 | L20: 222 | N20: =COUNTIF(L7:L46,G3) -> 40 | P20: 7 | Q20: 6 | R20: 7 | S20: 7 | T20: 6 | U20: 7
A21: 21 | B21: 2007 | C21: 21 | D21: 2014 | E21: 21 | F21: 2029 | K21: 0 | L21: 222 | P21: % of reinforcement given in 6 equal intervals based on number of trials
A22: 21 | B22: 2155 | C22: 21 | D22: 2157 | E22: 21 | F22: 2164 | K22: 0 | L22: 222 | P22: %_1 | Q22: %_2 | R22: %_3 | S22: %_4 | T22: %_5 | U22: %_6
A23: 21 | B23: 2293 | C23: 21 | D23: 2308 | E23: 21 | F23: 2351 | K23: 0 | L23: 222 | O23: target sequence | P23: =$G$3 -> 222 | Q23: =$G$3 -> 222 | R23: =$G$3 -> 222 | S23: =$G$3 -> 222 | T23: =$G$3 -> 222 | U23: =$G$3 -> 222
A24: 21 | B24: 2449 | C24: 21 | D24: 2458 | E24: 21 | F24: 2479 | K24: 0 | L24: 222 | O24: total reinforcement | P24: =U14 -> 7 | Q24: =Z14 -> 6 | R24: =AE14 -> 7 | S24: =AJ14 -> 7 | T24: =AO14 -> 6 | U24: =AT14 -> 7
A25: 21 | B25: 2596 | C25: 21 | D25: 2626 | E25: 21 | F25: 2638 | K25: 0 | L25: 222 | O25: % target
A26: 21 | B26: 2732 | C26: 21 | D26: 2739 | E26: 21 | F26: 2745 | K26: 0 | L26: 222 | O26: CCRF
A27: 21 | B27: 2875 | C27: 21 | D27: 2880 | E27: 21 | F27: 2906 | K27: 0 | L27: 222 | O27: % CCRf
A28: 21 | B28: 3014 | C28: 21 | D28: 3027 | E28: 21 | F28: 3038 | K28: 0 | L28: 222 | O28: average response rate | P28: =F13/P20 -> 124.4285714 | Q28: =(F19-F13)/Q20 -> 149.5 | R28: =(F26-F19)/R20 -> 139.5714286 | S28: =(F33-F26)/S20 -> 150.5714286 | T28: =(F39-F33)/T20 -> 167.5 | U28: =(F46-F39)/U20 -> 161.5714286
A29: 21 | B29: 3139 | C29: 21 | D29: 3190 | E29: 21 | F29: 3201 | K29: 0 | L29: 222
A30: 21 | B30: 3304 | C30: 21 | D30: 3310 | E30: 21 | F30: 3335 | K30: 0 | L30: 222
A31: 21 | B31: 3440 | C31: 21 | D31: 3486 | E31: 21 | F31: 3504 | K31: 0 | L31: 222
A32: 21 | B32: 3613 | C32: 21 | D32: 3631 | E32: 21 | F32: 3665 | K32: 0 | L32: 222
A33: 21 | B33: 3790 | C33: 21 | D33: 3794 | E33: 21 | F33: 3799 | K33: 0 | L33: 222
A34: 21 | B34: 3901 | C34: 21 | D34: 3907 | E34: 21 | F34: 3916 | K34: 0 | L34: 222
A35: 21 | B35: 4050 | C35: 21 | D35: 4059 | E35: 21 | F35: 4100 | K35: 0 | L35: 222
A36: 21 | B36: 4206 | C36: 21 | D36: 4216 | E36: 21 | F36: 4233 | K36: 0 | L36: 222
A37: 21 | B37: 4396 | C37: 21 | D37: 4403 | E37: 21 | F37: 4420 | K37: 0 | L37: 222
A38: 21 | B38: 4603 | C38: 21 | D38: 4639 | E38: 21 | F38: 4671 | K38: 0 | L38: 222
A39: 21 | B39: 4795 | C39: 21 | D39: 4797 | E39: 21 | F39: 4804 | K39: 0 | L39: 222
A40: 21 | B40: 4939 | C40: 21 | D40: 4955 | E40: 21 | F40: 4983 | K40: 0 | L40: 222
A41: 21 | B41: 5088 | C41: 21 | D41: 5109 | E41: 21 | F41: 5151 | K41: 0 | L41: 222
A42: 21 | B42: 5255 | C42: 21 | D42: 5273 | E42: 21 | F42: 5292 | K42: 0 | L42: 222
A43: 21 | B43: 5385 | C43: 21 | D43: 5392 | E43: 21 | F43: 5415 | K43: 0 | L43: 222
A44: 21 | B44: 5519 | C44: 21 | D44: 5528 | E44: 21 | F44: 5544 | K44: 0 | L44: 222
A45: 21 | B45: 5748 | C45: 21 | D45: 5753 | E45: 21 | F45: 5759 | K45: 0 | L45: 222
A46: 21 | B46: 5918 | C46: 21 | D46: 5924 | E46: 21 | F46: 5935 | K46: 1 | L46: 222

